Workbook

Sheet 作成シート
B1: 初期因果点 | C1: 3 | D1: 絞り込み
B2: 初期冒険者レベル | C2: 1
B3: 名前 | C3: 何か書いてください
B4: 種族 | C4: 只人
B5: 年齢 | C5: 不明
B6: 性別 | C6: 不明
B7: 経歴／出自の出目(2d6) | C7: 7
B8: 経歴／来歴の出目(2d6) | C8: 7
B9: 経歴／邂逅の出目(2d6) | C9: 7
B10: 等級 | C10: 白磁等級
B11: 身体的特徴 | C11: 何か書いてください
B12: 身体的特徴／髪 | C12: 何か書いてください
B13: 身体的特徴／瞳 | C13: 何か書いてください
B14: 冒険者になった動機の1回目の出目(1d6で1,2-3,4-5,6) | C14: 3,4
B15: 冒険者になった動機の2回目の出目(1d6) | C15: 4
B16: 設定 | C16: 何か書いてください
B17: 信仰 | C17: なし
B18: 状態／2D6(1回目) | C18: 5
B19: 状態／2D6(2回目) | C19: 7
B20: 状態／2D6(3回目) | C20: 9
B21: 状態タイプ | C21: 固定値
B22: 体力点(ランダム)
B23: 魂魄点(ランダム)
B24: 技量点(ランダム)
B25: 知力点(ランダム)
B26: 集中度(ランダム)
B27: 持久度(ランダム)
B28: 反射度(ランダム)
B29: 能力値タイプ | C29: 固定値
B30: 能力値ボーナス | C30: 技量点
B31: 生命力基本値 | C31: 状態／2D6(1回目)
B32: 移動力基本値 | C32: 状態／2D6(2回目)
B33: 呪文使用回数基本値 | C33: 状態／2D6(3回目)
B34: 冒険者職業レベル出自ボーナス | C34: なし
B35: 技能出自ボーナス(1) | C35: なし
B36: 技能出自ボーナス(2) | C36: なし
B37: 技能来歴ボーナス | C37: なし
B38: 所持冒険者職業レベル(1) | C38: なし | D38: 冒険者職業絞り込みなし
B39: 所持冒険者職業レベル(2) | C39: なし | D39: 冒険者職業絞り込みなし
B40: 所持冒険者職業レベル(3) | C40: なし | D40: 冒険者職業絞り込みなし
B41: 所持冒険者職業レベル(4) | C41: なし | D41: 冒険者職業絞り込みなし
B42: 所持冒険者職業レベル(5) | C42: なし | D42: 冒険者職業絞り込みなし
B43: 追加成長点 | C43: 0
B44: 習得呪文(1) | C44: なし | D44: 種別絞り込みなし
B45: 習得呪文(2) | C45: なし | D45: 種別絞り込みなし
B46: 習得呪文(3) | C46: なし | D46: 種別絞り込みなし
B47: 習得呪文(4) | C47: なし | D47: 種別絞り込みなし
B48: 習得呪文(5) | C48: なし | D48: 種別絞り込みなし
B49: 習得呪文(6) | C49: なし | D49: 種別絞り込みなし
B50: 習得呪文(7) | C50: なし | D50: 種別絞り込みなし
B51: 習得呪文(8) | C51: なし | D51: 種別絞り込みなし
B52: 習得呪文(9) | C52: なし | D52: 種別絞り込みなし
B53: 習得呪文(10) | C53: なし | D53: 種別絞り込みなし
B54: 習得技能(1) | C54: なし | D54: 技能絞り込みなし
B55: 習得技能(2) | C55: なし | D55: 技能絞り込みなし
B56: 習得技能(3) | C56: なし | D56: 技能絞り込みなし
B57: 習得技能(4) | C57: なし | D57: 技能絞り込みなし
B58: 習得技能(5) | C58: なし | D58: 技能絞り込みなし
B59: 習得技能(6) | C59: なし | D59: 技能絞り込みなし
B60: 習得技能(7) | C60: なし | D60: 技能絞り込みなし
B61: 習得技能(8) | C61: なし | D61: 技能絞り込みなし
B62: 習得技能(9) | C62: なし | D62: 技能絞り込みなし
B63: 習得技能(10) | C63: なし | D63: 技能絞り込みなし
B64: 習得技能(11) | C64: なし | D64: 技能絞り込みなし
B65: 習得技能(12) | C65: なし | D65: 技能絞り込みなし
B66: 習得技能(13) | C66: なし | D66: 技能絞り込みなし
B67: 習得技能(14) | C67: なし | D67: 技能絞り込みなし
B68: 習得技能(15) | C68: なし | D68: 技能絞り込みなし
B69: 習得技能(16) | C69: なし | D69: 技能絞り込みなし
B70: 習得技能(17) | C70: なし | D70: 技能絞り込みなし
B71: 習得技能(18) | C71: なし | D71: 技能絞り込みなし
B72: 習得技能(19) | C72: なし | D72: 技能絞り込みなし
B73: 習得技能(20) | C73: なし | D73: 技能絞り込みなし
B74: 習得技能(21) | C74: なし | D74: 技能絞り込みなし
B75: 習得技能(22) | C75: なし | D75: 技能絞り込みなし
B76: 習得技能(23) | C76: なし | D76: 技能絞り込みなし
B77: 習得技能(24) | C77: なし | D77: 技能絞り込みなし
B78: 武器(1) | C78: なし | D78: 武器種別絞り込みなし
B79: 武器(1)の使用近接職 | C79: なし
B80: 武器(1)の入手手段 | C80: 購入
B81: 武器(1)の魔法レベル | C81: なし
B82: 武器(2) | C82: なし | D82: 武器種別絞り込みなし
B83: 武器(2)の使用近接職 | C83: なし
B84: 武器(2)の入手手段 | C84: 購入
B85: 武器(2)の魔法レベル | C85: なし
B86: 武器(3) | C86: なし | D86: 武器種別絞り込みなし
B87: 武器(3)の使用近接職 | C87: なし
B88: 武器(3)の入手手段 | C88: 購入
B89: 武器(3)の魔法レベル | C89: なし
B90: 武器(4) | C90: なし | D90: 武器種別絞り込みなし
B91: 武器(4)の使用近接職 | C91: なし
B92: 武器(4)の入手手段 | C92: 購入
B93: 武器(4)の魔法レベル | C93: なし
B94: 武器(5) | C94: なし | D94: 武器種別絞り込みなし
B95: 武器(5)の使用近接職 | C95: なし
B96: 武器(5)の入手手段 | C96: 購入
B97: 武器(5)の魔法レベル | C97: なし
B98: 武器(6) | C98: なし | D98: 武器種別絞り込みなし
B99: 武器(6)の使用近接職 | C99: なし
B100: 武器(6)の入手手段 | C100: 購入
B101: 武器(6)の魔法レベル | C101: なし
B102: 鎧 | C102: なし | D102: 鎧種別絞り込みなし
B103: 回避近接職 | C103: なし
B104: 鎧の入手手段 | C104: 購入
B105: 鎧の魔法レベル | C105: なし
B106: 盾(1) | C106: なし | D106: 盾種別絞り込みなし
B107: 盾(1)受け近接職 | C107: なし
B108: 盾(1)の入手手段 | C108: 購入
B109: 盾(1)の魔法レベル | C109: なし
B110: 盾(2) | C110: なし | D110: 盾種別絞り込みなし
B111: 盾(2)受け近接職 | C111: なし
B112: 盾(2)の入手手段 | C112: 購入
B113: 盾(2)の魔法レベル | C113: なし
B114: 盾(3) | C114: なし | D114: 盾種別絞り込みなし
B115: 盾(3)受け近接職 | C115: なし
B116: 盾(3)の入手手段 | C116: 購入
B117: 盾(3)の魔法レベル | C117: なし
B118: 指輪or腕輪(右) | C118: なし
B119: 指輪or腕輪(右)の入手手段 | C119: 購入
B120: 指輪or腕輪(左) | C120: なし
B121: 指輪or腕輪(左)の入手手段 | C121: 購入
B122: その他の所持品(1) | C122: 冒険者ツール(鈎縄10m、楔10個、小槌、火口箱、背負い袋、携帯用食器、水袋、白墨、小刀、松明(6本))
B123: その他の所持品(2) | C123: 携帯食：21
B124: その他の所持品(3) | C124: 衣類
B125: その他の所持品(4) | C125: なし
B126: その他の所持品(5) | C126: なし
B127: その他の所持品(6) | C127: なし
B128: その他の所持品(7) | C128: なし
B129: その他の所持品(8) | C129: なし
B130: その他の所持品(9) | C130: なし
B131: その他の所持品：購入品(1) | C131: なし
B132: その他の所持品：購入品(2) | C132: なし
B133: その他の所持品：購入品(3) | C133: なし
B134: その他の所持品：購入品(4) | C134: なし
B135: その他の所持品：購入品(5) | C135: なし
B136: その他の所持品：購入品(6) | C136: なし
B137: その他の所持品：購入品(7) | C137: なし
B138: その他の所持品：購入品(8) | C138: なし
B139: その他の所持品：購入品(9) | C139: なし
B140: 騎乗 | C140: なし

Sheet 冒険現在値
B2: 体力抵抗 | C2: =VLOOKUP(B2,能力値!$C$32:$D$69,2,FALSE) -> 6 | E2: 水泳 | F2: =VLOOKUP(E2,能力値!$C$32:$D$69,2,FALSE) -> 6 | H2: 隠密 | I2: =VLOOKUP(H2,能力値!$C$32:$D$69,2,FALSE) -> 5 | K2: 観察(10分) | L2: =VLOOKUP(K2,能力値!$C$32:$D$69,2,FALSE) -> 5 | N2: 免疫強化 | O2: =VLOOKUP(N2,冒険者技能!$C$3:$K$67,9,FALSE) -> 0 | Q2: ◆メモ欄
B3: 魂魄抵抗 | C3: =VLOOKUP(B3,能力値!$C$32:$D$69,2,FALSE) -> 5 | E3: 登攀(技量) | F3: =VLOOKUP(E3,能力値!$C$32:$D$69,2,FALSE) -> 5 | H3: 隠密行軍 | I3: =VLOOKUP(H3,能力値!$C$32:$D$69,2,FALSE) -> 7 | K3: 詳細観察(1時間) | L3: =VLOOKUP(K3,能力値!$C$32:$D$69,2,FALSE) -> 7 | N3: 呪文抵抗 | O3: =VLOOKUP(N3,冒険者技能!$C$3:$K$67,9,FALSE) -> 0 | AL3: 0
B4: 知力抵抗 | C4: =VLOOKUP(B4,能力値!$C$32:$D$69,2,FALSE) -> 6 | E4: 軽業 | F4: =VLOOKUP(E4,能力値!$C$32:$D$69,2,FALSE) -> 5 | H4: 咄嗟隠密 | I4: =VLOOKUP(H4,能力値!$C$32:$D$69,2,FALSE) -> 5 | K4: 咄嗟観察(30秒) | L4: =VLOOKUP(K4,能力値!$C$32:$D$69,2,FALSE) -> 5 | N4: 荷重行動 | O4: =VLOOKUP(N4,冒険者技能!$C$3:$K$67,9,FALSE) -> 1
B5: 呪文抵抗 | C5: =VLOOKUP(B5,能力値!$C$32:$D$69,2,FALSE) -> 5 | E5: 跳躍 | F5: =VLOOKUP(E5,能力値!$C$32:$D$69,2,FALSE) -> 5 | H5: 直感 | I5: =VLOOKUP(H5,能力値!$C$32:$D$83,2,FALSE) -> 4 | K5: 第六感 | L5: =VLOOKUP(K5,能力値!$C$32:$D$69,2,FALSE) -> 5 | N5: 体術 | O5: =VLOOKUP(N5,冒険者技能!$C$3:$K$67,9,FALSE) -> 0
N6: 応急手当 | O6: =VLOOKUP(N6,冒険者技能!$C$3:$K$67,9,FALSE) -> 0
B7: 怪力(集中) | C7: =VLOOKUP(B7,能力値!$C$32:$D$69,2,FALSE) -> 6 | E7: 応急手当 | F7: =VLOOKUP(E7,能力値!$C$32:$D$69,2,FALSE) -> 5 | H7: 怪物知識 | I7: =VLOOKUP(H7,能力値!$C$32:$D$69,2,FALSE) -> 5 | K7: 長距離移動 | L7: =VLOOKUP(K7,能力値!$C$32:$D$69,2,FALSE) -> 9 | N7: 手仕事 | O7: =VLOOKUP(N7,冒険者技能!$C$3:$K$67,9,FALSE) -> 0
B8: 怪力(持久) | C8: =VLOOKUP(B8,能力値!$C$32:$D$69,2,FALSE) -> 8 | E8: 手仕事(10分) | F8: =VLOOKUP(E8,能力値!$C$32:$D$69,2,FALSE) -> 5 | H8: 博識 | I8: =VLOOKUP(H8,能力値!$C$32:$D$69,2,FALSE) -> 5 | K8: 短距離走 | L8: =VLOOKUP(K8,能力値!$C$32:$D$69,2,FALSE) -> 6 | N8: 隠密 | O8: =VLOOKUP(N8,冒険者技能!$C$3:$K$67,9,FALSE) -> 0
B9: 脱出 | C9: =VLOOKUP(B9,能力値!$C$32:$D$69,2,FALSE) -> 6 | E9: 手仕事(1時間) | F9: =VLOOKUP(E9,能力値!$C$32:$D$69,2,FALSE) -> 7 | H9: 魔法知識 | I9: =VLOOKUP(H9,能力値!$C$32:$D$69,2,FALSE) -> 5 | K9: 野草採取(1時間) | L9: =VLOOKUP(K9,能力値!$C$32:$D$69,2,FALSE) -> 7 | N9: 怪物知識 | O9: =VLOOKUP(N9,冒険者技能!$C$3:$K$67,9,FALSE) -> 0
B10: 登攀（筋力) | C10: =VLOOKUP(B10,能力値!$C$32:$D$69,2,FALSE) -> 8 | E10: 手仕事(30秒) | F10: =VLOOKUP(E10,能力値!$C$32:$D$69,2,FALSE) -> 5 | H10: 文献調査 | I10: =VLOOKUP(H10,能力値!$C$32:$D$69,2,FALSE) -> 7 | K10: 野獣発見(1時間) | L10: =VLOOKUP(K10,能力値!$C$32:$D$69,2,FALSE) -> 7 | N10: 観察 | O10: =VLOOKUP(N10,冒険者技能!$C$3:$K$67,9,FALSE) -> 0
N11: 第六感 | O11: =VLOOKUP(N11,冒険者技能!$C$3:$K$67,9,FALSE) -> 0
B12: 体力集中 | C12: =能力値!J10 -> ５ | E12: 魂魄集中 | F12: =能力値!K10 -> ４ | H12: 技量集中 | I12: =能力値!L10 -> ５ | K12: 知力集中 | L12: =能力値!M10 -> ５ | N12: 沈着冷静 | O12: =VLOOKUP(N12,一般技能!$B$3:$I$47,8,FALSE) -> 0
B13: 体力持久 | C13: =能力値!J11 -> ７ | E13: 魂魄持久 | F13: =能力値!K11 -> ６ | H13: 技量持久 | I13: =能力値!L11 -> ７ | K13: 知力持久 | L13: =能力値!M11 -> ７ | N13: 博識 | O13: =VLOOKUP(N13,一般技能!$B$3:$I$47,8,FALSE) -> 0
B14: 体力反射 | C14: =能力値!J12 -> ５ | E14: 魂魄反射 | F14: =能力値!K12 -> ４ | H14: 技量反射 | I14: =能力値!L12 -> ５ | K14: 知力反射 | L14: =能力値!M12 -> ５ | N14: 文献調査 | O14: =VLOOKUP(N14,一般技能!$B$3:$I$47,8,FALSE) -> 0
N15: 長距離移動 | O15: =VLOOKUP(N15,一般技能!$B$3:$I$47,8,FALSE) -> 1
B16: =状態!$D$60 -> 街道移動距離（１時間／10分） 効力値：～９：3360／630 １０～１４：4200／840 １５～１９：5040／840 ２０～２４：5880／1050 ２５～３０：6720／1260
B17: =状態!D78 -> 荒野移動距離（１時間／10分） 効力値：～９：1260／210 １０～１４：1470／420 １５～１９：1680／420 ２０～２４：2100／420 ２５～３０：2310／420
B18: =状態!D96 -> 警戒移動距離（１時間／10分） 効力値：～９：420／63 １０～１４：630／84 １５～１９：630／105 ２０～２４：840／126 ２５～３０：840／126
B19: =状態!D115 -> 
B20: =状態!D133 -> 
B22: =テキストシート!B16 -> ◆消耗
B23: =テキストシート!B17 -> 1 □□□□□ 全判定－２ | H23: 交渉：説得 | I23: =VLOOKUP(H23,能力値!$C$32:$D$79,2,FALSE) -> 5 | K23: ◆現在因果点 | M23: =I37+作成シート!C1 -> 3 | N23: ◆食料 | O23: =COUNTIF(作成シート!$C$122:$C$139,"携帯食：21")*21+COUNTIF(作成シート!$C$122:$C$139,"携帯食：3")*3+COUNTIF(作成シート!$C$122:$C$139,"携帯食")-C43+F43-戦闘現在値!C44+戦闘現在値!F44 -> 21
B24: =テキストシート!B18 -> 2 □□□□ 全判定－３ 移動力半減 | H24: 交渉：誘惑 | I24: =VLOOKUP(H24,能力値!$C$32:$D$79,2,FALSE) -> 4 | K24: ◆経過戦闘ラウンド | M24: =戦闘現在値!L22 -> 0 | N24: ◆水袋 | O24: =COUNTIF(作成シート!$C$122:$C$139,固定値!BT3)*1+COUNTIF(作成シート!$C$122:$C$139,"水袋")-C44+F44-戦闘現在値!C45+戦闘現在値!F45 -> 1
B25: =テキストシート!B19 -> 3 □□□ 全判定－４ 移動力と生命力半減 | H25: 交渉：脅迫 | I25: =VLOOKUP(H25,能力値!$C$32:$D$79,2,FALSE) -> 7 | K25: ◆消耗合計 | M25: =戦闘現在値!L23 -> 0 | N25: ◆松明 | O25: =COUNTIF(作成シート!$C$122:$C$139,固定値!BT3)*6+COUNTIF(作成シート!$C$122:$C$139,"松明：6")*6-C45+F45-戦闘現在値!C46+戦闘現在値!F46 -> 6
B26: =テキストシート!B20 -> 4 □□ 気絶 移動不可 生命力半減 | H26: 交渉：言いくるめ | I26: =VLOOKUP(H26,能力値!$C$32:$D$79,2,FALSE) -> 5 | K26: ◆継戦合計 | M26: =戦闘現在値!L24 -> 0 | N26: ◆油 | O26: =COUNTIF(作成シート!$C$122:$C$139,"油")-C46+F46-戦闘現在値!C47+戦闘現在値!F47 -> 0
B27: =テキストシート!B21 -> 5 □ 死亡 | H27: 瞑想 | I27: =VLOOKUP(H27,能力値!$C$32:$D$83,2,FALSE) -> 7 | K27: ◆生命力 | M27: =戦闘現在値!L25 -> 14 | N27: ◆手当道具 | O27: =COUNTIF(作成シート!$C$122:$C$139,"手当道具：5")*5+COUNTIF(作成シート!$C$122:$C$139,"手当道具")-C47+F47-戦闘現在値!C48+戦闘現在値!F48 -> 0
H28: 祈祷 | I28: =VLOOKUP(H28,能力値!$C$32:$D$83,2,FALSE) -> 6 | K28: ◆生命力x2 | M28: =戦闘現在値!L26 -> 28
B29: =テキストシート!B23 -> ◆継戦カウンター | K29: ◆移動力 | M29: =戦闘現在値!L27 -> 21
B30: =テキストシート!B24 -> □□□□○ 5 □□○□□10 ○□□○□15 ○□○□○20 | K30: ◆負傷数 | M30: =戦闘現在値!L28 -> 0
B31: =テキストシート!B25 -> ○○○○○25 ○○○○○30 ○○○○○35 ○○○○○40 | K31: ◆残り呪文使用回数 | M31: =戦闘現在値!L30 -> 1
B32: ※毎ラウンド消耗時は、手動で追加消耗を増やす。カウンター回復で消耗が回復した分も手動で追加消耗を増やす。 | K32: ◆所持金 | M32: =所持金!B1 -> 100
B33: =戦闘現在値!B32 -> ◆呪文使用回数 | K33: ◆状態 | M33: =戦闘現在値!L32 -> 健康
B34: =戦闘現在値!B33 -> □
B36: ◆追加継戦カウンター | E36: ◆追加消耗 | H36: ◆因果点上昇値 | K36: ◆生命力減少 | N36: ◆負傷数 | Q36: ◆呪文使用
B37: 現在値： | C37: 0 | E37: 現在値： | F37: 0 | H37: 現在値： | I37: 0 | K37: 現在値： | L37: 0 | N37: 合計： | O37: 0 | Q37: 合計： | R37: 0
B39: ◆継戦カウンター回復 | E39: ◆消耗回復 | K39: ◆生命力回復 | N39: ◆負傷数回復 | Q39: ◆呪文使用数回復
B40: 合計： | C40: 0 | E40: 合計： | F40: 0 | K40: 合計： | L40: 0 | N40: 合計： | O40: 0 | Q40: 合計： | R40: 0
B42: ◆消耗品使用 | E42: ◆消耗品獲得
B43: ◆食料 | C43: 0 | E43: ◆食料 | F43: 0
B44: ◆水袋 | C44: 0 | E44: ◆水袋 | F44: 0
B45: ◆松明 | C45: 0 | E45: ◆松明 | F45: 0
B46: ◆油 | C46: 0 | E46: ◆油 | F46: 0
B47: ◆手当道具 | C47: 0 | E47: ◆手当道具 | F47: 0
B48: ◆石弾 | C48: 0 | E48: ◆石弾 | F48: 0
B49: ◆矢 | C49: 0 | E49: ◆矢 | F49: 0
B50: ◆太矢 | C50: 0 | E50: ◆太矢 | F50: 0
B51: ◆投矢 | C51: 0 | E51: ◆投矢 | F51: 0
B52: ◆弾丸 | C52: 0 | E52: ◆弾丸 | F52: 0
B53: ◆火の秘薬 | C53: 0 | E53: ◆火の秘薬 | F53: 0
B54: ◆石弾（店石） | C54: 0 | E54: ◆石弾（店石） | F54: 0

Sheet 戦闘現在値
B2: =テキストシート!B35 -> ◆呪文
B3: =テキストシート!B36 -> 真言呪文：呪文行使基準値（知力集中）：【５】
B4: =テキストシート!B37 -> 奇跡／祖竜／精霊：呪文行使基準値（魂魄集中）：【４】
B5: =テキストシート!B38 -> 呪文行使 真言：【0】 奇跡：【0】 祖竜：【0】 精霊：【0】
B6: =テキストシート!B39 -> 真言呪文：呪文維持基準値（知力持久）：【７】
B7: =テキストシート!B40 -> 奇跡／祖竜／精霊：呪文行使基準値（魂魄持久）：【６】
B8: =テキストシート!B41 -> 呪文維持 真言：【0】 奇跡：【0】 祖竜：【0】 精霊：【0】
B9: =テキストシート!B42 -> 呪文関連技能：
B10: =テキストシート!B43 -> ◎習得呪文
B11: =テキストシート!B45 -> ◆攻撃
B12: =テキストシート!B46 -> 命中基準値（技量集中）：【５】
B13: =テキストシート!B47 -> 近接：【5】 弩弓：【5】 投擲：【5】
B14: =テキストシート!B49 -> 
B15: =テキストシート!B50 -> ◎効力値 -１４：無し １５－１９：＋１D６ ２０－２４：＋２D６ ２５－２９：＋３D６ ３０－３９：＋４D６ ４０：＋５D６
B16: =テキストシート!B52 -> ◆防御
B17: =テキストシート!B53 -> 回避基準値（技量反射）：【５】
B18: =テキストシート!B54 -> 
B19: =テキストシート!B55 -> 
B21: =テキストシート!B16 -> ◆消耗 | K21: ◆現在因果点 | L21: =冒険現在値!M23 -> 3 | N21: ◆石弾 | O21: =COUNTIF(作成シート!$C$122:$C$139,固定値!DH2&"："&固定値!DI2)*固定値!DI2+COUNTIF(作成シート!$C$122:$C$139,固定値!DH2)-C49+F49-冒険現在値!C48+冒険現在値!F48 -> 0
B22: =テキストシート!B17 -> 1 □□□□□ 全判定－２ | K22: ◆経過戦闘ラウンド | L22: =I41 -> 0 | N22: ◆矢 | O22: =COUNTIF(作成シート!$C$122:$C$139,固定値!DH3&"："&固定値!DI3)*固定値!DI3+COUNTIF(作成シート!$C$122:$C$139,固定値!DH3)-C50+F50-冒険現在値!C49+冒険現在値!F49 -> 0
B23: =テキストシート!B18 -> 2 □□□□ 全判定－３ 移動力半減 | K23: ◆消耗合計 | L23: =F38+冒険現在値!F37+L29-F41-冒険現在値!F40 -> 0 | N23: ◆太矢 | O23: =COUNTIF(作成シート!$C$122:$C$139,固定値!DH4&"："&固定値!DI4)*固定値!DI4+COUNTIF(作成シート!$C$122:$C$139,固定値!DH4)-C51+F51-冒険現在値!C50+冒険現在値!F50 -> 0
B24: =テキストシート!B19 -> 3 □□□ 全判定－４ 移動力と生命力半減 | K24: ◆継戦合計 | L24: =C38+I41+冒険現在値!C37-C41-冒険現在値!C40 -> 0 | N24: ◆投矢 | O24: =COUNTIF(作成シート!$C$122:$C$139,固定値!DH5&"："&固定値!DI5)*固定値!DI5+COUNTIF(作成シート!$C$122:$C$139,固定値!DH5)-C52+F52-冒険現在値!C51+冒険現在値!F51 -> 0
B25: =テキストシート!B20 -> 4 □□ 気絶 移動不可 生命力半減 | K25: ◆生命力 | L25: =IF(L23>冒険者職業レベル!E24-1,ROUNDUP(状態!F11/2,0),状態!F11)-L38-冒険現在値!L37+L41+冒険現在値!L40 -> 14 | N25: ◆弾丸 | O25: =COUNTIF(作成シート!$C$122:$C$139,固定値!DH6&"："&固定値!DI6)*固定値!DI6+COUNTIF(作成シート!$C$122:$C$139,固定値!DH6)-C53+F53-冒険現在値!C52+冒険現在値!F52 -> 0
B26: =テキストシート!B21 -> 5 □ 死亡 | K26: ◆生命力x2 | L26: =L25*2 -> 28 | N26: ◆火の秘薬 | O26: =COUNTIF(作成シート!$C$122:$C$139,固定値!DH7&"："&固定値!DI7)*固定値!DI7+COUNTIF(作成シート!$C$122:$C$139,固定値!DH7)-C54+F54-冒険現在値!C53+冒険現在値!F53 -> 0
K27: ◆移動力 | L27: =IF(L23>冒険者職業レベル!E22-1,IF(L23>冒険者職業レベル!E25-1,0,ROUNDUP(状態!F12/2,0)),状態!F12)+その他の所持品!C1+装備!S13+装備!AY1 -> 21 | N27: ◆石弾（店石） | O27: =COUNTIF(作成シート!$C$122:$C$139,固定値!DH8&"："&固定値!DI8)*固定値!DI8+COUNTIF(作成シート!$C$122:$C$139,固定値!DH8)-C55+F55-冒険現在値!C54+冒険現在値!F54 -> 0
B28: =テキストシート!B23 -> ◆継戦カウンター | K28: ◆負傷数 | L28: =O38+冒険現在値!O37-O41-冒険現在値!O40 -> 0 | N28: =IF(L25>L28,"","マイラウンド追加消耗") -> 
B29: =テキストシート!B24 -> □□□□○ 5 □□○□□10 ○□□○□15 ○□○□○20 | K29: ◆継戦による消耗 | L29: =VLOOKUP(L24,固定値!$CZ$2:$DA$42,2,FALSE) -> 0
B30: =テキストシート!B25 -> ○○○○○25 ○○○○○30 ○○○○○35 ○○○○○40 | K30: ◆残り呪文使用回数 | L30: =状態!F13-R38-冒険現在値!R37+R41+冒険現在値!R40 -> 1
B31: ※毎ラウンド消耗時は、手動で追加消耗を増やす。カウンター回復で消耗が回復した分も手動で追加消耗を増やす。 | K31: ◆所持金 | L31: =所持金!B1 -> 100
B32: ◆呪文使用回数 | E32: 体力抵抗 | F32: =VLOOKUP(E32,能力値!$C$32:$D$69,2,FALSE) -> 6 | H32: 挑発 | I32: =VLOOKUP(H32,能力値!$C$32:$D$74,2,FALSE) -> - | K32: ◆状態 | L32: =IF(L28>=L25,IF(L28>=L26,"死亡","毎ラウンド消耗"),"健康") -> 健康
B33: =IF(状態!F13>0,REPT("□",戦闘現在値!L30),"")&IF(状態!F13>0,REPT("■",状態!F13-戦闘現在値!L30),"") -> □ | E33: 魂魄抵抗 | F33: =VLOOKUP(E33,能力値!$C$32:$D$69,2,FALSE) -> 5 | H33: 移動妨害 | I33: =VLOOKUP(H33,能力値!$C$32:$D$74,2,FALSE) -> 5
E34: 知力抵抗 | F34: =VLOOKUP(E34,能力値!$C$32:$D$69,2,FALSE) -> 6 | H34: 移動妨害抵抗 | I34: =VLOOKUP(H34,能力値!$C$32:$D$74,2,FALSE) -> 5
E35: 呪文抵抗 | F35: =VLOOKUP(E35,能力値!$C$32:$D$69,2,FALSE) -> 5 | H35: 機先 | I35: =VLOOKUP(H35,能力値!$C$32:$D$74,2,FALSE) -> 0
B37: ◆追加継戦カウンター | E37: ◆追加消耗 | H37: ◆因果点上昇値 | K37: ◆生命力減少 | N37: ◆負傷数 | Q37: ◆呪文使用
B38: 現在値： | C38: 0 | E38: 現在値： | F38: 0 | H38: 現在値： | I38: 0 | K38: 現在値： | L38: 0 | N38: 合計： | O38: 0 | Q38: 合計： | R38: 0
B40: ◆継戦カウンター回復 | E40: ◆消耗回復 | H40: ◆戦闘ラウンドカウンタ | K40: ◆生命力回復 | N40: ◆負傷数回復 | Q40: ◆呪文使用数回復
B41: 合計： | C41: 0 | E41: 合計： | F41: 0 | H41: 合計： | I41: 0 | K41: 合計： | L41: 0 | N41: 合計： | O41: 0 | Q41: 合計： | R41: 0
B43: ◆消耗品使用 | E43: ◆消耗品獲得
B44: ◆食料 | C44: 0 | E44: ◆食料 | F44: 0
B45: ◆水袋 | C45: 0 | E45: ◆水袋 | F45: 0
B46: ◆松明 | C46: 0 | E46: ◆松明 | F46: 0
B47: ◆油 | C47: 0 | E47: ◆油 | F47: 0
B48: ◆手当道具 | C48: 0 | E48: ◆手当道具 | F48: 0
B49: ◆石弾 | C49: 0 | E49: ◆石弾 | F49: 0
B50: ◆矢 | C50: 0 | E50: ◆矢 | F50: 0
B51: ◆太矢 | C51: 0 | E51: ◆太矢 | F51: 0
B52: ◆投矢 | C52: 0 | E52: ◆投矢 | F52: 0
B53: ◆弾丸 | C53: 0 | E53: ◆弾丸 | F53: 0
B54: ◆火の秘薬 | C54: 0 | E54: ◆火の秘薬 | F54: 0
B55: ◆石弾（店石） | C55: 0 | E55: ◆石弾（店石） | F55: 0

Sheet 所持金
A1: ◆所持金 | B1: =SUM(所持金!C2:C256)-SUM(所持金!D2:D256)-SUM(装備!P3:P8)-装備!P13-SUM(装備!P17:P19)-その他の所持品!J1-装備!D21 -> 100 | C1: 入金 | D1: 出金
B2: 初期値 | C2: 100

Sheet 冒険結果
C1: 経験点 | D1: 成長点
B2: 初期値 | C2: 3000 | E2: 冒険結果
B3: 1回目の冒険
B4: 2回目の冒険
B5: 3回目の冒険
B6: 4回目の冒険
B7: 5回目の冒険
B8: 6回目の冒険
B9: 7回目の冒険
B10: 8回目の冒険
B11: 9回目の冒険
B12: 10回目の冒険
B13: 11回目の冒険
B14: 12回目の冒険
B15: 13回目の冒険
B16: 14回目の冒険
B17: 15回目の冒険
B18: 16回目の冒険
B19: 17回目の冒険
B20: 18回目の冒険
B21: 19回目の冒険
B22: 20回目の冒険
B23: 21回目の冒険
B24: 22回目の冒険
B25: 23回目の冒険
B26: 24回目の冒険
B27: 25回目の冒険
B28: 26回目の冒険
B29: 27回目の冒険
B30: 28回目の冒険
B31: 29回目の冒険
B32: 30回目の冒険
B33: 31回目の冒険
B34: 32回目の冒険
B35: 33回目の冒険
B36: 34回目の冒険
B37: 35回目の冒険
B38: 36回目の冒険
B39: 37回目の冒険
B40: 38回目の冒険
B41: 39回目の冒険
B42: 40回目の冒険
B43: 41回目の冒険
B44: 42回目の冒険
B45: 43回目の冒険
B46: 44回目の冒険
B47: 45回目の冒険
B48: 46回目の冒険
B49: 47回目の冒険
B50: 48回目の冒険
B51: 49回目の冒険
B52: 50回目の冒険
B53: 51回目の冒険
B54: 52回目の冒険
B55: 53回目の冒険
B56: 54回目の冒険
B57: 55回目の冒険
B58: 56回目の冒険
B59: 57回目の冒険
B60: 58回目の冒険
B61: 59回目の冒険
B62: 60回目の冒険
B63: 61回目の冒険
B64: 62回目の冒険
B65: 63回目の冒険
B66: 64回目の冒険
B67: 65回目の冒険
B68: 66回目の冒険
B69: 67回目の冒険
B70: 68回目の冒険
B71: 69回目の冒険
B72: 70回目の冒険
B73: 71回目の冒険
B74: 72回目の冒険
B75: 73回目の冒険
B76: 74回目の冒険
B77: 75回目の冒険
B78: 76回目の冒険
B79: 77回目の冒険
B80: 78回目の冒険
B81: 79回目の冒険
B82: 80回目の冒険
B83: 81回目の冒険
B84: 82回目の冒険
B85: 83回目の冒険
B86: 84回目の冒険
B87: 85回目の冒険
B88: 86回目の冒険
B89: 87回目の冒険
B90: 88回目の冒険
B91: 89回目の冒険
B92: 90回目の冒険
B93: 91回目の冒険
B94: 92回目の冒険
B95: 93回目の冒険
B96: 94回目の冒険
B97: 95回目の冒険
B98: 96回目の冒険
B99: 97回目の冒険
B100: 98回目の冒険
B101: 99回目の冒険
B102: 100回目の冒険
B103: 101回目の冒険
B104: 102回目の冒険
B105: 103回目の冒険
B106: 104回目の冒険
B107: 105回目の冒険
B108: 106回目の冒険
B109: 107回目の冒険
B110: 108回目の冒険

Sheet キャラクターシート

Sheet テキストシート
B1: ="────────────────ゴブリンスレイヤーTRPG冒険記録用紙──────────────────" -> ────────────────ゴブリンスレイヤーTRPG冒険記録用紙──────────────────
B2: ="名前：【"&プロフィール!C2&"】 種族：【"&プロフィール!C3&"】 性別：【"&プロフィール!C5&"】 年齢：【"&プロフィール!C4&"】" -> 名前：【何か書いてください】 種族：【只人】 性別：【不明】 年齢：【不明】
B3: ="経歴：【"&プロフィール!C6&"／"&プロフィール!C7&"／"&プロフィール!C8&"】 等級：【"&プロフィール!C9&"】" -> 経歴：【農民／平穏／家族】 等級：【白磁等級】
B4: ="身体的特徴：【"&プロフィール!C10&"】" -> 身体的特徴：【何か書いてください】
B5: ="経験点：【"&冒険者職業レベル!D15&"／"&冒険者職業レベル!D13&"】 成長点【"&冒険者職業レベル!D18&"／"&冒険者職業レベル!D16&"】" -> 経験点：【3000／3000】 成長点【10／10】
B6: ="─────────────────────── 設定 ───────────────────────" -> ─────────────────────── 設定 ───────────────────────
B7: ="【冒険者になった動機】"&プロフィール!C13&CHAR(10)&プロフィール!C14 -> 【冒険者になった動機】腕試しのため 何か書いてください
B8: ="──────────────────────────────────────────────────" -> ──────────────────────────────────────────────────
B9: =能力値!B16&CHAR(10)&能力値!B17&CHAR(10)&能力値!B18&CHAR(10)&能力値!B19&CHAR(10)&能力値!B20&CHAR(10)&能力値!B21&CHAR(10)&能力値!B22&CHAR(10)&能力値!B23&CHAR(10)&能力値!B24&CHAR(10)&能力値!B25&CHAR(10)&能力値!B26&CHAR(10)&能力値!B27&CHAR(10)&能力値!B28 -> ┌───┬───┬───┬───┐ │体力点│魂魄点│技量点│知力点│ │ ３ │ ２ │ ３ │ ３ │ ┌───┼───┼───┼───┼───┤ │集中度│ │ │ │ │ │ ２ │ ５ │ ４ │ ５ │ ５ │ ├───┼───┼───┼───┼───┤ │持久度│ │ │ │ │ │ ４ │ ７ │ ６ │ ７ │ ７ │ ├───┼───┼───┼───┼───┤ │反射度│ │ │ │ │ │ ２ │ ５ │ ４ │ ５ │ ５ │ └───┴───┴───┴───┴───┘
B11: ="生命力：【"&戦闘現在値!L25&"】 生命力2倍：【"&戦闘現在値!L26&"】 負傷点：【"&戦闘現在値!L28&"】 " -> 生命力：【14】 生命力2倍：【28】 負傷点：【0】
B12: ="移動力：【"&戦闘現在値!L27&"】 呪文使用回数：【"&状態!F13&"】 "&IF(状態!F13>0,REPT("□",戦闘現在値!L30),"")&IF(状態!F13>0,REPT("■",状態!F13-戦闘現在値!L30),"") -> 移動力：【21】 呪文使用回数：【1】 □
B13: ="呪文抵抗基準値（魂魄反射＋冒険者LV+呪文抵抗）：【"&能力値!D35&"】 " -> 呪文抵抗基準値（魂魄反射＋冒険者LV+呪文抵抗）：【5】
B14: ="因果点：【"&戦闘現在値!L21&"】" -> 因果点：【3】
B16: ="◆消耗 " -> ◆消耗
B17: =" 1 "&IF(戦闘現在値!L23<冒険者職業レベル!E22,REPT("■",戦闘現在値!L23)&REPT("□",冒険者職業レベル!E22-戦闘現在値!L23),REPT("■",冒険者職業レベル!D22))&" 全判定－２ " -> 1 □□□□□ 全判定－２
B18: =" 2 "&IF(戦闘現在値!L23<冒険者職業レベル!E22,REPT("□",冒険者職業レベル!D23),IF(戦闘現在値!L23<冒険者職業レベル!E23,REPT("■",戦闘現在値!L23-冒険者職業レベル!E22)&REPT("□",冒険者職業レベル!E23-戦闘現在値!L23),REPT("■",冒険者職業レベル!D23)))&" 全判定－３ 移動力半減 " -> 2 □□□□ 全判定－３ 移動力半減
B19: =" 3 "&IF(戦闘現在値!L23<冒険者職業レベル!E23,REPT("□",冒険者職業レベル!D24),IF(戦闘現在値!L23<冒険者職業レベル!E24,REPT("■",戦闘現在値!L23-冒険者職業レベル!E23)&REPT("□",冒険者職業レベル!E24-戦闘現在値!L23),REPT("■",冒険者職業レベル!D24)))&" 全判定－４ 移動力と生命力半減 " -> 3 □□□ 全判定－４ 移動力と生命力半減
B20: =" 4 "&IF(戦闘現在値!L23<冒険者職業レベル!E24,REPT("□",冒険者職業レベル!D25),IF(戦闘現在値!L23<冒険者職業レベル!E25,REPT("■",戦闘現在値!L23-冒険者職業レベル!E24)&REPT("□",冒険者職業レベル!E25-戦闘現在値!L23),REPT("■",冒険者職業レベル!D25)))&" 気絶 移動不可 生命力半減 " -> 4 □□ 気絶 移動不可 生命力半減
B21: =" 5 "&IF(戦闘現在値!L23<冒険者職業レベル!E25,REPT("□",冒険者職業レベル!D26),IF(戦闘現在値!L23<冒険者職業レベル!E26,REPT("■",戦闘現在値!L23-冒険者職業レベル!E25)&REPT("□",冒険者職業レベル!E26-戦闘現在値!L23),REPT("■",冒険者職業レベル!D26)))&" 死亡 " -> 5 □ 死亡
B23: ="◆継戦カウンター " -> ◆継戦カウンター
B24: =IF(戦闘現在値!L24>0,"■","□")&IF(戦闘現在値!L24>1,"■","□")&IF(戦闘現在値!L24>2,"■","□")&IF(戦闘現在値!L24>3,"■","□")&IF(戦闘現在値!L24>4,"●","○")&" 5 "&IF(戦闘現在値!L24>5,"■","□")&IF(戦闘現在値!L24>6,"■","□")&IF(戦闘現在値!L24>7,"●","○")&IF(戦闘現在値!L24>8,"■","□")&IF(戦闘現在値!L24>9,"■","□")&"10 "&IF(戦闘現在値!L24>10,"●","○")&IF(戦闘現在値!L24>11,"■","□")&IF(戦闘現在値!L24>12,"■","□")&IF(戦闘現在値!L24>13,"●","○")&IF(戦闘現在値!L24>14,"■","□")&"15 "&IF(戦闘現在値!L24>15,"●","○")&IF(戦闘現在値!L24>16,"■","□")&IF(戦闘現在値!L24>17,"●","○")&IF(戦闘現在値!L24>18,"■","□")&IF(戦闘現在値!L24>19,"●","○")&"20 " -> □□□□○ 5 □□○□□10 ○□□○□15 ○□○□○20
B25: =IF(戦闘現在値!L24>20,"●","○")&IF(戦闘現在値!L24>21,"●","○")&IF(戦闘現在値!L24>22,"●","○")&IF(戦闘現在値!L24>23,"●","○")&IF(戦闘現在値!L24>24,"●","○")&"25 "&IF(戦闘現在値!L24>25,"●","○")&IF(戦闘現在値!L24>26,"●","○")&IF(戦闘現在値!L24>27,"●","○")&IF(戦闘現在値!L24>28,"●","○")&IF(戦闘現在値!L24>29,"●","○")&"30 "&IF(戦闘現在値!L24>30,"●","○")&IF(戦闘現在値!L24>31,"●","○")&IF(戦闘現在値!L24>32,"●","○")&IF(戦闘現在値!L24>33,"●","○")&IF(戦闘現在値!L24>34,"●","○")&"35 "&IF(戦闘現在値!L24>35,"●","○")&IF(戦闘現在値!L24>36,"●","○")&IF(戦闘現在値!L24>37,"●","○")&IF(戦闘現在値!L24>38,"●","○")&IF(戦闘現在値!L24>39,"●","○")&"40 " -> ○○○○○25 ○○○○○30 ○○○○○35 ○○○○○40
B26: ※○１つにつき１点消耗
B28: ="◆冒険者レベル：【"&冒険者職業レベル!D19&"】" -> ◆冒険者レベル：【1】
B29: =" 職業レベル："&冒険者職業レベル!C34&冒険者職業レベル!C35&冒険者職業レベル!C36&冒険者職業レベル!C37&冒険者職業レベル!C38&冒険者職業レベル!C39&冒険者職業レベル!C40&冒険者職業レベル!C41 -> 職業レベル：
B31: ="◆冒険者技能 初歩 ／ 習熟 ／ 熟達 ／ 達人 ／ 伝説 ／ 効果 "&冒険者技能!N1 -> ◆冒険者技能 初歩 ／ 習熟 ／ 熟達 ／ 達人 ／ 伝説 ／ 効果 【荷重行動】 ● ○ ○ ○ ○ ／ 【武器：投擲武器】 ● ○ ○ ○ ○ ／
B33: ="◆一般技能 初歩 ／ 習熟 ／ 熟達 ／ 効果 "&一般技能!K1 -> ◆一般技能 初歩 ／ 習熟 ／ 熟達 ／ 効果 【長距離移動】 ● ○ ○ ／
B35: ◆呪文
B36: =" 真言呪文：呪文行使基準値（知力集中）：【"&能力値!M10&"】 " -> 真言呪文：呪文行使基準値（知力集中）：【５】
B37: =" 奇跡／祖竜／精霊：呪文行使基準値（魂魄集中）：【"&能力値!K10&"】 " -> 奇跡／祖竜／精霊：呪文行使基準値（魂魄集中）：【４】
B38: ="呪文行使 真言：【"&IF(冒険者職業レベル!E7>0,能力値!M10+冒険者職業レベル!E7&IF(装備!AV1>0,"+"&装備!AV1&"(武器)","")&IF(その他の所持品!F1>0,"+"&その他の所持品!F1&"(道具)",""),0)&"】 奇跡：【"&IF(冒険者職業レベル!E8>0,能力値!K10+冒険者職業レベル!E8&IF(装備!AW1>0,"+"&装備!AW1&"(武器)","")&IF(その他の所持品!G1>0,"+"&その他の所持品!G1&"(道具)",""),0)&"】 祖竜：【"&IF(冒険者職業レベル!E9>0,能力値!K10+冒険者職業レベル!E9&IF(装備!BB1>0,"+"&装備!BB1&"(武器)","")&IF(その他の所持品!H1>0,"+"&その他の所持品!H1&"(道具)",""),0)&"】 精霊：【"&IF(冒険者職業レベル!E10>0,能力値!K10+冒険者職業レベル!E10&IF(装備!BC1>0,"+"&装備!BC1&"(武器)","")&IF(その他の所持品!I1>0,"+"&その他の所持品!I1&"(道具)",""),0)&"】 " -> 呪文行使 真言：【0】 奇跡：【0】 祖竜：【0】 精霊：【0】
B39: =" 真言呪文：呪文維持基準値（知力持久）：【"&能力値!M11&"】 " -> 真言呪文：呪文維持基準値（知力持久）：【７】
B40: =" 奇跡／祖竜／精霊：呪文行使基準値（魂魄持久）：【"&能力値!K11&"】 " -> 奇跡／祖竜／精霊：呪文行使基準値（魂魄持久）：【６】
B41: ="呪文維持 真言：【"&IF(冒険者職業レベル!E7>0,能力値!M11+冒険者職業レベル!E7,0)&"】 奇跡：【"&IF(冒険者職業レベル!E8>0,能力値!K11+冒険者職業レベル!E8,0)&"】 祖竜：【"&IF(冒険者職業レベル!E9>0,能力値!K11+冒険者職業レベル!E9,0)&"】 精霊：【"&IF(冒険者職業レベル!E10>0,能力値!K11+冒険者職業レベル!E10,0)&"】 " -> 呪文維持 真言：【0】 奇跡：【0】 祖竜：【0】 精霊：【0】
B42: ="呪文関連技能："&冒険者技能!Q1 -> 呪文関連技能：
B43: ="◎習得呪文"&習得呪文!H1 -> ◎習得呪文
B45: ="◆攻撃" -> ◆攻撃
B46: ="命中基準値（技量集中）：【"&能力値!L10&"】 " -> 命中基準値（技量集中）：【５】
B47: ="近接：【"&MAX(冒険者職業レベル!E3,冒険者職業レベル!E4,冒険者職業レベル!E6)+能力値!L10&"】 弩弓：【"&能力値!L10+MAX(冒険者職業レベル!E5,冒険者職業レベル!E6)&"】 投擲：【"&能力値!L10+MAX(冒険者職業レベル!E5,冒険者職業レベル!E6,冒険者職業レベル!E4)&"】 " -> 近接：【5】 弩弓：【5】 投擲：【5】
B49: =装備!V1 -> 
B50: ="◎効力値"&CHAR(10)&"-１４：無し １５－１９：＋１D６ ２０－２４：＋２D６ ２５－２９：＋３D６ ３０－３９：＋４D６ ４０：＋５D６" -> ◎効力値 -１４：無し １５－１９：＋１D６ ２０－２４：＋２D６ ２５－２９：＋３D６ ３０－３９：＋４D６ ４０：＋５D６
B52: ="◆防御 " -> ◆防御
B53: ="回避基準値（技量反射）：【"&能力値!L12&"】 " -> 回避基準値（技量反射）：【５】
B54: =IF(MAX(冒険者職業レベル!E3,冒険者職業レベル!E4,冒険者職業レベル!E6)=0,"","【"&VLOOKUP(MAX(冒険者職業レベル!E3,冒険者職業レベル!E4,冒険者職業レベル!E6),冒険者職業レベル!$O$3:$P$5,2,FALSE)&"："&MAX(冒険者職業レベル!E3,冒険者職業レベル!E4,冒険者職業レベル!E6)&"】")&IF(冒険者技能!K29>0," 【体術："&冒険者技能!K29&"】","")&IF(冒険者技能!K17>0," 【受け流し："&冒険者技能!K17&"】","") -> 
B55: =装備!V13&装備!V16 -> 
B57: ="◆所持金 " -> ◆所持金
B58: ="銀貨："&所持金!B1 -> 銀貨：100
B60: ="◆その他の所持品 "&CHAR(10)&"移動力修正【"&SUM(その他の所持品!C3:C19)&"】"&その他の所持品!K1 -> ◆その他の所持品 移動力修正【0】 冒険者ツール(鈎縄10m、楔10個、小槌、火口箱、背負い袋、携帯用食器、水袋、白墨、小刀、松明(6本)) 携帯食：21 衣類

Sheet 装備
A1: ◆攻撃 | V1: =V3&V4&V5&V6&V7&V8 ->  | W1: =W3&W4&W5 ->  | AF1: =AF3&AF4&AF5 ->  | AG1: =AG3&AG4&AG5 ->  | AV1: =MAX(AV3:AV8) -> -1 | AW1: =MAX(AW3:AW8) -> -1 | AX1: =SUM(AX3:AX8) -> 0 | AY1: =SUM(AY3:AY8) -> 0 | AZ1: =MAX(AZ3:AZ8) -> 0 | BA1: =MAX(BA3:BA8) -> 0 | BB1: =MAX(BB3:BB8) -> -1 | BC1: =MAX(BC3:BC8) -> -1
B2: 使用近接職 | C2: クラスレベル | D2: 技能ボーナス | E2: 腕輪ダメージボーナス | F2: 武器 | G2: 用途 | H2: 重量 | I2: 持手 | J2: 属性 | K2: 威力 | L2: 命中修正 | M2: 射程 | N2: 効果 | O2: 入手手段 | P2: 価格 | Q2: 受け流し | R2: 強打・斬 | S2: 強打・殴 | T2: 刺突 | X2: 威力ダイス | Y2: 威力修正 | Z2: 斬 | AA2: 殴 | AB2: 刺 | AC2: 最大 | AD2: 最大属性 | AH2: 表示用名称 | AI2: 竜の末裔ボーナス | AJ2: 隠密性修正 | AK2: 水泳修正 | AL2: 神官or竜司祭Lv1装甲 | AM2: 神官or竜司祭Lv5装甲 | AN2: 野伏Lv1隠密 | AO2: 野伏Lv1回避 | AP2: 交渉：誘惑 | AQ2: 神官(戦女神)：交渉：誘惑 | AR2: 登攀修正 | AS2: 最終隠密修正 | AT2: 跳躍修正 | AU2: 最終交渉：誘惑 | AV2: 真言呪文行使判定修正 | AW2: 奇跡行使判定修正 | AX2: 回避修正 | AY2: 移動修正 | AZ2: 第六感判定 | BA2: 体術判定 | BB2: 祖霊術行使判定修正 | BC2: 精霊術行使判定修正 | BD2: 鉄の拳 | BE2: 発勁 | BF2: 技能表示 | BG2: 魔法の修正 | BH2: 価格倍率 | BI2: 価格修正値 | BJ2: 魔法レベル | BK2: 表示名
B3: =作成シート!C79 -> なし | C3: =IF(B3="なし",0,VLOOKUP(B3,冒険者職業レベル!$C$3:$E$6,3,FALSE)) -> 0 | D3: =IF(G3="-",0,VLOOKUP(G3,冒険者技能!$C$37:$K$45,9,FALSE)) -> 0 | E3: =IF(G3="-",0,VLOOKUP(G3,冒険者技能!$C$37:$Q$45,15,FALSE)) -> 0 | F3: =作成シート!C78 -> なし | G3: =VLOOKUP(F3,武器表!$B$2:$K$978,2,FALSE) -> - | H3: =VLOOKUP(F3,武器表!$B$2:$K$978,3,FALSE) -> - | I3: =VLOOKUP(F3,武器表!$B$2:$K$978,4,FALSE) -> - | J3: =VLOOKUP(F3,武器表!$B$2:$K$978,5,FALSE) -> - | K3: =VLOOKUP(F3,武器表!$B$2:$K$978,6,FALSE) -> - | L3: =VLOOKUP(F3,武器表!$B$2:$K$978,7,FALSE)+BG3 -> 0 | M3: =VLOOKUP(F3,武器表!$B$2:$K$978,8,FALSE) -> - | N3: =VLOOKUP(F3,武器表!$B$2:$K$978,9,FALSE)&IF(G3="武器：格闘武器",IF(冒険者技能!$K$36>0,冒険者技能!$Q$36,""),"") -> - | O3: =作成シート!C80 -> 購入 | P3: =IF(O3="購入",VLOOKUP(F3,武器表!$B$2:$K$978,10,FALSE)*BH3+BI3,0) -> 0 | Q3: =VLOOKUP(F3,武器表!$B$2:$L$978,11,FALSE) -> -1 | R3: =VLOOKUP($F3,武器表!$B$2:$Q$978,12,FALSE) -> -1 | S3: =VLOOKUP($F3,武器表!$B$2:$Q$978,13,FALSE) -> -1 | T3: =VLOOKUP($F3,武器表!$B$2:$Q$978,14,FALSE) -> -1 | V3: =IF(F3="なし","","◎武器：【"&BK3&"】"&CHAR(10)&"用途／属性：【"&G3&H3&I3&"／"&J3&" 】 命中値合計：【"&能力値!$L$10+C3+D3+L3+E3&"】"&CHAR(10)&"ダメージ："&X3&IF(C3+Y3+BD3>0,"+"&C3+Y3+BD3,"")&IF(BE3="","","+"&BE3)&IF(C3>0,CHAR(10)&"クラス："&B3&C3,"")&IF(D3>0,CHAR(10)&"技能："&G3&D3,"")&CHAR(10)&"効果："&N3&IF(N3="","",IF(AC3>0,"、",""))&IF(AC3>0," 追加効果値："&AC3,""))&IF(E3>0," 腕輪指輪+"&E3,"")&IF(冒険者技能!K22>0,IF(COUNTIF(N3,"*斬落*")>0," 斬り落とし攻撃可能",""),"") ->  | W3: =IF(F3="なし","",CHAR(10)&AH3&REPT(" ",8-LEN(AH3))&AE3&REPT(" ",6-LEN(AE3))&C3+D3+能力値!$L$10&REPT(" ",5-LEN(C3+D3+能力値!$L$10))&L3&REPT(" ",5-LEN(L3))&C3+D3+能力値!$L$10+L3&" "&K3&REPT(" ",8-LEN(K3))&C3&" "&IF(BF3="","-----",BF3)&" "&X3&"+"&C3+Y3+BD3&IF(BE3="","","+"&BE3)&" "&M3) ->  | X3: =VLOOKUP(F3,武器表!$B$2:$Q$978,15,FALSE) -> - | Y3: =VLOOKUP(F3,武器表!$B$2:$Q$978,16,FALSE)+E3+BG3 -> 0 | Z3: =IF(R3>-1,IF(冒険者技能!$U$19>-1,R3+冒険者技能!$U$19,-1),-1) -> -1 | AA3: =IF(S3>-1,IF(冒険者技能!$U$20>-1,冒険者技能!$U$20+S3,-1),-1) -> -1 | AB3: =IF(T3>-1,IF(冒険者技能!$U$26>-1,冒険者技能!$U$26*T3,-1),-1) -> -1 | AC3: =MAX(Z3:AB3) -> -1 | AD3: =IF(AC3<0,"",IF(Z3=AC3,"斬",IF(AC3=AA3,"殴","刺"))) ->  | AE3: =SUBSTITUTE(SUBSTITUTE(SUBSTITUTE(G3,"武器：",""),"手",""),"武器","") -> - | AF3: =IF(F3="なし","",CHAR(10)&I3&"/"&CHAR(10)&J3) ->  | AG3: =IF(F3="なし","",CHAR(10)&LEFT(N3,32)&IF(N3="","",IF(AC3>0,"、",""))&IF(AC3>0,"追加効果値："&AC3,"")) ->  | AH3: =LEFT(BK3,8) -> なし | AV3: =VLOOKUP($F3,武器表!$B$2:$W$978,17,FALSE) -> -1 | AW3: =VLOOKUP($F3,武器表!$B$2:$W$978,18,FALSE) -> -1 | AX3: =VLOOKUP($F3,武器表!$B$2:$W$978,19,FALSE) -> 0 | AY3: =VLOOKUP($F3,武器表!$B$2:$W$978,20,FALSE) -> 0 | AZ3: =VLOOKUP($F3,武器表!$B$2:$W$978,21,FALSE) -> 0 | BA3: =VLOOKUP($F3,武器表!$B$2:$W$978,22,FALSE) -> 0 | BB3: =VLOOKUP($F3,武器表!$B$2:$Y$978,23,FALSE) -> -1 | BC3: =VLOOKUP($F3,武器表!$B$2:$Y$978,24,FALSE) -> -1 | BD3: =IF(COUNTIF(F3,"*素手攻撃*")>0,IF(冒険者技能!$K$32>0,冒険者技能!$U$32,0),0) -> 0 | BE3: =IF(G3="武器：格闘武器",IF(冒険者技能!$K$36>0,冒険者技能!$U$36,""),"") ->  | BF3: =IF(BD3>0,"+"&BD3,"")&IF(BE3="","","+"&BE3) ->  | BG3: =VLOOKUP(BJ3,固定値!$EL$2:$EO$6,2,FALSE) -> 0 | BH3: =VLOOKUP(BJ3,固定値!$EL$2:$EO$6,3,FALSE) -> 1 | BI3: =VLOOKUP(BJ3,固定値!$EL$2:$EO$6,4,FALSE) -> 0 | BJ3: =作成シート!C81 -> なし | BK3: =IF(BG3<1,F3,"魔法の"&F3&BJ3) -> なし
B4: =作成シート!C83 -> なし | C4: =IF(B4="なし",0,VLOOKUP(B4,冒険者職業レベル!$C$3:$E$6,3,FALSE)) -> 0 | D4: =IF(G4="-",0,VLOOKUP(G4,冒険者技能!$C$37:$K$45,9,FALSE)) -> 0 | E4: =IF(G4="-",0,VLOOKUP(G4,冒険者技能!$C$37:$Q$45,15,FALSE)) -> 0 | F4: =作成シート!C82 -> なし | G4: =VLOOKUP(F4,武器表!$B$2:$K$978,2,FALSE) -> - | H4: =VLOOKUP(F4,武器表!$B$2:$K$978,3,FALSE) -> - | I4: =VLOOKUP(F4,武器表!$B$2:$K$978,4,FALSE) -> - | J4: =VLOOKUP(F4,武器表!$B$2:$K$978,5,FALSE) -> - | K4: =VLOOKUP(F4,武器表!$B$2:$K$978,6,FALSE) -> - | L4: =VLOOKUP(F4,武器表!$B$2:$K$978,7,FALSE)+BG4 -> 0 | M4: =VLOOKUP(F4,武器表!$B$2:$K$978,8,FALSE) -> - | N4: =VLOOKUP(F4,武器表!$B$2:$K$978,9,FALSE)&IF(G4="武器：格闘武器",IF(冒険者技能!$K$36>0,"【発勁】使用可能1点消耗するごとに、威力へのボーナスに追加で+1(最大で"&能力値!D6&"まで)",""),"") -> - | O4: =作成シート!C84 -> 購入 | P4: =IF(O4="購入",VLOOKUP(F4,武器表!$B$2:$K$978,10,FALSE)*BH4+BI4,0) -> 0 | Q4: =VLOOKUP(F4,武器表!$B$2:$L$978,11,FALSE) -> -1 | R4: =VLOOKUP($F4,武器表!$B$2:$Q$978,12,FALSE) -> -1 | S4: =VLOOKUP($F4,武器表!$B$2:$Q$978,13,FALSE) -> -1 | T4: =VLOOKUP($F4,武器表!$B$2:$Q$978,14,FALSE) -> -1 | V4: =IF(F4="なし","",CHAR(10)&CHAR(10)&"◎武器：【"&BK4&"】"&CHAR(10)&"用途／属性：【"&G4&H4&I4&"／"&J4&" 】 命中値合計：【"&能力値!$L$10+C4+D4+L4+E4&"】"&CHAR(10)&"ダメージ："&X4&IF(C4+Y4+BD4>0,"+"&C4+Y4+BD4,"")&IF(BE4="","","+"&BE4)&IF(C4>0,CHAR(10)&"クラス："&B4&C4,"")&IF(D4>0,CHAR(10)&"技能："&G4&D4,"")&CHAR(10)&"効果："&N4&IF(N4="","",IF(AC4>0,"、",""))&IF(AC4>0," 追加効果値："&AC4,""))&IF(E4>0," 腕輪指輪+"&E4,"")&IF(冒険者技能!K23>0,IF(COUNTIF(N4,"*斬落*")>0," 斬り落とし攻撃可能",""),"") ->  | W4: =IF(F4="なし","",CHAR(10)&AH4&REPT(" ",8-LEN(AH4))&AE4&REPT(" ",6-LEN(AE4))&C4+D4+能力値!$L$10&REPT(" ",5-LEN(C4+D4+能力値!$L$10))&L4&REPT(" ",5-LEN(L4))&C4+D4+能力値!$L$10+L4&" "&K4&REPT(" ",8-LEN(K4))&C4&" "&IF(BF4="","-----",BF4)&" "&X4&"+"&C4+Y4+BD4&IF(BE4="","","+"&BE4)&" "&M4) ->  | X4: =VLOOKUP(F4,武器表!$B$2:$Q$978,15,FALSE) -> - | Y4: =VLOOKUP(F4,武器表!$B$2:$Q$978,16,FALSE)+E4+BG4 -> 0 | Z4: =IF(R4>-1,IF(冒険者技能!$U$19>-1,R4+冒険者技能!$U$19,-1),-1) -> -1 | AA4: =IF(S4>-1,IF(冒険者技能!$U$20>-1,冒険者技能!$U$20+S4,-1),-1) -> -1 | AB4: =IF(T4>-1,IF(冒険者技能!$U$26>-1,冒険者技能!$U$26*T4,-1),-1) -> -1 | AC4: =MAX(Z4:AB4) -> -1 | AD4: =IF(AC4<0,"",IF(Z4=AC4,"斬",IF(AC4=AA4,"殴","刺"))) ->  | AE4: =SUBSTITUTE(SUBSTITUTE(SUBSTITUTE(G4,"武器：",""),"手",""),"武器","") -> - | AF4: =IF(F4="なし","",CHAR(10)&I4&"/"&CHAR(10)&J4) ->  | AH4: =LEFT(F4,6) -> なし | AV4: =VLOOKUP($F4,武器表!$B$2:$W$978,17,FALSE) -> -1 | AW4: =VLOOKUP($F4,武器表!$B$2:$W$978,18,FALSE) -> -1 | AX4: =VLOOKUP($F4,武器表!$B$2:$W$978,19,FALSE) -> 0 | AY4: =VLOOKUP($F4,武器表!$B$2:$W$978,20,FALSE) -> 0 | AZ4: =VLOOKUP($F4,武器表!$B$2:$W$978,21,FALSE) -> 0 | BA4: =VLOOKUP($F4,武器表!$B$2:$W$978,22,FALSE) -> 0 | BB4: =VLOOKUP($F4,武器表!$B$2:$Y$978,23,FALSE) -> -1 | BC4: =VLOOKUP($F4,武器表!$B$2:$Y$978,24,FALSE) -> -1 | BD4: =IF(COUNTIF(F4,"*素手攻撃*")>0,IF(冒険者技能!$K$32>0,冒険者技能!$U$32,0),0) -> 0 | BE4: =IF(G4="武器：格闘武器",IF(冒険者技能!$K$36>0,冒険者技能!$U$36,""),"") ->  | BF4: =IF(BD4>0,"+"&BD4,"")&IF(BE4="","","+"&BE4) ->  | BG4: =VLOOKUP(BJ4,固定値!$EL$2:$EO$6,2,FALSE) -> 0 | BH4: =VLOOKUP(BJ4,固定値!$EL$2:$EO$6,3,FALSE) -> 1 | BI4: =VLOOKUP(BJ4,固定値!$EL$2:$EO$6,4,FALSE) -> 0 | BJ4: =作成シート!C85 -> なし | BK4: なし
B5: =作成シート!C87 -> なし | C5: =IF(B5="なし",0,VLOOKUP(B5,冒険者職業レベル!$C$3:$E$6,3,FALSE)) -> 0 | D5: =IF(G5="-",0,VLOOKUP(G5,冒険者技能!$C$37:$K$45,9,FALSE)) -> 0 | E5: =IF(G5="-",0,VLOOKUP(G5,冒険者技能!$C$37:$Q$45,15,FALSE)) -> 0 | F5: =作成シート!C86 -> なし | G5: =VLOOKUP(F5,武器表!$B$2:$K$978,2,FALSE) -> - | H5: =VLOOKUP(F5,武器表!$B$2:$K$978,3,FALSE) -> - | I5: =VLOOKUP(F5,武器表!$B$2:$K$978,4,FALSE) -> - | J5: =VLOOKUP(F5,武器表!$B$2:$K$978,5,FALSE) -> - | K5: =VLOOKUP(F5,武器表!$B$2:$K$978,6,FALSE) -> - | L5: =VLOOKUP(F5,武器表!$B$2:$K$978,7,FALSE)+BG5 -> 0 | M5: =VLOOKUP(F5,武器表!$B$2:$K$978,8,FALSE) -> - | N5: =VLOOKUP(F5,武器表!$B$2:$K$978,9,FALSE)&IF(G5="武器：格闘武器",IF(冒険者技能!$K$36>0,"【発勁】使用可能1点消耗するごとに、威力へのボーナスに追加で+1(最大で"&能力値!D7&"まで)",""),"") -> - | O5: =作成シート!C88 -> 購入 | P5: =IF(O5="購入",VLOOKUP(F5,武器表!$B$2:$K$978,10,FALSE)*BH5+BI5,0) -> 0 | Q5: =VLOOKUP(F5,武器表!$B$2:$L$978,11,FALSE) -> -1 | R5: =VLOOKUP($F5,武器表!$B$2:$Q$978,12,FALSE) -> -1 | S5: =VLOOKUP($F5,武器表!$B$2:$Q$978,13,FALSE) -> -1 | T5: =VLOOKUP($F5,武器表!$B$2:$Q$978,14,FALSE) -> -1 | V5: =IF(F5="なし","",CHAR(10)&CHAR(10)&"◎武器：【"&BK5&"】"&CHAR(10)&"用途／属性：【"&G5&H5&I5&"／"&J5&" 】 命中値合計：【"&能力値!$L$10+C5+D5+L5+E5&"】"&CHAR(10)&"ダメージ："&X5&IF(C5+Y5+BD5>0,"+"&C5+Y5+BD5,"")&IF(BE5="","","+"&BE5)&IF(C5>0,CHAR(10)&"クラス："&B5&C5,"")&IF(D5>0,CHAR(10)&"技能："&G5&D5,"")&CHAR(10)&"効果："&N5&IF(N5="","",IF(AC5>0,"、",""))&IF(AC5>0," 追加効果値："&AC5,""))&IF(E5>0," 腕輪指輪+"&E5,"")&IF(冒険者技能!K24>0,IF(COUNTIF(N5,"*斬落*")>0," 斬り落とし攻撃可能",""),"") ->  | W5: =IF(F5="なし","",CHAR(10)&AH5&REPT(" ",8-LEN(AH5))&AE5&REPT(" ",6-LEN(AE5))&C5+D5+能力値!$L$10&REPT(" ",5-LEN(C5+D5+能力値!$L$10))&L5&REPT(" ",5-LEN(L5))&C5+D5+能力値!$L$10+L5&" "&K5&REPT(" ",8-LEN(K5))&C5&" "&IF(BF5="","-----",BF5)&" "&X5&"+"&C5+Y5+BD5&IF(BE5="","","+"&BE5)&" "&M5) ->  | X5: =VLOOKUP(F5,武器表!$B$2:$Q$978,15,FALSE) -> - | Y5: =VLOOKUP(F5,武器表!$B$2:$Q$978,16,FALSE)+E5+BG5 -> 0 | Z5: =IF(R5>-1,IF(冒険者技能!$U$19>-1,R5+冒険者技能!$U$19,-1),-1) -> -1 | AA5: =IF(S5>-1,IF(冒険者技能!$U$20>-1,冒険者技能!$U$20+S5,-1),-1) -> -1 | AB5: =IF(T5>-1,IF(冒険者技能!$U$26>-1,冒険者技能!$U$26*T5,-1),-1) -> -1 | AC5: -1 | AE5: - | AH5: =LEFT(F5,6) -> なし | AV5: =VLOOKUP($F5,武器表!$B$2:$W$978,17,FALSE) -> -1 | AW5: =VLOOKUP($F5,武器表!$B$2:$W$978,18,FALSE) -> -1 | AX5: =VLOOKUP($F5,武器表!$B$2:$W$978,19,FALSE) -> 0 | AY5: =VLOOKUP($F5,武器表!$B$2:$W$978,20,FALSE) -> 0 | AZ5: =VLOOKUP($F5,武器表!$B$2:$W$978,21,FALSE) -> 0 | BA5: =VLOOKUP($F5,武器表!$B$2:$W$978,22,FALSE) -> 0 | BB5: =VLOOKUP($F5,武器表!$B$2:$Y$978,23,FALSE) -> -1 | BC5: =VLOOKUP($F5,武器表!$B$2:$Y$978,24,FALSE) -> -1 | BD5: =IF(COUNTIF(F5,"*素手攻撃*")>0,IF(冒険者技能!$K$32>0,冒険者技能!$U$32,0),0) -> 0 | BE5: =IF(G5="武器：格闘武器",IF(冒険者技能!$K$36>0,冒険者技能!$U$36,""),"") ->  | BG5: =VLOOKUP(BJ5,固定値!$EL$2:$EO$6,2,FALSE) -> 0 | BH5: =VLOOKUP(BJ5,固定値!$EL$2:$EO$6,3,FALSE) -> 1 | BI5: =VLOOKUP(BJ5,固定値!$EL$2:$EO$6,4,FALSE) -> 0 | BJ5: =作成シート!C89 -> なし | BK5: なし
B6: =作成シート!C91 -> なし | C6: =IF(B6="なし",0,VLOOKUP(B6,冒険者職業レベル!$C$3:$E$6,3,FALSE)) -> 0 | D6: =IF(G6="-",0,VLOOKUP(G6,冒険者技能!$C$37:$K$45,9,FALSE)) -> 0 | E6: =IF(G6="-",0,VLOOKUP(G6,冒険者技能!$C$37:$Q$45,15,FALSE)) -> 0 | F6: =作成シート!C90 -> なし | G6: =VLOOKUP(F6,武器表!$B$2:$K$978,2,FALSE) -> - | H6: =VLOOKUP(F6,武器表!$B$2:$K$978,3,FALSE) -> - | I6: =VLOOKUP(F6,武器表!$B$2:$K$978,4,FALSE) -> - | J6: =VLOOKUP(F6,武器表!$B$2:$K$978,5,FALSE) -> - | K6: =VLOOKUP(F6,武器表!$B$2:$K$978,6,FALSE) -> - | L6: =VLOOKUP(F6,武器表!$B$2:$K$978,7,FALSE)+BG6 -> 0 | M6: =VLOOKUP(F6,武器表!$B$2:$K$978,8,FALSE) -> - | N6: =VLOOKUP(F6,武器表!$B$2:$K$978,9,FALSE)&IF(G6="武器：格闘武器",IF(冒険者技能!$K$36>0,"【発勁】使用可能1点消耗するごとに、威力へのボーナスに追加で+1(最大で"&能力値!D8&"まで)",""),"") -> - | O6: =作成シート!C92 -> 購入 | P6: =IF(O6="購入",VLOOKUP(F6,武器表!$B$2:$K$978,10,FALSE)*BH6+BI6,0) -> 0 | Q6: =VLOOKUP(F6,武器表!$B$2:$L$978,11,FALSE) -> -1 | R6: =VLOOKUP($F6,武器表!$B$2:$Q$978,12,FALSE) -> -1 | S6: =VLOOKUP($F6,武器表!$B$2:$Q$978,13,FALSE) -> -1 | T6: =VLOOKUP($F6,武器表!$B$2:$Q$978,14,FALSE) -> -1 | V6: =IF(F6="なし","",CHAR(10)&CHAR(10)&"◎武器：【"&BK6&"】"&CHAR(10)&"用途／属性：【"&G6&H6&I6&"／"&J6&" 】 命中値合計：【"&能力値!$L$10+C6+D6+L6+E6&"】"&CHAR(10)&"ダメージ："&X6&IF(C6+Y6+BD6>0,"+"&C6+Y6+BD6,"")&IF(BE6="","","+"&BE6)&IF(C6>0,CHAR(10)&"クラス："&B6&C6,"")&IF(D6>0,CHAR(10)&"技能："&G6&D6,"")&CHAR(10)&"効果："&N6&IF(N6="","",IF(AC6>0,"、",""))&IF(AC6>0," 追加効果値："&AC6,""))&IF(E6>0," 腕輪指輪+"&E6,"")&IF(冒険者技能!K25>0,IF(COUNTIF(N6,"*斬落*")>0," 斬り落とし攻撃可能",""),"") ->  | W6: =IF(F6="なし","",CHAR(10)&AH6&REPT(" ",8-LEN(AH6))&AE6&REPT(" ",6-LEN(AE6))&C6+D6+能力値!$L$10&REPT(" ",5-LEN(C6+D6+能力値!$L$10))&L6&REPT(" ",5-LEN(L6))&C6+D6+能力値!$L$10+L6&" "&K6&REPT(" ",8-LEN(K6))&C6&" "&IF(BF6="","-----",BF6)&" "&X6&"+"&C6+Y6+BD6&IF(BE6="","","+"&BE6)&" "&M6) ->  | X6: =VLOOKUP(F6,武器表!$B$2:$Q$978,15,FALSE) -> - | Y6: =VLOOKUP(F6,武器表!$B$2:$Q$978,16,FALSE)+E6+BG6 -> 0 | Z6: =IF(R6>-1,IF(冒険者技能!$U$19>-1,R6+冒険者技能!$U$19,-1),-1) -> -1 | AA6: =IF(S6>-1,IF(冒険者技能!$U$20>-1,冒険者技能!$U$20+S6,-1),-1) -> -1 | AB6: =IF(T6>-1,IF(冒険者技能!$U$26>-1,冒険者技能!$U$26*T6,-1),-1) -> -1 | AC6: -1 | AE6: - | AH6: なし | AV6: =VLOOKUP($F6,武器表!$B$2:$W$978,17,FALSE) -> -1 | AW6: =VLOOKUP($F6,武器表!$B$2:$W$978,18,FALSE) -> -1 | AX6: =VLOOKUP($F6,武器表!$B$2:$W$978,19,FALSE) -> 0 | AY6: =VLOOKUP($F6,武器表!$B$2:$W$978,20,FALSE) -> 0 | AZ6: =VLOOKUP($F6,武器表!$B$2:$W$978,21,FALSE) -> 0 | BA6: =VLOOKUP($F6,武器表!$B$2:$W$978,22,FALSE) -> 0 | BB6: =VLOOKUP($F6,武器表!$B$2:$Y$978,23,FALSE) -> -1 | BC6: =VLOOKUP($F6,武器表!$B$2:$Y$978,24,FALSE) -> -1 | BD6: =IF(COUNTIF(F6,"*素手攻撃*")>0,IF(冒険者技能!$K$32>0,冒険者技能!$U$32,0),0) -> 0 | BE6: =IF(G6="武器：格闘武器",IF(冒険者技能!$K$36>0,冒険者技能!$U$36,""),"") ->  | BG6: =VLOOKUP(BJ6,固定値!$EL$2:$EO$6,2,FALSE) -> 0 | BH6: =VLOOKUP(BJ6,固定値!$EL$2:$EO$6,3,FALSE) -> 1 | BI6: =VLOOKUP(BJ6,固定値!$EL$2:$EO$6,4,FALSE) -> 0 | BJ6: =作成シート!C93 -> なし | BK6: なし
B7: =作成シート!C95 -> なし | C7: =IF(B7="なし",0,VLOOKUP(B7,冒険者職業レベル!$C$3:$E$6,3,FALSE)) -> 0 | D7: =IF(G7="-",0,VLOOKUP(G7,冒険者技能!$C$37:$K$45,9,FALSE)) -> 0 | E7: =IF(G7="-",0,VLOOKUP(G7,冒険者技能!$C$37:$Q$45,15,FALSE)) -> 0 | F7: =作成シート!C94 -> なし | G7: =VLOOKUP(F7,武器表!$B$2:$K$978,2,FALSE) -> - | H7: =VLOOKUP(F7,武器表!$B$2:$K$978,3,FALSE) -> - | I7: =VLOOKUP(F7,武器表!$B$2:$K$978,4,FALSE) -> - | J7: =VLOOKUP(F7,武器表!$B$2:$K$978,5,FALSE) -> - | K7: =VLOOKUP(F7,武器表!$B$2:$K$978,6,FALSE) -> - | L7: =VLOOKUP(F7,武器表!$B$2:$K$978,7,FALSE)+BG7 -> 0 | M7: =VLOOKUP(F7,武器表!$B$2:$K$978,8,FALSE) -> - | N7: =VLOOKUP(F7,武器表!$B$2:$K$978,9,FALSE)&IF(G7="武器：格闘武器",IF(冒険者技能!$K$36>0,"【発勁】使用可能1点消耗するごとに、威力へのボーナスに追加で+1(最大で"&能力値!D9&"まで)",""),"") -> - | O7: =作成シート!C96 -> 購入 | P7: =IF(O7="購入",VLOOKUP(F7,武器表!$B$2:$K$978,10,FALSE)*BH7+BI7,0) -> 0 | Q7: =VLOOKUP(F7,武器表!$B$2:$L$978,11,FALSE) -> -1 | R7: =VLOOKUP($F7,武器表!$B$2:$Q$978,12,FALSE) -> -1 | S7: =VLOOKUP($F7,武器表!$B$2:$Q$978,13,FALSE) -> -1 | T7: =VLOOKUP($F7,武器表!$B$2:$Q$978,14,FALSE) -> -1 | V7: =IF(F7="なし","",CHAR(10)&CHAR(10)&"◎武器：【"&BK7&"】"&CHAR(10)&"用途／属性：【"&G7&H7&I7&"／"&J7&" 】 命中値合計：【"&能力値!$L$10+C7+D7+L7+E7&"】"&CHAR(10)&"ダメージ："&X7&IF(C7+Y7+BD7>0,"+"&C7+Y7+BD7,"")&IF(BE7="","","+"&BE7)&IF(C7>0,CHAR(10)&"クラス："&B7&C7,"")&IF(D7>0,CHAR(10)&"技能："&G7&D7,"")&CHAR(10)&"効果："&N7&IF(N7="","",IF(AC7>0,"、",""))&IF(AC7>0," 追加効果値："&AC7,""))&IF(E7>0," 腕輪指輪+"&E7,"")&IF(冒険者技能!K26>0,IF(COUNTIF(N7,"*斬落*")>0," 斬り落とし攻撃可能",""),"") ->  | W7: =IF(F7="なし","",CHAR(10)&AH7&REPT(" ",8-LEN(AH7))&AE7&REPT(" ",6-LEN(AE7))&C7+D7+能力値!$L$10&REPT(" ",5-LEN(C7+D7+能力値!$L$10))&L7&REPT(" ",5-LEN(L7))&C7+D7+能力値!$L$10+L7&" "&K7&REPT(" ",8-LEN(K7))&C7&" "&IF(BF7="","-----",BF7)&" "&X7&"+"&C7+Y7+BD7&IF(BE7="","","+"&BE7)&" "&M7) ->  | X7: =VLOOKUP(F7,武器表!$B$2:$Q$978,15,FALSE) -> - | Y7: =VLOOKUP(F7,武器表!$B$2:$Q$978,16,FALSE)+E7+BG7 -> 0 | Z7: =IF(R7>-1,IF(冒険者技能!$U$19>-1,R7+冒険者技能!$U$19,-1),-1) -> -1 | AA7: =IF(S7>-1,IF(冒険者技能!$U$20>-1,冒険者技能!$U$20+S7,-1),-1) -> -1 | AB7: =IF(T7>-1,IF(冒険者技能!$U$26>-1,冒険者技能!$U$26*T7,-1),-1) -> -1 | AC7: -1 | AE7: - | AH7: なし | AV7: =VLOOKUP($F7,武器表!$B$2:$W$978,17,FALSE) -> -1 | AW7: =VLOOKUP($F7,武器表!$B$2:$W$978,18,FALSE) -> -1 | AX7: =VLOOKUP($F7,武器表!$B$2:$W$978,19,FALSE) -> 0 | AY7: =VLOOKUP($F7,武器表!$B$2:$W$978,20,FALSE) -> 0 | AZ7: =VLOOKUP($F7,武器表!$B$2:$W$978,21,FALSE) -> 0 | BA7: =VLOOKUP($F7,武器表!$B$2:$W$978,22,FALSE) -> 0 | BB7: =VLOOKUP($F7,武器表!$B$2:$Y$978,23,FALSE) -> -1 | BC7: =VLOOKUP($F7,武器表!$B$2:$Y$978,24,FALSE) -> -1 | BD7: =IF(COUNTIF(F7,"*素手攻撃*")>0,IF(冒険者技能!$K$32>0,冒険者技能!$U$32,0),0) -> 0 | BE7: =IF(G7="武器：格闘武器",IF(冒険者技能!$K$36>0,冒険者技能!$U$36,""),"") ->  | BG7: =VLOOKUP(BJ7,固定値!$EL$2:$EO$6,2,FALSE) -> 0 | BH7: =VLOOKUP(BJ7,固定値!$EL$2:$EO$6,3,FALSE) -> 1 | BI7: =VLOOKUP(BJ7,固定値!$EL$2:$EO$6,4,FALSE) -> 0 | BJ7: =作成シート!C97 -> なし | BK7: なし
B8: =作成シート!C99 -> なし | C8: =IF(B8="なし",0,VLOOKUP(B8,冒険者職業レベル!$C$3:$E$6,3,FALSE)) -> 0 | D8: =IF(G8="-",0,VLOOKUP(G8,冒険者技能!$C$37:$K$45,9,FALSE)) -> 0 | E8: =IF(G8="-",0,VLOOKUP(G8,冒険者技能!$C$37:$Q$45,15,FALSE)) -> 0 | F8: =作成シート!C98 -> なし | G8: =VLOOKUP(F8,武器表!$B$2:$K$978,2,FALSE) -> - | H8: =VLOOKUP(F8,武器表!$B$2:$K$978,3,FALSE) -> - | I8: =VLOOKUP(F8,武器表!$B$2:$K$978,4,FALSE) -> - | J8: =VLOOKUP(F8,武器表!$B$2:$K$978,5,FALSE) -> - | K8: =VLOOKUP(F8,武器表!$B$2:$K$978,6,FALSE) -> - | L8: =VLOOKUP(F8,武器表!$B$2:$K$978,7,FALSE)+BG8 -> 0 | M8: =VLOOKUP(F8,武器表!$B$2:$K$978,8,FALSE) -> - | N8: =VLOOKUP(F8,武器表!$B$2:$K$978,9,FALSE)&IF(G8="武器：格闘武器",IF(冒険者技能!$K$36>0,"【発勁】使用可能1点消耗するごとに、威力へのボーナスに追加で+1(最大で"&能力値!D10&"まで)",""),"") -> - | O8: =作成シート!C100 -> 購入 | P8: =IF(O8="購入",VLOOKUP(F8,武器表!$B$2:$K$978,10,FALSE)*BH8+BI8,0) -> 0 | Q8: =VLOOKUP(F8,武器表!$B$2:$L$978,11,FALSE) -> -1 | R8: =VLOOKUP($F8,武器表!$B$2:$Q$978,12,FALSE) -> -1 | S8: =VLOOKUP($F8,武器表!$B$2:$Q$978,13,FALSE) -> -1 | T8: =VLOOKUP($F8,武器表!$B$2:$Q$978,14,FALSE) -> -1 | V8: =IF(F8="なし","",CHAR(10)&CHAR(10)&"◎武器：【"&BK8&"】"&CHAR(10)&"用途／属性：【"&G8&H8&I8&"／"&J8&" 】 命中値合計：【"&能力値!$L$10+C8+D8+L8+E8&"】"&CHAR(10)&"ダメージ："&X8&IF(C8+Y8+BD8>0,"+"&C8+Y8+BD8,"")&IF(BE8="","","+"&BE8)&IF(C8>0,CHAR(10)&"クラス："&B8&C8,"")&IF(D8>0,CHAR(10)&"技能："&G8&D8,"")&CHAR(10)&"効果："&N8&IF(N8="","",IF(AC8>0,"、",""))&IF(AC8>0," 追加効果値："&AC8,""))&IF(E8>0," 腕輪指輪+"&E8,"")&IF(冒険者技能!K27>0,IF(COUNTIF(N8,"*斬落*")>0," 斬り落とし攻撃可能",""),"") ->  | W8: =IF(F8="なし","",CHAR(10)&AH8&REPT(" ",8-LEN(AH8))&AE8&REPT(" ",6-LEN(AE8))&C8+D8+能力値!$L$10&REPT(" ",5-LEN(C8+D8+能力値!$L$10))&L8&REPT(" ",5-LEN(L8))&C8+D8+能力値!$L$10+L8&" "&K8&REPT(" ",8-LEN(K8))&C8&" "&IF(BF8="","-----",BF8)&" "&X8&"+"&C8+Y8+BD8&IF(BE8="","","+"&BE8)&" "&M8) ->  | X8: =VLOOKUP(F8,武器表!$B$2:$Q$978,15,FALSE) -> - | Y8: =VLOOKUP(F8,武器表!$B$2:$Q$978,16,FALSE)+E8+BG8 -> 0 | Z8: =IF(R8>-1,IF(冒険者技能!$U$19>-1,R8+冒険者技能!$U$19,-1),-1) -> -1 | AA8: =IF(S8>-1,IF(冒険者技能!$U$20>-1,冒険者技能!$U$20+S8,-1),-1) -> -1 | AB8: =IF(T8>-1,IF(冒険者技能!$U$26>-1,冒険者技能!$U$26*T8,-1),-1) -> -1 | AC8: -1 | AE8: - | AH8: なし | AV8: =VLOOKUP($F8,武器表!$B$2:$W$978,17,FALSE) -> -1 | AW8: =VLOOKUP($F8,武器表!$B$2:$W$978,18,FALSE) -> -1 | AX8: =VLOOKUP($F8,武器表!$B$2:$W$978,19,FALSE) -> 0 | AY8: =VLOOKUP($F8,武器表!$B$2:$W$978,20,FALSE) -> 0 | AZ8: =VLOOKUP($F8,武器表!$B$2:$W$978,21,FALSE) -> 0 | BA8: =VLOOKUP($F8,武器表!$B$2:$W$978,22,FALSE) -> 0 | BB8: =VLOOKUP($F8,武器表!$B$2:$Y$978,23,FALSE) -> -1 | BC8: =VLOOKUP($F8,武器表!$B$2:$Y$978,24,FALSE) -> -1 | BD8: =IF(COUNTIF(F8,"*素手攻撃*")>0,IF(冒険者技能!$K$32>0,冒険者技能!$U$32,0),0) -> 0 | BE8: =IF(G8="武器：格闘武器",IF(冒険者技能!$K$36>0,冒険者技能!$U$36,""),"") ->  | BG8: =VLOOKUP(BJ8,固定値!$EL$2:$EO$6,2,FALSE) -> 0 | BH8: =VLOOKUP(BJ8,固定値!$EL$2:$EO$6,3,FALSE) -> 1 | BI8: =VLOOKUP(BJ8,固定値!$EL$2:$EO$6,4,FALSE) -> 0 | BJ8: =作成シート!C101 -> なし | BK8: なし
A11: ◆防御
B12: 使用近接職 | C12: クラスレベル | D12: 技能ボーナス | E12: 体術ボーナス | F12: 鎧 | G12: 属性 | H12: 装甲値 | I12: 回避修正 | J12: 移動修正 | K12: 隠密性 | L12: 荷重x | M12: 荷重y | N12: 効果 | O12: 入手手段 | P12: 価格 | Q12: 耐久荷重 | R12: 最終回避修正 | S12: 最終移動修正 | T12: 副属性 | U12: 重量
B13: =作成シート!C103 -> なし | C13: =IF(B13="なし",0,VLOOKUP(B13,冒険者職業レベル!$C$3:$E$6,3,FALSE)) -> 0 | D13: =IF(G13="-",0,VLOOKUP(G13,冒険者技能!$C$47:$K$49,9,FALSE)) -> 0 | E13: =冒険者技能!K29+冒険者技能!Q29 -> 0 | F13: =作成シート!C102 -> なし | G13: =VLOOKUP(F13,鎧表!$B$3:$M$122,2,FALSE) -> - | H13: =VLOOKUP(F13,鎧表!$B$3:$M$122,5,FALSE)+BG13 -> 0 | I13: =VLOOKUP(F13,鎧表!$B$3:$M$122,6,FALSE)+BG13 -> 0 | J13: =VLOOKUP(F13,鎧表!$B$3:$M$122,7,FALSE) -> 0 | K13: =VLOOKUP(F13,鎧表!$B$3:$M$122,8,FALSE) -> 良い | L13: =VLOOKUP(F13,鎧表!$B$3:$M$122,10,FALSE) -> 0 | M13: =VLOOKUP(F13,鎧表!$B$3:$M$122,11,FALSE) -> 100 | N13: =VLOOKUP(F13,鎧表!$B$3:$M$122,12,FALSE)&IF(冒険者技能!$K$46>0,冒険者技能!Q46,"") -> - | O13: =作成シート!C104 -> 購入 | P13: =IF(O13="購入",VLOOKUP(F13,鎧表!$B$3:$M$122,9,FALSE)*BH13+BI13,0) -> 0 | Q13: =能力値!J11+冒険者技能!K18 -> 8 | R13: =IF(M13>Q13,I13,ROUNDDOWN(I13/2,0))+IF(AO13>0,IF(冒険者職業レベル!E5>0,AO13,0),0) -> 0 | S13: =IF(M13>Q13,J13,ROUNDDOWN(J13/2,0)) -> 0 | T13: =VLOOKUP(F13,鎧表!$B$3:$M$122,3,FALSE) -> - | U13: =VLOOKUP(F13,鎧表!$B$3:$M$122,4,FALSE) -> - | V13: =IF(F13="なし","","◎鎧：【"&BK13&"】"&CHAR(10)&"属性：【"&G13&"("&T13&")／"&U13&" 】 回避値合計：【"&能力値!L12+E13+C13+R13+IF(冒険者技能!K17=0,0,IF(冒険者技能!K17>3,IF(Q3=-1,0,Q3)+IF(Q17=-1,0,Q17)+IF(Q3>-1,冒険者技能!K17,IF(Q17>-1,冒険者技能!K17,0)),MAX(IF(Q3=-1,0,Q3),IF(Q17=-1,0,Q17))+IF(Q3>-1,冒険者技能!K17,IF(Q17>-1,冒険者技能!K17,0))))+$BA$1&"】"&CHAR(10)&"移動力合計：【"&S13+状態!F12+AY1+その他の所持品!C1&"】 装甲値合計：【"&H13+D13&IF(AI13>0,"+"&AI13&"(竜の末裔)","")&IF(AL13>0,IF(MAX(冒険者職業レベル!E8,冒険者職業レベル!E9)>0,"+"&AL13&"(神官)",""),"")&IF(AM13>0,IF(MAX(冒険者職業レベル!E8,冒険者職業レベル!E9)>4,"+"&AM13&"(神官)",""),"")&IF(その他の所持品!$D$1>0,"+"&その他の所持品!$D$1&"(道具)","")&"】 隠密性：【"&K13&"】 "&CHAR(10)&"効果："&N13)&IF(冒険者技能!$Q$29>0," 腕輪指輪+"&冒険者技能!$Q$29,"") ->  | W13: =IF(F13="なし","",AH13&REPT(" ",7-LEN(AH13))&" "&AE13&" "&C13+E13+能力値!L12&REPT(" ",7-LEN(C13+E13+能力値!L12))&R13&" "&C13+E13+能力値!L12+R13&REPT(" ",6-LEN(C13+E13+能力値!L12+R13))&D13+H13+AI13+IF(AL13>0,IF(MAX(冒険者職業レベル!E8,冒険者職業レベル!E9)>0,AL13,0),0)+IF(AM13>0,IF(MAX(冒険者職業レベル!E8,冒険者職業レベル!E9)>4,AM13,0),0)&" "&LEFT(K13,2)&" "&状態!F12&REPT(" ",7-LEN(状態!F12))&S13&REPT(" ",7-LEN(S13))&その他の所持品!C1+AY1&REPT(" ",4-LEN(その他の所持品!C1))&その他の所持品!C1+状態!F12+S13+AY1&REPT(" ",5-LEN(その他の所持品!C1+状態!F12+S13))&N13) ->  | AE13: =SUBSTITUTE(G13,"鎧：","") -> - | AH13: =LEFT(BK13,6) -> なし | AI13: =一般技能!$I$45 -> 0 | AJ13: =VLOOKUP($F13,鎧表!$B$3:$U$122,13,FALSE) -> 0 | AK13: =VLOOKUP($F13,鎧表!$B$3:$U$122,14,FALSE) -> 0 | AL13: =VLOOKUP($F13,鎧表!$B$3:$U$122,15,FALSE) -> -1 | AM13: =VLOOKUP($F13,鎧表!$B$3:$U$122,16,FALSE) -> -1 | AN13: =VLOOKUP($F13,鎧表!$B$3:$U$122,17,FALSE) -> -1 | AO13: =VLOOKUP($F13,鎧表!$B$3:$U$122,18,FALSE) -> -1 | AP13: =VLOOKUP($F13,鎧表!$B$3:$U$122,19,FALSE) -> -1 | AQ13: =VLOOKUP($F13,鎧表!$B$3:$U$122,20,FALSE) -> -1 | AR13: =VLOOKUP($F13,鎧表!$B$3:$V$122,21,FALSE) -> 0 | AS13: =AJ13+IF(AN13>0,IF(冒険者職業レベル!E5>0,AN13,0),0) -> 0 | AT13: =VLOOKUP($F13,鎧表!$B$3:$W$122,22,FALSE) -> 0 | AU13: =IF(AP13>0,AP13,0)+IF(冒険者職業レベル!E8>0,IF(AQ13>0,IF(プロフィール!C20="戦女神",AQ13,0),0),0) -> 0 | BG13: =VLOOKUP(BJ13,固定値!$EL$2:$EO$6,2,FALSE) -> 0 | BH13: =VLOOKUP(BJ13,固定値!$EL$2:$EO$6,3,FALSE) -> 1 | BI13: =VLOOKUP(BJ13,固定値!$EL$2:$EO$6,4,FALSE) -> 0 | BJ13: =作成シート!C105 -> なし | BK13: =IF(BG13<1,F13,"魔法の"&F13&BJ13) -> なし
B16: 使用近接職 | C16: クラスレベル | D16: 技能ボーナス | F16: 盾 | G16: 属性 | H16: 盾受け値 | I16: 盾受け修正 | K16: 隠密性 | N16: 効果 | O16: 入手手段 | P16: 価格 | Q16: 受け流し | T16: 副属性 | U16: 重量 | V16: =V17&V18&V19 -> 
B17: =作成シート!C107 -> なし | C17: =IF(B17="なし",0,VLOOKUP(B17,冒険者職業レベル!$C$3:$E$6,3,FALSE)) -> 0 | D17: =冒険者技能!K30 -> 0 | F17: =作成シート!C106 -> なし | G17: =VLOOKUP($F17,盾表!$B$3:$K$122,2,FALSE) -> - | H17: =VLOOKUP($F17,盾表!$B$3:$K$122,6,FALSE)+BG17 -> 0 | I17: =VLOOKUP($F17,盾表!$B$3:$K$122,5,FALSE)+BG17 -> 0 | K17: =VLOOKUP($F17,盾表!$B$3:$K$122,7,FALSE) -> 良い | N17: =VLOOKUP($F17,盾表!$B$3:$K$122,9,FALSE) -> - | O17: =作成シート!C108 -> 購入 | P17: =IF(O17="購入",VLOOKUP($F17,盾表!$B$3:$K$122,8,FALSE)*BH17+BI17,0) -> 0 | Q17: =VLOOKUP($F17,盾表!$B$3:$K$122,10,FALSE) -> -1 | T17: =VLOOKUP($F17,盾表!$B$3:$K$122,3,FALSE) -> - | U17: =VLOOKUP($F17,盾表!$B$3:$K$122,4,FALSE) -> - | V17: =IF(F17="なし","",CHAR(10)&CHAR(10)&"◎盾：【"&BK17&"】"&CHAR(10)&"属性：【"&G17&"("&T17&")／"&U17&" 】"&CHAR(10)&"盾受け基準値合計：【"&能力値!L12+C17+D17+I17&"】 盾受け値＋装甲合計：【"&H17+D17&"+"&D13+H13&IF(AI13>0,"+"&AI13&"(竜の末裔)","")&IF(AL13>0,IF(MAX(冒険者職業レベル!E8,冒険者職業レベル!E9)>0,"+"&AL13&"(神官)",""),"")&IF(AM13>0,IF(MAX(冒険者職業レベル!E8,冒険者職業レベル!E9)>4,"+"&AM13&"(神官)",""),"")&IF(その他の所持品!$D$1>0,"+"&その他の所持品!$D$1&"(道具)","")&"】 隠密性：【"&K17&"】 "&CHAR(10)&"効果："&N17) ->  | W17: =IF(F17="なし","",BK17&REPT(" ",10-LEN(BK17))&G17&" "&C17+D17+能力値!L12&REPT(" ",7-LEN(C17+D17+能力値!L12))&I17&REPT(" ",4-LEN(I17))&C17+D17+能力値!L12+I17&REPT(" ",7-LEN(C17+D17+能力値!L12+I17))&H17+D17&REPT(" ",5-LEN(H17+D17))&H13+D13+AI13+IF(AL13>0,IF(MAX(冒険者職業レベル!E8,冒険者職業レベル!E9)>0,AL13,0),0)+IF(AM13>0,IF(MAX(冒険者職業レベル!E8,冒険者職業レベル!E9)>4,AM13,0),0)&REPT(" ",6-LEN(H13+D13+AI13))&H17+D17+H13+D13+AI13&REPT(" ",4-LEN(H17+D17+H13+D13))&LEFT(K17,2)&" "&N17) ->  | AH17: =LEFT(BK17,6) -> なし | AJ17: =VLOOKUP($F17,盾表!$B$3:$L$122,11,FALSE) -> 0 | BG17: =VLOOKUP(BJ17,固定値!$EL$2:$EO$6,2,FALSE) -> 0 | BH17: =VLOOKUP(BJ17,固定値!$EL$2:$EO$6,3,FALSE) -> 1 | BI17: =VLOOKUP(BJ17,固定値!$EL$2:$EO$6,4,FALSE) -> 0 | BJ17: =作成シート!C109 -> なし | BK17: =IF(BG17<1,F17,"魔法の"&F17&BJ17) -> なし
B18: =作成シート!C111 -> なし | C18: =IF(B18="なし",0,VLOOKUP(B18,冒険者職業レベル!$C$3:$E$6,3,FALSE)) -> 0 | D18: =冒険者技能!K31 -> 0 | F18: =作成シート!C110 -> なし | G18: =VLOOKUP($F18,盾表!$B$3:$K$122,2,FALSE) -> - | H18: =VLOOKUP($F18,盾表!$B$3:$K$122,6,FALSE)+BG18 -> 0 | I18: =VLOOKUP($F18,盾表!$B$3:$K$122,5,FALSE)+BG18 -> 0 | K18: =VLOOKUP($F18,盾表!$B$3:$K$122,7,FALSE) -> 良い | N18: =VLOOKUP($F18,盾表!$B$3:$K$122,9,FALSE) -> - | O18: =作成シート!C112 -> 購入 | P18: =IF(O18="購入",VLOOKUP($F18,盾表!$B$3:$K$122,8,FALSE)*BH18+BI18,0) -> 0 | Q18: =VLOOKUP($F18,盾表!$B$3:$K$122,10,FALSE) -> -1 | T18: =VLOOKUP($F18,盾表!$B$3:$K$122,3,FALSE) -> - | U18: =VLOOKUP($F18,盾表!$B$3:$K$122,4,FALSE) -> - | V18: =IF(F18="なし","",CHAR(10)&CHAR(10)&"◎盾：【"&BK18&"】"&CHAR(10)&"属性：【"&G18&"("&T18&")／"&U18&" 】"&CHAR(10)&"盾受け基準値合計：【"&能力値!L13+C18+D18+I18&"】 盾受け値＋装甲合計：【"&H18+D18&"+"&D14+H14&IF(AI14>0,"+"&AI14&"(竜の末裔)","")&IF(AL14>0,IF(MAX(冒険者職業レベル!E9,冒険者職業レベル!E10)>0,"+"&AL14&"(神官)",""),"")&IF(AM14>0,IF(MAX(冒険者職業レベル!E9,冒険者職業レベル!E10)>4,"+"&AM14&"(神官)",""),"")&IF(その他の所持品!$D$1>0,"+"&その他の所持品!$D$1&"(道具)","")&"】 隠密性：【"&K18&"】 "&CHAR(10)&"効果："&N18) ->  | W18: =IF(F18="なし","",BK18&REPT(" ",10-LEN(BK18))&G18&" "&C18+D18+能力値!L13&REPT(" ",7-LEN(C18+D18+能力値!L13))&I18&REPT(" ",4-LEN(I18))&C18+D18+能力値!L13+I18&REPT(" ",7-LEN(C18+D18+能力値!L13+I18))&H18+D18&REPT(" ",5-LEN(H18+D18))&H14+D14+AI14+IF(AL14>0,IF(MAX(冒険者職業レベル!E9,冒険者職業レベル!E10)>0,AL14,0),0)+IF(AM14>0,IF(MAX(冒険者職業レベル!E9,冒険者職業レベル!E10)>4,AM14,0),0)&REPT(" ",6-LEN(H14+D14+AI14))&H18+D18+H14+D14+AI14&REPT(" ",4-LEN(H18+D18+H14+D14))&LEFT(K18,2)&" "&N18) ->  | AH18: =LEFT(BK18,6) -> なし | AJ18: =VLOOKUP($F18,盾表!$B$3:$L$122,11,FALSE) -> 0 | BG18: =VLOOKUP(BJ18,固定値!$EL$2:$EO$6,2,FALSE) -> 0 | BH18: =VLOOKUP(BJ18,固定値!$EL$2:$EO$6,3,FALSE) -> 1 | BI18: =VLOOKUP(BJ18,固定値!$EL$2:$EO$6,4,FALSE) -> 0 | BJ18: =作成シート!C110 -> なし | BK18: =IF(BG18<1,F18,"魔法の"&F18&BJ18) -> なし
B19: =作成シート!C115 -> なし | C19: =IF(B19="なし",0,VLOOKUP(B19,冒険者職業レベル!$C$3:$E$6,3,FALSE)) -> 0 | D19: =冒険者技能!K32 -> 0 | F19: =作成シート!C114 -> なし | G19: =VLOOKUP($F19,盾表!$B$3:$K$122,2,FALSE) -> - | H19: =VLOOKUP($F19,盾表!$B$3:$K$122,6,FALSE)+BG19 -> 0 | I19: =VLOOKUP($F19,盾表!$B$3:$K$122,5,FALSE)+BG19 -> 0 | K19: =VLOOKUP($F19,盾表!$B$3:$K$122,7,FALSE) -> 良い | N19: =VLOOKUP($F19,盾表!$B$3:$K$122,9,FALSE) -> - | O19: =作成シート!C116 -> 購入 | P19: =IF(O19="購入",VLOOKUP($F19,盾表!$B$3:$K$122,8,FALSE)*BH19+BI19,0) -> 0 | Q19: =VLOOKUP($F19,盾表!$B$3:$K$122,10,FALSE) -> -1 | T19: =VLOOKUP($F19,盾表!$B$3:$K$122,3,FALSE) -> - | U19: =VLOOKUP($F19,盾表!$B$3:$K$122,4,FALSE) -> - | V19: =IF(F19="なし","",CHAR(10)&CHAR(10)&"◎盾：【"&BK19&"】"&CHAR(10)&"属性：【"&G19&"("&T19&")／"&U19&" 】"&CHAR(10)&"盾受け基準値合計：【"&能力値!L14+C19+D19+I19&"】 盾受け値＋装甲合計：【"&H19+D19&"+"&D15+H15&IF(AI15>0,"+"&AI15&"(竜の末裔)","")&IF(AL15>0,IF(MAX(冒険者職業レベル!E10,冒険者職業レベル!E11)>0,"+"&AL15&"(神官)",""),"")&IF(AM15>0,IF(MAX(冒険者職業レベル!E10,冒険者職業レベル!E11)>4,"+"&AM15&"(神官)",""),"")&IF(その他の所持品!$D$1>0,"+"&その他の所持品!$D$1&"(道具)","")&"】 隠密性：【"&K19&"】 "&CHAR(10)&"効果："&N19) ->  | W19: =IF(F19="なし","",BK19&REPT(" ",10-LEN(BK19))&G19&" "&C19+D19+能力値!L14&REPT(" ",7-LEN(C19+D19+能力値!L14))&I19&REPT(" ",4-LEN(I19))&C19+D19+能力値!L14+I19&REPT(" ",7-LEN(C19+D19+能力値!L14+I19))&H19+D19&REPT(" ",5-LEN(H19+D19))&H15+D15+AI15+IF(AL15>0,IF(MAX(冒険者職業レベル!E10,冒険者職業レベル!E11)>0,AL15,0),0)+IF(AM15>0,IF(MAX(冒険者職業レベル!E10,冒険者職業レベル!E11)>4,AM15,0),0)&REPT(" ",6-LEN(H15+D15+AI15))&H19+D19+H15+D15+AI15&REPT(" ",4-LEN(H19+D19+H15+D15))&LEFT(K19,2)&" "&N19) ->  | AH19: =LEFT(BK19,6) -> なし | AJ19: =VLOOKUP($F19,盾表!$B$3:$L$122,11,FALSE) -> 0 | BG19: =VLOOKUP(BJ19,固定値!$EL$2:$EO$6,2,FALSE) -> 0 | BH19: =VLOOKUP(BJ19,固定値!$EL$2:$EO$6,3,FALSE) -> 1 | BI19: =VLOOKUP(BJ19,固定値!$EL$2:$EO$6,4,FALSE) -> 0 | BJ19: =作成シート!C111 -> なし | BK19: =IF(BG19<1,F19,"魔法の"&F19&BJ19) -> なし
D20: 2 | E20: =D20+1 -> 3 | F20: =E20+1 -> 4 | G20: 5 | H20: 6 | I20: 7 | J20: 8 | K20: 9 | L20: 10 | M20: 11 | N20: 12 | O20: 13 | P20: 14 | Q20: 15 | R20: 16 | S20: 17 | T20: 18 | U20: 19 | V20: 20
A21: ◆指輪腕輪 | D21: =SUM(D23,D24) -> 0 | E21: =MAX(E23,E24) -> 0 | F21: =MAX(F23,F24) -> 0 | G21: 0 | H21: 0 | I21: 0 | J21: 0 | K21: 0 | L21: 0 | M21: 0 | N21: 0 | O21: 0 | P21: 0 | Q21: 0 | R21: 0 | S21: 0 | T21: 0 | U21: 0 | V21: 0
B22: 指輪腕輪 | C22: 入手手段 | D22: 価格 | E22: 体力 | F22: 魂魄 | G22: 技量 | H22: 知力 | I22: 武器：片手剣 | J22: 武器：両手剣 | K22: 武器：斧 | L22: 武器：槍 | M22: 武器：戦槌 | N22: 武器：棍杖 | O22: 武器：格闘 | P22: 武器：投擲 | Q22: 武器：弩弓 | R22: 体力抵抗 | S22: 魂魄抵抗 | T22: 知力抵抗 | U22: 呪文抵抗 | V22: 体術
B23: =作成シート!C118 -> なし | C23: =作成シート!C119 -> 購入 | D23: =IF(C23="購入",VLOOKUP($B23,指輪腕輪!$B$2:$U$47,D$20,FALSE),0) -> 0 | E23: =VLOOKUP($B23,指輪腕輪!$B$2:$U$47,E$20,FALSE) -> 0 | F23: =VLOOKUP($B23,指輪腕輪!$B$2:$U$47,F$20,FALSE) -> 0 | G23: =VLOOKUP($B23,指輪腕輪!$B$2:$U$47,G$20,FALSE) -> 0 | H23: =VLOOKUP($B23,指輪腕輪!$B$2:$U$47,H$20,FALSE) -> 0 | I23: =VLOOKUP($B23,指輪腕輪!$B$2:$U$47,I$20,FALSE) -> 0 | J23: =VLOOKUP($B23,指輪腕輪!$B$2:$U$47,J$20,FALSE) -> 0 | K23: =VLOOKUP($B23,指輪腕輪!$B$2:$U$47,K$20,FALSE) -> 0 | L23: =VLOOKUP($B23,指輪腕輪!$B$2:$U$47,L$20,FALSE) -> 0 | M23: =VLOOKUP($B23,指輪腕輪!$B$2:$U$47,M$20,FALSE) -> 0 | N23: =VLOOKUP($B23,指輪腕輪!$B$2:$U$47,N$20,FALSE) -> 0 | O23: =VLOOKUP($B23,指輪腕輪!$B$2:$U$47,O$20,FALSE) -> 0 | P23: =VLOOKUP($B23,指輪腕輪!$B$2:$U$47,P$20,FALSE) -> 0 | Q23: =VLOOKUP($B23,指輪腕輪!$B$2:$U$47,Q$20,FALSE) -> 0 | R23: =VLOOKUP($B23,指輪腕輪!$B$2:$U$47,R$20,FALSE) -> 0 | S23: =VLOOKUP($B23,指輪腕輪!$B$2:$U$47,S$20,FALSE) -> 0 | T23: =VLOOKUP($B23,指輪腕輪!$B$2:$U$47,T$20,FALSE) -> 0 | U23: =VLOOKUP($B23,指輪腕輪!$B$2:$U$47,U$20,FALSE) -> 0 | V23: =VLOOKUP($B23,指輪腕輪!$B$2:$U$47,V$20,FALSE) -> 0
B24: =作成シート!C120 -> なし | C24: =作成シート!C121 -> 購入 | D24: =IF(C24="購入",VLOOKUP($B24,指輪腕輪!$B$2:$U$47,D$20,FALSE),0) -> 0 | E24: =VLOOKUP($B24,指輪腕輪!$B$2:$U$47,E$20,FALSE) -> 0 | F24: =VLOOKUP($B24,指輪腕輪!$B$2:$U$47,F$20,FALSE) -> 0 | G24: =VLOOKUP($B24,指輪腕輪!$B$2:$U$47,G$20,FALSE) -> 0 | H24: =VLOOKUP($B24,指輪腕輪!$B$2:$U$47,H$20,FALSE) -> 0 | I24: =VLOOKUP($B24,指輪腕輪!$B$2:$U$47,I$20,FALSE) -> 0 | J24: =VLOOKUP($B24,指輪腕輪!$B$2:$U$47,J$20,FALSE) -> 0 | K24: =VLOOKUP($B24,指輪腕輪!$B$2:$U$47,K$20,FALSE) -> 0 | L24: =VLOOKUP($B24,指輪腕輪!$B$2:$U$47,L$20,FALSE) -> 0 | M24: =VLOOKUP($B24,指輪腕輪!$B$2:$U$47,M$20,FALSE) -> 0 | N24: =VLOOKUP($B24,指輪腕輪!$B$2:$U$47,N$20,FALSE) -> 0 | O24: =VLOOKUP($B24,指輪腕輪!$B$2:$U$47,O$20,FALSE) -> 0 | P24: =VLOOKUP($B24,指輪腕輪!$B$2:$U$47,P$20,FALSE) -> 0 | Q24: =VLOOKUP($B24,指輪腕輪!$B$2:$U$47,Q$20,FALSE) -> 0 | R24: =VLOOKUP($B24,指輪腕輪!$B$2:$U$47,R$20,FALSE) -> 0 | S24: =VLOOKUP($B24,指輪腕輪!$B$2:$U$47,S$20,FALSE) -> 0 | T24: =VLOOKUP($B24,指輪腕輪!$B$2:$U$47,T$20,FALSE) -> 0 | U24: =VLOOKUP($B24,指輪腕輪!$B$2:$U$47,U$20,FALSE) -> 0 | V24: =VLOOKUP($B24,指輪腕輪!$B$2:$U$47,V$20,FALSE) -> 0

Sheet その他の所持品
C1: =SUM(C3:C20) -> 0 | D1: =MAX(D3:D20) -> 0 | E1: 0 | F1: 0 | G1: 0 | H1: 0 | I1: 0 | J1: =SUM(J12:J20) -> 0 | K1: =K3&K4&K5&K6&K7&K8&K9&K10&K11&K12&K13&K14&K15&K16&K17&K18&K19&K20 -> 冒険者ツール(鈎縄10m、楔10個、小槌、火口箱、背負い袋、携帯用食器、水袋、白墨、小刀、松明(6本)) 携帯食：21 衣類 | L1: =K6&K7&K8&K9&K10&K11&K12&K13&K14&K15&K16&K17&K18&K19 -> 
B2: 所持品 | C2: 移動修正 | D2: 追加装甲 | E2: 体力抵抗判定 | F2: 真言呪文行使判定修正 | G2: 奇跡行使判定修正 | H2: 祖竜術行使判定修正 | I2: 精霊術行使判定修正 | J2: 価格
B3: =作成シート!C122 -> 冒険者ツール(鈎縄10m、楔10個、小槌、火口箱、背負い袋、携帯用食器、水袋、白墨、小刀、松明(6本)) | C3: =VLOOKUP(B3,固定値!$BT$1:$BU$999,2,FALSE) -> 0 | D3: =VLOOKUP($B3,固定値!$BT$1:$CC$999,3,FALSE) -> 0 | E3: =VLOOKUP($B3,固定値!$BT$1:$CC$999,4,FALSE) -> 0 | F3: =VLOOKUP($B3,固定値!$BT$1:$CC$999,5,FALSE) -> 0 | G3: =VLOOKUP($B3,固定値!$BT$1:$CC$999,6,FALSE) -> 0 | H3: =VLOOKUP($B3,固定値!$BT$1:$CC$999,7,FALSE) -> 0 | I3: =VLOOKUP($B3,固定値!$BT$1:$CC$999,8,FALSE) -> 0 | K3: =IF(B3="なし","",CHAR(10)&B3&IF(C3<0,"("&C3&")","")) -> 冒険者ツール(鈎縄10m、楔10個、小槌、火口箱、背負い袋、携帯用食器、水袋、白墨、小刀、松明(6本))
B4: =作成シート!C123 -> 携帯食：21 | C4: =VLOOKUP(B4,固定値!$BT$1:$BU$999,2,FALSE) -> 0 | D4: =VLOOKUP($B4,固定値!$BT$1:$CC$999,3,FALSE) -> 0 | E4: =VLOOKUP($B4,固定値!$BT$1:$CC$999,4,FALSE) -> 0 | F4: =VLOOKUP($B4,固定値!$BT$1:$CC$999,5,FALSE) -> 0 | G4: =VLOOKUP($B4,固定値!$BT$1:$CC$999,6,FALSE) -> 0 | H4: =VLOOKUP($B4,固定値!$BT$1:$CC$999,7,FALSE) -> 0 | I4: =VLOOKUP($B4,固定値!$BT$1:$CC$999,8,FALSE) -> 0 | K4: =IF(B4="なし","",CHAR(10)&B4&IF(C4<0,"("&C4&")","")) -> 携帯食：21
B5: =作成シート!C124 -> 衣類 | C5: =VLOOKUP(B5,固定値!$BT$1:$BU$999,2,FALSE) -> 0 | D5: =VLOOKUP($B5,固定値!$BT$1:$CC$999,3,FALSE) -> 0 | E5: =VLOOKUP($B5,固定値!$BT$1:$CC$999,4,FALSE) -> 0 | F5: =VLOOKUP($B5,固定値!$BT$1:$CC$999,5,FALSE) -> 0 | G5: =VLOOKUP($B5,固定値!$BT$1:$CC$999,6,FALSE) -> 0 | H5: =VLOOKUP($B5,固定値!$BT$1:$CC$999,7,FALSE) -> 0 | I5: =VLOOKUP($B5,固定値!$BT$1:$CC$999,8,FALSE) -> 0 | K5: 衣類
B6: =作成シート!C125 -> なし | C6: =VLOOKUP(B6,固定値!$BT$1:$BU$999,2,FALSE) -> 0 | D6: =VLOOKUP($B6,固定値!$BT$1:$CC$999,3,FALSE) -> 0 | E6: =VLOOKUP($B6,固定値!$BT$1:$CC$999,4,FALSE) -> 0 | F6: =VLOOKUP($B6,固定値!$BT$1:$CC$999,5,FALSE) -> 0 | G6: =VLOOKUP($B6,固定値!$BT$1:$CC$999,6,FALSE) -> 0 | H6: =VLOOKUP($B6,固定値!$BT$1:$CC$999,7,FALSE) -> 0 | I6: =VLOOKUP($B6,固定値!$BT$1:$CC$999,8,FALSE) -> 0
B7: =作成シート!C126 -> なし | C7: =VLOOKUP(B7,固定値!$BT$1:$BU$999,2,FALSE) -> 0 | D7: =VLOOKUP($B7,固定値!$BT$1:$CC$999,3,FALSE) -> 0 | E7: =VLOOKUP($B7,固定値!$BT$1:$CC$999,4,FALSE) -> 0 | F7: =VLOOKUP($B7,固定値!$BT$1:$CC$999,5,FALSE) -> 0 | G7: =VLOOKUP($B7,固定値!$BT$1:$CC$999,6,FALSE) -> 0 | H7: =VLOOKUP($B7,固定値!$BT$1:$CC$999,7,FALSE) -> 0 | I7: =VLOOKUP($B7,固定値!$BT$1:$CC$999,8,FALSE) -> 0
B8: =作成シート!C127 -> なし | C8: =VLOOKUP(B8,固定値!$BT$1:$BU$999,2,FALSE) -> 0 | D8: =VLOOKUP($B8,固定値!$BT$1:$CC$999,3,FALSE) -> 0 | E8: =VLOOKUP($B8,固定値!$BT$1:$CC$999,4,FALSE) -> 0 | F8: =VLOOKUP($B8,固定値!$BT$1:$CC$999,5,FALSE) -> 0 | G8: =VLOOKUP($B8,固定値!$BT$1:$CC$999,6,FALSE) -> 0 | H8: =VLOOKUP($B8,固定値!$BT$1:$CC$999,7,FALSE) -> 0 | I8: =VLOOKUP($B8,固定値!$BT$1:$CC$999,8,FALSE) -> 0
B9: =作成シート!C128 -> なし | C9: =VLOOKUP(B9,固定値!$BT$1:$BU$999,2,FALSE) -> 0 | D9: =VLOOKUP($B9,固定値!$BT$1:$CC$999,3,FALSE) -> 0 | E9: =VLOOKUP($B9,固定値!$BT$1:$CC$999,4,FALSE) -> 0 | F9: =VLOOKUP($B9,固定値!$BT$1:$CC$999,5,FALSE) -> 0 | G9: =VLOOKUP($B9,固定値!$BT$1:$CC$999,6,FALSE) -> 0 | H9: =VLOOKUP($B9,固定値!$BT$1:$CC$999,7,FALSE) -> 0 | I9: =VLOOKUP($B9,固定値!$BT$1:$CC$999,8,FALSE) -> 0
B10: =作成シート!C129 -> なし | C10: =VLOOKUP(B10,固定値!$BT$1:$BU$999,2,FALSE) -> 0 | D10: =VLOOKUP($B10,固定値!$BT$1:$CC$999,3,FALSE) -> 0 | E10: =VLOOKUP($B10,固定値!$BT$1:$CC$999,4,FALSE) -> 0 | F10: =VLOOKUP($B10,固定値!$BT$1:$CC$999,5,FALSE) -> 0 | G10: =VLOOKUP($B10,固定値!$BT$1:$CC$999,6,FALSE) -> 0 | H10: =VLOOKUP($B10,固定値!$BT$1:$CC$999,7,FALSE) -> 0 | I10: =VLOOKUP($B10,固定値!$BT$1:$CC$999,8,FALSE) -> 0
B11: =作成シート!C130 -> なし | C11: =VLOOKUP(B11,固定値!$BT$1:$BU$999,2,FALSE) -> 0 | D11: =VLOOKUP($B11,固定値!$BT$1:$CC$999,3,FALSE) -> 0 | E11: =VLOOKUP($B11,固定値!$BT$1:$CC$999,4,FALSE) -> 0 | F11: =VLOOKUP($B11,固定値!$BT$1:$CC$999,5,FALSE) -> 0 | G11: =VLOOKUP($B11,固定値!$BT$1:$CC$999,6,FALSE) -> 0 | H11: =VLOOKUP($B11,固定値!$BT$1:$CC$999,7,FALSE) -> 0 | I11: =VLOOKUP($B11,固定値!$BT$1:$CC$999,8,FALSE) -> 0
B12: =作成シート!C131 -> なし | C12: =VLOOKUP(B12,固定値!$BT$1:$BU$999,2,FALSE) -> 0 | D12: =VLOOKUP($B12,固定値!$BT$1:$CC$999,3,FALSE) -> 0 | E12: =VLOOKUP($B12,固定値!$BT$1:$CC$999,4,FALSE) -> 0 | F12: =VLOOKUP($B12,固定値!$BT$1:$CC$999,5,FALSE) -> 0 | G12: =VLOOKUP($B12,固定値!$BT$1:$CC$999,6,FALSE) -> 0 | H12: =VLOOKUP($B12,固定値!$BT$1:$CC$999,7,FALSE) -> 0 | I12: =VLOOKUP($B12,固定値!$BT$1:$CC$999,8,FALSE) -> 0 | J12: =VLOOKUP($B12,固定値!$BT$1:$CC$999,9,FALSE) -> 0
B13: =作成シート!C132 -> なし | C13: =VLOOKUP(B13,固定値!$BT$1:$BU$999,2,FALSE) -> 0 | D13: =VLOOKUP($B13,固定値!$BT$1:$CC$999,3,FALSE) -> 0 | E13: =VLOOKUP($B13,固定値!$BT$1:$CC$999,4,FALSE) -> 0 | F13: =VLOOKUP($B13,固定値!$BT$1:$CC$999,5,FALSE) -> 0 | G13: =VLOOKUP($B13,固定値!$BT$1:$CC$999,6,FALSE) -> 0 | H13: =VLOOKUP($B13,固定値!$BT$1:$CC$999,7,FALSE) -> 0 | I13: =VLOOKUP($B13,固定値!$BT$1:$CC$999,8,FALSE) -> 0 | J13: =VLOOKUP($B13,固定値!$BT$1:$CC$999,9,FALSE) -> 0
B14: =作成シート!C133 -> なし | C14: =VLOOKUP(B14,固定値!$BT$1:$BU$999,2,FALSE) -> 0 | D14: =VLOOKUP($B14,固定値!$BT$1:$CC$999,3,FALSE) -> 0 | E14: =VLOOKUP($B14,固定値!$BT$1:$CC$999,4,FALSE) -> 0 | F14: =VLOOKUP($B14,固定値!$BT$1:$CC$999,5,FALSE) -> 0 | G14: =VLOOKUP($B14,固定値!$BT$1:$CC$999,6,FALSE) -> 0 | H14: =VLOOKUP($B14,固定値!$BT$1:$CC$999,7,FALSE) -> 0 | I14: =VLOOKUP($B14,固定値!$BT$1:$CC$999,8,FALSE) -> 0 | J14: =VLOOKUP($B14,固定値!$BT$1:$CC$999,9,FALSE) -> 0
B15: =作成シート!C134 -> なし | C15: =VLOOKUP(B15,固定値!$BT$1:$BU$999,2,FALSE) -> 0 | D15: =VLOOKUP($B15,固定値!$BT$1:$CC$999,3,FALSE) -> 0 | E15: =VLOOKUP($B15,固定値!$BT$1:$CC$999,4,FALSE) -> 0 | F15: =VLOOKUP($B15,固定値!$BT$1:$CC$999,5,FALSE) -> 0 | G15: =VLOOKUP($B15,固定値!$BT$1:$CC$999,6,FALSE) -> 0 | H15: =VLOOKUP($B15,固定値!$BT$1:$CC$999,7,FALSE) -> 0 | I15: =VLOOKUP($B15,固定値!$BT$1:$CC$999,8,FALSE) -> 0 | J15: =VLOOKUP($B15,固定値!$BT$1:$CC$999,9,FALSE) -> 0
B16: =作成シート!C135 -> なし | C16: =VLOOKUP(B16,固定値!$BT$1:$BU$999,2,FALSE) -> 0 | D16: =VLOOKUP($B16,固定値!$BT$1:$CC$999,3,FALSE) -> 0 | E16: =VLOOKUP($B16,固定値!$BT$1:$CC$999,4,FALSE) -> 0 | F16: =VLOOKUP($B16,固定値!$BT$1:$CC$999,5,FALSE) -> 0 | G16: =VLOOKUP($B16,固定値!$BT$1:$CC$999,6,FALSE) -> 0 | H16: =VLOOKUP($B16,固定値!$BT$1:$CC$999,7,FALSE) -> 0 | I16: =VLOOKUP($B16,固定値!$BT$1:$CC$999,8,FALSE) -> 0 | J16: =VLOOKUP($B16,固定値!$BT$1:$CC$999,9,FALSE) -> 0
B17: =作成シート!C136 -> なし | C17: =VLOOKUP(B17,固定値!$BT$1:$BU$999,2,FALSE) -> 0 | D17: =VLOOKUP($B17,固定値!$BT$1:$CC$999,3,FALSE) -> 0 | E17: =VLOOKUP($B17,固定値!$BT$1:$CC$999,4,FALSE) -> 0 | F17: =VLOOKUP($B17,固定値!$BT$1:$CC$999,5,FALSE) -> 0 | G17: =VLOOKUP($B17,固定値!$BT$1:$CC$999,6,FALSE) -> 0 | H17: =VLOOKUP($B17,固定値!$BT$1:$CC$999,7,FALSE) -> 0 | I17: =VLOOKUP($B17,固定値!$BT$1:$CC$999,8,FALSE) -> 0 | J17: =VLOOKUP($B17,固定値!$BT$1:$CC$999,9,FALSE) -> 0
B18: =作成シート!C137 -> なし | C18: =VLOOKUP(B18,固定値!$BT$1:$BU$999,2,FALSE) -> 0 | D18: =VLOOKUP($B18,固定値!$BT$1:$CC$999,3,FALSE) -> 0 | E18: =VLOOKUP($B18,固定値!$BT$1:$CC$999,4,FALSE) -> 0 | F18: =VLOOKUP($B18,固定値!$BT$1:$CC$999,5,FALSE) -> 0 | G18: =VLOOKUP($B18,固定値!$BT$1:$CC$999,6,FALSE) -> 0 | H18: =VLOOKUP($B18,固定値!$BT$1:$CC$999,7,FALSE) -> 0 | I18: =VLOOKUP($B18,固定値!$BT$1:$CC$999,8,FALSE) -> 0 | J18: =VLOOKUP($B18,固定値!$BT$1:$CC$999,9,FALSE) -> 0
B19: =作成シート!C138 -> なし | C19: =VLOOKUP(B19,固定値!$BT$1:$BU$999,2,FALSE) -> 0 | D19: =VLOOKUP($B19,固定値!$BT$1:$CC$999,3,FALSE) -> 0 | E19: =VLOOKUP($B19,固定値!$BT$1:$CC$999,4,FALSE) -> 0 | F19: =VLOOKUP($B19,固定値!$BT$1:$CC$999,5,FALSE) -> 0 | G19: =VLOOKUP($B19,固定値!$BT$1:$CC$999,6,FALSE) -> 0 | H19: =VLOOKUP($B19,固定値!$BT$1:$CC$999,7,FALSE) -> 0 | I19: =VLOOKUP($B19,固定値!$BT$1:$CC$999,8,FALSE) -> 0 | J19: =VLOOKUP($B19,固定値!$BT$1:$CC$999,9,FALSE) -> 0
B20: =作成シート!C139 -> なし | C20: =VLOOKUP(B20,固定値!$BT$1:$BU$999,2,FALSE) -> 0 | D20: =VLOOKUP($B20,固定値!$BT$1:$CC$999,3,FALSE) -> 0 | E20: =VLOOKUP($B20,固定値!$BT$1:$CC$999,4,FALSE) -> 0 | F20: =VLOOKUP($B20,固定値!$BT$1:$CC$999,5,FALSE) -> 0 | G20: =VLOOKUP($B20,固定値!$BT$1:$CC$999,6,FALSE) -> 0 | H20: =VLOOKUP($B20,固定値!$BT$1:$CC$999,7,FALSE) -> 0 | I20: =VLOOKUP($B20,固定値!$BT$1:$CC$999,8,FALSE) -> 0 | J20: =VLOOKUP($B20,固定値!$BT$1:$CC$999,9,FALSE) -> 0

Sheet プロフィール
B2: 名前 | C2: =IF(作成シート!C3="","",作成シート!C3) -> 何か書いてください
B3: 種族 | C3: =作成シート!C4 -> 只人
B4: 年齢 | C4: =IF(作成シート!C5="","",作成シート!C5) -> 不明
B5: 性別 | C5: =IF(作成シート!C6="","",作成シート!C6) -> 不明
B6: 経歴／出自 | C6: =VLOOKUP(F6,固定値!CI2:CM55,5,FALSE) -> 農民 | D6: 出目 | E6: =作成シート!C7 -> 7 | F6: =C3&"-"&E6 -> 只人-7
B7: 経歴／来歴 | C7: =VLOOKUP(E7,固定値!CS2:CT12,2,FALSE) -> 平穏 | D7: 出目 | E7: =作成シート!C8 -> 7
B8: 経歴／邂逅 | C8: =VLOOKUP(E8,固定値!CX2:CY12,2,FALSE) -> 家族 | D8: 出目 | E8: =作成シート!C9 -> 7
B9: 等級 | C9: =作成シート!C10 -> 白磁等級
B10: 身体的特徴 | C10: =IF(作成シート!C11="","",作成シート!C11) -> 何か書いてください
B11: 身体的特徴／髪 | C11: =IF(作成シート!C12="","",作成シート!C12) -> 何か書いてください
B12: 身体的特徴／瞳 | C12: =IF(作成シート!C13="","",作成シート!C13) -> 何か書いてください
B13: 冒険者になった動機 | C13: =VLOOKUP(H13,固定値!CD2:CE19,2,FALSE) -> 腕試しのため | D13: 出目 | E13: =作成シート!C14 -> 3,4 | F13: 出目 | G13: =作成シート!C15 -> 4 | H13: =E13&"-"&G13 -> 3,4-4
B14: 設定 | C14: =IF(作成シート!C16="","",作成シート!C16) -> 何か書いてください
B15: 能力値タイプ | C15: =作成シート!$C$29 -> 固定値
B16: 状態／2D6(1回目) | C16: =作成シート!C18 -> 5 | D16: 固定値 | E16: =VLOOKUP(B16, 固定値!$A$1:$B$4,2,FALSE) -> 5
B17: 状態／2D6(2回目) | C17: =作成シート!C19 -> 7 | D17: 固定値 | E17: =VLOOKUP(B17, 固定値!$A$1:$B$4,2,FALSE) -> 7
B18: 状態／2D6(3回目) | C18: =作成シート!C20 -> 9 | D18: 固定値 | E18: =VLOOKUP(B18, 固定値!$A$1:$B$4,2,FALSE) -> 9
B19: 状態タイプ | C19: =作成シート!C21 -> 固定値
B20: 信仰 | C20: =作成シート!C17 -> なし
B21: 初期冒険者レベル | C21: =作成シート!C2 -> 1
B22: 初期経験点 | C22: =VLOOKUP($C$21,固定値!$AT$2:$AY$10,2,FALSE) -> 3000
B23: 初期成長点 | C23: =VLOOKUP($C$21,固定値!$AT$2:$AY$10,3,FALSE) -> 0
B24: 初期所持金 | C24: =VLOOKUP($C$21,固定値!$AT$2:$AY$10,4,FALSE) -> 100
B25: 初期冒険回数 | C25: =VLOOKUP($C$21,固定値!$AT$2:$AY$10,5,FALSE) -> 0
B26: 初期達成回数 | C26: =VLOOKUP($C$21,固定値!$AT$2:$AY$10,6,FALSE) -> 0

Sheet 能力値
D2: 固定値 | E2: ランダム | F2: ボーナス | G2: 最終値
B3: 第一能力値
C4: 体力点 | D4: =VLOOKUP(C4,固定値!$D$1:$I$9,VLOOKUP(プロフィール!$C$3,固定値!$K$1:$L$6,2,FALSE),FALSE) -> 3 | E4: =作成シート!C22 -> 0 | F4: =IF(作成シート!$C$30=C4,1,0) -> 0 | G4: =IF(プロフィール!$C$15="固定値",D4,E4)+F4+装備!E21 -> 3 | H4: =DBCS(G4) -> ３
C5: 魂魄点 | D5: =VLOOKUP(C5,固定値!$D$1:$I$9,VLOOKUP(プロフィール!$C$3,固定値!$K$1:$L$6,2,FALSE),FALSE) -> 2 | E5: =作成シート!C23 -> 0 | F5: =IF(作成シート!$C$30=C5,1,0) -> 0 | G5: =IF(プロフィール!$C$15="固定値",D5,E5)+F5+装備!F21 -> 2 | H5: =DBCS(G5) -> ２
C6: 技量点 | D6: =VLOOKUP(C6,固定値!$D$1:$I$9,VLOOKUP(プロフィール!$C$3,固定値!$K$1:$L$6,2,FALSE),FALSE) -> 2 | E6: =作成シート!C24 -> 0 | F6: =IF(作成シート!$C$30=C6,1,0) -> 1 | G6: =IF(プロフィール!$C$15="固定値",D6,E6)+F6+装備!G21 -> 3 | H6: =DBCS(G6) -> ３
C7: 知力点 | D7: =VLOOKUP(C7,固定値!$D$1:$I$9,VLOOKUP(プロフィール!$C$3,固定値!$K$1:$L$6,2,FALSE),FALSE) -> 3 | E7: =作成シート!C25 -> 0 | F7: =IF(作成シート!$C$30=C7,1,0) -> 0 | G7: =IF(プロフィール!$C$15="固定値",D7,E7)+F7+装備!H21 -> 3 | H7: =DBCS(G7) -> ３
J8: 体力点 | K8: 魂魄点 | L8: 技量点 | M8: 知力点
B9: 第二能力 | J9: =G4 -> 3 | K9: =G5 -> 2 | L9: =G6 -> 3 | M9: =G7 -> 3
C10: 集中度 | D10: =VLOOKUP(C10,固定値!$D$1:$I$9,VLOOKUP(プロフィール!$C$3,固定値!$K$1:$L$6,2,FALSE),FALSE) -> 2 | E10: =作成シート!C26 -> 0 | G10: =IF(プロフィール!$C$15="固定値",D10,E10)+F10 -> 2 | H10: =DBCS(G10) -> ２ | I10: 集中度 | J10: =DBCS($G10+J$9) -> ５ | K10: =DBCS($G10+K$9) -> ４ | L10: ５ | M10: ５
C11: 持久度 | D11: =VLOOKUP(C11,固定値!$D$1:$I$9,VLOOKUP(プロフィール!$C$3,固定値!$K$1:$L$6,2,FALSE),FALSE) -> 4 | E11: =作成シート!C27 -> 0 | G11: =IF(プロフィール!$C$15="固定値",D11,E11)+F11 -> 4 | H11: =DBCS(G11) -> ４ | I11: 持久度 | J11: =DBCS($G11+J$9) -> ７ | K11: ６ | L11: ７ | M11: ７
C12: 反射度 | D12: =VLOOKUP(C12,固定値!$D$1:$I$9,VLOOKUP(プロフィール!$C$3,固定値!$K$1:$L$6,2,FALSE),FALSE) -> 2 | E12: =作成シート!C28 -> 0 | G12: =IF(プロフィール!$C$15="固定値",D12,E12)+F12 -> 2 | H12: =DBCS(G12) -> ２ | I12: 反射度 | J12: ５ | K12: ４ | L12: ５ | M12: ５
B16: ┌───┬───┬───┬───┐
B17: │体力点│魂魄点│技量点│知力点│
B18: =" │ "&H4&" │ "&H5&" │ "&H6&" │ "&H7&" │" -> │ ３ │ ２ │ ３ │ ３ │
B19: ┌───┼───┼───┼───┼───┤
B20: │集中度│ │ │ │ │
B21: ="│ "&H10&" │ "&J10&" │ "&K10&" │ "&L10&" │ "&M10&" │" -> │ ２ │ ５ │ ４ │ ５ │ ５ │
B22: ├───┼───┼───┼───┼───┤
B23: │持久度│ │ │ │ │
B24: ="│ "&H11&" │ "&J11&" │ "&K11&" │ "&L11&" │ "&M11&" │" -> │ ４ │ ７ │ ６ │ ７ │ ７ │
B25: ├───┼───┼───┼───┼───┤
B26: │反射度│ │ │ │ │
B27: ="│ "&H12&" │ "&J12&" │ "&K12&" │ "&L12&" │ "&M12&" │" -> │ ２ │ ５ │ ４ │ ５ │ ５ │
B28: └───┴───┴───┴───┴───┘
N31: 鎧の修正 | P31: 武器の修正 | R31: 道具の修正 | T31: 盾の修正 | V31: 腕輪指輪
C32: 体力抵抗 | D32: =F32+H32+J32+L32+N32+P32+R32+T32+V32 -> 6 | E32: 体力反射 | F32: =$J$12 -> ５ | G32: 冒険者Lv | H32: =冒険者職業レベル!$D$19 -> 1 | I32: 免疫強化 | J32: =IF(I32="",0,VLOOKUP(I32,冒険者技能!$C$3:$K$67,9,FALSE)) -> 0 | L32: =IF(K32="",0,VLOOKUP(K32,一般技能!$B$3:$I$47,8,FALSE)) -> 0 | R32: =その他の所持品!E1 -> 0 | V32: =装備!R21 -> 0
C33: 魂魄抵抗 | D33: =F33+H33+J33+L33+N33+P33+R33+T33+V33 -> 5 | E33: 魂魄反射 | F33: =$K$12 -> ４ | G33: 冒険者Lv | H33: =冒険者職業レベル!$D$19 -> 1 | J33: =IF(I33="",0,VLOOKUP(I33,冒険者技能!$C$3:$K$67,9,FALSE)) -> 0 | K33: 沈着冷静 | L33: =IF(K33="",0,VLOOKUP(K33,一般技能!$B$3:$I$47,8,FALSE)) -> 0 | V33: =装備!S21 -> 0
C34: 知力抵抗 | D34: =F34+H34+J34+L34+N34+P34+R34+T34+V34 -> 6 | E34: 知力反射 | F34: =$M$12 -> ５ | G34: 冒険者Lv | H34: =冒険者職業レベル!$D$19 -> 1 | J34: =IF(I34="",0,VLOOKUP(I34,冒険者技能!$C$3:$K$67,9,FALSE)) -> 0 | K34: 沈着冷静 | L34: =IF(K34="",0,VLOOKUP(K34,一般技能!$B$3:$I$47,8,FALSE)) -> 0 | V34: =装備!T21 -> 0
C35: 呪文抵抗 | D35: =F35+H35+J35+L35+N35+P35+R35+T35+V35 -> 5 | E35: 魂魄反射 | F35: =$K$12 -> ４ | G35: 冒険者Lv | H35: =冒険者職業レベル!$D$19 -> 1 | I35: 呪文抵抗 | J35: =IF(I35="",0,VLOOKUP(I35,冒険者技能!$C$3:$K$67,9,FALSE)) -> 0 | L35: =IF(K35="",0,VLOOKUP(K35,一般技能!$B$3:$I$47,8,FALSE)) -> 0 | V35: =装備!U21 -> 0
C37: 怪力(集中) | D37: =F37+H37+J37+L37+N37+P37+R37+T37+V37 -> 6 | E37: 体力集中 | F37: =$J$10 -> ５ | G37: 戦士or武道家Lv | H37: =MAX(冒険者職業レベル!$E$3,冒険者職業レベル!$E$4) -> 0 | I37: 荷重行動 | J37: =IF(I37="",0,VLOOKUP(I37,冒険者技能!$C$3:$K$67,9,FALSE)) -> 1 | L37: =IF(K37="",0,VLOOKUP(K37,一般技能!$B$3:$I$47,8,FALSE)) -> 0
C38: 怪力(持久) | D38: 8 | E38: 体力持久 | F38: =$J$11 -> ７ | G38: 戦士or武道家Lv | H38: =MAX(冒険者職業レベル!$E$3,冒険者職業レベル!$E$4) -> 0 | I38: 荷重行動 | J38: =IF(I38="",0,VLOOKUP(I38,冒険者技能!$C$3:$K$67,9,FALSE)) -> 1 | L38: =IF(K38="",0,VLOOKUP(K38,一般技能!$B$3:$I$47,8,FALSE)) -> 0
C39: 脱出 | D39: 6 | E39: 体力集中 | F39: =$J$10 -> ５ | G39: 戦士or武道家Lv | H39: =MAX(冒険者職業レベル!$E$3,冒険者職業レベル!$E$4) -> 0 | I39: 荷重行動 | J39: =IF(I39="",0,VLOOKUP(I39,冒険者技能!$C$3:$K$67,9,FALSE)) -> 1 | L39: =IF(K39="",0,VLOOKUP(K39,一般技能!$B$3:$I$47,8,FALSE)) -> 0
C40: 登攀（筋力) | D40: 8 | E40: 体力持久 | F40: =$J$11 -> ７ | G40: 戦士or武道家Lv | H40: =MAX(冒険者職業レベル!$E$3,冒険者職業レベル!$E$4) -> 0 | I40: 荷重行動 | J40: =IF(I40="",0,VLOOKUP(I40,冒険者技能!$C$3:$K$67,9,FALSE)) -> 1 | L40: =IF(K40="",0,VLOOKUP(K40,一般技能!$B$3:$I$47,8,FALSE)) -> 0 | N40: =装備!$AR$13 -> 0
C42: 水泳 | D42: =F42+H42+J42+L42+N42+P42+R42+T42+V42 -> 6 | E42: 技量集中 | F42: =$L$10 -> ５ | G42: 冒険者Lv | H42: =冒険者職業レベル!$D$19 -> 1 | I42: 体術 | J42: =IF(I42="",0,VLOOKUP(I42,冒険者技能!$C$3:$K$67,9,FALSE)) -> 0 | L42: =IF(K42="",0,VLOOKUP(K42,一般技能!$B$3:$I$47,8,FALSE)) -> 0 | N42: =装備!AK13 -> 0 | P42: =装備!$BA$1 -> 0
C43: 登攀(技量) | D43: 5 | E43: 技量集中 | F43: =$L$10 -> ５ | G43: 野伏or斥候Lv | H43: =MAX(冒険者職業レベル!$E$5,冒険者職業レベル!$E$6) -> 0 | I43: 体術 | J43: =IF(I43="",0,VLOOKUP(I43,冒険者技能!$C$3:$K$67,9,FALSE)) -> 0 | L43: =IF(K43="",0,VLOOKUP(K43,一般技能!$B$3:$I$47,8,FALSE)) -> 0 | N43: =装備!$AR$13 -> 0 | P43: =装備!$BA$1 -> 0
C44: 軽業 | D44: 5 | E44: 技量集中 | F44: =$L$10 -> ５ | G44: 武道家or野伏or斥候Lv | H44: =MAX(冒険者職業レベル!$E$5,冒険者職業レベル!$E$6,冒険者職業レベル!$E$4) -> 0 | I44: 体術 | J44: =IF(I44="",0,VLOOKUP(I44,冒険者技能!$C$3:$K$67,9,FALSE)) -> 0 | L44: =IF(K44="",0,VLOOKUP(K44,一般技能!$B$3:$I$47,8,FALSE)) -> 0 | P44: =装備!$BA$1 -> 0
C45: 跳躍 | D45: 5 | E45: 技量集中 | F45: =$L$10 -> ５ | G45: 武道家or野伏or斥候Lv | H45: =MAX(冒険者職業レベル!$E$5,冒険者職業レベル!$E$6,冒険者職業レベル!$E$4) -> 0 | I45: 体術 | J45: =IF(I45="",0,VLOOKUP(I45,冒険者技能!$C$3:$K$67,9,FALSE)) -> 0 | L45: =IF(K45="",0,VLOOKUP(K45,一般技能!$B$3:$I$47,8,FALSE)) -> 0 | N45: =装備!$AT$13 -> 0 | P45: =装備!$BA$1 -> 0
C47: 応急手当 | D47: =F47+H47+J47+L47+N47+P47+R47+T47+V47 -> 5 | E47: 技量集中 | F47: =$L$10 -> ５ | G47: 野伏or神官or竜司祭Lv | H47: =MAX(冒険者職業レベル!E5,冒険者職業レベル!E8,冒険者職業レベル!E9) -> 0 | I47: 応急手当 | J47: =IF(I47="",0,VLOOKUP(I47,冒険者技能!$C$3:$K$67,9,FALSE)) -> 0 | L47: =IF(K47="",0,VLOOKUP(K47,一般技能!$B$3:$I$47,8,FALSE)) -> 0
C48: 手仕事(10分) | D48: 5 | E48: 技量集中 | F48: =$L$10 -> ５ | G48: 野伏or斥候Lv | H48: =MAX(冒険者職業レベル!$E$5,冒険者職業レベル!$E$6) -> 0 | I48: 手仕事 | J48: =IF(I48="",0,VLOOKUP(I48,冒険者技能!$C$3:$K$67,9,FALSE)) -> 0 | L48: =IF(K48="",0,VLOOKUP(K48,一般技能!$B$3:$I$47,8,FALSE)) -> 0
C49: 手仕事(1時間) | D49: 7 | E49: 技量持久 | F49: =$L$11 -> ７ | G49: 野伏or斥候Lv | H49: =MAX(冒険者職業レベル!$E$5,冒険者職業レベル!$E$6) -> 0 | I49: 手仕事 | J49: =IF(I49="",0,VLOOKUP(I49,冒険者技能!$C$3:$K$67,9,FALSE)) -> 0 | L49: =IF(K49="",0,VLOOKUP(K49,一般技能!$B$3:$I$47,8,FALSE)) -> 0
C50: 手仕事(30秒) | D50: 5 | E50: 技量反射 | F50: =$L$12 -> ５ | G50: 野伏or斥候Lv | H50: =MAX(冒険者職業レベル!$E$5,冒険者職業レベル!$E$6) -> 0 | I50: 手仕事 | J50: =IF(I50="",0,VLOOKUP(I50,冒険者技能!$C$3:$K$67,9,FALSE)) -> 0 | L50: =IF(K50="",0,VLOOKUP(K50,一般技能!$B$3:$I$47,8,FALSE)) -> 0
C52: 隠密 | D52: =F52+H52+J52+L52+N52+P52+R52+T52+V52 -> 5 | E52: 技量集中 | F52: =$L$10 -> ５ | G52: 野伏or斥候Lv | H52: =MAX(冒険者職業レベル!$E$5,冒険者職業レベル!$E$6) -> 0 | I52: 隠密 | J52: =IF(I52="",0,VLOOKUP(I52,冒険者技能!$C$3:$K$67,9,FALSE)) -> 0 | L52: =IF(K52="",0,VLOOKUP(K52,一般技能!$B$3:$I$47,8,FALSE)) -> 0 | N52: =装備!$AS$13 -> 0 | T52: =MAX(装備!$AJ$17,装備!$AJ$18,装備!$AJ$19) -> 0
C53: 隠密行軍 | D53: 7 | E53: 技量持久 | F53: =$L$11 -> ７ | G53: 野伏or斥候Lv | H53: =MAX(冒険者職業レベル!$E$5,冒険者職業レベル!$E$6) -> 0 | I53: 隠密 | J53: =IF(I53="",0,VLOOKUP(I53,冒険者技能!$C$3:$K$67,9,FALSE)) -> 0 | L53: =IF(K53="",0,VLOOKUP(K53,一般技能!$B$3:$I$47,8,FALSE)) -> 0 | N53: =装備!$AS$13 -> 0 | T53: =MAX(装備!$AJ$17,装備!$AJ$18,装備!$AJ$19) -> 0
C54: 咄嗟隠密 | D54: 5 | E54: 技量反射 | F54: =$L$12 -> ５ | G54: 野伏or斥候Lv | H54: =MAX(冒険者職業レベル!$E$5,冒険者職業レベル!$E$6) -> 0 | I54: 隠密 | J54: =IF(I54="",0,VLOOKUP(I54,冒険者技能!$C$3:$K$67,9,FALSE)) -> 0 | L54: =IF(K54="",0,VLOOKUP(K54,一般技能!$B$3:$I$47,8,FALSE)) -> 0 | N54: =装備!$AS$13 -> 0 | T54: =MAX(装備!$AJ$17,装備!$AJ$18,装備!$AJ$19) -> 0
C56: 怪物知識 | D56: =F56+H56+J56+L56+N56+P56+R56+T56+V56 -> 5 | E56: 知力集中 | F56: =$M$10 -> ５ | G56: 呪文遣い系Lv | H56: =MAX(冒険者職業レベル!$E$7,冒険者職業レベル!$E$8,冒険者職業レベル!$E$9,冒険者職業レベル!$E$10) -> 0 | I56: 怪物知識 | J56: =IF(I56="",0,VLOOKUP(I56,冒険者技能!$C$3:$K$67,9,FALSE))*2 -> 0 | L56: =IF(K56="",0,VLOOKUP(K56,一般技能!$B$3:$I$47,8,FALSE)) -> 0
C57: 博識 | D57: 5 | E57: 知力集中 | F57: =$M$10 -> ５ | G57: 魔術師Lv | H57: =冒険者職業レベル!$E$7 -> 0 | J57: =IF(I57="",0,VLOOKUP(I57,冒険者技能!$C$3:$K$67,9,FALSE)) -> 0 | K57: 博識 | L57: =IF(K57="",0,VLOOKUP(K57,一般技能!$B$3:$I$47,8,FALSE)) -> 0
C58: 魔法知識 | D58: 5 | E58: 知力集中 | F58: =$M$10 -> ５ | G58: 魔術師Lv | H58: =冒険者職業レベル!$E$7 -> 0 | J58: =IF(I58="",0,VLOOKUP(I58,冒険者技能!$C$3:$K$67,9,FALSE)) -> 0 | L58: =IF(K58="",0,VLOOKUP(K58,一般技能!$B$3:$I$47,8,FALSE)) -> 0
C59: 文献調査 | D59: 7 | E59: 知力持久 | F59: =$M$11 -> ７ | G59: 魔術師Lv | H59: =冒険者職業レベル!$E$7 -> 0 | J59: =IF(I59="",0,VLOOKUP(I59,冒険者技能!$C$3:$K$67,9,FALSE)) -> 0 | K59: 文献調査 | L59: =IF(K59="",0,VLOOKUP(K59,一般技能!$B$3:$I$47,8,FALSE)) -> 0
C61: 観察(10分) | D61: =F61+H61+J61+L61+N61+P61+R61+T61+V61 -> 5 | E61: 知力集中 | F61: =$M$10 -> ５ | G61: 野伏or斥候Lv | H61: =MAX(冒険者職業レベル!$E$5,冒険者職業レベル!$E$6) -> 0 | I61: 観察 | J61: =IF(I61="",0,VLOOKUP(I61,冒険者技能!$C$3:$K$67,9,FALSE)) -> 0 | L61: =IF(K61="",0,VLOOKUP(K61,一般技能!$B$3:$I$47,8,FALSE)) -> 0
C62: 詳細観察(1時間) | D62: 7 | E62: 知力持久 | F62: =$M$11 -> ７ | G62: 野伏or斥候Lv | H62: =MAX(冒険者職業レベル!$E$5,冒険者職業レベル!$E$6) -> 0 | I62: 観察 | J62: =IF(I62="",0,VLOOKUP(I62,冒険者技能!$C$3:$K$67,9,FALSE)) -> 0 | L62: =IF(K62="",0,VLOOKUP(K62,一般技能!$B$3:$I$47,8,FALSE)) -> 0
C63: 咄嗟観察(30秒) | D63: 5 | E63: 知力反射 | F63: =$M$12 -> ５ | G63: 野伏or斥候Lv | H63: =MAX(冒険者職業レベル!$E$5,冒険者職業レベル!$E$6) -> 0 | I63: 観察 | J63: =IF(I63="",0,VLOOKUP(I63,冒険者技能!$C$3:$K$67,9,FALSE)) -> 0 | L63: =IF(K63="",0,VLOOKUP(K63,一般技能!$B$3:$I$47,8,FALSE)) -> 0
C64: 第六感 | D64: 5 | E64: 知力反射 | F64: =$M$12 -> ５ | G64: 野伏or斥候Lv | H64: =MAX(冒険者職業レベル!$E$5,冒険者職業レベル!$E$6) -> 0 | I64: 第六感 | J64: =IF(I64="",0,VLOOKUP(I64,冒険者技能!$C$3:$K$67,9,FALSE)) -> 0 | L64: =IF(K64="",0,VLOOKUP(K64,一般技能!$B$3:$I$47,8,FALSE)) -> 0 | P64: =装備!$AZ$1 -> 0
C66: 長距離移動 | D66: =F66+H66+J66+L66+N66+P66+R66+T66+V66 -> 9 | E66: 体力持久 | F66: =$J$11 -> ７ | G66: 冒険者Lv | H66: =冒険者職業レベル!$D$19 -> 1 | J66: =IF(I66="",0,VLOOKUP(I66,冒険者技能!$C$3:$K$67,9,FALSE)) -> 0 | K66: 長距離移動 | L66: =IF(K66="",0,VLOOKUP(K66,一般技能!$B$3:$I$47,8,FALSE)) -> 1
C67: 短距離走 | D67: 6 | E67: 技量反射 | F67: =$L$12 -> ５ | G67: 冒険者Lv | H67: =冒険者職業レベル!$D$19 -> 1 | I67: 体術 | J67: =IF(I67="",0,VLOOKUP(I67,冒険者技能!$C$3:$K$67,9,FALSE)) -> 0 | L67: =IF(K67="",0,VLOOKUP(K67,一般技能!$B$3:$I$47,8,FALSE)) -> 0 | P67: =装備!$BA$1 -> 0
C68: 野草採取(1時間) | D68: 7 | E68: 知力持久 | F68: =$M$11 -> ７ | G68: 野伏Lv | H68: =冒険者職業レベル!$E$5 -> 0 | J68: =IF(I68="",0,VLOOKUP(I68,冒険者技能!$C$3:$K$67,9,FALSE)) -> 0 | K68: 生存術 | L68: =IF(K68="",0,VLOOKUP(K68,一般技能!$B$3:$I$47,8,FALSE)) -> 0
C69: 野獣発見(1時間) | D69: 7 | E69: 知力持久 | F69: =$M$11 -> ７ | G69: 野伏Lv | H69: =冒険者職業レベル!$E$5 -> 0 | J69: =IF(I69="",0,VLOOKUP(I69,冒険者技能!$C$3:$K$67,9,FALSE)) -> 0 | K69: 生存術 | L69: =IF(K69="",0,VLOOKUP(K69,一般技能!$B$3:$I$47,8,FALSE)) -> 0
C71: 挑発 | D71: =IF(J71>0,F71+H71+J71+L71+N71+P71+R71+T71,"-") -> - | E71: 魂魄集中 | F71: =$K$10 -> ４ | G71: 戦士or武道家Lv | H71: =MAX(冒険者職業レベル!$E$3,冒険者職業レベル!$E$4) -> 0 | I71: 挑発 | J71: =IF(I71="",0,VLOOKUP(I71,冒険者技能!$C$3:$K$67,9,FALSE)) -> 0 | L71: =IF(K71="",0,VLOOKUP(K71,一般技能!$B$3:$I$47,8,FALSE)) -> 0
C72: 移動妨害 | D72: =F72+H72+J72+L72+N72+P72+R72+T72+V72 -> 5 | E72: 体力反射 | F72: =$J$12 -> ５ | G72: 戦士Lv | H72: =冒険者職業レベル!$E$3 -> 0 | I72: 鉄壁 | J72: =IF(I72="",0,VLOOKUP(I72,冒険者技能!$C$3:$K$67,9,FALSE)) -> 0 | L72: =IF(K72="",0,VLOOKUP(K72,一般技能!$B$3:$I$47,8,FALSE)) -> 0
C73: 移動妨害抵抗 | D73: =F73+H73+J73+L73+N73+P73+R73+T73+V73 -> 5 | E73: 体力集中or技量集中 | F73: =MAX(INT($J$10),INT($L$10)) -> 5 | G73: 戦士or武道家or斥候Lv | H73: =MAX(冒険者職業レベル!$E$3,冒険者職業レベル!$E$4,冒険者職業レベル!$E$5) -> 0 | J73: =IF(I73="",0,VLOOKUP(I73,冒険者技能!$C$3:$K$67,9,FALSE)) -> 0 | L73: =IF(K73="",0,VLOOKUP(K73,一般技能!$B$3:$I$47,8,FALSE)) -> 0
C74: 機先 | D74: =F74+H74+J74+L74+N74+P74+R74+T74 -> 0 | I74: 機先 | J74: =IF(I74="",0,VLOOKUP(I74,冒険者技能!$C$3:$K$67,9,FALSE)) -> 0 | L74: =IF(K74="",0,VLOOKUP(K74,一般技能!$B$3:$I$47,8,FALSE)) -> 0
C76: 交渉：説得 | D76: =F76+H76+J76+L76+N76+P76+R76+T76+V76 -> 5 | E76: 知力集中 | F76: =$M$10 -> ５ | J76: =IF(I76="",0,VLOOKUP(I76,冒険者技能!$C$3:$K$67,9,FALSE)) -> 0 | K76: 交渉：説得 | L76: =IF(K76="",0,VLOOKUP(K76,一般技能!$B$3:$I$47,8,FALSE)) -> 0
C77: 交渉：誘惑 | D77: 4 | E77: 魂魄集中 | F77: =$K$10 -> ４ | J77: =IF(I77="",0,VLOOKUP(I77,冒険者技能!$C$3:$K$67,9,FALSE)) -> 0 | K77: 交渉：誘惑 | L77: =IF(K77="",0,VLOOKUP(K77,一般技能!$B$3:$I$47,8,FALSE)) -> 0 | N77: =装備!AU13 -> 0
C78: 交渉：脅迫 | D78: 7 | E78: 体力持久 | F78: =$J$11 -> ７ | J78: =IF(I78="",0,VLOOKUP(I78,冒険者技能!$C$3:$K$67,9,FALSE)) -> 0 | K78: 交渉：脅迫 | L78: =IF(K78="",0,VLOOKUP(K78,一般技能!$B$3:$I$47,8,FALSE)) -> 0
C79: 交渉：言いくるめ | D79: 5 | E79: 技量反射 | F79: =$L$12 -> ５ | J79: =IF(I79="",0,VLOOKUP(I79,冒険者技能!$C$3:$K$67,9,FALSE)) -> 0 | K79: 交渉：言いくるめ | L79: =IF(K79="",0,VLOOKUP(K79,一般技能!$B$3:$I$47,8,FALSE)) -> 0
C81: 直感 | D81: =F81+H81+J81+L81+N81+P81+R81+T81+V81 -> 4 | E81: 魂魄反射 | F81: =$K$12 -> ４ | K81: 先入観なし | L81: =IF(K81="",0,VLOOKUP(K81,一般技能!$B$3:$I$47,8,FALSE)) -> 0
C82: 祈祷 | D82: =F82+H82+J82+L82+N82+P82+R82+T82+V82 -> 6 | E82: 魂魄持久 | F82: =$K$11 -> ６ | G82: 神官or竜司祭Lv | H82: =MAX(冒険者職業レベル!E8,冒険者職業レベル!E9) -> 0 | K82: 祈祷 | L82: =IF(K82="",0,VLOOKUP(K82,一般技能!$B$3:$I$47,8,FALSE)) -> 0
C83: 瞑想 | D83: =F83+H83+J83+L83+N83+P83+R83+T83+V83 -> 7 | E83: 知力持久 | F83: =$M$11 -> ７ | G83: 魔術師or精霊使いLv | H83: =MAX(冒険者職業レベル!E7,冒険者職業レベル!E10) -> 0 | K83: 瞑想 | L83: =IF(K83="",0,VLOOKUP(K83,一般技能!$B$3:$I$47,8,FALSE)) -> 0

Sheet 状態
B2: 状態基本値
C3: 生命力基本値 | D3: =作成シート!C31 -> 状態／2D6(1回目) | E3: =VLOOKUP(D3,プロフィール!$B$16:$E$18,VLOOKUP(プロフィール!$C$19,固定値!$N$1:$O$3,2,FALSE),FALSE) -> 5
C4: 移動力基本値 | D4: =作成シート!C32 -> 状態／2D6(2回目) | E4: =VLOOKUP(D4,プロフィール!$B$16:$E$18,VLOOKUP(プロフィール!$C$19,固定値!$N$1:$O$3,2,FALSE),FALSE) -> 7
C5: 呪文使用回数基本値 | D5: =作成シート!C33 -> 状態／2D6(3回目) | E5: =VLOOKUP(D5,プロフィール!$B$16:$E$18,VLOOKUP(プロフィール!$C$19,固定値!$N$1:$O$3,2,FALSE),FALSE) -> 9
B7: 状態補正値
C8: 移動力種族倍率 | D8: =VLOOKUP(C8,固定値!$D$1:$I$9,VLOOKUP(プロフィール!$C$3,固定値!$K$1:$L$6,2,FALSE),FALSE) -> 3
B10: 状態 | D10: 基本値 | E10: 技能修正 | F10: 最終値
C11: 生命力 | D11: =能力値!G4+能力値!G5+能力値!G11+E3 -> 14 | E11: =VLOOKUP(冒険者技能!I6,固定値!$BA$2:$BB$7,2,FALSE) -> 0 | F11: =D11+E11 -> 14
C12: 移動力 | D12: =D8*E4 -> 21 | E12: =VLOOKUP(一般技能!G37,固定値!$EE$2:$EF$5,2,FALSE) -> 0 | F12: =D12+E12 -> 21
C13: 呪文使用回数 | D13: =VLOOKUP($E$5,固定値!$Q$2:$R$12,2,FALSE) -> 1 | E13: =VLOOKUP(冒険者技能!I67,固定値!$BE$2:$BF$7,2,FALSE) -> 0 | F13: =D13+E13 -> 1
C14: 生命力x2 | F14: =F11*2 -> 28
C16: 呪文抵抗基準値 | D16: =能力値!K12+冒険者職業レベル!D19+冒険者技能!K10+装備!U21 -> 5
C17: 真言呪文行使基準値 | D17: =E17+F17 -> 5 | E17: =能力値!M10 -> ５ | F17: =冒険者職業レベル!E7 -> 0
C18: 奇跡行使基準値 | D18: =E18+F18 -> 4 | E18: =能力値!K10 -> ４ | F18: =冒険者職業レベル!E8 -> 0
C19: 祖霊術行使基準値 | D19: =E19+F19 -> 4 | E19: =能力値!K10 -> ４ | F19: =冒険者職業レベル!E9 -> 0
C20: 精霊術行使基準値 | D20: =E20+F20 -> 4 | E20: =能力値!K10 -> ４ | F20: =冒険者職業レベル!E10 -> 0
C21: 最大呪文行使基準値 | D21: =MAX(D17:D20) -> 5
C23: 戦士命中基準値 | D23: =E23+F23 -> 5 | E23: =能力値!$L$10 -> ５ | F23: =冒険者職業レベル!E3 -> 0
C24: 武道家命中基準値 | D24: =E24+F24 -> 5 | E24: =能力値!$L$10 -> ５ | F24: =冒険者職業レベル!E4 -> 0
C25: 野伏命中基準値 | D25: =E25+F25 -> 5 | E25: =能力値!$L$10 -> ５ | F25: =冒険者職業レベル!E5 -> 0
C26: 斥候命中基準値 | D26: =E26+F26 -> 5 | E26: =能力値!$L$10 -> ５ | F26: =冒険者職業レベル!E6 -> 0
C28: 近接命中基準値 | D28: =E28+F28 -> 5 | E28: =MAX(D23,D24,D26) -> 5 | F28: =MAX(冒険者技能!K37:K42) -> 0
C29: 投擲命中基準値 | D29: =E29+F29 -> 6 | E29: =MAX(D25,D26) -> 5 | F29: =冒険者技能!K44 -> 1
C30: 弩級命中基準値 | D30: =E30+F30 -> 5 | E30: =D26 -> 5 | F30: =冒険者技能!K45 -> 0
G31: 腕輪
C32: 回避基準値 | D32: =E32+F32+G32 -> 5 | E32: =能力値!L12 -> ５ | F32: =冒険者技能!K29 -> 0 | G32: =冒険者技能!Q29 -> 0
C34: 戦士回避基準値 | D34: =E34+F34 -> 5 | E34: =D32 -> 5 | F34: =冒険者職業レベル!E3 -> 0
C35: 武道家回避基準値 | D35: 5 | E35: =D32 -> 5 | F35: =冒険者職業レベル!E4 -> 0
C36: 斥候回避基準値 | D36: 5 | E36: =D32 -> 5 | F36: =冒険者職業レベル!E6 -> 0
C38: 最大回避基準値 | D38: =MAX(D34:D36) -> 5
C40: 戦士盾受け基準値 | D40: =E40+F40+G40 -> 5 | E40: =能力値!$L$12 -> ５ | F40: =冒険者職業レベル!E3 -> 0 | G40: =冒険者技能!K30 -> 0
C41: 斥候盾受け基準値 | D41: =E41+F41+G41 -> 5 | E41: =能力値!$L$12 -> ５ | F41: =冒険者職業レベル!E6 -> 0 | G41: =冒険者技能!K30 -> 0
C43: 最大盾受け基準値 | D43: =MAX(D41,D40) -> 5
D45: 効力値 | E45: 倍率 | F45: １時間 | G45: 10分 | H45: 10分倍率
C46: 街道移動 | D46: ～９ | E46: 160 | F46: =ROUNDUP(E46*戦闘現在値!$L$27,0) -> 3360 | G46: =ROUNDUP(H46*戦闘現在値!$L$27,0) -> 630 | H46: =ROUNDUP(E46/60,0)*10 -> 30
D47: １０～１４ | E47: 200 | F47: =ROUNDUP(E47*戦闘現在値!$L$27,0) -> 4200 | G47: =ROUNDUP(H47*戦闘現在値!$L$27,0) -> 840 | H47: 40
D48: １５～１９ | E48: 240 | F48: =ROUNDUP(E48*戦闘現在値!$L$27,0) -> 5040 | G48: =ROUNDUP(H48*戦闘現在値!$L$27,0) -> 840 | H48: 40
D49: ２０～２４ | E49: 280 | F49: =ROUNDUP(E49*戦闘現在値!$L$27,0) -> 5880 | G49: =ROUNDUP(H49*戦闘現在値!$L$27,0) -> 1050 | H49: 50
D50: ２５～３０ | E50: 320 | F50: =ROUNDUP(E50*戦闘現在値!$L$27,0) -> 6720 | G50: =ROUNDUP(H50*戦闘現在値!$L$27,0) -> 1260 | H50: 60
D51: ３０～３９ | E51: 350 | F51: =ROUNDUP(E51*戦闘現在値!$L$27,0) -> 7350 | G51: =ROUNDUP(H51*戦闘現在値!$L$27,0) -> 1260 | H51: 60
D52: ４０～ | E52: 400 | F52: =ROUNDUP(E52*戦闘現在値!$L$27,0) -> 8400 | G52: =ROUNDUP(H52*戦闘現在値!$L$27,0) -> 1470 | H52: 70
D53: =D46&"："&F46&"／"&G46&" " -> ～９：3360／630
D54: １０～１４：4200／840
D55: １５～１９：5040／840
D56: ２０～２４：5880／1050
D57: ２５～３０：6720／1260
D58: ３０～３９：7350／1260
D59: ４０～：8400／1470
D60: =C46&"距離（１時間／10分） 効力値："&D53&D54&D55&D56&D57 -> 街道移動距離（１時間／10分） 効力値：～９：3360／630 １０～１４：4200／840 １５～１９：5040／840 ２０～２４：5880／1050 ２５～３０：6720／1260
D61: =" "&D57&D58&D59 -> ２５～３０：6720／1260 ３０～３９：7350／1260 ４０～：8400／1470
D63: 効力値 | E63: 倍率 | F63: １時間 | G63: 10分 | H63: 10分倍率
B64: 3 | C64: 荒野移動 | D64: ～９ | E64: =ROUNDUP(E46/($B$64*10),0)*10 -> 60 | F64: =ROUNDUP(E64*戦闘現在値!$L$27,0) -> 1260 | G64: =ROUNDUP(H64*戦闘現在値!$L$27,0) -> 210 | H64: =ROUNDUP(E46/($B$64*6*10),0)*10 -> 10
D65: １０～１４ | E65: 70 | F65: =ROUNDUP(E65*戦闘現在値!$L$27,0) -> 1470 | G65: =ROUNDUP(H65*戦闘現在値!$L$27,0) -> 420 | H65: =ROUNDUP(E47/($B$64*6*10),0)*10 -> 20
D66: １５～１９ | E66: 80 | F66: =ROUNDUP(E66*戦闘現在値!$L$27,0) -> 1680 | G66: =ROUNDUP(H66*戦闘現在値!$L$27,0) -> 420 | H66: 20
D67: ２０～２４ | E67: 100 | F67: =ROUNDUP(E67*戦闘現在値!$L$27,0) -> 2100 | G67: =ROUNDUP(H67*戦闘現在値!$L$27,0) -> 420 | H67: 20
D68: ２５～３０ | E68: 110 | F68: =ROUNDUP(E68*戦闘現在値!$L$27,0) -> 2310 | G68: =ROUNDUP(H68*戦闘現在値!$L$27,0) -> 420 | H68: 20
D69: ３０～３９ | E69: 120 | F69: =ROUNDUP(E69*戦闘現在値!$L$27,0) -> 2520 | G69: =ROUNDUP(H69*戦闘現在値!$L$27,0) -> 420 | H69: 20
D70: ４０～ | E70: 140 | F70: =ROUNDUP(E70*戦闘現在値!$L$27,0) -> 2940 | G70: =ROUNDUP(H70*戦闘現在値!$L$27,0) -> 630 | H70: 30
D71: =D64&"："&F64&"／"&G64&" " -> ～９：1260／210
D72: １０～１４：1470／420
D73: １５～１９：1680／420
D74: ２０～２４：2100／420
D75: ２５～３０：2310／420
D76: ３０～３９：2520／420
D77: ４０～：2940／630
D78: =C64&"距離（１時間／10分） 効力値："&D71&D72&D73&D74&D75 -> 荒野移動距離（１時間／10分） 効力値：～９：1260／210 １０～１４：1470／420 １５～１９：1680／420 ２０～２４：2100／420 ２５～３０：2310／420
D79: =" "&D75&D76&D77 -> ２５～３０：2310／420 ３０～３９：2520／420 ４０～：2940／630
D81: 効力値 | E81: 倍率 | F81: １時間 | G81: 10分 | H81: 10分倍率
B82: 3 | C82: 警戒移動 | D82: ～９ | E82: =ROUNDUP(E46/(B$64*$B$82*10),0)*10 -> 20 | F82: =ROUNDUP(E82*戦闘現在値!$L$27,0) -> 420 | G82: =ROUNDUP(H82*戦闘現在値!$L$27,0) -> 63 | H82: =ROUNDUP(E46/($B$82*$B$64*6),0) -> 3
D83: １０～１４ | E83: =ROUNDUP(E47/(B$64*$B$82*10),0)*10 -> 30 | F83: =ROUNDUP(E83*戦闘現在値!$L$27,0) -> 630 | G83: =ROUNDUP(H83*戦闘現在値!$L$27,0) -> 84 | H83: =ROUNDUP(E47/($B$82*$B$64*6),0) -> 4
D84: １５～１９ | E84: 30 | F84: =ROUNDUP(E84*戦闘現在値!$L$27,0) -> 630 | G84: =ROUNDUP(H84*戦闘現在値!$L$27,0) -> 105 | H84: 5
D85: ２０～２４ | E85: 40 | F85: =ROUNDUP(E85*戦闘現在値!$L$27,0) -> 840 | G85: =ROUNDUP(H85*戦闘現在値!$L$27,0) -> 126 | H85: 6
D86: ２５～３０ | E86: 40 | F86: =ROUNDUP(E86*戦闘現在値!$L$27,0) -> 840 | G86: =ROUNDUP(H86*戦闘現在値!$L$27,0) -> 126 | H86: 6
D87: ３０～３９ | E87: 40 | F87: =ROUNDUP(E87*戦闘現在値!$L$27,0) -> 840 | G87: =ROUNDUP(H87*戦闘現在値!$L$27,0) -> 147 | H87: 7
D88: ４０～ | E88: 50 | F88: =ROUNDUP(E88*戦闘現在値!$L$27,0) -> 1050 | G88: =ROUNDUP(H88*戦闘現在値!$L$27,0) -> 168 | H88: 8
D89: =D82&"："&F82&"／"&G82&" " -> ～９：420／63
D90: １０～１４：630／84
D91: １５～１９：630／105
D92: ２０～２４：840／126
D93: ２５～３０：840／126
D94: ３０～３９：840／147
D95: ４０～：1050／168
D96: =C82&"距離（１時間／10分） 効力値："&D89&D90&D91&D92&D93 -> 警戒移動距離（１時間／10分） 効力値：～９：420／63 １０～１４：630／84 １５～１９：630／105 ２０～２４：840／126 ２５～３０：840／126
D97: =" "&D93&D94&D95 -> ２５～３０：840／126 ３０～３９：840／147 ４０～：1050／168
C98: 騎乗 | D98: =作成シート!C140 -> なし
C99: 騎乗移動力 | D99: =VLOOKUP(D98,固定値!$EG$2:$EH$6,2,FALSE) -> 0
D100: 効力値 | E100: 倍率 | F100: １時間 | G100: 10分 | H100: 10分倍率
C101: 騎乗街道 | D101: ～９ | E101: 160 | F101: =ROUNDUP(E101*$D$99,0) -> 0 | G101: =ROUNDUP(H101*$D$99,0) -> 0 | H101: =ROUNDUP(E101/60,0)*10 -> 30
D102: １０～１４ | E102: 200 | F102: =ROUNDUP(E102*$D$99,0) -> 0 | G102: =ROUNDUP(H102*$D$99,0) -> 0 | H102: 40
D103: １５～１９ | E103: 240 | F103: 0 | G103: 0 | H103: 40
D104: ２０～２４ | E104: 280 | F104: 0 | G104: 0 | H104: 50
D105: ２５～３０ | E105: 320 | F105: 0 | G105: 0 | H105: 60
D106: ３０～３９ | E106: 350 | F106: 0 | G106: 0 | H106: 60
D107: ４０～ | E107: 400 | F107: 0 | G107: 0 | H107: 70
D108: =D101&"："&F101&"／"&G101&" " -> ～９：0／0
D109: １０～１４：0／0
D110: １５～１９：0／0
D111: ２０～２４：0／0
D112: ２５～３０：0／0
D113: ３０～３９：0／0
D114: ４０～：0／0
D115: =IF(D99>0,C101&"距離（１時間／10分） 効力値："&D108&D109&D110&D111&D112,"") -> 
D116: =IF(D99>0," "&D112&D113&D114,"") -> 
D118: 効力値 | E118: 倍率 | F118: １時間 | G118: 10分 | H118: 10分倍率
C119: 騎乗荒野 | D119: ～９ | E119: =ROUNDUP(E101/($B$64*10),0)*10 -> 60 | F119: =ROUNDUP(E119*$D$99,0) -> 0 | G119: =ROUNDUP(H119*$D$99,0) -> 0 | H119: =ROUNDUP(E101/($B$64*6*10),0)*10 -> 10
D120: １０～１４ | E120: 70 | F120: =ROUNDUP(E120*$D$99,0) -> 0 | G120: =ROUNDUP(H120*$D$99,0) -> 0 | H120: =ROUNDUP(E102/($B$64*6*10),0)*10 -> 20
D121: １５～１９ | E121: 80 | F121: 0 | G121: 0 | H121: 20
D122: ２０～２４ | E122: 100 | F122: 0 | G122: 0 | H122: 20
D123: ２５～３０ | E123: 110 | F123: 0 | G123: 0 | H123: 20
D124: ３０～３９ | E124: 120 | F124: 0 | G124: 0 | H124: 20
D125: ４０～ | E125: 140 | F125: 0 | G125: 0 | H125: 30
D126: =D119&"："&F119&"／"&G119&" " -> ～９：0／0
D127: １０～１４：0／0
D128: １５～１９：0／0
D129: ２０～２４：0／0
D130: ２５～３０：0／0
D131: ３０～３９：0／0
D132: ４０～：0／0
D133: =IF(D99>0,C119&"距離（１時間／10分） 効力値："&D126&D127&D128&D129&D130,"") -> 
D134: =IF(D99>0," "&D130&D131&D132,"") -> 

Sheet 冒険者職業レベル
B2: 冒険者職業レベル | D2: 出自ボーナス | E2: 現在レベル | F2: 消費経験値
C3: 戦士 | D3: =IF(作成シート!$C$34=L3,1,0) -> 0 | E3: =MAX(D3,K3) -> 0 | F3: =VLOOKUP(E3,固定値!$BI$2:$BK$12,IF(D3=1,3,2),FALSE) -> 0 | G3: 戦士 | H3: =IF(E3=0,"",E3) ->  | I3: =IF(E3=0,"",J3) ->  | J3: ü | K3: =IF(COUNTIF($F$45:$F$49,C3)>0,VLOOKUP(C3,$F$45:$G$49,2,FALSE),0) -> 0 | L3: 戦士(出自ボーナス) | O3: =E3 -> 0 | P3: =G3 -> 戦士
C4: 武道家 | D4: =IF(作成シート!$C$34=L4,1,0) -> 0 | E4: =MAX(D4,K4) -> 0 | F4: =VLOOKUP(E4,固定値!$BI$2:$BK$12,IF(D4=1,3,2),FALSE) -> 0 | G4: 武道家 | H4: =IF(E4=0,"",E4) ->  | I4: =IF(E4=0,"",J4) ->  | J4: ü | K4: =IF(COUNTIF($F$45:$F$49,C4)>0,VLOOKUP(C4,$F$45:$G$49,2,FALSE),0) -> 0 | L4: 武道家(出自ボーナス) | O4: =E4 -> 0 | P4: =G4 -> 武道家
C5: 野伏 | D5: =IF(作成シート!$C$34=L5,1,0) -> 0 | E5: 0 | F5: =VLOOKUP(E5,固定値!$BI$2:$BK$12,IF(D5=1,3,2),FALSE) -> 0 | G5: 野伏 | J5: ü | K5: 0 | L5: 野伏(出自ボーナス) | O5: =E6 -> 0 | P5: =G6 -> 斥候
C6: 斥候 | D6: =IF(作成シート!$C$34=L6,1,0) -> 0 | E6: 0 | F6: =VLOOKUP(E6,固定値!$BI$2:$BK$12,IF(D6=1,3,2),FALSE) -> 0 | G6: 斥候 | J6: ü | K6: 0 | L6: 斥候(出自ボーナス)
C7: 魔術師 | D7: =IF(作成シート!$C$34=L7,1,0) -> 0 | E7: 0 | F7: =VLOOKUP(E7,固定値!$BI$2:$BK$12,IF(D7=1,3,2),FALSE) -> 0 | G7: 魔術師 | J7: ü | K7: 0 | L7: 魔術師(出自ボーナス)
C8: 神官 | D8: =IF(作成シート!$C$34=L8,1,0) -> 0 | E8: 0 | F8: =VLOOKUP(E8,固定値!$BI$2:$BK$12,IF(D8=1,3,2),FALSE) -> 0 | G8: 神官 | J8: ü | K8: 0 | L8: 神官(出自ボーナス)
C9: 竜司祭 | D9: =IF(作成シート!$C$34=L9,1,0) -> 0 | E9: 0 | F9: =VLOOKUP(E9,固定値!$BI$2:$BK$12,IF(D9=1,3,2),FALSE) -> 0 | G9: 竜司祭 | J9: ü | K9: 0 | L9: 竜司祭(出自ボーナス)
C10: 精霊使い | D10: =IF(作成シート!$C$34=L10,1,0) -> 0 | E10: =MAX(D10,K10) -> 0 | F10: =VLOOKUP(E10,固定値!$BI$2:$BK$12,IF(D10=1,3,2),FALSE) -> 0 | G10: 精霊使い | J10: ü | K10: 0 | L10: 精霊使い(出自ボーナス)
B12: 冒険者情報
C13: 累積経験値 | D13: =SUM(冒険結果!C2:C110) -> 3000
C14: 消費経験値 | D14: =SUM(F3:F10)+追加成長点!C3 -> 0
C15: 現在経験値 | D15: =D13-D14 -> 3000
C16: 累積成長点 | D16: =追加成長点!B3+VLOOKUP(D19,固定値!AQ2:AR11,2,FALSE)+SUM(冒険結果!D2:D110) -> 10
C17: 消費成長点 | D17: =SUM(冒険者技能!J3:J67)+SUM(一般技能!H3:H47) -> 0
C18: 現在成長点 | D18: =D16-D17 -> 10
C19: 冒険者レベル | D19: =VLOOKUP(D13,固定値!AP2:AR11,2,TRUE) -> 1 | E19: =VLOOKUP(プロフィール!C9,固定値!$T$2:$V$10,2,FALSE) -> 1
C20: 習得可能習熟段階 | D20: =VLOOKUP(E20,固定値!$AA$2:$AB$7,2,FALSE) -> 初歩 | E20: =VLOOKUP(D19,固定値!$X$1:$Y$11,2,FALSE) -> 1
C21: 習得中最大習熟段階 | D21: =VLOOKUP(E21,固定値!$AA$2:$AB$7,2,FALSE) -> 初歩 | E21: =MAX(MAX(冒険者技能!K3:K67),MAX(一般技能!I3:I47)) -> 1
C22: 消耗ゲージ長1 | D22: =5+IF(冒険者技能!K15>0,1,0) -> 5 | E22: =D22 -> 5
C23: 消耗ゲージ長2 | D23: =4+IF(冒険者技能!K15>1,1,0) -> 4 | E23: =E22+D23 -> 9
C24: 消耗ゲージ長3 | D24: =3+IF(冒険者技能!K15>2,1,0) -> 3 | E24: =E23+D24 -> 12
C25: 消耗ゲージ長4 | D25: =2+IF(冒険者技能!K15>3,1,0) -> 2 | E25: =E24+D25 -> 14
C26: 消耗ゲージ長5 | D26: =1+IF(冒険者技能!K15>4,1,0) -> 1 | E26: =E25+D26 -> 15
C27: 真言呪文習得可能数 | D27: =G27&"／"&E27+F27 -> 0／0 | E27: =E7 -> 0 | F27: =冒険者技能!K63 -> 0 | G27: =COUNTIF(習得呪文!C3:C12,"真言呪文") -> 0
C28: 奇跡習得可能数 | D28: =G28&"／"&E28+F28 -> 0／0 | E28: =E8 -> 0 | F28: =冒険者技能!K64 -> 0 | G28: =COUNTIF(習得呪文!C3:C12,"奇跡") -> 0
C29: 祖霊術習得可能数 | D29: =G29&"／"&E29+F29 -> 0／0 | E29: =E9 -> 0 | F29: =冒険者技能!K65 -> 0 | G29: =COUNTIF(習得呪文!C3:C12,"祖竜術") -> 0
C30: 精霊術習得可能数 | D30: =G30&"／"&E30+F30 -> 0／0 | E30: =E10 -> 0 | F30: =冒険者技能!K66 -> 0 | G30: =COUNTIF(習得呪文!C3:C12,"精霊術") -> 0
C31: 冒険達成回数 | D31: =COUNTIF(冒険結果!E3:E110,ラベル!$P$3)+プロフィール!C26 -> 0 | E31: =VLOOKUP(プロフィール!C9,固定値!$T$2:$V$10,3,FALSE) -> 0
C32: 冒険回数 | D32: =COUNTA(冒険結果!E3:E110)+プロフィール!C25 -> 0
B33: クラス情報
C34: =IF(E3>0,"【"&C3&"："&E3&"】","") -> 
C35: =IF(E4>0,"【"&C4&"："&E4&"】","") -> 
B44: 作成シートからのコピー | F44: 冒険者職業 | G44: レベル
C45: =作成シート!B38 -> 所持冒険者職業レベル(1) | D45: =作成シート!C38 -> なし | E45: =IF(D45="なし","",FIND("：",D45)) ->  | F45: =IF(E45="","",LEFT(D45,E45-1)) ->  | G45: =IF(F45="",0,INT(RIGHT(D45,LEN(D45)-E45))) -> 0
C46: =作成シート!B39 -> 所持冒険者職業レベル(2) | D46: =作成シート!C39 -> なし | E46: =IF(D46="なし","",FIND("：",D46)) ->  | F46: =IF(E46="","",LEFT(D46,E46-1)) ->  | G46: =IF(F46="",0,INT(RIGHT(D46,LEN(D46)-E46))) -> 0
C47: =作成シート!B40 -> 所持冒険者職業レベル(3) | D47: =作成シート!C40 -> なし | E47: =IF(D47="なし","",FIND("：",D47)) ->  | F47: =IF(E47="","",LEFT(D47,E47-1)) ->  | G47: 0
C48: =作成シート!B41 -> 所持冒険者職業レベル(4) | D48: =作成シート!C41 -> なし | G48: 0
C49: =作成シート!B42 -> 所持冒険者職業レベル(5) | D49: =作成シート!C42 -> なし | G49: 0

Sheet 習得呪文
H1: =H3&H4&H5&H6&H7&H8&H9&H10&H11&H12 ->  | I1: =I3&I4&I5&I6&I7&I8&I9&I10&I11&I12 ->  | J1: =MID(I1,1,216) ->  | K1: =MID(I1,217,432) -> 
B2: 習得呪文 | C2: 種別 | D2: 属性 | E2: 副属性 | F2: 難易度 | G2: 参照項
B3: =作成シート!C44 -> なし | C3: =VLOOKUP(習得呪文!B3,固定値!$BM$2:$BQ$256,2,FALSE) -> - | D3: =VLOOKUP(習得呪文!B3,固定値!$BM$2:$BQ$256,3,FALSE) -> - | E3: =VLOOKUP(習得呪文!B3,固定値!$BM$2:$BQ$256,4,FALSE) -> - | F3: =VLOOKUP(習得呪文!B3,固定値!$BM$2:$BQ$256,5,FALSE) -> - | G3: =VLOOKUP(習得呪文!B3,固定値!$BM$2:$BR$256,6,FALSE) -> - | H3: =IF(B3="なし","",CHAR(10)&C3&"《"&B3&"》 ("&D3&"("&E3&"))難易度： "&F3) ->  | I3: =IF(B3="なし","",CHAR(10)&"《"&B3&"》"&REPT(" ",8-LEN(B3))&LEFT(C3,2)&REPT(" ",4-LEN(LEFT(C3,2)))&LEFT(D3,2)&"("&LEFT(E3,4)&")"&REPT(" ",4-LEN(LEFT(E3,4)))&F3&REPT(" ",46-LEN(F3))&G3) -> 
B4: =作成シート!C45 -> なし | C4: =VLOOKUP(習得呪文!B4,固定値!$BM$2:$BQ$256,2,FALSE) -> - | D4: =VLOOKUP(習得呪文!B4,固定値!$BM$2:$BQ$256,3,FALSE) -> - | E4: =VLOOKUP(習得呪文!B4,固定値!$BM$2:$BQ$256,4,FALSE) -> - | F4: =VLOOKUP(習得呪文!B4,固定値!$BM$2:$BQ$256,5,FALSE) -> - | G4: =VLOOKUP(習得呪文!B4,固定値!$BM$2:$BR$256,6,FALSE) -> - | H4: =IF(B4="なし","",CHAR(10)&C4&"《"&B4&"》 ("&D4&"("&E4&"))難易度： "&F4) ->  | I4: =IF(B4="なし","",CHAR(10)&"《"&B4&"》"&REPT(" ",8-LEN(B4))&LEFT(C4,2)&REPT(" ",4-LEN(LEFT(C4,2)))&LEFT(D4,2)&"("&LEFT(E4,4)&")"&REPT(" ",4-LEN(LEFT(E4,4)))&F4&REPT(" ",46-LEN(F4))&G4) -> 
B5: =作成シート!C46 -> なし | C5: =VLOOKUP(習得呪文!B5,固定値!$BM$2:$BQ$256,2,FALSE) -> - | D5: =VLOOKUP(習得呪文!B5,固定値!$BM$2:$BQ$256,3,FALSE) -> - | E5: =VLOOKUP(習得呪文!B5,固定値!$BM$2:$BQ$256,4,FALSE) -> - | F5: =VLOOKUP(習得呪文!B5,固定値!$BM$2:$BQ$256,5,FALSE) -> - | G5: =VLOOKUP(習得呪文!B5,固定値!$BM$2:$BR$256,6,FALSE) -> -
B6: =作成シート!C47 -> なし | C6: =VLOOKUP(習得呪文!B6,固定値!$BM$2:$BQ$256,2,FALSE) -> - | D6: =VLOOKUP(習得呪文!B6,固定値!$BM$2:$BQ$256,3,FALSE) -> - | E6: =VLOOKUP(習得呪文!B6,固定値!$BM$2:$BQ$256,4,FALSE) -> - | F6: =VLOOKUP(習得呪文!B6,固定値!$BM$2:$BQ$256,5,FALSE) -> - | G6: =VLOOKUP(習得呪文!B6,固定値!$BM$2:$BR$256,6,FALSE) -> -
B7: =作成シート!C48 -> なし | C7: =VLOOKUP(習得呪文!B7,固定値!$BM$2:$BQ$256,2,FALSE) -> - | D7: =VLOOKUP(習得呪文!B7,固定値!$BM$2:$BQ$256,3,FALSE) -> - | E7: =VLOOKUP(習得呪文!B7,固定値!$BM$2:$BQ$256,4,FALSE) -> - | F7: =VLOOKUP(習得呪文!B7,固定値!$BM$2:$BQ$256,5,FALSE) -> - | G7: =VLOOKUP(習得呪文!B7,固定値!$BM$2:$BR$256,6,FALSE) -> -
B8: =作成シート!C49 -> なし | C8: =VLOOKUP(習得呪文!B8,固定値!$BM$2:$BQ$256,2,FALSE) -> - | D8: =VLOOKUP(習得呪文!B8,固定値!$BM$2:$BQ$256,3,FALSE) -> - | E8: =VLOOKUP(習得呪文!B8,固定値!$BM$2:$BQ$256,4,FALSE) -> - | F8: =VLOOKUP(習得呪文!B8,固定値!$BM$2:$BQ$256,5,FALSE) -> - | G8: =VLOOKUP(習得呪文!B8,固定値!$BM$2:$BR$256,6,FALSE) -> -
B9: =作成シート!C50 -> なし | C9: =VLOOKUP(習得呪文!B9,固定値!$BM$2:$BQ$256,2,FALSE) -> - | D9: =VLOOKUP(習得呪文!B9,固定値!$BM$2:$BQ$256,3,FALSE) -> - | E9: =VLOOKUP(習得呪文!B9,固定値!$BM$2:$BQ$256,4,FALSE) -> - | F9: =VLOOKUP(習得呪文!B9,固定値!$BM$2:$BQ$256,5,FALSE) -> - | G9: =VLOOKUP(習得呪文!B9,固定値!$BM$2:$BR$256,6,FALSE) -> -
B10: =作成シート!C51 -> なし | C10: =VLOOKUP(習得呪文!B10,固定値!$BM$2:$BQ$256,2,FALSE) -> - | D10: =VLOOKUP(習得呪文!B10,固定値!$BM$2:$BQ$256,3,FALSE) -> - | E10: =VLOOKUP(習得呪文!B10,固定値!$BM$2:$BQ$256,4,FALSE) -> - | F10: =VLOOKUP(習得呪文!B10,固定値!$BM$2:$BQ$256,5,FALSE) -> - | G10: =VLOOKUP(習得呪文!B10,固定値!$BM$2:$BR$256,6,FALSE) -> -
B11: =作成シート!C52 -> なし | C11: =VLOOKUP(習得呪文!B11,固定値!$BM$2:$BQ$256,2,FALSE) -> - | D11: =VLOOKUP(習得呪文!B11,固定値!$BM$2:$BQ$256,3,FALSE) -> - | E11: =VLOOKUP(習得呪文!B11,固定値!$BM$2:$BQ$256,4,FALSE) -> - | F11: =VLOOKUP(習得呪文!B11,固定値!$BM$2:$BQ$256,5,FALSE) -> - | G11: =VLOOKUP(習得呪文!B11,固定値!$BM$2:$BR$256,6,FALSE) -> -
B12: =作成シート!C53 -> なし | C12: =VLOOKUP(習得呪文!B12,固定値!$BM$2:$BQ$256,2,FALSE) -> - | D12: =VLOOKUP(習得呪文!B12,固定値!$BM$2:$BQ$256,3,FALSE) -> - | E12: =VLOOKUP(習得呪文!B12,固定値!$BM$2:$BQ$256,4,FALSE) -> - | F12: =VLOOKUP(習得呪文!B12,固定値!$BM$2:$BQ$256,5,FALSE) -> - | G12: =VLOOKUP(習得呪文!B12,固定値!$BM$2:$BR$256,6,FALSE) -> -

Sheet 冒険者技能
N1: =N3&N4&N5&N6&N7&N8&N9&N10& N11&N12&N13&N14&N15&N16&N17&N18&N19&N20& N21&N22&N23&N24&N25&N26&N27&N28&N29&N30& N31&N32&N33&N34&N35&N36&N37&N38&N39&N40& N41&N42&N43&N44&N45&N46&N47&N48&N49&N50& N51&N52&N53&N54&N55&N56&N57&N58&N59&N60& N61&N62&N63&N64&N65&N66&N67 -> 【荷重行動】 ● ○ ○ ○ ○ ／ 【武器：投擲武器】 ● ○ ○ ○ ○ ／ | O1: =O3&O4&O5&O6&O7&O8&O9&O10& O11&O12&O13&O14&O15&O16&O17&O18&O19&O20& O21&O22&O23&O24&O25&O26&O27&O28&O29&O30& O31&O32&O33&O34&O35&O36&O37&O38&O39&O40& O41&O42&O43&O44&O45&O46&O47&O48&O49&O50& O51&O52&O53&O54&O55&O56&O57&O58&O59&O60& O61&O62&O63&O64&O65&O66&O67 -> 【荷重行動】 初歩 258 【武器：投擲】 初歩 257 | Q1: =Q50&Q51&Q52&Q53&Q54&Q56&Q57&Q58&Q59&Q60&Q61 ->  | R1: =R19&R20&R26&R37&R38&R39&R40&R41&R42&R43&R44&R45 -> 【武器：投擲】+1 | S1: =S29&S47&S48&S49 ->  | T1: =T30 ->  | U1: =MID(O1,1,190) -> 【荷重行動】 初歩 258 【武器：投擲】 初歩 257 | V1: =MID(O1,191,380) ->  | W1: =MID(O1,381,570) ->  | X1: =MID(O1,571,760) -> 
B2: 冒険者技能 | D2: 種別 | H2: 出自・来歴ボーナス | I2: 習熟段階 | J2: 消費成長点 | K2: 効果 | L2: 参照項 | M2: 簡易表示 | P2: 参照項
C3: 受身 | D3: 共通 | E3: =IF(COUNTIF(一般技能!$H$51:$H$56,C3)=0,0,VLOOKUP(C3,一般技能!$H$51:$J$56,3,FALSE)) -> 0 | F3: =IF(COUNTIF(一般技能!$H$59:$H$82,C3)=0,0,VLOOKUP(C3,一般技能!$H$59:$J$82,3,FALSE)) -> 0 | G3: =MAX(E3,F3) -> 0 | H3: =VLOOKUP(E3,固定値!$AA$2:$AB$7,2,FALSE) -> －－－ | I3: =VLOOKUP(G3,固定値!$AA$2:$AB$7,2,FALSE) -> －－－ | J3: =VLOOKUP(I3,固定値!$AG$1:$AI$7,IF(H3=ラベル!$G$2,2,3),FALSE) -> 0 | K3: =VLOOKUP(I3,固定値!$BE$2:$BF$7,2,FALSE) -> 0 | L3: =LEFT(P3,3) -> 252 | M3: 受身 | N3: =IF(I3=ラベル!$G$2,"",CHAR(10)&"【"&C3&"】"&REPT(" ",11-LEN(C3))&"● "&IF(K3>1,"●","○")&" "&IF(K3>2,"●","○")&" "&IF(K3>3,"●","○")&" "&IF(K3>4,"●","○")&" ／") ->  | O3: =IF(I3=ラベル!$G$2,"",CHAR(10)&"【"&M3&"】"&REPT(" ",8-LEN(M3))&I3&REPT(" ",22)&L3) ->  | P3: 252項
C4: 応急手当 | D4: 共通 | E4: =IF(COUNTIF(一般技能!$H$51:$H$56,C4)=0,0,VLOOKUP(C4,一般技能!$H$51:$J$56,3,FALSE)) -> 0 | F4: =IF(COUNTIF(一般技能!$H$59:$H$82,C4)=0,0,VLOOKUP(C4,一般技能!$H$59:$J$82,3,FALSE)) -> 0 | G4: =MAX(E4,F4) -> 0 | H4: =VLOOKUP(E4,固定値!$AA$2:$AB$7,2,FALSE) -> －－－ | I4: =VLOOKUP(G4,固定値!$AA$2:$AB$7,2,FALSE) -> －－－ | J4: =VLOOKUP(I4,固定値!$AG$1:$AI$7,IF(H4=ラベル!$G$2,2,3),FALSE) -> 0 | K4: =VLOOKUP(I4,固定値!$BE$2:$BF$7,2,FALSE) -> 0 | L4: =LEFT(P4,3) -> 253 | M4: 応急手当 | N4: =IF(I4=ラベル!$G$2,"",CHAR(10)&"【"&C4&"】"&REPT(" ",11-LEN(C4))&"● "&IF(K4>1,"●","○")&" "&IF(K4>2,"●","○")&" "&IF(K4>3,"●","○")&" "&IF(K4>4,"●","○")&" ／") ->  | O4: =IF(I4=ラベル!$G$2,"",CHAR(10)&"【"&M4&"】"&REPT(" ",8-LEN(M4))&I4&REPT(" ",22)&L4) ->  | P4: 253項
C5: 隠密 | D5: 共通 | E5: =IF(COUNTIF(一般技能!$H$51:$H$56,C5)=0,0,VLOOKUP(C5,一般技能!$H$51:$J$56,3,FALSE)) -> 0 | F5: =IF(COUNTIF(一般技能!$H$59:$H$82,C5)=0,0,VLOOKUP(C5,一般技能!$H$59:$J$82,3,FALSE)) -> 0 | G5: 0 | H5: =VLOOKUP(E5,固定値!$AA$2:$AB$7,2,FALSE) -> －－－ | I5: =VLOOKUP(G5,固定値!$AA$2:$AB$7,2,FALSE) -> －－－ | J5: =VLOOKUP(I5,固定値!$AG$1:$AI$7,IF(H5=ラベル!$G$2,2,3),FALSE) -> 0 | K5: =VLOOKUP(I5,固定値!$BE$2:$BF$7,2,FALSE) -> 0 | L5: 254 | M5: 隠密 | N5: =IF(I5=ラベル!$G$2,"",CHAR(10)&"【"&C5&"】"&REPT(" ",11-LEN(C5))&"● "&IF(K5>1,"●","○")&" "&IF(K5>2,"●","○")&" "&IF(K5>3,"●","○")&" "&IF(K5>4,"●","○")&" ／") ->  | O5: =IF(I5=ラベル!$G$2,"",CHAR(10)&"【"&M5&"】"&REPT(" ",8-LEN(M5))&I5&REPT(" ",22)&L5) ->  | P5: 254項
C6: 頑健 | D6: 共通 | E6: =IF(COUNTIF(一般技能!$H$51:$H$56,C6)=0,0,VLOOKUP(C6,一般技能!$H$51:$J$56,3,FALSE)) -> 0 | F6: =IF(COUNTIF(一般技能!$H$59:$H$82,C6)=0,0,VLOOKUP(C6,一般技能!$H$59:$J$82,3,FALSE)) -> 0 | G6: 0 | H6: =VLOOKUP(E6,固定値!$AA$2:$AB$7,2,FALSE) -> －－－ | I6: =VLOOKUP(G6,固定値!$AA$2:$AB$7,2,FALSE) -> －－－ | J6: =VLOOKUP(I6,固定値!$AG$1:$AI$7,IF(H6=ラベル!$G$2,2,3),FALSE) -> 0 | K6: =VLOOKUP(I6,固定値!$BE$2:$BF$7,2,FALSE) -> 0 | L6: 249 | M6: 頑健 | N6: =IF(I6=ラベル!$G$2,"",CHAR(10)&"【"&C6&"】"&REPT(" ",11-LEN(C6))&"● "&IF(K6>1,"●","○")&" "&IF(K6>2,"●","○")&" "&IF(K6>3,"●","○")&" "&IF(K6>4,"●","○")&" ／") ->  | O6: =IF(I6=ラベル!$G$2,"",CHAR(10)&"【"&M6&"】"&REPT(" ",8-LEN(M6))&I6&REPT(" ",22)&L6) ->  | P6: 249項
C7: 観察 | D7: 共通 | E7: =IF(COUNTIF(一般技能!$H$51:$H$56,C7)=0,0,VLOOKUP(C7,一般技能!$H$51:$J$56,3,FALSE)) -> 0 | F7: =IF(COUNTIF(一般技能!$H$59:$H$82,C7)=0,0,VLOOKUP(C7,一般技能!$H$59:$J$82,3,FALSE)) -> 0 | G7: 0 | H7: =VLOOKUP(E7,固定値!$AA$2:$AB$7,2,FALSE) -> －－－ | I7: =VLOOKUP(G7,固定値!$AA$2:$AB$7,2,FALSE) -> －－－ | J7: =VLOOKUP(I7,固定値!$AG$1:$AI$7,IF(H7=ラベル!$G$2,2,3),FALSE) -> 0 | K7: =VLOOKUP(I7,固定値!$BE$2:$BF$7,2,FALSE) -> 0 | L7: 254 | M7: 観察 | N7: =IF(I7=ラベル!$G$2,"",CHAR(10)&"【"&C7&"】"&REPT(" ",11-LEN(C7))&"● "&IF(K7>1,"●","○")&" "&IF(K7>2,"●","○")&" "&IF(K7>3,"●","○")&" "&IF(K7>4,"●","○")&" ／") ->  | O7: =IF(I7=ラベル!$G$2,"",CHAR(10)&"【"&M7&"】"&REPT(" ",8-LEN(M7))&I7&REPT(" ",22)&L7) ->  | P7: 254項
C8: 機先 | D8: 共通 | E8: =IF(COUNTIF(一般技能!$H$51:$H$56,C8)=0,0,VLOOKUP(C8,一般技能!$H$51:$J$56,3,FALSE)) -> 0 | F8: =IF(COUNTIF(一般技能!$H$59:$H$82,C8)=0,0,VLOOKUP(C8,一般技能!$H$59:$J$82,3,FALSE)) -> 0 | G8: 0 | H8: =VLOOKUP(E8,固定値!$AA$2:$AB$7,2,FALSE) -> －－－ | I8: =VLOOKUP(G8,固定値!$AA$2:$AB$7,2,FALSE) -> －－－ | J8: =VLOOKUP(I8,固定値!$AG$1:$AI$7,IF(H8=ラベル!$G$2,2,3),FALSE) -> 0 | K8: =VLOOKUP(I8,固定値!$BE$2:$BF$7,2,FALSE) -> 0 | L8: 249 | M8: 機先 | N8: =IF(I8=ラベル!$G$2,"",CHAR(10)&"【"&C8&"】"&REPT(" ",11-LEN(C8))&"● "&IF(K8>1,"●","○")&" "&IF(K8>2,"●","○")&" "&IF(K8>3,"●","○")&" "&IF(K8>4,"●","○")&" ／") ->  | O8: =IF(I8=ラベル!$G$2,"",CHAR(10)&"【"&M8&"】"&REPT(" ",8-LEN(M8))&I8&REPT(" ",22)&L8) ->  | P8: 249項
C9: 幸運 | D9: 共通 | E9: =IF(COUNTIF(一般技能!$H$51:$H$56,C9)=0,0,VLOOKUP(C9,一般技能!$H$51:$J$56,3,FALSE)) -> 0 | F9: =IF(COUNTIF(一般技能!$H$59:$H$82,C9)=0,0,VLOOKUP(C9,一般技能!$H$59:$J$82,3,FALSE)) -> 0 | G9: 0 | H9: =VLOOKUP(E9,固定値!$AA$2:$AB$7,2,FALSE) -> －－－ | I9: =VLOOKUP(G9,固定値!$AA$2:$AB$7,2,FALSE) -> －－－ | J9: =VLOOKUP(I9,固定値!$AG$1:$AI$7,IF(H9=ラベル!$G$2,2,3),FALSE) -> 0 | K9: =VLOOKUP(I9,固定値!$BE$2:$BF$7,2,FALSE) -> 0 | L9: 253 | M9: 幸運 | N9: =IF(I9=ラベル!$G$2,"",CHAR(10)&"【"&C9&"】"&REPT(" ",11-LEN(C9))&"● "&IF(K9>1,"●","○")&" "&IF(K9>2,"●","○")&" "&IF(K9>3,"●","○")&" "&IF(K9>4,"●","○")&" ／") ->  | O9: =IF(I9=ラベル!$G$2,"",CHAR(10)&"【"&M9&"】"&REPT(" ",8-LEN(M9))&I9&REPT(" ",22)&L9) ->  | P9: 253項
C10: 呪文抵抗 | D10: 共通 | E10: =IF(COUNTIF(一般技能!$H$51:$H$56,C10)=0,0,VLOOKUP(C10,一般技能!$H$51:$J$56,3,FALSE)) -> 0 | F10: =IF(COUNTIF(一般技能!$H$59:$H$82,C10)=0,0,VLOOKUP(C10,一般技能!$H$59:$J$82,3,FALSE)) -> 0 | G10: 0 | H10: =VLOOKUP(E10,固定値!$AA$2:$AB$7,2,FALSE) -> －－－ | I10: =VLOOKUP(G10,固定値!$AA$2:$AB$7,2,FALSE) -> －－－ | J10: =VLOOKUP(I10,固定値!$AG$1:$AI$7,IF(H10=ラベル!$G$2,2,3),FALSE) -> 0 | K10: =VLOOKUP(I10,固定値!$BE$2:$BF$7,2,FALSE) -> 0 | L10: 250 | M10: 呪文抵抗 | N10: =IF(I10=ラベル!$G$2,"",CHAR(10)&"【"&C10&"】"&REPT(" ",11-LEN(C10))&"● "&IF(K10>1,"●","○")&" "&IF(K10>2,"●","○")&" "&IF(K10>3,"●","○")&" "&IF(K10>4,"●","○")&" ／") ->  | O10: =IF(I10=ラベル!$G$2,"",CHAR(10)&"【"&M10&"】"&REPT(" ",8-LEN(M10))&I10&REPT(" ",22)&L10) ->  | P10: 250項
C11: 戦術移動 | D11: 共通 | E11: =IF(COUNTIF(一般技能!$H$51:$H$56,C11)=0,0,VLOOKUP(C11,一般技能!$H$51:$J$56,3,FALSE)) -> 0 | F11: =IF(COUNTIF(一般技能!$H$59:$H$82,C11)=0,0,VLOOKUP(C11,一般技能!$H$59:$J$82,3,FALSE)) -> 0 | G11: 0 | H11: =VLOOKUP(E11,固定値!$AA$2:$AB$7,2,FALSE) -> －－－ | I11: =VLOOKUP(G11,固定値!$AA$2:$AB$7,2,FALSE) -> －－－ | J11: =VLOOKUP(I11,固定値!$AG$1:$AI$7,IF(H11=ラベル!$G$2,2,3),FALSE) -> 0 | K11: =VLOOKUP(I11,固定値!$BE$2:$BF$7,2,FALSE) -> 0 | L11: 251 | M11: 戦術移動 | N11: =IF(I11=ラベル!$G$2,"",CHAR(10)&"【"&C11&"】"&REPT(" ",11-LEN(C11))&"● "&IF(K11>1,"●","○")&" "&IF(K11>2,"●","○")&" "&IF(K11>3,"●","○")&" "&IF(K11>4,"●","○")&" ／") ->  | O11: =IF(I11=ラベル!$G$2,"",CHAR(10)&"【"&M11&"】"&REPT(" ",8-LEN(M11))&I11&REPT(" ",22)&L11) ->  | P11: 251項
C12: 第六感 | D12: 共通 | E12: =IF(COUNTIF(一般技能!$H$51:$H$56,C12)=0,0,VLOOKUP(C12,一般技能!$H$51:$J$56,3,FALSE)) -> 0 | F12: =IF(COUNTIF(一般技能!$H$59:$H$82,C12)=0,0,VLOOKUP(C12,一般技能!$H$59:$J$82,3,FALSE)) -> 0 | G12: 0 | H12: =VLOOKUP(E12,固定値!$AA$2:$AB$7,2,FALSE) -> －－－ | I12: =VLOOKUP(G12,固定値!$AA$2:$AB$7,2,FALSE) -> －－－ | J12: =VLOOKUP(I12,固定値!$AG$1:$AI$7,IF(H12=ラベル!$G$2,2,3),FALSE) -> 0 | K12: =VLOOKUP(I12,固定値!$BE$2:$BF$7,2,FALSE) -> 0 | L12: 255 | M12: 第六感 | N12: =IF(I12=ラベル!$G$2,"",CHAR(10)&"【"&C12&"】"&REPT(" ",11-LEN(C12))&"● "&IF(K12>1,"●","○")&" "&IF(K12>2,"●","○")&" "&IF(K12>3,"●","○")&" "&IF(K12>4,"●","○")&" ／") ->  | O12: =IF(I12=ラベル!$G$2,"",CHAR(10)&"【"&M12&"】"&REPT(" ",8-LEN(M12))&I12&REPT(" ",22)&L12) ->  | P12: 255項
C13: 治癒適正 | D13: 共通 | E13: =IF(COUNTIF(一般技能!$H$51:$H$56,C13)=0,0,VLOOKUP(C13,一般技能!$H$51:$J$56,3,FALSE)) -> 0 | F13: =IF(COUNTIF(一般技能!$H$59:$H$82,C13)=0,0,VLOOKUP(C13,一般技能!$H$59:$J$82,3,FALSE)) -> 0 | G13: 0 | H13: =VLOOKUP(E13,固定値!$AA$2:$AB$7,2,FALSE) -> －－－ | I13: =VLOOKUP(G13,固定値!$AA$2:$AB$7,2,FALSE) -> －－－ | J13: =VLOOKUP(I13,固定値!$AG$1:$AI$7,IF(H13=ラベル!$G$2,2,3),FALSE) -> 0 | K13: =VLOOKUP(I13,固定値!$BE$2:$BF$7,2,FALSE) -> 0 | L13: 250 | M13: 治癒適正 | N13: =IF(I13=ラベル!$G$2,"",CHAR(10)&"【"&C13&"】"&REPT(" ",11-LEN(C13))&"● "&IF(K13>1,"●","○")&" "&IF(K13>2,"●","○")&" "&IF(K13>3,"●","○")&" "&IF(K13>4,"●","○")&" ／") ->  | O13: =IF(I13=ラベル!$G$2,"",CHAR(10)&"【"&M13&"】"&REPT(" ",8-LEN(M13))&I13&REPT(" ",22)&L13) ->  | P13: 250項
C14: 手仕事 | D14: 共通 | E14: =IF(COUNTIF(一般技能!$H$51:$H$56,C14)=0,0,VLOOKUP(C14,一般技能!$H$51:$J$56,3,FALSE)) -> 0 | F14: =IF(COUNTIF(一般技能!$H$59:$H$82,C14)=0,0,VLOOKUP(C14,一般技能!$H$59:$J$82,3,FALSE)) -> 0 | G14: 0 | H14: =VLOOKUP(E14,固定値!$AA$2:$AB$7,2,FALSE) -> －－－ | I14: =VLOOKUP(G14,固定値!$AA$2:$AB$7,2,FALSE) -> －－－ | J14: =VLOOKUP(I14,固定値!$AG$1:$AI$7,IF(H14=ラベル!$G$2,2,3),FALSE) -> 0 | K14: =VLOOKUP(I14,固定値!$BE$2:$BF$7,2,FALSE) -> 0 | L14: 255 | M14: 手仕事 | N14: =IF(I14=ラベル!$G$2,"",CHAR(10)&"【"&C14&"】"&REPT(" ",11-LEN(C14))&"● "&IF(K14>1,"●","○")&" "&IF(K14>2,"●","○")&" "&IF(K14>3,"●","○")&" "&IF(K14>4,"●","○")&" ／") ->  | O14: =IF(I14=ラベル!$G$2,"",CHAR(10)&"【"&M14&"】"&REPT(" ",8-LEN(M14))&I14&REPT(" ",22)&L14) ->  | P14: 255項
C15: 忍耐 | D15: 共通 | E15: =IF(COUNTIF(一般技能!$H$51:$H$56,C15)=0,0,VLOOKUP(C15,一般技能!$H$51:$J$56,3,FALSE)) -> 0 | F15: =IF(COUNTIF(一般技能!$H$59:$H$82,C15)=0,0,VLOOKUP(C15,一般技能!$H$59:$J$82,3,FALSE)) -> 0 | G15: 0 | H15: =VLOOKUP(E15,固定値!$AA$2:$AB$7,2,FALSE) -> －－－ | I15: =VLOOKUP(G15,固定値!$AA$2:$AB$7,2,FALSE) -> －－－ | J15: =VLOOKUP(I15,固定値!$AG$1:$AI$7,IF(H15=ラベル!$G$2,2,3),FALSE) -> 0 | K15: =VLOOKUP(I15,固定値!$BE$2:$BF$7,2,FALSE) -> 0 | L15: 250 | M15: 忍耐 | N15: =IF(I15=ラベル!$G$2,"",CHAR(10)&"【"&C15&"】"&REPT(" ",11-LEN(C15))&"● "&IF(K15>1,"●","○")&" "&IF(K15>2,"●","○")&" "&IF(K15>3,"●","○")&" "&IF(K15>4,"●","○")&" ／") ->  | O15: =IF(I15=ラベル!$G$2,"",CHAR(10)&"【"&M15&"】"&REPT(" ",8-LEN(M15))&I15&REPT(" ",22)&L15) ->  | P15: 250項
C16: 免疫強化 | D16: 共通 | E16: =IF(COUNTIF(一般技能!$H$51:$H$56,C16)=0,0,VLOOKUP(C16,一般技能!$H$51:$J$56,3,FALSE)) -> 0 | F16: =IF(COUNTIF(一般技能!$H$59:$H$82,C16)=0,0,VLOOKUP(C16,一般技能!$H$59:$J$82,3,FALSE)) -> 0 | G16: 0 | H16: =VLOOKUP(E16,固定値!$AA$2:$AB$7,2,FALSE) -> －－－ | I16: =VLOOKUP(G16,固定値!$AA$2:$AB$7,2,FALSE) -> －－－ | J16: =VLOOKUP(I16,固定値!$AG$1:$AI$7,IF(H16=ラベル!$G$2,2,3),FALSE) -> 0 | K16: =VLOOKUP(I16,固定値!$BE$2:$BF$7,2,FALSE) -> 0 | L16: 255 | M16: 免疫強化 | N16: =IF(I16=ラベル!$G$2,"",CHAR(10)&"【"&C16&"】"&REPT(" ",11-LEN(C16))&"● "&IF(K16>1,"●","○")&" "&IF(K16>2,"●","○")&" "&IF(K16>3,"●","○")&" "&IF(K16>4,"●","○")&" ／") ->  | O16: =IF(I16=ラベル!$G$2,"",CHAR(10)&"【"&M16&"】"&REPT(" ",8-LEN(M16))&I16&REPT(" ",22)&L16) ->  | P16: 255項
C17: 受け流し | D17: 戦士系職業向け | E17: =IF(COUNTIF(一般技能!$H$51:$H$56,C17)=0,0,VLOOKUP(C17,一般技能!$H$51:$J$56,3,FALSE)) -> 0 | F17: =IF(COUNTIF(一般技能!$H$59:$H$82,C17)=0,0,VLOOKUP(C17,一般技能!$H$59:$J$82,3,FALSE)) -> 0 | G17: 0 | H17: =VLOOKUP(E17,固定値!$AA$2:$AB$7,2,FALSE) -> －－－ | I17: =VLOOKUP(G17,固定値!$AA$2:$AB$7,2,FALSE) -> －－－ | J17: =VLOOKUP(I17,固定値!$AG$1:$AI$7,IF(H17=ラベル!$G$2,2,3),FALSE) -> 0 | K17: =VLOOKUP(I17,固定値!$BE$2:$BF$7,2,FALSE) -> 0 | L17: 261 | M17: 受け流し | N17: =IF(I17=ラベル!$G$2,"",CHAR(10)&"【"&C17&"】"&REPT(" ",11-LEN(C17))&"● "&IF(K17>1,"●","○")&" "&IF(K17>2,"●","○")&" "&IF(K17>3,"●","○")&" "&IF(K17>4,"●","○")&" ／") ->  | O17: =IF(I17=ラベル!$G$2,"",CHAR(10)&"【"&M17&"】"&REPT(" ",8-LEN(M17))&I17&REPT(" ",22)&L17) ->  | P17: 261項
C18: 荷重行動 | D18: 戦士系職業向け | E18: =IF(COUNTIF(一般技能!$H$51:$H$56,C18)=0,0,VLOOKUP(C18,一般技能!$H$51:$J$56,3,FALSE)) -> 1 | F18: =IF(COUNTIF(一般技能!$H$59:$H$82,C18)=0,0,VLOOKUP(C18,一般技能!$H$59:$J$82,3,FALSE)) -> 0 | G18: 1 | H18: =VLOOKUP(E18,固定値!$AA$2:$AB$7,2,FALSE) -> 初歩 | I18: =VLOOKUP(G18,固定値!$AA$2:$AB$7,2,FALSE) -> 初歩 | J18: =VLOOKUP(I18,固定値!$AG$1:$AI$7,IF(H18=ラベル!$G$2,2,3),FALSE) -> 0 | K18: =VLOOKUP(I18,固定値!$BE$2:$BF$7,2,FALSE) -> 1 | L18: 258 | M18: 荷重行動 | N18: =IF(I18=ラベル!$G$2,"",CHAR(10)&"【"&C18&"】"&REPT(" ",11-LEN(C18))&"● "&IF(K18>1,"●","○")&" "&IF(K18>2,"●","○")&" "&IF(K18>3,"●","○")&" "&IF(K18>4,"●","○")&" ／") -> 【荷重行動】 ● ○ ○ ○ ○ ／ | O18: =IF(I18=ラベル!$G$2,"",CHAR(10)&"【"&M18&"】"&REPT(" ",8-LEN(M18))&I18&REPT(" ",22)&L18) -> 【荷重行動】 初歩 258 | P18: 258項
C19: 強打攻撃・斬 | D19: 戦士系職業向け | E19: =IF(COUNTIF(一般技能!$H$51:$H$56,C19)=0,0,VLOOKUP(C19,一般技能!$H$51:$J$56,3,FALSE)) -> 0 | F19: =IF(COUNTIF(一般技能!$H$59:$H$82,C19)=0,0,VLOOKUP(C19,一般技能!$H$59:$J$82,3,FALSE)) -> 0 | G19: 0 | H19: =VLOOKUP(E19,固定値!$AA$2:$AB$7,2,FALSE) -> －－－ | I19: =VLOOKUP(G19,固定値!$AA$2:$AB$7,2,FALSE) -> －－－ | J19: =VLOOKUP(I19,固定値!$AG$1:$AI$7,IF(H19=ラベル!$G$2,2,3),FALSE) -> 0 | K19: =VLOOKUP(I19,固定値!$BE$2:$BF$7,2,FALSE) -> 0 | L19: 262 | M19: 強打攻撃・斬 | N19: =IF(I19=ラベル!$G$2,"",CHAR(10)&"【"&C19&"】"&REPT(" ",11-LEN(C19))&"● "&IF(K19>1,"●","○")&" "&IF(K19>2,"●","○")&" "&IF(K19>3,"●","○")&" "&IF(K19>4,"●","○")&" ／") ->  | O19: =IF(I19=ラベル!$G$2,"",CHAR(10)&"【"&M19&"】"&REPT(" ",8-LEN(M19))&I19&REPT(" ",22)&L19) ->  | P19: 262項 | R19: =IF(I19=ラベル!$G$2,"",CHAR(10)&"【"&M19&"("&I19&")】") ->  | U19: =IF(K19=0,-1,INDEX(V19:Z19,K19)) -> -1 | V19: =ROUNDUP(能力値!G4/4,0) -> 1 | W19: =ROUNDUP(能力値!G4/2,0) -> 2 | X19: =ROUNDUP(能力値!G4*1,0) -> 3 | Y19: =ROUNDUP(能力値!G4*1.5,0) -> 5 | Z19: =ROUNDUP(能力値!G4*2,0) -> 6
C20: 強打攻撃・殴 | D20: 戦士系職業向け | E20: =IF(COUNTIF(一般技能!$H$51:$H$56,C20)=0,0,VLOOKUP(C20,一般技能!$H$51:$J$56,3,FALSE)) -> 0 | F20: =IF(COUNTIF(一般技能!$H$59:$H$82,C20)=0,0,VLOOKUP(C20,一般技能!$H$59:$J$82,3,FALSE)) -> 0 | G20: 0 | H20: =VLOOKUP(E20,固定値!$AA$2:$AB$7,2,FALSE) -> －－－ | I20: =VLOOKUP(G20,固定値!$AA$2:$AB$7,2,FALSE) -> －－－ | J20: =VLOOKUP(I20,固定値!$AG$1:$AI$7,IF(H20=ラベル!$G$2,2,3),FALSE) -> 0 | K20: =VLOOKUP(I20,固定値!$BE$2:$BF$7,2,FALSE) -> 0 | L20: 263 | M20: 強打攻撃・殴 | N20: =IF(I20=ラベル!$G$2,"",CHAR(10)&"【"&C20&"】"&REPT(" ",11-LEN(C20))&"● "&IF(K20>1,"●","○")&" "&IF(K20>2,"●","○")&" "&IF(K20>3,"●","○")&" "&IF(K20>4,"●","○")&" ／") ->  | O20: =IF(I20=ラベル!$G$2,"",CHAR(10)&"【"&M20&"】"&REPT(" ",8-LEN(M20))&I20&REPT(" ",22)&L20) ->  | P20: 263項 | R20: =IF(I20=ラベル!$G$2,"",CHAR(10)&"【"&M20&"("&I20&")】") ->  | U20: =IF(K20=0,-1,INDEX(V20:Z20,K20)) -> -1 | V20: =ROUNDUP(能力値!G4/4,0) -> 1 | W20: =ROUNDUP(能力値!G4/2,0) -> 2 | X20: =ROUNDUP(能力値!G4*1,0) -> 3 | Y20: =ROUNDUP(能力値!G4*1.5,0) -> 5 | Z20: =ROUNDUP(能力値!G4*2,0) -> 6
C21: 曲射 | D21: 戦士系職業向け | E21: =IF(COUNTIF(一般技能!$H$51:$H$56,C21)=0,0,VLOOKUP(C21,一般技能!$H$51:$J$56,3,FALSE)) -> 0 | F21: =IF(COUNTIF(一般技能!$H$59:$H$82,C21)=0,0,VLOOKUP(C21,一般技能!$H$59:$J$82,3,FALSE)) -> 0 | G21: 0 | H21: =VLOOKUP(E21,固定値!$AA$2:$AB$7,2,FALSE) -> －－－ | I21: =VLOOKUP(G21,固定値!$AA$2:$AB$7,2,FALSE) -> －－－ | J21: =VLOOKUP(I21,固定値!$AG$1:$AI$7,IF(H21=ラベル!$G$2,2,3),FALSE) -> 0 | K21: =VLOOKUP(I21,固定値!$BE$2:$BF$7,2,FALSE) -> 0 | L21: 266 | M21: 曲射 | N21: =IF(I21=ラベル!$G$2,"",CHAR(10)&"【"&C21&"】"&REPT(" ",11-LEN(C21))&"● "&IF(K21>1,"●","○")&" "&IF(K21>2,"●","○")&" "&IF(K21>3,"●","○")&" "&IF(K21>4,"●","○")&" ／") ->  | O21: =IF(I21=ラベル!$G$2,"",CHAR(10)&"【"&M21&"】"&REPT(" ",8-LEN(M21))&I21&REPT(" ",22)&L21) ->  | P21: 266項
C22: 斬落攻撃 | D22: 戦士系職業向け | E22: =IF(COUNTIF(一般技能!$H$51:$H$56,C22)=0,0,VLOOKUP(C22,一般技能!$H$51:$J$56,3,FALSE)) -> 0 | F22: =IF(COUNTIF(一般技能!$H$59:$H$82,C22)=0,0,VLOOKUP(C22,一般技能!$H$59:$J$82,3,FALSE)) -> 0 | G22: 0 | H22: =VLOOKUP(E22,固定値!$AA$2:$AB$7,2,FALSE) -> －－－ | I22: =VLOOKUP(G22,固定値!$AA$2:$AB$7,2,FALSE) -> －－－ | J22: =VLOOKUP(I22,固定値!$AG$1:$AI$7,IF(H22=ラベル!$G$2,2,3),FALSE) -> 0 | K22: =VLOOKUP(I22,固定値!$BE$2:$BF$7,2,FALSE) -> 0 | L22: 264 | M22: 斬落攻撃 | N22: =IF(I22=ラベル!$G$2,"",CHAR(10)&"【"&C22&"】"&REPT(" ",11-LEN(C22))&"● "&IF(K22>1,"●","○")&" "&IF(K22>2,"●","○")&" "&IF(K22>3,"●","○")&" "&IF(K22>4,"●","○")&" ／") ->  | O22: =IF(I22=ラベル!$G$2,"",CHAR(10)&"【"&M22&"】"&REPT(" ",8-LEN(M22))&I22&REPT(" ",22)&L22) ->  | P22: 264項
C23: 拘束攻撃 | D23: 戦士系職業向け | E23: =IF(COUNTIF(一般技能!$H$51:$H$56,C23)=0,0,VLOOKUP(C23,一般技能!$H$51:$J$56,3,FALSE)) -> 0 | F23: =IF(COUNTIF(一般技能!$H$59:$H$82,C23)=0,0,VLOOKUP(C23,一般技能!$H$59:$J$82,3,FALSE)) -> 0 | G23: 0 | H23: =VLOOKUP(E23,固定値!$AA$2:$AB$7,2,FALSE) -> －－－ | I23: =VLOOKUP(G23,固定値!$AA$2:$AB$7,2,FALSE) -> －－－ | J23: =VLOOKUP(I23,固定値!$AG$1:$AI$7,IF(H23=ラベル!$G$2,2,3),FALSE) -> 0 | K23: =VLOOKUP(I23,固定値!$BE$2:$BF$7,2,FALSE) -> 0 | L23: 264 | M23: 拘束攻撃 | N23: =IF(I23=ラベル!$G$2,"",CHAR(10)&"【"&C23&"】"&REPT(" ",11-LEN(C23))&"● "&IF(K23>1,"●","○")&" "&IF(K23>2,"●","○")&" "&IF(K23>3,"●","○")&" "&IF(K23>4,"●","○")&" ／") ->  | O23: =IF(I23=ラベル!$G$2,"",CHAR(10)&"【"&M23&"】"&REPT(" ",8-LEN(M23))&I23&REPT(" ",22)&L23) ->  | P23: 264項
C24: 護衛 | D24: 戦士系職業向け | E24: =IF(COUNTIF(一般技能!$H$51:$H$56,C24)=0,0,VLOOKUP(C24,一般技能!$H$51:$J$56,3,FALSE)) -> 0 | F24: =IF(COUNTIF(一般技能!$H$59:$H$82,C24)=0,0,VLOOKUP(C24,一般技能!$H$59:$J$82,3,FALSE)) -> 0 | G24: 0 | H24: =VLOOKUP(E24,固定値!$AA$2:$AB$7,2,FALSE) -> －－－ | I24: =VLOOKUP(G24,固定値!$AA$2:$AB$7,2,FALSE) -> －－－ | J24: =VLOOKUP(I24,固定値!$AG$1:$AI$7,IF(H24=ラベル!$G$2,2,3),FALSE) -> 0 | K24: =VLOOKUP(I24,固定値!$BE$2:$BF$7,2,FALSE) -> 0 | L24: 259 | M24: 護衛 | N24: =IF(I24=ラベル!$G$2,"",CHAR(10)&"【"&C24&"】"&REPT(" ",11-LEN(C24))&"● "&IF(K24>1,"●","○")&" "&IF(K24>2,"●","○")&" "&IF(K24>3,"●","○")&" "&IF(K24>4,"●","○")&" ／") ->  | O24: =IF(I24=ラベル!$G$2,"",CHAR(10)&"【"&M24&"】"&REPT(" ",8-LEN(M24))&I24&REPT(" ",22)&L24) ->  | P24: 259項
C25: 死角移動 | D25: 戦士系職業向け | E25: =IF(COUNTIF(一般技能!$H$51:$H$56,C25)=0,0,VLOOKUP(C25,一般技能!$H$51:$J$56,3,FALSE)) -> 0 | F25: =IF(COUNTIF(一般技能!$H$59:$H$82,C25)=0,0,VLOOKUP(C25,一般技能!$H$59:$J$82,3,FALSE)) -> 0 | G25: 0 | H25: =VLOOKUP(E25,固定値!$AA$2:$AB$7,2,FALSE) -> －－－ | I25: =VLOOKUP(G25,固定値!$AA$2:$AB$7,2,FALSE) -> －－－ | J25: =VLOOKUP(I25,固定値!$AG$1:$AI$7,IF(H25=ラベル!$G$2,2,3),FALSE) -> 0 | K25: =VLOOKUP(I25,固定値!$BE$2:$BF$7,2,FALSE) -> 0 | L25: 267 | M25: 死角移動 | N25: =IF(I25=ラベル!$G$2,"",CHAR(10)&"【"&C25&"】"&REPT(" ",11-LEN(C25))&"● "&IF(K25>1,"●","○")&" "&IF(K25>2,"●","○")&" "&IF(K25>3,"●","○")&" "&IF(K25>4,"●","○")&" ／") ->  | O25: =IF(I25=ラベル!$G$2,"",CHAR(10)&"【"&M25&"】"&REPT(" ",8-LEN(M25))&I25&REPT(" ",22)&L25) ->  | P25: 267項
C26: 刺突攻撃 | D26: 戦士系職業向け | E26: =IF(COUNTIF(一般技能!$H$51:$H$56,C26)=0,0,VLOOKUP(C26,一般技能!$H$51:$J$56,3,FALSE)) -> 0 | F26: =IF(COUNTIF(一般技能!$H$59:$H$82,C26)=0,0,VLOOKUP(C26,一般技能!$H$59:$J$82,3,FALSE)) -> 0 | G26: 0 | H26: =VLOOKUP(E26,固定値!$AA$2:$AB$7,2,FALSE) -> －－－ | I26: =VLOOKUP(G26,固定値!$AA$2:$AB$7,2,FALSE) -> －－－ | J26: =VLOOKUP(I26,固定値!$AG$1:$AI$7,IF(H26=ラベル!$G$2,2,3),FALSE) -> 0 | K26: =VLOOKUP(I26,固定値!$BE$2:$BF$7,2,FALSE) -> 0 | L26: 263 | M26: 刺突攻撃 | N26: =IF(I26=ラベル!$G$2,"",CHAR(10)&"【"&C26&"】"&REPT(" ",11-LEN(C26))&"● "&IF(K26>1,"●","○")&" "&IF(K26>2,"●","○")&" "&IF(K26>3,"●","○")&" "&IF(K26>4,"●","○")&" ／") ->  | O26: =IF(I26=ラベル!$G$2,"",CHAR(10)&"【"&M26&"】"&REPT(" ",8-LEN(M26))&I26&REPT(" ",22)&L26) ->  | P26: 263項 | R26: =IF(I26=ラベル!$G$2,"",CHAR(10)&"【"&M26&"("&I26&")】") ->  | U26: =IF(K26=0,-1,INDEX(V26:Z26,K26)) -> -1 | V26: 1 | W26: 2 | X26: 3 | Y26: 4 | Z26: 5
C27: 狙撃 | D27: 戦士系職業向け | E27: =IF(COUNTIF(一般技能!$H$51:$H$56,C27)=0,0,VLOOKUP(C27,一般技能!$H$51:$J$56,3,FALSE)) -> 0 | F27: =IF(COUNTIF(一般技能!$H$59:$H$82,C27)=0,0,VLOOKUP(C27,一般技能!$H$59:$J$82,3,FALSE)) -> 0 | G27: 0 | H27: =VLOOKUP(E27,固定値!$AA$2:$AB$7,2,FALSE) -> －－－ | I27: =VLOOKUP(G27,固定値!$AA$2:$AB$7,2,FALSE) -> －－－ | J27: =VLOOKUP(I27,固定値!$AG$1:$AI$7,IF(H27=ラベル!$G$2,2,3),FALSE) -> 0 | K27: =VLOOKUP(I27,固定値!$BE$2:$BF$7,2,FALSE) -> 0 | L27: 268 | M27: 狙撃 | N27: =IF(I27=ラベル!$G$2,"",CHAR(10)&"【"&C27&"】"&REPT(" ",11-LEN(C27))&"● "&IF(K27>1,"●","○")&" "&IF(K27>2,"●","○")&" "&IF(K27>3,"●","○")&" "&IF(K27>4,"●","○")&" ／") ->  | O27: =IF(I27=ラベル!$G$2,"",CHAR(10)&"【"&M27&"】"&REPT(" ",8-LEN(M27))&I27&REPT(" ",22)&L27) ->  | P27: 268項
C28: 速射 | D28: 戦士系職業向け | E28: =IF(COUNTIF(一般技能!$H$51:$H$56,C28)=0,0,VLOOKUP(C28,一般技能!$H$51:$J$56,3,FALSE)) -> 0 | F28: =IF(COUNTIF(一般技能!$H$59:$H$82,C28)=0,0,VLOOKUP(C28,一般技能!$H$59:$J$82,3,FALSE)) -> 0 | G28: 0 | H28: =VLOOKUP(E28,固定値!$AA$2:$AB$7,2,FALSE) -> －－－ | I28: =VLOOKUP(G28,固定値!$AA$2:$AB$7,2,FALSE) -> －－－ | J28: =VLOOKUP(I28,固定値!$AG$1:$AI$7,IF(H28=ラベル!$G$2,2,3),FALSE) -> 0 | K28: =VLOOKUP(I28,固定値!$BE$2:$BF$7,2,FALSE) -> 0 | L28: 265 | M28: 速射 | N28: =IF(I28=ラベル!$G$2,"",CHAR(10)&"【"&C28&"】"&REPT(" ",11-LEN(C28))&"● "&IF(K28>1,"●","○")&" "&IF(K28>2,"●","○")&" "&IF(K28>3,"●","○")&" "&IF(K28>4,"●","○")&" ／") ->  | O28: =IF(I28=ラベル!$G$2,"",CHAR(10)&"【"&M28&"】"&REPT(" ",8-LEN(M28))&I28&REPT(" ",22)&L28) ->  | P28: 265項
C29: 体術 | D29: 戦士系職業向け | E29: =IF(COUNTIF(一般技能!$H$51:$H$56,C29)=0,0,VLOOKUP(C29,一般技能!$H$51:$J$56,3,FALSE)) -> 0 | F29: =IF(COUNTIF(一般技能!$H$59:$H$82,C29)=0,0,VLOOKUP(C29,一般技能!$H$59:$J$82,3,FALSE)) -> 0 | G29: 0 | H29: =VLOOKUP(E29,固定値!$AA$2:$AB$7,2,FALSE) -> －－－ | I29: =VLOOKUP(G29,固定値!$AA$2:$AB$7,2,FALSE) -> －－－ | J29: =VLOOKUP(I29,固定値!$AG$1:$AI$7,IF(H29=ラベル!$G$2,2,3),FALSE) -> 0 | K29: =VLOOKUP(I29,固定値!$BE$2:$BF$7,2,FALSE) -> 0 | L29: 258 | M29: 体術 | N29: =IF(I29=ラベル!$G$2,"",CHAR(10)&"【"&C29&"】"&REPT(" ",11-LEN(C29))&"● "&IF(K29>1,"●","○")&" "&IF(K29>2,"●","○")&" "&IF(K29>3,"●","○")&" "&IF(K29>4,"●","○")&" ／") ->  | O29: =IF(I29=ラベル!$G$2,"",CHAR(10)&"【"&M29&"】"&REPT(" ",8-LEN(M29))&I29&REPT(" ",22)&L29) ->  | P29: 258項 | Q29: =装備!V21 -> 0 | S29: =IF(I29=ラベル!$F$2,"","【"&M29&"】"&"+"&K29)&IF(Q29>0,"【腕輪："&M29&"+"&Q29&"】","") -> 
C30: 盾 | D30: 戦士系職業向け | E30: =IF(COUNTIF(一般技能!$H$51:$H$56,C30)=0,0,VLOOKUP(C30,一般技能!$H$51:$J$56,3,FALSE)) -> 0 | F30: =IF(COUNTIF(一般技能!$H$59:$H$82,C30)=0,0,VLOOKUP(C30,一般技能!$H$59:$J$82,3,FALSE)) -> 0 | G30: 0 | H30: =VLOOKUP(E30,固定値!$AA$2:$AB$7,2,FALSE) -> －－－ | I30: =VLOOKUP(G30,固定値!$AA$2:$AB$7,2,FALSE) -> －－－ | J30: =VLOOKUP(I30,固定値!$AG$1:$AI$7,IF(H30=ラベル!$G$2,2,3),FALSE) -> 0 | K30: =VLOOKUP(I30,固定値!$BE$2:$BF$7,2,FALSE) -> 0 | L30: 258 | M30: 盾 | N30: =IF(I30=ラベル!$G$2,"",CHAR(10)&"【"&C30&"】"&REPT(" ",11-LEN(C30))&"● "&IF(K30>1,"●","○")&" "&IF(K30>2,"●","○")&" "&IF(K30>3,"●","○")&" "&IF(K30>4,"●","○")&" ／") ->  | O30: =IF(I30=ラベル!$G$2,"",CHAR(10)&"【"&M30&"】"&REPT(" ",8-LEN(M30))&I30&REPT(" ",22)&L30) ->  | P30: 258項 | T30: =IF(I30=ラベル!$F$2,"","【"&M30&"】"&"+"&K30) -> 
C31: 挑発 | D31: 戦士系職業向け | E31: =IF(COUNTIF(一般技能!$H$51:$H$56,C31)=0,0,VLOOKUP(C31,一般技能!$H$51:$J$56,3,FALSE)) -> 0 | F31: =IF(COUNTIF(一般技能!$H$59:$H$82,C31)=0,0,VLOOKUP(C31,一般技能!$H$59:$J$82,3,FALSE)) -> 0 | G31: 0 | H31: =VLOOKUP(E31,固定値!$AA$2:$AB$7,2,FALSE) -> －－－ | I31: =VLOOKUP(G31,固定値!$AA$2:$AB$7,2,FALSE) -> －－－ | J31: =VLOOKUP(I31,固定値!$AG$1:$AI$7,IF(H31=ラベル!$G$2,2,3),FALSE) -> 0 | K31: =VLOOKUP(I31,固定値!$BE$2:$BF$7,2,FALSE) -> 0 | L31: 261 | M31: 挑発 | N31: =IF(I31=ラベル!$G$2,"",CHAR(10)&"【"&C31&"】"&REPT(" ",11-LEN(C31))&"● "&IF(K31>1,"●","○")&" "&IF(K31>2,"●","○")&" "&IF(K31>3,"●","○")&" "&IF(K31>4,"●","○")&" ／") ->  | O31: =IF(I31=ラベル!$G$2,"",CHAR(10)&"【"&M31&"】"&REPT(" ",8-LEN(M31))&I31&REPT(" ",22)&L31) ->  | P31: 261項
C32: 鉄の拳 | D32: 戦士系職業向け | E32: =IF(COUNTIF(一般技能!$H$51:$H$56,C32)=0,0,VLOOKUP(C32,一般技能!$H$51:$J$56,3,FALSE)) -> 0 | F32: =IF(COUNTIF(一般技能!$H$59:$H$82,C32)=0,0,VLOOKUP(C32,一般技能!$H$59:$J$82,3,FALSE)) -> 0 | G32: 0 | H32: =VLOOKUP(E32,固定値!$AA$2:$AB$7,2,FALSE) -> －－－ | I32: =VLOOKUP(G32,固定値!$AA$2:$AB$7,2,FALSE) -> －－－ | J32: =VLOOKUP(I32,固定値!$AG$1:$AI$7,IF(H32=ラベル!$G$2,2,3),FALSE) -> 0 | K32: =VLOOKUP(I32,固定値!$BE$2:$BF$7,2,FALSE) -> 0 | L32: 269 | M32: 鉄の拳 | N32: =IF(I32=ラベル!$G$2,"",CHAR(10)&"【"&C32&"】"&REPT(" ",11-LEN(C32))&"● "&IF(K32>1,"●","○")&" "&IF(K32>2,"●","○")&" "&IF(K32>3,"●","○")&" "&IF(K32>4,"●","○")&" ／") ->  | O32: =IF(I32=ラベル!$G$2,"",CHAR(10)&"【"&M32&"】"&REPT(" ",8-LEN(M32))&I32&REPT(" ",22)&L32) ->  | P32: 269項 | U32: =IF(K32=0,-1,INDEX(V32:Z32,K32)) -> -1 | V32: 1 | W32: 2 | X32: 4 | Y32: 6 | Z32: 8
C33: 鉄壁 | D33: 戦士系職業向け | E33: =IF(COUNTIF(一般技能!$H$51:$H$56,C33)=0,0,VLOOKUP(C33,一般技能!$H$51:$J$56,3,FALSE)) -> 0 | F33: =IF(COUNTIF(一般技能!$H$59:$H$82,C33)=0,0,VLOOKUP(C33,一般技能!$H$59:$J$82,3,FALSE)) -> 0 | G33: 0 | H33: =VLOOKUP(E33,固定値!$AA$2:$AB$7,2,FALSE) -> －－－ | I33: =VLOOKUP(G33,固定値!$AA$2:$AB$7,2,FALSE) -> －－－ | J33: =VLOOKUP(I33,固定値!$AG$1:$AI$7,IF(H33=ラベル!$G$2,2,3),FALSE) -> 0 | K33: =VLOOKUP(I33,固定値!$BE$2:$BF$7,2,FALSE) -> 0 | L33: 260 | M33: 鉄壁 | N33: =IF(I33=ラベル!$G$2,"",CHAR(10)&"【"&C33&"】"&REPT(" ",11-LEN(C33))&"● "&IF(K33>1,"●","○")&" "&IF(K33>2,"●","○")&" "&IF(K33>3,"●","○")&" "&IF(K33>4,"●","○")&" ／") ->  | O33: =IF(I33=ラベル!$G$2,"",CHAR(10)&"【"&M33&"】"&REPT(" ",8-LEN(M33))&I33&REPT(" ",22)&L33) ->  | P33: 260項
C34: 薙ぎ払い | D34: 戦士系職業向け | E34: =IF(COUNTIF(一般技能!$H$51:$H$56,C34)=0,0,VLOOKUP(C34,一般技能!$H$51:$J$56,3,FALSE)) -> 0 | F34: =IF(COUNTIF(一般技能!$H$59:$H$82,C34)=0,0,VLOOKUP(C34,一般技能!$H$59:$J$82,3,FALSE)) -> 0 | G34: 0 | H34: =VLOOKUP(E34,固定値!$AA$2:$AB$7,2,FALSE) -> －－－ | I34: =VLOOKUP(G34,固定値!$AA$2:$AB$7,2,FALSE) -> －－－ | J34: =VLOOKUP(I34,固定値!$AG$1:$AI$7,IF(H34=ラベル!$G$2,2,3),FALSE) -> 0 | K34: =VLOOKUP(I34,固定値!$BE$2:$BF$7,2,FALSE) -> 0 | L34: 272 | M34: 薙ぎ払い | N34: =IF(I34=ラベル!$G$2,"",CHAR(10)&"【"&C34&"】"&REPT(" ",11-LEN(C34))&"● "&IF(K34>1,"●","○")&" "&IF(K34>2,"●","○")&" "&IF(K34>3,"●","○")&" "&IF(K34>4,"●","○")&" ／") ->  | O34: =IF(I34=ラベル!$G$2,"",CHAR(10)&"【"&M34&"】"&REPT(" ",8-LEN(M34))&I34&REPT(" ",22)&L34) ->  | P34: 272項
C35: 二刀流 | D35: 戦士系職業向け | E35: =IF(COUNTIF(一般技能!$H$51:$H$56,C35)=0,0,VLOOKUP(C35,一般技能!$H$51:$J$56,3,FALSE)) -> 0 | F35: =IF(COUNTIF(一般技能!$H$59:$H$82,C35)=0,0,VLOOKUP(C35,一般技能!$H$59:$J$82,3,FALSE)) -> 0 | G35: 0 | H35: =VLOOKUP(E35,固定値!$AA$2:$AB$7,2,FALSE) -> －－－ | I35: =VLOOKUP(G35,固定値!$AA$2:$AB$7,2,FALSE) -> －－－ | J35: =VLOOKUP(I35,固定値!$AG$1:$AI$7,IF(H35=ラベル!$G$2,2,3),FALSE) -> 0 | K35: =VLOOKUP(I35,固定値!$BE$2:$BF$7,2,FALSE) -> 0 | L35: 271 | M35: 二刀流 | N35: =IF(I35=ラベル!$G$2,"",CHAR(10)&"【"&C35&"】"&REPT(" ",11-LEN(C35))&"● "&IF(K35>1,"●","○")&" "&IF(K35>2,"●","○")&" "&IF(K35>3,"●","○")&" "&IF(K35>4,"●","○")&" ／") ->  | O35: =IF(I35=ラベル!$G$2,"",CHAR(10)&"【"&M35&"】"&REPT(" ",8-LEN(M35))&I35&REPT(" ",22)&L35) ->  | P35: 271項
C36: 発勁 | D36: 戦士系職業向け | E36: =IF(COUNTIF(一般技能!$H$51:$H$56,C36)=0,0,VLOOKUP(C36,一般技能!$H$51:$J$56,3,FALSE)) -> 0 | F36: =IF(COUNTIF(一般技能!$H$59:$H$82,C36)=0,0,VLOOKUP(C36,一般技能!$H$59:$J$82,3,FALSE)) -> 0 | G36: 0 | H36: =VLOOKUP(E36,固定値!$AA$2:$AB$7,2,FALSE) -> －－－ | I36: =VLOOKUP(G36,固定値!$AA$2:$AB$7,2,FALSE) -> －－－ | J36: =VLOOKUP(I36,固定値!$AG$1:$AI$7,IF(H36=ラベル!$G$2,2,3),FALSE) -> 0 | K36: =VLOOKUP(I36,固定値!$BE$2:$BF$7,2,FALSE) -> 0 | L36: 270 | M36: 発勁 | N36: =IF(I36=ラベル!$G$2,"",CHAR(10)&"【"&C36&"】"&REPT(" ",11-LEN(C36))&"● "&IF(K36>1,"●","○")&" "&IF(K36>2,"●","○")&" "&IF(K36>3,"●","○")&" "&IF(K36>4,"●","○")&" ／") ->  | O36: =IF(I36=ラベル!$G$2,"",CHAR(10)&"【"&M36&"】"&REPT(" ",8-LEN(M36))&I36&REPT(" ",22)&L36) ->  | P36: 270項 | Q36: =IF($K$36>0,"【発勁】使用可能1点消耗するごとに、威力へのボーナスに追加で+1(最大で"&能力値!D5&"まで)","") ->  | U36: =IF(K36=0,-1,INDEX(V36:Z36,K36)) -> -1 | V36: 1 | W36: 2 | X36: 1d3 | Y36: 1d6 | Z36: 1d6
C37: 武器：片手剣 | D37: 戦士系職業向け | E37: =IF(COUNTIF(一般技能!$H$51:$H$56,C37)=0,0,VLOOKUP(C37,一般技能!$H$51:$J$56,3,FALSE)) -> 0 | F37: =IF(COUNTIF(一般技能!$H$59:$H$82,C37)=0,0,VLOOKUP(C37,一般技能!$H$59:$J$82,3,FALSE)) -> 0 | G37: 0 | H37: =VLOOKUP(E37,固定値!$AA$2:$AB$7,2,FALSE) -> －－－ | I37: =VLOOKUP(G37,固定値!$AA$2:$AB$7,2,FALSE) -> －－－ | J37: =VLOOKUP(I37,固定値!$AG$1:$AI$7,IF(H37=ラベル!$G$2,2,3),FALSE) -> 0 | K37: =VLOOKUP(I37,固定値!$BE$2:$BF$7,2,FALSE) -> 0 | L37: 257 | M37: 武器：片手剣 | N37: =IF(I37=ラベル!$G$2,"",CHAR(10)&"【"&C37&"】"&REPT(" ",11-LEN(C37))&"● "&IF(K37>1,"●","○")&" "&IF(K37>2,"●","○")&" "&IF(K37>3,"●","○")&" "&IF(K37>4,"●","○")&" ／") ->  | O37: =IF(I37=ラベル!$G$2,"",CHAR(10)&"【"&M37&"】"&REPT(" ",8-LEN(M37))&I37&REPT(" ",22)&L37) ->  | P37: 257項 | Q37: =装備!I21 -> 0 | R37: =IF(I37=ラベル!$G$2,"",CHAR(10)&"【"&M37&"】"&"+"&K37)&IF(Q37>0,"【腕輪："&M37&"+"&Q37&"】","") -> 
C38: 武器：両手剣 | D38: 戦士系職業向け | E38: =IF(COUNTIF(一般技能!$H$51:$H$56,C38)=0,0,VLOOKUP(C38,一般技能!$H$51:$J$56,3,FALSE)) -> 0 | F38: =IF(COUNTIF(一般技能!$H$59:$H$82,C38)=0,0,VLOOKUP(C38,一般技能!$H$59:$J$82,3,FALSE)) -> 0 | G38: 0 | H38: =VLOOKUP(E38,固定値!$AA$2:$AB$7,2,FALSE) -> －－－ | I38: =VLOOKUP(G38,固定値!$AA$2:$AB$7,2,FALSE) -> －－－ | J38: =VLOOKUP(I38,固定値!$AG$1:$AI$7,IF(H38=ラベル!$G$2,2,3),FALSE) -> 0 | K38: =VLOOKUP(I38,固定値!$BE$2:$BF$7,2,FALSE) -> 0 | L38: 257 | M38: 武器：両手剣 | N38: =IF(I38=ラベル!$G$2,"",CHAR(10)&"【"&C38&"】"&REPT(" ",11-LEN(C38))&"● "&IF(K38>1,"●","○")&" "&IF(K38>2,"●","○")&" "&IF(K38>3,"●","○")&" "&IF(K38>4,"●","○")&" ／") ->  | O38: =IF(I38=ラベル!$G$2,"",CHAR(10)&"【"&M38&"】"&REPT(" ",8-LEN(M38))&I38&REPT(" ",22)&L38) ->  | P38: 257項 | Q38: =装備!J21 -> 0 | R38: =IF(I38=ラベル!$G$2,"",CHAR(10)&"【"&M38&"】"&"+"&K38)&IF(Q38>0,"【腕輪："&M38&"+"&Q38&"】","") -> 
C39: 武器：斧 | D39: 戦士系職業向け | E39: =IF(COUNTIF(一般技能!$H$51:$H$56,C39)=0,0,VLOOKUP(C39,一般技能!$H$51:$J$56,3,FALSE)) -> 0 | F39: =IF(COUNTIF(一般技能!$H$59:$H$82,C39)=0,0,VLOOKUP(C39,一般技能!$H$59:$J$82,3,FALSE)) -> 0 | G39: 0 | H39: =VLOOKUP(E39,固定値!$AA$2:$AB$7,2,FALSE) -> －－－ | I39: =VLOOKUP(G39,固定値!$AA$2:$AB$7,2,FALSE) -> －－－ | J39: =VLOOKUP(I39,固定値!$AG$1:$AI$7,IF(H39=ラベル!$G$2,2,3),FALSE) -> 0 | K39: =VLOOKUP(I39,固定値!$BE$2:$BF$7,2,FALSE) -> 0 | L39: 257 | M39: 武器：斧 | N39: =IF(I39=ラベル!$G$2,"",CHAR(10)&"【"&C39&"】"&REPT(" ",11-LEN(C39))&"● "&IF(K39>1,"●","○")&" "&IF(K39>2,"●","○")&" "&IF(K39>3,"●","○")&" "&IF(K39>4,"●","○")&" ／") ->  | O39: =IF(I39=ラベル!$G$2,"",CHAR(10)&"【"&M39&"】"&REPT(" ",8-LEN(M39))&I39&REPT(" ",22)&L39) ->  | P39: 257項 | Q39: =装備!K21 -> 0 | R39: =IF(I39=ラベル!$G$2,"",CHAR(10)&"【"&M39&"】"&"+"&K39)&IF(Q39>0,"【腕輪："&M39&"+"&Q39&"】","") -> 
C40: 武器：槍 | D40: 戦士系職業向け | E40: =IF(COUNTIF(一般技能!$H$51:$H$56,C40)=0,0,VLOOKUP(C40,一般技能!$H$51:$J$56,3,FALSE)) -> 0 | F40: =IF(COUNTIF(一般技能!$H$59:$H$82,C40)=0,0,VLOOKUP(C40,一般技能!$H$59:$J$82,3,FALSE)) -> 0 | G40: 0 | H40: =VLOOKUP(E40,固定値!$AA$2:$AB$7,2,FALSE) -> －－－ | I40: =VLOOKUP(G40,固定値!$AA$2:$AB$7,2,FALSE) -> －－－ | J40: =VLOOKUP(I40,固定値!$AG$1:$AI$7,IF(H40=ラベル!$G$2,2,3),FALSE) -> 0 | K40: =VLOOKUP(I40,固定値!$BE$2:$BF$7,2,FALSE) -> 0 | L40: 257 | M40: 武器：槍 | N40: =IF(I40=ラベル!$G$2,"",CHAR(10)&"【"&C40&"】"&REPT(" ",11-LEN(C40))&"● "&IF(K40>1,"●","○")&" "&IF(K40>2,"●","○")&" "&IF(K40>3,"●","○")&" "&IF(K40>4,"●","○")&" ／") ->  | O40: =IF(I40=ラベル!$G$2,"",CHAR(10)&"【"&M40&"】"&REPT(" ",8-LEN(M40))&I40&REPT(" ",22)&L40) ->  | P40: 257項 | Q40: =装備!L21 -> 0 | R40: =IF(I40=ラベル!$G$2,"",CHAR(10)&"【"&M40&"】"&"+"&K40)&IF(Q40>0,"【腕輪："&M40&"+"&Q40&"】","") -> 
C41: 武器：戦槌 | D41: 戦士系職業向け | E41: =IF(COUNTIF(一般技能!$H$51:$H$56,C41)=0,0,VLOOKUP(C41,一般技能!$H$51:$J$56,3,FALSE)) -> 0 | F41: =IF(COUNTIF(一般技能!$H$59:$H$82,C41)=0,0,VLOOKUP(C41,一般技能!$H$59:$J$82,3,FALSE)) -> 0 | G41: 0 | H41: =VLOOKUP(E41,固定値!$AA$2:$AB$7,2,FALSE) -> －－－ | I41: =VLOOKUP(G41,固定値!$AA$2:$AB$7,2,FALSE) -> －－－ | J41: =VLOOKUP(I41,固定値!$AG$1:$AI$7,IF(H41=ラベル!$G$2,2,3),FALSE) -> 0 | K41: =VLOOKUP(I41,固定値!$BE$2:$BF$7,2,FALSE) -> 0 | L41: 257 | M41: 武器：戦槌 | N41: =IF(I41=ラベル!$G$2,"",CHAR(10)&"【"&C41&"】"&REPT(" ",11-LEN(C41))&"● "&IF(K41>1,"●","○")&" "&IF(K41>2,"●","○")&" "&IF(K41>3,"●","○")&" "&IF(K41>4,"●","○")&" ／") ->  | O41: =IF(I41=ラベル!$G$2,"",CHAR(10)&"【"&M41&"】"&REPT(" ",8-LEN(M41))&I41&REPT(" ",22)&L41) ->  | P41: 257項 | Q41: =装備!M21 -> 0 | R41: =IF(I41=ラベル!$G$2,"",CHAR(10)&"【"&M41&"】"&"+"&K41)&IF(Q41>0,"【腕輪："&M41&"+"&Q41&"】","") -> 
C42: 武器：棍杖 | D42: 戦士系職業向け | E42: =IF(COUNTIF(一般技能!$H$51:$H$56,C42)=0,0,VLOOKUP(C42,一般技能!$H$51:$J$56,3,FALSE)) -> 0 | F42: =IF(COUNTIF(一般技能!$H$59:$H$82,C42)=0,0,VLOOKUP(C42,一般技能!$H$59:$J$82,3,FALSE)) -> 0 | G42: 0 | H42: =VLOOKUP(E42,固定値!$AA$2:$AB$7,2,FALSE) -> －－－ | I42: =VLOOKUP(G42,固定値!$AA$2:$AB$7,2,FALSE) -> －－－ | J42: =VLOOKUP(I42,固定値!$AG$1:$AI$7,IF(H42=ラベル!$G$2,2,3),FALSE) -> 0 | K42: =VLOOKUP(I42,固定値!$BE$2:$BF$7,2,FALSE) -> 0 | L42: 257 | M42: 武器：棍杖 | N42: =IF(I42=ラベル!$G$2,"",CHAR(10)&"【"&C42&"】"&REPT(" ",11-LEN(C42))&"● "&IF(K42>1,"●","○")&" "&IF(K42>2,"●","○")&" "&IF(K42>3,"●","○")&" "&IF(K42>4,"●","○")&" ／") ->  | O42: =IF(I42=ラベル!$G$2,"",CHAR(10)&"【"&M42&"】"&REPT(" ",8-LEN(M42))&I42&REPT(" ",22)&L42) ->  | P42: 257項 | Q42: =装備!N21 -> 0 | R42: =IF(I42=ラベル!$G$2,"",CHAR(10)&"【"&M42&"】"&"+"&K42)&IF(Q42>0,"【腕輪："&M42&"+"&Q42&"】","") -> 
C43: 武器：格闘武器 | D43: 戦士系職業向け | E43: =IF(COUNTIF(一般技能!$H$51:$H$56,C43)=0,0,VLOOKUP(C43,一般技能!$H$51:$J$56,3,FALSE)) -> 0 | F43: =IF(COUNTIF(一般技能!$H$59:$H$82,C43)=0,0,VLOOKUP(C43,一般技能!$H$59:$J$82,3,FALSE)) -> 0 | G43: 0 | H43: =VLOOKUP(E43,固定値!$AA$2:$AB$7,2,FALSE) -> －－－ | I43: =VLOOKUP(G43,固定値!$AA$2:$AB$7,2,FALSE) -> －－－ | J43: =VLOOKUP(I43,固定値!$AG$1:$AI$7,IF(H43=ラベル!$G$2,2,3),FALSE) -> 0 | K43: =VLOOKUP(I43,固定値!$BE$2:$BF$7,2,FALSE) -> 0 | L43: 257 | M43: 武器：格闘 | N43: =IF(I43=ラベル!$G$2,"",CHAR(10)&"【"&C43&"】"&REPT(" ",11-LEN(C43))&"● "&IF(K43>1,"●","○")&" "&IF(K43>2,"●","○")&" "&IF(K43>3,"●","○")&" "&IF(K43>4,"●","○")&" ／") ->  | O43: =IF(I43=ラベル!$G$2,"",CHAR(10)&"【"&M43&"】"&REPT(" ",8-LEN(M43))&I43&REPT(" ",22)&L43) ->  | P43: 257項 | Q43: =装備!O21 -> 0 | R43: =IF(I43=ラベル!$G$2,"",CHAR(10)&"【"&M43&"】"&"+"&K43)&IF(Q43>0,"【腕輪："&M43&"+"&Q43&"】","") -> 
C44: 武器：投擲武器 | D44: 戦士系職業向け | E44: =IF(COUNTIF(一般技能!$H$51:$H$56,C44)=0,0,VLOOKUP(C44,一般技能!$H$51:$J$56,3,FALSE)) -> 1 | F44: =IF(COUNTIF(一般技能!$H$59:$H$82,C44)=0,0,VLOOKUP(C44,一般技能!$H$59:$J$82,3,FALSE)) -> 0 | G44: 1 | H44: =VLOOKUP(E44,固定値!$AA$2:$AB$7,2,FALSE) -> 初歩 | I44: =VLOOKUP(G44,固定値!$AA$2:$AB$7,2,FALSE) -> 初歩 | J44: =VLOOKUP(I44,固定値!$AG$1:$AI$7,IF(H44=ラベル!$G$2,2,3),FALSE) -> 0 | K44: =VLOOKUP(I44,固定値!$BE$2:$BF$7,2,FALSE) -> 1 | L44: 257 | M44: 武器：投擲 | N44: =IF(I44=ラベル!$G$2,"",CHAR(10)&"【"&C44&"】"&REPT(" ",11-LEN(C44))&"● "&IF(K44>1,"●","○")&" "&IF(K44>2,"●","○")&" "&IF(K44>3,"●","○")&" "&IF(K44>4,"●","○")&" ／") -> 【武器：投擲武器】 ● ○ ○ ○ ○ ／ | O44: =IF(I44=ラベル!$G$2,"",CHAR(10)&"【"&M44&"】"&REPT(" ",8-LEN(M44))&I44&REPT(" ",22)&L44) -> 【武器：投擲】 初歩 257 | P44: 257項 | Q44: =装備!P21 -> 0 | R44: =IF(I44=ラベル!$G$2,"",CHAR(10)&"【"&M44&"】"&"+"&K44)&IF(Q44>0,"【腕輪："&M44&"+"&Q44&"】","") -> 【武器：投擲】+1
C45: 武器：弩弓 | D45: 戦士系職業向け | E45: =IF(COUNTIF(一般技能!$H$51:$H$56,C45)=0,0,VLOOKUP(C45,一般技能!$H$51:$J$56,3,FALSE)) -> 0 | F45: =IF(COUNTIF(一般技能!$H$59:$H$82,C45)=0,0,VLOOKUP(C45,一般技能!$H$59:$J$82,3,FALSE)) -> 0 | G45: 0 | H45: =VLOOKUP(E45,固定値!$AA$2:$AB$7,2,FALSE) -> －－－ | I45: =VLOOKUP(G45,固定値!$AA$2:$AB$7,2,FALSE) -> －－－ | J45: =VLOOKUP(I45,固定値!$AG$1:$AI$7,IF(H45=ラベル!$G$2,2,3),FALSE) -> 0 | K45: =VLOOKUP(I45,固定値!$BE$2:$BF$7,2,FALSE) -> 0 | L45: 257 | M45: 武器：弩弓 | N45: =IF(I45=ラベル!$G$2,"",CHAR(10)&"【"&C45&"】"&REPT(" ",11-LEN(C45))&"● "&IF(K45>1,"●","○")&" "&IF(K45>2,"●","○")&" "&IF(K45>3,"●","○")&" "&IF(K45>4,"●","○")&" ／") ->  | O45: =IF(I45=ラベル!$G$2,"",CHAR(10)&"【"&M45&"】"&REPT(" ",8-LEN(M45))&I45&REPT(" ",22)&L45) ->  | P45: 257項 | Q45: =装備!Q21 -> 0 | R45: =IF(I45=ラベル!$G$2,"",CHAR(10)&"【"&M45&"】"&"+"&K45)&IF(Q45>0,"【腕輪："&M45&"+"&Q45&"】","") -> 
C46: 見切り | D46: 戦士系職業向け | E46: =IF(COUNTIF(一般技能!$H$51:$H$56,C46)=0,0,VLOOKUP(C46,一般技能!$H$51:$J$56,3,FALSE)) -> 0 | F46: =IF(COUNTIF(一般技能!$H$59:$H$82,C46)=0,0,VLOOKUP(C46,一般技能!$H$59:$J$82,3,FALSE)) -> 0 | G46: 0 | H46: =VLOOKUP(E46,固定値!$AA$2:$AB$7,2,FALSE) -> －－－ | I46: =VLOOKUP(G46,固定値!$AA$2:$AB$7,2,FALSE) -> －－－ | J46: =VLOOKUP(I46,固定値!$AG$1:$AI$7,IF(H46=ラベル!$G$2,2,3),FALSE) -> 0 | K46: =VLOOKUP(I46,固定値!$BE$2:$BF$7,2,FALSE) -> 0 | L46: 269 | M46: 見切り | N46: =IF(I46=ラベル!$G$2,"",CHAR(10)&"【"&C46&"】"&REPT(" ",11-LEN(C46))&"● "&IF(K46>1,"●","○")&" "&IF(K46>2,"●","○")&" "&IF(K46>3,"●","○")&" "&IF(K46>4,"●","○")&" ／") ->  | O46: =IF(I46=ラベル!$G$2,"",CHAR(10)&"【"&M46&"】"&REPT(" ",8-LEN(M46))&I46&REPT(" ",22)&L46) ->  | P46: 269項 | Q46: =IF($K$46>0,"【"&C46&"】により大成功"&VLOOKUP($I$46,固定値!$EI$2:$EK$7,2,FALSE)&"、大失敗"&VLOOKUP($I$46,固定値!$EI$2:$EK$7,3,FALSE)&"で回避判定が可能。","") -> 
C47: 鎧：衣鎧 | D47: 戦士系職業向け | E47: =IF(COUNTIF(一般技能!$H$51:$H$56,C47)=0,0,VLOOKUP(C47,一般技能!$H$51:$J$56,3,FALSE)) -> 0 | F47: =IF(COUNTIF(一般技能!$H$59:$H$82,C47)=0,0,VLOOKUP(C47,一般技能!$H$59:$J$82,3,FALSE)) -> 0 | G47: 0 | H47: =VLOOKUP(E47,固定値!$AA$2:$AB$7,2,FALSE) -> －－－ | I47: =VLOOKUP(G47,固定値!$AA$2:$AB$7,2,FALSE) -> －－－ | J47: =VLOOKUP(I47,固定値!$AG$1:$AI$7,IF(H47=ラベル!$G$2,2,3),FALSE) -> 0 | K47: =VLOOKUP(I47,固定値!$BE$2:$BF$7,2,FALSE) -> 0 | L47: 257 | M47: 鎧：衣鎧 | N47: =IF(I47=ラベル!$G$2,"",CHAR(10)&"【"&C47&"】"&REPT(" ",11-LEN(C47))&"● "&IF(K47>1,"●","○")&" "&IF(K47>2,"●","○")&" "&IF(K47>3,"●","○")&" "&IF(K47>4,"●","○")&" ／") ->  | O47: =IF(I47=ラベル!$G$2,"",CHAR(10)&"【"&M47&"】"&REPT(" ",8-LEN(M47))&I47&REPT(" ",22)&L47) ->  | P47: 257項 | S47: =IF(I47=ラベル!$F$2,"","【"&M47&"】"&"+"&K47) -> 
C48: 鎧：軽鎧 | D48: 戦士系職業向け | E48: =IF(COUNTIF(一般技能!$H$51:$H$56,C48)=0,0,VLOOKUP(C48,一般技能!$H$51:$J$56,3,FALSE)) -> 0 | F48: =IF(COUNTIF(一般技能!$H$59:$H$82,C48)=0,0,VLOOKUP(C48,一般技能!$H$59:$J$82,3,FALSE)) -> 0 | G48: 0 | H48: =VLOOKUP(E48,固定値!$AA$2:$AB$7,2,FALSE) -> －－－ | I48: =VLOOKUP(G48,固定値!$AA$2:$AB$7,2,FALSE) -> －－－ | J48: =VLOOKUP(I48,固定値!$AG$1:$AI$7,IF(H48=ラベル!$G$2,2,3),FALSE) -> 0 | K48: =VLOOKUP(I48,固定値!$BE$2:$BF$7,2,FALSE) -> 0 | L48: 257 | M48: 鎧：軽鎧 | N48: =IF(I48=ラベル!$G$2,"",CHAR(10)&"【"&C48&"】"&REPT(" ",11-LEN(C48))&"● "&IF(K48>1,"●","○")&" "&IF(K48>2,"●","○")&" "&IF(K48>3,"●","○")&" "&IF(K48>4,"●","○")&" ／") ->  | O48: =IF(I48=ラベル!$G$2,"",CHAR(10)&"【"&M48&"】"&REPT(" ",8-LEN(M48))&I48&REPT(" ",22)&L48) ->  | P48: 257項 | S48: =IF(I48=ラベル!$F$2,"","【"&M48&"】"&"+"&K48) -> 
C49: 鎧：重鎧 | D49: 戦士系職業向け | E49: =IF(COUNTIF(一般技能!$H$51:$H$56,C49)=0,0,VLOOKUP(C49,一般技能!$H$51:$J$56,3,FALSE)) -> 0 | F49: =IF(COUNTIF(一般技能!$H$59:$H$82,C49)=0,0,VLOOKUP(C49,一般技能!$H$59:$J$82,3,FALSE)) -> 0 | G49: 0 | H49: =VLOOKUP(E49,固定値!$AA$2:$AB$7,2,FALSE) -> －－－ | I49: =VLOOKUP(G49,固定値!$AA$2:$AB$7,2,FALSE) -> －－－ | J49: =VLOOKUP(I49,固定値!$AG$1:$AI$7,IF(H49=ラベル!$G$2,2,3),FALSE) -> 0 | K49: =VLOOKUP(I49,固定値!$BE$2:$BF$7,2,FALSE) -> 0 | L49: 257 | M49: 鎧：重鎧 | N49: =IF(I49=ラベル!$G$2,"",CHAR(10)&"【"&C49&"】"&REPT(" ",11-LEN(C49))&"● "&IF(K49>1,"●","○")&" "&IF(K49>2,"●","○")&" "&IF(K49>3,"●","○")&" "&IF(K49>4,"●","○")&" ／") ->  | O49: =IF(I49=ラベル!$G$2,"",CHAR(10)&"【"&M49&"】"&REPT(" ",8-LEN(M49))&I49&REPT(" ",22)&L49) ->  | P49: 257項 | S49: =IF(I49=ラベル!$F$2,"","【"&M49&"】"&"+"&K49) -> 
C50: 火の遣い手 | D50: 呪文遣い系職業向け | E50: =IF(COUNTIF(一般技能!$H$51:$H$56,C50)=0,0,VLOOKUP(C50,一般技能!$H$51:$J$56,3,FALSE)) -> 0 | F50: =IF(COUNTIF(一般技能!$H$59:$H$82,C50)=0,0,VLOOKUP(C50,一般技能!$H$59:$J$82,3,FALSE)) -> 0 | G50: 0 | H50: =VLOOKUP(E50,固定値!$AA$2:$AB$7,2,FALSE) -> －－－ | I50: =VLOOKUP(G50,固定値!$AA$2:$AB$7,2,FALSE) -> －－－ | J50: =VLOOKUP(I50,固定値!$AG$1:$AI$7,IF(H50=ラベル!$G$2,2,3),FALSE) -> 0 | K50: =VLOOKUP(I50,固定値!$BE$2:$BF$7,2,FALSE) -> 0 | L50: 273 | M50: 火の遣い手 | N50: =IF(I50=ラベル!$G$2,"",CHAR(10)&"【"&C50&"】"&REPT(" ",11-LEN(C50))&"● "&IF(K50>1,"●","○")&" "&IF(K50>2,"●","○")&" "&IF(K50>3,"●","○")&" "&IF(K50>4,"●","○")&" ／") ->  | O50: =IF(I50=ラベル!$G$2,"",CHAR(10)&"【"&M50&"】"&REPT(" ",8-LEN(M50))&I50&REPT(" ",22)&L50) ->  | P50: 273項 | Q50: =IF(I50=ラベル!$G$2,"",CHAR(10)&"【"&M50&"】"&"大成功："&VLOOKUP(I50,固定値!$EB$2:$ED$7,2,FALSE)&"/効果値+"&VLOOKUP(I50,固定値!$EB$2:$ED$7,3,FALSE)) -> 
C51: 水の遣い手 | D51: 呪文遣い系職業向け | E51: =IF(COUNTIF(一般技能!$H$51:$H$56,C51)=0,0,VLOOKUP(C51,一般技能!$H$51:$J$56,3,FALSE)) -> 0 | F51: =IF(COUNTIF(一般技能!$H$59:$H$82,C51)=0,0,VLOOKUP(C51,一般技能!$H$59:$J$82,3,FALSE)) -> 0 | G51: 0 | H51: =VLOOKUP(E51,固定値!$AA$2:$AB$7,2,FALSE) -> －－－ | I51: =VLOOKUP(G51,固定値!$AA$2:$AB$7,2,FALSE) -> －－－ | J51: =VLOOKUP(I51,固定値!$AG$1:$AI$7,IF(H51=ラベル!$G$2,2,3),FALSE) -> 0 | K51: =VLOOKUP(I51,固定値!$BE$2:$BF$7,2,FALSE) -> 0 | L51: 273 | M51: 水の遣い手 | N51: =IF(I51=ラベル!$G$2,"",CHAR(10)&"【"&C51&"】"&REPT(" ",11-LEN(C51))&"● "&IF(K51>1,"●","○")&" "&IF(K51>2,"●","○")&" "&IF(K51>3,"●","○")&" "&IF(K51>4,"●","○")&" ／") ->  | O51: =IF(I51=ラベル!$G$2,"",CHAR(10)&"【"&M51&"】"&REPT(" ",8-LEN(M51))&I51&REPT(" ",22)&L51) ->  | P51: 273項 | Q51: =IF(I51=ラベル!$G$2,"",CHAR(10)&"【"&M51&"】"&"大成功："&VLOOKUP(I51,固定値!$EB$2:$ED$7,2,FALSE)&"/効果値+"&VLOOKUP(I51,固定値!$EB$2:$ED$7,3,FALSE)) -> 
C52: 風の遣い手 | D52: 呪文遣い系職業向け | E52: =IF(COUNTIF(一般技能!$H$51:$H$56,C52)=0,0,VLOOKUP(C52,一般技能!$H$51:$J$56,3,FALSE)) -> 0 | F52: =IF(COUNTIF(一般技能!$H$59:$H$82,C52)=0,0,VLOOKUP(C52,一般技能!$H$59:$J$82,3,FALSE)) -> 0 | G52: 0 | H52: =VLOOKUP(E52,固定値!$AA$2:$AB$7,2,FALSE) -> －－－ | I52: =VLOOKUP(G52,固定値!$AA$2:$AB$7,2,FALSE) -> －－－ | J52: =VLOOKUP(I52,固定値!$AG$1:$AI$7,IF(H52=ラベル!$G$2,2,3),FALSE) -> 0 | K52: =VLOOKUP(I52,固定値!$BE$2:$BF$7,2,FALSE) -> 0 | L52: 273 | M52: 風の遣い手 | N52: =IF(I52=ラベル!$G$2,"",CHAR(10)&"【"&C52&"】"&REPT(" ",11-LEN(C52))&"● "&IF(K52>1,"●","○")&" "&IF(K52>2,"●","○")&" "&IF(K52>3,"●","○")&" "&IF(K52>4,"●","○")&" ／") ->  | O52: =IF(I52=ラベル!$G$2,"",CHAR(10)&"【"&M52&"】"&REPT(" ",8-LEN(M52))&I52&REPT(" ",22)&L52) ->  | P52: 273項 | Q52: =IF(I52=ラベル!$G$2,"",CHAR(10)&"【"&M52&"】"&"大成功："&VLOOKUP(I52,固定値!$EB$2:$ED$7,2,FALSE)&"/効果値+"&VLOOKUP(I52,固定値!$EB$2:$ED$7,3,FALSE)) -> 
C53: 土の遣い手 | D53: 呪文遣い系職業向け | E53: =IF(COUNTIF(一般技能!$H$51:$H$56,C53)=0,0,VLOOKUP(C53,一般技能!$H$51:$J$56,3,FALSE)) -> 0 | F53: =IF(COUNTIF(一般技能!$H$59:$H$82,C53)=0,0,VLOOKUP(C53,一般技能!$H$59:$J$82,3,FALSE)) -> 0 | G53: 0 | H53: =VLOOKUP(E53,固定値!$AA$2:$AB$7,2,FALSE) -> －－－ | I53: =VLOOKUP(G53,固定値!$AA$2:$AB$7,2,FALSE) -> －－－ | J53: =VLOOKUP(I53,固定値!$AG$1:$AI$7,IF(H53=ラベル!$G$2,2,3),FALSE) -> 0 | K53: =VLOOKUP(I53,固定値!$BE$2:$BF$7,2,FALSE) -> 0 | L53: 273 | M53: 土の遣い手 | N53: =IF(I53=ラベル!$G$2,"",CHAR(10)&"【"&C53&"】"&REPT(" ",11-LEN(C53))&"● "&IF(K53>1,"●","○")&" "&IF(K53>2,"●","○")&" "&IF(K53>3,"●","○")&" "&IF(K53>4,"●","○")&" ／") ->  | O53: =IF(I53=ラベル!$G$2,"",CHAR(10)&"【"&M53&"】"&REPT(" ",8-LEN(M53))&I53&REPT(" ",22)&L53) ->  | P53: 273項 | Q53: =IF(I53=ラベル!$G$2,"",CHAR(10)&"【"&M53&"】"&"大成功："&VLOOKUP(I53,固定値!$EB$2:$ED$7,2,FALSE)&"/効果値+"&VLOOKUP(I53,固定値!$EB$2:$ED$7,3,FALSE)) -> 
C54: 生命の遣い手 | D54: 呪文遣い系職業向け | E54: =IF(COUNTIF(一般技能!$H$51:$H$56,C54)=0,0,VLOOKUP(C54,一般技能!$H$51:$J$56,3,FALSE)) -> 0 | F54: =IF(COUNTIF(一般技能!$H$59:$H$82,C54)=0,0,VLOOKUP(C54,一般技能!$H$59:$J$82,3,FALSE)) -> 0 | G54: 0 | H54: =VLOOKUP(E54,固定値!$AA$2:$AB$7,2,FALSE) -> －－－ | I54: =VLOOKUP(G54,固定値!$AA$2:$AB$7,2,FALSE) -> －－－ | J54: =VLOOKUP(I54,固定値!$AG$1:$AI$7,IF(H54=ラベル!$G$2,2,3),FALSE) -> 0 | K54: =VLOOKUP(I54,固定値!$BE$2:$BF$7,2,FALSE) -> 0 | L54: 273 | M54: 生命の遣い手 | N54: =IF(I54=ラベル!$G$2,"",CHAR(10)&"【"&C54&"】"&REPT(" ",11-LEN(C54))&"● "&IF(K54>1,"●","○")&" "&IF(K54>2,"●","○")&" "&IF(K54>3,"●","○")&" "&IF(K54>4,"●","○")&" ／") ->  | O54: =IF(I54=ラベル!$G$2,"",CHAR(10)&"【"&M54&"】"&REPT(" ",8-LEN(M54))&I54&REPT(" ",22)&L54) ->  | P54: 273項 | Q54: =IF(I54=ラベル!$G$2,"",CHAR(10)&"【"&M54&"】"&"大成功："&VLOOKUP(I54,固定値!$EB$2:$ED$7,2,FALSE)&"/効果値+"&VLOOKUP(I54,固定値!$EB$2:$ED$7,3,FALSE)) -> 
C55: 怪物知識 | D55: 呪文遣い系職業向け | E55: =IF(COUNTIF(一般技能!$H$51:$H$56,C55)=0,0,VLOOKUP(C55,一般技能!$H$51:$J$56,3,FALSE)) -> 0 | F55: =IF(COUNTIF(一般技能!$H$59:$H$82,C55)=0,0,VLOOKUP(C55,一般技能!$H$59:$J$82,3,FALSE)) -> 0 | G55: 0 | H55: =VLOOKUP(E55,固定値!$AA$2:$AB$7,2,FALSE) -> －－－ | I55: =VLOOKUP(G55,固定値!$AA$2:$AB$7,2,FALSE) -> －－－ | J55: =VLOOKUP(I55,固定値!$AG$1:$AI$7,IF(H55=ラベル!$G$2,2,3),FALSE) -> 0 | K55: =VLOOKUP(I55,固定値!$BE$2:$BF$7,2,FALSE) -> 0 | L55: 273 | M55: 怪物知識 | N55: =IF(I55=ラベル!$G$2,"",CHAR(10)&"【"&C55&"】"&REPT(" ",11-LEN(C55))&"● "&IF(K55>1,"●","○")&" "&IF(K55>2,"●","○")&" "&IF(K55>3,"●","○")&" "&IF(K55>4,"●","○")&" ／") ->  | O55: =IF(I55=ラベル!$G$2,"",CHAR(10)&"【"&M55&"】"&REPT(" ",8-LEN(M55))&I55&REPT(" ",22)&L55) ->  | P55: 273項
C56: 呪文熟達：攻撃呪文 | D56: 呪文遣い系職業向け | E56: =IF(COUNTIF(一般技能!$H$51:$H$56,C56)=0,0,VLOOKUP(C56,一般技能!$H$51:$J$56,3,FALSE)) -> 0 | F56: =IF(COUNTIF(一般技能!$H$59:$H$82,C56)=0,0,VLOOKUP(C56,一般技能!$H$59:$J$82,3,FALSE)) -> 0 | G56: 0 | H56: =VLOOKUP(E56,固定値!$AA$2:$AB$7,2,FALSE) -> －－－ | I56: =VLOOKUP(G56,固定値!$AA$2:$AB$7,2,FALSE) -> －－－ | J56: =VLOOKUP(I56,固定値!$AG$1:$AI$7,IF(H56=ラベル!$G$2,2,3),FALSE) -> 0 | K56: =VLOOKUP(I56,固定値!$BE$2:$BF$7,2,FALSE) -> 0 | L56: 273 | M56: 熟達：攻撃呪文 | N56: =IF(I56=ラベル!$G$2,"",CHAR(10)&"【"&C56&"】"&REPT(" ",11-LEN(C56))&"● "&IF(K56>1,"●","○")&" "&IF(K56>2,"●","○")&" "&IF(K56>3,"●","○")&" "&IF(K56>4,"●","○")&" ／") ->  | O56: =IF(I56=ラベル!$G$2,"",CHAR(10)&"【"&M56&"】"&REPT(" ",8-LEN(M56))&I56&REPT(" ",22)&L56) ->  | P56: 273項 | Q56: =IF(I56=ラベル!$G$2,"",CHAR(10)&"【"&M56&"】"&"+"&K56) -> 
C57: 呪文熟達：付与呪文 | D57: 呪文遣い系職業向け | E57: =IF(COUNTIF(一般技能!$H$51:$H$56,C57)=0,0,VLOOKUP(C57,一般技能!$H$51:$J$56,3,FALSE)) -> 0 | F57: =IF(COUNTIF(一般技能!$H$59:$H$82,C57)=0,0,VLOOKUP(C57,一般技能!$H$59:$J$82,3,FALSE)) -> 0 | G57: 0 | H57: =VLOOKUP(E57,固定値!$AA$2:$AB$7,2,FALSE) -> －－－ | I57: =VLOOKUP(G57,固定値!$AA$2:$AB$7,2,FALSE) -> －－－ | J57: =VLOOKUP(I57,固定値!$AG$1:$AI$7,IF(H57=ラベル!$G$2,2,3),FALSE) -> 0 | K57: =VLOOKUP(I57,固定値!$BE$2:$BF$7,2,FALSE) -> 0 | L57: 273 | M57: 熟達：付与呪文 | N57: =IF(I57=ラベル!$G$2,"",CHAR(10)&"【"&C57&"】"&REPT(" ",11-LEN(C57))&"● "&IF(K57>1,"●","○")&" "&IF(K57>2,"●","○")&" "&IF(K57>3,"●","○")&" "&IF(K57>4,"●","○")&" ／") ->  | O57: =IF(I57=ラベル!$G$2,"",CHAR(10)&"【"&M57&"】"&REPT(" ",8-LEN(M57))&I57&REPT(" ",22)&L57) ->  | P57: 273項 | Q57: =IF(I57=ラベル!$G$2,"",CHAR(10)&"【"&M57&"】"&"+"&K57) -> 
C58: 呪文熟達：創造呪文 | D58: 呪文遣い系職業向け | E58: =IF(COUNTIF(一般技能!$H$51:$H$56,C58)=0,0,VLOOKUP(C58,一般技能!$H$51:$J$56,3,FALSE)) -> 0 | F58: =IF(COUNTIF(一般技能!$H$59:$H$82,C58)=0,0,VLOOKUP(C58,一般技能!$H$59:$J$82,3,FALSE)) -> 0 | G58: 0 | H58: =VLOOKUP(E58,固定値!$AA$2:$AB$7,2,FALSE) -> －－－ | I58: =VLOOKUP(G58,固定値!$AA$2:$AB$7,2,FALSE) -> －－－ | J58: =VLOOKUP(I58,固定値!$AG$1:$AI$7,IF(H58=ラベル!$G$2,2,3),FALSE) -> 0 | K58: =VLOOKUP(I58,固定値!$BE$2:$BF$7,2,FALSE) -> 0 | L58: 273 | M58: 熟達：創造呪文 | N58: =IF(I58=ラベル!$G$2,"",CHAR(10)&"【"&C58&"】"&REPT(" ",11-LEN(C58))&"● "&IF(K58>1,"●","○")&" "&IF(K58>2,"●","○")&" "&IF(K58>3,"●","○")&" "&IF(K58>4,"●","○")&" ／") ->  | O58: =IF(I58=ラベル!$G$2,"",CHAR(10)&"【"&M58&"】"&REPT(" ",8-LEN(M58))&I58&REPT(" ",22)&L58) ->  | P58: 273項 | Q58: =IF(I58=ラベル!$G$2,"",CHAR(10)&"【"&M58&"】"&"+"&K58) -> 
C59: 呪文熟達：支配呪文 | D59: 呪文遣い系職業向け | E59: =IF(COUNTIF(一般技能!$H$51:$H$56,C59)=0,0,VLOOKUP(C59,一般技能!$H$51:$J$56,3,FALSE)) -> 0 | F59: =IF(COUNTIF(一般技能!$H$59:$H$82,C59)=0,0,VLOOKUP(C59,一般技能!$H$59:$J$82,3,FALSE)) -> 0 | G59: 0 | H59: =VLOOKUP(E59,固定値!$AA$2:$AB$7,2,FALSE) -> －－－ | I59: =VLOOKUP(G59,固定値!$AA$2:$AB$7,2,FALSE) -> －－－ | J59: =VLOOKUP(I59,固定値!$AG$1:$AI$7,IF(H59=ラベル!$G$2,2,3),FALSE) -> 0 | K59: =VLOOKUP(I59,固定値!$BE$2:$BF$7,2,FALSE) -> 0 | L59: 273 | M59: 熟達：支配呪文 | N59: =IF(I59=ラベル!$G$2,"",CHAR(10)&"【"&C59&"】"&REPT(" ",11-LEN(C59))&"● "&IF(K59>1,"●","○")&" "&IF(K59>2,"●","○")&" "&IF(K59>3,"●","○")&" "&IF(K59>4,"●","○")&" ／") ->  | O59: =IF(I59=ラベル!$G$2,"",CHAR(10)&"【"&M59&"】"&REPT(" ",8-LEN(M59))&I59&REPT(" ",22)&L59) ->  | P59: 273項 | Q59: =IF(I59=ラベル!$G$2,"",CHAR(10)&"【"&M59&"】"&"+"&K59) -> 
C60: 呪文熟達：治癒呪文 | D60: 呪文遣い系職業向け | E60: =IF(COUNTIF(一般技能!$H$51:$H$56,C60)=0,0,VLOOKUP(C60,一般技能!$H$51:$J$56,3,FALSE)) -> 0 | F60: =IF(COUNTIF(一般技能!$H$59:$H$82,C60)=0,0,VLOOKUP(C60,一般技能!$H$59:$J$82,3,FALSE)) -> 0 | G60: 0 | H60: =VLOOKUP(E60,固定値!$AA$2:$AB$7,2,FALSE) -> －－－ | I60: =VLOOKUP(G60,固定値!$AA$2:$AB$7,2,FALSE) -> －－－ | J60: =VLOOKUP(I60,固定値!$AG$1:$AI$7,IF(H60=ラベル!$G$2,2,3),FALSE) -> 0 | K60: =VLOOKUP(I60,固定値!$BE$2:$BF$7,2,FALSE) -> 0 | L60: 273 | M60: 熟達：治癒呪文 | N60: =IF(I60=ラベル!$G$2,"",CHAR(10)&"【"&C60&"】"&REPT(" ",11-LEN(C60))&"● "&IF(K60>1,"●","○")&" "&IF(K60>2,"●","○")&" "&IF(K60>3,"●","○")&" "&IF(K60>4,"●","○")&" ／") ->  | O60: =IF(I60=ラベル!$G$2,"",CHAR(10)&"【"&M60&"】"&REPT(" ",8-LEN(M60))&I60&REPT(" ",22)&L60) ->  | P60: 273項 | Q60: =IF(I60=ラベル!$G$2,"",CHAR(10)&"【"&M60&"】"&"+"&K60) -> 
C61: 呪文熟達：汎用呪文 | D61: 呪文遣い系職業向け | E61: =IF(COUNTIF(一般技能!$H$51:$H$56,C61)=0,0,VLOOKUP(C61,一般技能!$H$51:$J$56,3,FALSE)) -> 0 | F61: =IF(COUNTIF(一般技能!$H$59:$H$82,C61)=0,0,VLOOKUP(C61,一般技能!$H$59:$J$82,3,FALSE)) -> 0 | G61: 0 | H61: =VLOOKUP(E61,固定値!$AA$2:$AB$7,2,FALSE) -> －－－ | I61: =VLOOKUP(G61,固定値!$AA$2:$AB$7,2,FALSE) -> －－－ | J61: =VLOOKUP(I61,固定値!$AG$1:$AI$7,IF(H61=ラベル!$G$2,2,3),FALSE) -> 0 | K61: =VLOOKUP(I61,固定値!$BE$2:$BF$7,2,FALSE) -> 0 | L61: 273 | M61: 熟達：汎用呪文 | N61: =IF(I61=ラベル!$G$2,"",CHAR(10)&"【"&C61&"】"&REPT(" ",11-LEN(C61))&"● "&IF(K61>1,"●","○")&" "&IF(K61>2,"●","○")&" "&IF(K61>3,"●","○")&" "&IF(K61>4,"●","○")&" ／") ->  | O61: =IF(I61=ラベル!$G$2,"",CHAR(10)&"【"&M61&"】"&REPT(" ",8-LEN(M61))&I61&REPT(" ",22)&L61) ->  | P61: 273項 | Q61: =IF(I61=ラベル!$G$2,"",CHAR(10)&"【"&M61&"】"&"+"&K61) -> 
C62: 呪文増強：威力 | D62: 呪文遣い系職業向け | E62: =IF(COUNTIF(一般技能!$H$51:$H$56,C62)=0,0,VLOOKUP(C62,一般技能!$H$51:$J$56,3,FALSE)) -> 0 | F62: =IF(COUNTIF(一般技能!$H$59:$H$82,C62)=0,0,VLOOKUP(C62,一般技能!$H$59:$J$82,3,FALSE)) -> 0 | G62: 0 | H62: =VLOOKUP(E62,固定値!$AA$2:$AB$7,2,FALSE) -> －－－ | I62: =VLOOKUP(G62,固定値!$AA$2:$AB$7,2,FALSE) -> －－－ | J62: =VLOOKUP(I62,固定値!$AG$1:$AI$7,IF(H62=ラベル!$G$2,2,3),FALSE) -> 0 | K62: =VLOOKUP(I62,固定値!$BE$2:$BF$7,2,FALSE) -> 0 | L62: 274 | M62: 呪文増強：威力 | N62: =IF(I62=ラベル!$G$2,"",CHAR(10)&"【"&C62&"】"&REPT(" ",11-LEN(C62))&"● "&IF(K62>1,"●","○")&" "&IF(K62>2,"●","○")&" "&IF(K62>3,"●","○")&" "&IF(K62>4,"●","○")&" ／") ->  | O62: =IF(I62=ラベル!$G$2,"",CHAR(10)&"【"&M62&"】"&REPT(" ",8-LEN(M62))&I62&REPT(" ",22)&L62) ->  | P62: 274項
C63: 呪文追加：真言呪文 | D63: 呪文遣い系職業向け | E63: =IF(COUNTIF(一般技能!$H$51:$H$56,C63)=0,0,VLOOKUP(C63,一般技能!$H$51:$J$56,3,FALSE)) -> 0 | F63: =IF(COUNTIF(一般技能!$H$59:$H$82,C63)=0,0,VLOOKUP(C63,一般技能!$H$59:$J$82,3,FALSE)) -> 0 | G63: 0 | H63: =VLOOKUP(E63,固定値!$AA$2:$AB$7,2,FALSE) -> －－－ | I63: =VLOOKUP(G63,固定値!$AA$2:$AB$7,2,FALSE) -> －－－ | J63: =VLOOKUP(I63,固定値!$AG$1:$AI$7,IF(H63=ラベル!$G$2,2,3),FALSE) -> 0 | K63: =VLOOKUP(I63,固定値!$BE$2:$BF$7,2,FALSE) -> 0 | L63: 275 | M63: 追加：真言呪文 | N63: =IF(I63=ラベル!$G$2,"",CHAR(10)&"【"&C63&"】"&REPT(" ",11-LEN(C63))&"● "&IF(K63>1,"●","○")&" "&IF(K63>2,"●","○")&" "&IF(K63>3,"●","○")&" "&IF(K63>4,"●","○")&" ／") ->  | O63: =IF(I63=ラベル!$G$2,"",CHAR(10)&"【"&M63&"】"&REPT(" ",8-LEN(M63))&I63&REPT(" ",22)&L63) ->  | P63: 275項
C64: 呪文追加：奇跡 | D64: 呪文遣い系職業向け | E64: =IF(COUNTIF(一般技能!$H$51:$H$56,C64)=0,0,VLOOKUP(C64,一般技能!$H$51:$J$56,3,FALSE)) -> 0 | F64: =IF(COUNTIF(一般技能!$H$59:$H$82,C64)=0,0,VLOOKUP(C64,一般技能!$H$59:$J$82,3,FALSE)) -> 0 | G64: 0 | H64: =VLOOKUP(E64,固定値!$AA$2:$AB$7,2,FALSE) -> －－－ | I64: =VLOOKUP(G64,固定値!$AA$2:$AB$7,2,FALSE) -> －－－ | J64: =VLOOKUP(I64,固定値!$AG$1:$AI$7,IF(H64=ラベル!$G$2,2,3),FALSE) -> 0 | K64: =VLOOKUP(I64,固定値!$BE$2:$BF$7,2,FALSE) -> 0 | L64: 275 | M64: 追加：奇跡 | N64: =IF(I64=ラベル!$G$2,"",CHAR(10)&"【"&C64&"】"&REPT(" ",11-LEN(C64))&"● "&IF(K64>1,"●","○")&" "&IF(K64>2,"●","○")&" "&IF(K64>3,"●","○")&" "&IF(K64>4,"●","○")&" ／") ->  | O64: =IF(I64=ラベル!$G$2,"",CHAR(10)&"【"&M64&"】"&REPT(" ",8-LEN(M64))&I64&REPT(" ",22)&L64) ->  | P64: 275項
C65: 呪文追加：祖竜術 | D65: 呪文遣い系職業向け | E65: =IF(COUNTIF(一般技能!$H$51:$H$56,C65)=0,0,VLOOKUP(C65,一般技能!$H$51:$J$56,3,FALSE)) -> 0 | F65: =IF(COUNTIF(一般技能!$H$59:$H$82,C65)=0,0,VLOOKUP(C65,一般技能!$H$59:$J$82,3,FALSE)) -> 0 | G65: 0 | H65: =VLOOKUP(E65,固定値!$AA$2:$AB$7,2,FALSE) -> －－－ | I65: =VLOOKUP(G65,固定値!$AA$2:$AB$7,2,FALSE) -> －－－ | J65: =VLOOKUP(I65,固定値!$AG$1:$AI$7,IF(H65=ラベル!$G$2,2,3),FALSE) -> 0 | K65: =VLOOKUP(I65,固定値!$BE$2:$BF$7,2,FALSE) -> 0 | L65: 275 | M65: 追加：祖竜術 | N65: =IF(I65=ラベル!$G$2,"",CHAR(10)&"【"&C65&"】"&REPT(" ",11-LEN(C65))&"● "&IF(K65>1,"●","○")&" "&IF(K65>2,"●","○")&" "&IF(K65>3,"●","○")&" "&IF(K65>4,"●","○")&" ／") ->  | O65: =IF(I65=ラベル!$G$2,"",CHAR(10)&"【"&M65&"】"&REPT(" ",8-LEN(M65))&I65&REPT(" ",22)&L65) ->  | P65: 275項
C66: 呪文追加：精霊術 | D66: 呪文遣い系職業向け | E66: =IF(COUNTIF(一般技能!$H$51:$H$56,C66)=0,0,VLOOKUP(C66,一般技能!$H$51:$J$56,3,FALSE)) -> 0 | F66: =IF(COUNTIF(一般技能!$H$59:$H$82,C66)=0,0,VLOOKUP(C66,一般技能!$H$59:$J$82,3,FALSE)) -> 0 | G66: 0 | H66: =VLOOKUP(E66,固定値!$AA$2:$AB$7,2,FALSE) -> －－－ | I66: =VLOOKUP(G66,固定値!$AA$2:$AB$7,2,FALSE) -> －－－ | J66: =VLOOKUP(I66,固定値!$AG$1:$AI$7,IF(H66=ラベル!$G$2,2,3),FALSE) -> 0 | K66: =VLOOKUP(I66,固定値!$BE$2:$BF$7,2,FALSE) -> 0 | L66: 275 | M66: 追加：精霊術 | N66: =IF(I66=ラベル!$G$2,"",CHAR(10)&"【"&C66&"】"&REPT(" ",11-LEN(C66))&"● "&IF(K66>1,"●","○")&" "&IF(K66>2,"●","○")&" "&IF(K66>3,"●","○")&" "&IF(K66>4,"●","○")&" ／") ->  | O66: =IF(I66=ラベル!$G$2,"",CHAR(10)&"【"&M66&"】"&REPT(" ",8-LEN(M66))&I66&REPT(" ",22)&L66) ->  | P66: 275項
C67: 魔法の才 | D67: 呪文遣い系職業向け | E67: =IF(COUNTIF(一般技能!$H$51:$H$56,C67)=0,0,VLOOKUP(C67,一般技能!$H$51:$J$56,3,FALSE)) -> 0 | F67: =IF(COUNTIF(一般技能!$H$59:$H$82,C67)=0,0,VLOOKUP(C67,一般技能!$H$59:$J$82,3,FALSE)) -> 0 | G67: 0 | H67: =VLOOKUP(E67,固定値!$AA$2:$AB$7,2,FALSE) -> －－－ | I67: =VLOOKUP(G67,固定値!$AA$2:$AB$7,2,FALSE) -> －－－ | J67: =VLOOKUP(I67,固定値!$AG$1:$AI$7,IF(H67=ラベル!$G$2,2,3),FALSE) -> 0 | K67: =VLOOKUP(I67,固定値!$BE$2:$BF$7,2,FALSE) -> 0 | L67: 275 | M67: 魔法の才 | N67: =IF(I67=ラベル!$G$2,"",CHAR(10)&"【"&C67&"】"&REPT(" ",11-LEN(C67))&"● "&IF(K67>1,"●","○")&" "&IF(K67>2,"●","○")&" "&IF(K67>3,"●","○")&" "&IF(K67>4,"●","○")&" ／") ->  | O67: =IF(I67=ラベル!$G$2,"",CHAR(10)&"【"&M67&"】"&REPT(" ",8-LEN(M67))&I67&REPT(" ",22)&L67) ->  | P67: 275項

Sheet 一般技能
K1: =K3&K4&K5&K6&K8&K9&K10&K11& K12&K13&K14&K15&K16&K17&K18&K19&K20&K21& K22&K23&K24&K25&K26&K27&K28&K29&K30&K31& K32&K33&K34&K35&K36&K37&K38&K39&K40&K41& K42&K43&K44&K45&K46&K47 -> 【長距離移動】 ● ○ ○ ／ | L1: =L3&L4&L5&L6&L8&L9&L10&L11& L12&L13&L14&L15&L16&L17&L18&L19&L20&L21& L22&L23&L24&L25&L26&L27&L28&L29&L30&L31& L32&L33&L34&L35&L36&L37&L38&L39&L40&L41& L42&L43&L44&L45&L46&L47 -> 【長距離移動】 初歩 289 | M1: =MID(L1,1,114) -> 【長距離移動】 初歩 289 | N1: =MID(L1,115,114) -> 
B2: 一般技能 | F2: 出自・来歴ボーナス | G2: 習熟段階 | H2: 消費成長点 | I2: 効果 | J2: 参照項 | M2: 参照項
B3: 暗視 | C3: =IF(COUNTIF($H$51:$H$56,B3)=0,0,VLOOKUP(B3,$H$51:$J$56,3,FALSE)) -> 0 | D3: =IF(COUNTIF($H$59:$H$82,B3)=0,0,VLOOKUP(B3,$H$59:$J$82,3,FALSE)) -> 0 | E3: =MAX(C3:D3) -> 0 | F3: =VLOOKUP(C3,固定値!$AA$2:$AB$7,2,FALSE) -> －－－ | G3: =VLOOKUP(E3,固定値!$AA$2:$AB$7,2,FALSE) -> －－－ | H3: =VLOOKUP(G3,固定値!$AK$2:$AM$5,IF(F3=ラベル!$G$2,2,3),FALSE) -> 0 | I3: =VLOOKUP(G3,固定値!$BE$2:$BG$7,3,FALSE) -> 0 | J3: =LEFT(M3,3) -> 292 | K3: =IF(G3=ラベル!$G$2,"",CHAR(10)&"【"&B3&"】"&REPT(" ",11-LEN(B3))&"● "&IF(I3>1,"●","○")&" "&IF(I3>2,"●","○")&" ／") ->  | L3: =IF(G3=ラベル!$G$2,"",CHAR(10)&"【"&B3&"】"&REPT(" ",8-LEN(B3))&G3&REPT(" ",22)&J3) ->  | M3: 292項
B4: 鑑定 | C4: =IF(COUNTIF($H$51:$H$56,B4)=0,0,VLOOKUP(B4,$H$51:$J$56,3,FALSE)) -> 0 | D4: =IF(COUNTIF($H$59:$H$82,B4)=0,0,VLOOKUP(B4,$H$59:$J$82,3,FALSE)) -> 0 | E4: =MAX(C4:D4) -> 0 | F4: =VLOOKUP(C4,固定値!$AA$2:$AB$7,2,FALSE) -> －－－ | G4: =VLOOKUP(E4,固定値!$AA$2:$AB$7,2,FALSE) -> －－－ | H4: =VLOOKUP(G4,固定値!$AK$2:$AM$5,IF(F4=ラベル!$G$2,2,3),FALSE) -> 0 | I4: =VLOOKUP(G4,固定値!$BE$2:$BG$7,3,FALSE) -> 0 | J4: =LEFT(M4,3) -> 278 | K4: =IF(G4=ラベル!$G$2,"",CHAR(10)&"【"&B4&"】"&REPT(" ",11-LEN(B4))&"● "&IF(I4>1,"●","○")&" "&IF(I4>2,"●","○")&" ／") ->  | L4: =IF(G4=ラベル!$G$2,"",CHAR(10)&"【"&B4&"】"&REPT(" ",8-LEN(B4))&G4&REPT(" ",22)&J4) ->  | M4: 278項
B5: 騎乗 | C5: 0 | D5: 0 | E5: 0 | F5: =VLOOKUP(C5,固定値!$AA$2:$AB$7,2,FALSE) -> －－－ | G5: =VLOOKUP(E5,固定値!$AA$2:$AB$7,2,FALSE) -> －－－ | H5: =VLOOKUP(G5,固定値!$AK$2:$AM$5,IF(F5=ラベル!$G$2,2,3),FALSE) -> 0 | I5: =VLOOKUP(G5,固定値!$BE$2:$BG$7,3,FALSE) -> 0 | J5: 289 | K5: =IF(G5=ラベル!$G$2,"",CHAR(10)&"【"&B5&"】"&REPT(" ",11-LEN(B5))&"● "&IF(I5>1,"●","○")&" "&IF(I5>2,"●","○")&" ／") ->  | L5: =IF(G5=ラベル!$G$2,"",CHAR(10)&"【"&B5&"】"&REPT(" ",8-LEN(B5))&G5&REPT(" ",22)&J5) ->  | M5: 289項
B6: 祈祷 | C6: 0 | D6: 0 | E6: 0 | F6: =VLOOKUP(C6,固定値!$AA$2:$AB$7,2,FALSE) -> －－－ | G6: =VLOOKUP(E6,固定値!$AA$2:$AB$7,2,FALSE) -> －－－ | H6: =VLOOKUP(G6,固定値!$AK$2:$AM$5,IF(F6=ラベル!$G$2,2,3),FALSE) -> 0 | I6: =VLOOKUP(G6,固定値!$BE$2:$BG$7,3,FALSE) -> 0 | J6: 277 | K6: =IF(G6=ラベル!$G$2,"",CHAR(10)&"【"&B6&"】"&REPT(" ",11-LEN(B6))&"● "&IF(I6>1,"●","○")&" "&IF(I6>2,"●","○")&" ／") ->  | L6: =IF(G6=ラベル!$G$2,"",CHAR(10)&"【"&B6&"】"&REPT(" ",8-LEN(B6))&G6&REPT(" ",22)&J6) ->  | M6: 277項
B7: 芸能：歌唱 | C7: =IF(COUNTIF($H$51:$H$56,B7)=0,0,VLOOKUP(B7,$H$51:$J$56,3,FALSE)) -> 0 | D7: =IF(COUNTIF($H$59:$H$82,B7)=0,0,VLOOKUP(B7,$H$59:$J$82,3,FALSE)) -> 0 | E7: =MAX(C7:D7) -> 0 | F7: =VLOOKUP(C7,固定値!$AA$2:$AB$7,2,FALSE) -> －－－ | G7: =VLOOKUP(E7,固定値!$AA$2:$AB$7,2,FALSE) -> －－－ | H7: =VLOOKUP(G7,固定値!$AK$2:$AM$5,IF(F7=ラベル!$G$2,2,3),FALSE) -> 0 | I7: =VLOOKUP(G7,固定値!$BE$2:$BG$7,3,FALSE) -> 0 | J7: =LEFT(M7,3) -> 286 | K7: =IF(G7=ラベル!$G$2,"",CHAR(10)&"【"&B7&"】"&REPT(" ",11-LEN(B7))&"● "&IF(I7>1,"●","○")&" "&IF(I7>2,"●","○")&" ／") ->  | L7: =IF(G7=ラベル!$G$2,"",CHAR(10)&"【"&B7&"】"&REPT(" ",8-LEN(B7))&G7&REPT(" ",22)&J7) ->  | M7: 286項
B8: 芸能：即興詩 | C8: 0 | D8: 0 | E8: 0 | F8: =VLOOKUP(C8,固定値!$AA$2:$AB$7,2,FALSE) -> －－－ | G8: =VLOOKUP(E8,固定値!$AA$2:$AB$7,2,FALSE) -> －－－ | H8: =VLOOKUP(G8,固定値!$AK$2:$AM$5,IF(F8=ラベル!$G$2,2,3),FALSE) -> 0 | I8: =VLOOKUP(G8,固定値!$BE$2:$BG$7,3,FALSE) -> 0 | J8: 286 | K8: =IF(G8=ラベル!$G$2,"",CHAR(10)&"【"&B8&"】"&REPT(" ",11-LEN(B8))&"● "&IF(I8>1,"●","○")&" "&IF(I8>2,"●","○")&" ／") ->  | L8: =IF(G8=ラベル!$G$2,"",CHAR(10)&"【"&B8&"】"&REPT(" ",8-LEN(B8))&G8&REPT(" ",22)&J8) ->  | M8: 286項
B9: 芸能：演奏 | C9: 0 | D9: 0 | E9: 0 | F9: =VLOOKUP(C9,固定値!$AA$2:$AB$7,2,FALSE) -> －－－ | G9: =VLOOKUP(E9,固定値!$AA$2:$AB$7,2,FALSE) -> －－－ | H9: =VLOOKUP(G9,固定値!$AK$2:$AM$5,IF(F9=ラベル!$G$2,2,3),FALSE) -> 0 | I9: =VLOOKUP(G9,固定値!$BE$2:$BG$7,3,FALSE) -> 0 | J9: 286 | K9: =IF(G9=ラベル!$G$2,"",CHAR(10)&"【"&B9&"】"&REPT(" ",11-LEN(B9))&"● "&IF(I9>1,"●","○")&" "&IF(I9>2,"●","○")&" ／") ->  | L9: =IF(G9=ラベル!$G$2,"",CHAR(10)&"【"&B9&"】"&REPT(" ",8-LEN(B9))&G9&REPT(" ",22)&J9) ->  | M9: 286項
B10: 芸能：舞踊 | C10: 0 | D10: 0 | E10: 0 | F10: =VLOOKUP(C10,固定値!$AA$2:$AB$7,2,FALSE) -> －－－ | G10: =VLOOKUP(E10,固定値!$AA$2:$AB$7,2,FALSE) -> －－－ | H10: =VLOOKUP(G10,固定値!$AK$2:$AM$5,IF(F10=ラベル!$G$2,2,3),FALSE) -> 0 | I10: =VLOOKUP(G10,固定値!$BE$2:$BG$7,3,FALSE) -> 0 | J10: 286 | K10: =IF(G10=ラベル!$G$2,"",CHAR(10)&"【"&B10&"】"&REPT(" ",11-LEN(B10))&"● "&IF(I10>1,"●","○")&" "&IF(I10>2,"●","○")&" ／") ->  | L10: =IF(G10=ラベル!$G$2,"",CHAR(10)&"【"&B10&"】"&REPT(" ",8-LEN(B10))&G10&REPT(" ",22)&J10) ->  | M10: 286項
B11: 芸能：大道芸 | C11: 0 | D11: 0 | E11: 0 | F11: =VLOOKUP(C11,固定値!$AA$2:$AB$7,2,FALSE) -> －－－ | G11: =VLOOKUP(E11,固定値!$AA$2:$AB$7,2,FALSE) -> －－－ | H11: =VLOOKUP(G11,固定値!$AK$2:$AM$5,IF(F11=ラベル!$G$2,2,3),FALSE) -> 0 | I11: =VLOOKUP(G11,固定値!$BE$2:$BG$7,3,FALSE) -> 0 | J11: 286 | K11: =IF(G11=ラベル!$G$2,"",CHAR(10)&"【"&B11&"】"&REPT(" ",11-LEN(B11))&"● "&IF(I11>1,"●","○")&" "&IF(I11>2,"●","○")&" ／") ->  | L11: =IF(G11=ラベル!$G$2,"",CHAR(10)&"【"&B11&"】"&REPT(" ",8-LEN(B11))&G11&REPT(" ",22)&J11) ->  | M11: 286項
B12: 芸能：演劇 | C12: 0 | D12: 0 | E12: 0 | F12: =VLOOKUP(C12,固定値!$AA$2:$AB$7,2,FALSE) -> －－－ | G12: =VLOOKUP(E12,固定値!$AA$2:$AB$7,2,FALSE) -> －－－ | H12: =VLOOKUP(G12,固定値!$AK$2:$AM$5,IF(F12=ラベル!$G$2,2,3),FALSE) -> 0 | I12: =VLOOKUP(G12,固定値!$BE$2:$BG$7,3,FALSE) -> 0 | J12: 286 | K12: =IF(G12=ラベル!$G$2,"",CHAR(10)&"【"&B12&"】"&REPT(" ",11-LEN(B12))&"● "&IF(I12>1,"●","○")&" "&IF(I12>2,"●","○")&" ／") ->  | L12: =IF(G12=ラベル!$G$2,"",CHAR(10)&"【"&B12&"】"&REPT(" ",8-LEN(B12))&G12&REPT(" ",22)&J12) ->  | M12: 286項
B13: 工作 | C13: 0 | D13: 0 | E13: 0 | F13: =VLOOKUP(C13,固定値!$AA$2:$AB$7,2,FALSE) -> －－－ | G13: =VLOOKUP(E13,固定値!$AA$2:$AB$7,2,FALSE) -> －－－ | H13: =VLOOKUP(G13,固定値!$AK$2:$AM$5,IF(F13=ラベル!$G$2,2,3),FALSE) -> 0 | I13: =VLOOKUP(G13,固定値!$BE$2:$BG$7,3,FALSE) -> 0 | J13: 288 | K13: =IF(G13=ラベル!$G$2,"",CHAR(10)&"【"&B13&"】"&REPT(" ",11-LEN(B13))&"● "&IF(I13>1,"●","○")&" "&IF(I13>2,"●","○")&" ／") ->  | L13: =IF(G13=ラベル!$G$2,"",CHAR(10)&"【"&B13&"】"&REPT(" ",8-LEN(B13))&G13&REPT(" ",22)&J13) ->  | M13: 288項
B14: 交渉：説得 | C14: 0 | D14: 0 | E14: 0 | F14: =VLOOKUP(C14,固定値!$AA$2:$AB$7,2,FALSE) -> －－－ | G14: =VLOOKUP(E14,固定値!$AA$2:$AB$7,2,FALSE) -> －－－ | H14: =VLOOKUP(G14,固定値!$AK$2:$AM$5,IF(F14=ラベル!$G$2,2,3),FALSE) -> 0 | I14: =VLOOKUP(G14,固定値!$BE$2:$BG$7,3,FALSE) -> 0 | J14: 278 | K14: =IF(G14=ラベル!$G$2,"",CHAR(10)&"【"&B14&"】"&REPT(" ",11-LEN(B14))&"● "&IF(I14>1,"●","○")&" "&IF(I14>2,"●","○")&" ／") ->  | L14: =IF(G14=ラベル!$G$2,"",CHAR(10)&"【"&B14&"】"&REPT(" ",8-LEN(B14))&G14&REPT(" ",22)&J14) ->  | M14: 278項
B15: 交渉：誘惑 | C15: 0 | D15: 0 | E15: 0 | F15: =VLOOKUP(C15,固定値!$AA$2:$AB$7,2,FALSE) -> －－－ | G15: =VLOOKUP(E15,固定値!$AA$2:$AB$7,2,FALSE) -> －－－ | H15: =VLOOKUP(G15,固定値!$AK$2:$AM$5,IF(F15=ラベル!$G$2,2,3),FALSE) -> 0 | I15: =VLOOKUP(G15,固定値!$BE$2:$BG$7,3,FALSE) -> 0 | J15: 278 | K15: =IF(G15=ラベル!$G$2,"",CHAR(10)&"【"&B15&"】"&REPT(" ",11-LEN(B15))&"● "&IF(I15>1,"●","○")&" "&IF(I15>2,"●","○")&" ／") ->  | L15: =IF(G15=ラベル!$G$2,"",CHAR(10)&"【"&B15&"】"&REPT(" ",8-LEN(B15))&G15&REPT(" ",22)&J15) ->  | M15: 278項
B16: 交渉：脅迫 | C16: 0 | D16: 0 | E16: 0 | F16: =VLOOKUP(C16,固定値!$AA$2:$AB$7,2,FALSE) -> －－－ | G16: =VLOOKUP(E16,固定値!$AA$2:$AB$7,2,FALSE) -> －－－ | H16: =VLOOKUP(G16,固定値!$AK$2:$AM$5,IF(F16=ラベル!$G$2,2,3),FALSE) -> 0 | I16: =VLOOKUP(G16,固定値!$BE$2:$BG$7,3,FALSE) -> 0 | J16: 278 | K16: =IF(G16=ラベル!$G$2,"",CHAR(10)&"【"&B16&"】"&REPT(" ",11-LEN(B16))&"● "&IF(I16>1,"●","○")&" "&IF(I16>2,"●","○")&" ／") ->  | L16: =IF(G16=ラベル!$G$2,"",CHAR(10)&"【"&B16&"】"&REPT(" ",8-LEN(B16))&G16&REPT(" ",22)&J16) ->  | M16: 278項
B17: 交渉：言いくるめ | C17: 0 | D17: 0 | E17: 0 | F17: =VLOOKUP(C17,固定値!$AA$2:$AB$7,2,FALSE) -> －－－ | G17: =VLOOKUP(E17,固定値!$AA$2:$AB$7,2,FALSE) -> －－－ | H17: =VLOOKUP(G17,固定値!$AK$2:$AM$5,IF(F17=ラベル!$G$2,2,3),FALSE) -> 0 | I17: =VLOOKUP(G17,固定値!$BE$2:$BG$7,3,FALSE) -> 0 | J17: 278 | K17: =IF(G17=ラベル!$G$2,"",CHAR(10)&"【"&B17&"】"&REPT(" ",11-LEN(B17))&"● "&IF(I17>1,"●","○")&" "&IF(I17>2,"●","○")&" ／") ->  | L17: =IF(G17=ラベル!$G$2,"",CHAR(10)&"【"&B17&"】"&REPT(" ",8-LEN(B17))&G17&REPT(" ",22)&J17) ->  | M17: 278項
B18: 職人：鍛冶 | C18: 0 | D18: 0 | E18: 0 | F18: =VLOOKUP(C18,固定値!$AA$2:$AB$7,2,FALSE) -> －－－ | G18: =VLOOKUP(E18,固定値!$AA$2:$AB$7,2,FALSE) -> －－－ | H18: =VLOOKUP(G18,固定値!$AK$2:$AM$5,IF(F18=ラベル!$G$2,2,3),FALSE) -> 0 | I18: =VLOOKUP(G18,固定値!$BE$2:$BG$7,3,FALSE) -> 0 | J18: 285 | K18: =IF(G18=ラベル!$G$2,"",CHAR(10)&"【"&B18&"】"&REPT(" ",11-LEN(B18))&"● "&IF(I18>1,"●","○")&" "&IF(I18>2,"●","○")&" ／") ->  | L18: =IF(G18=ラベル!$G$2,"",CHAR(10)&"【"&B18&"】"&REPT(" ",8-LEN(B18))&G18&REPT(" ",22)&J18) ->  | M18: 285項
B19: 職人：裁縫 | C19: 0 | D19: 0 | E19: 0 | F19: =VLOOKUP(C19,固定値!$AA$2:$AB$7,2,FALSE) -> －－－ | G19: =VLOOKUP(E19,固定値!$AA$2:$AB$7,2,FALSE) -> －－－ | H19: =VLOOKUP(G19,固定値!$AK$2:$AM$5,IF(F19=ラベル!$G$2,2,3),FALSE) -> 0 | I19: =VLOOKUP(G19,固定値!$BE$2:$BG$7,3,FALSE) -> 0 | J19: 285 | K19: =IF(G19=ラベル!$G$2,"",CHAR(10)&"【"&B19&"】"&REPT(" ",11-LEN(B19))&"● "&IF(I19>1,"●","○")&" "&IF(I19>2,"●","○")&" ／") ->  | L19: =IF(G19=ラベル!$G$2,"",CHAR(10)&"【"&B19&"】"&REPT(" ",8-LEN(B19))&G19&REPT(" ",22)&J19) ->  | M19: 285項
B20: 職人：木工 | C20: 0 | D20: 0 | E20: 0 | F20: =VLOOKUP(C20,固定値!$AA$2:$AB$7,2,FALSE) -> －－－ | G20: =VLOOKUP(E20,固定値!$AA$2:$AB$7,2,FALSE) -> －－－ | H20: =VLOOKUP(G20,固定値!$AK$2:$AM$5,IF(F20=ラベル!$G$2,2,3),FALSE) -> 0 | I20: =VLOOKUP(G20,固定値!$BE$2:$BG$7,3,FALSE) -> 0 | J20: 285 | K20: =IF(G20=ラベル!$G$2,"",CHAR(10)&"【"&B20&"】"&REPT(" ",11-LEN(B20))&"● "&IF(I20>1,"●","○")&" "&IF(I20>2,"●","○")&" ／") ->  | L20: =IF(G20=ラベル!$G$2,"",CHAR(10)&"【"&B20&"】"&REPT(" ",8-LEN(B20))&G20&REPT(" ",22)&J20) ->  | M20: 285項
B21: 職人：革細工 | C21: 0 | D21: 0 | E21: 0 | F21: =VLOOKUP(C21,固定値!$AA$2:$AB$7,2,FALSE) -> －－－ | G21: =VLOOKUP(E21,固定値!$AA$2:$AB$7,2,FALSE) -> －－－ | H21: =VLOOKUP(G21,固定値!$AK$2:$AM$5,IF(F21=ラベル!$G$2,2,3),FALSE) -> 0 | I21: =VLOOKUP(G21,固定値!$BE$2:$BG$7,3,FALSE) -> 0 | J21: 285 | K21: =IF(G21=ラベル!$G$2,"",CHAR(10)&"【"&B21&"】"&REPT(" ",11-LEN(B21))&"● "&IF(I21>1,"●","○")&" "&IF(I21>2,"●","○")&" ／") ->  | L21: =IF(G21=ラベル!$G$2,"",CHAR(10)&"【"&B21&"】"&REPT(" ",8-LEN(B21))&G21&REPT(" ",22)&J21) ->  | M21: 285項
B22: 職人：彫金 | C22: 0 | D22: 0 | E22: 0 | F22: =VLOOKUP(C22,固定値!$AA$2:$AB$7,2,FALSE) -> －－－ | G22: =VLOOKUP(E22,固定値!$AA$2:$AB$7,2,FALSE) -> －－－ | H22: =VLOOKUP(G22,固定値!$AK$2:$AM$5,IF(F22=ラベル!$G$2,2,3),FALSE) -> 0 | I22: =VLOOKUP(G22,固定値!$BE$2:$BG$7,3,FALSE) -> 0 | J22: 285 | K22: =IF(G22=ラベル!$G$2,"",CHAR(10)&"【"&B22&"】"&REPT(" ",11-LEN(B22))&"● "&IF(I22>1,"●","○")&" "&IF(I22>2,"●","○")&" ／") ->  | L22: =IF(G22=ラベル!$G$2,"",CHAR(10)&"【"&B22&"】"&REPT(" ",8-LEN(B22))&G22&REPT(" ",22)&J22) ->  | M22: 285項
B23: 神学 | C23: 0 | D23: 0 | E23: 0 | F23: =VLOOKUP(C23,固定値!$AA$2:$AB$7,2,FALSE) -> －－－ | G23: =VLOOKUP(E23,固定値!$AA$2:$AB$7,2,FALSE) -> －－－ | H23: =VLOOKUP(G23,固定値!$AK$2:$AM$5,IF(F23=ラベル!$G$2,2,3),FALSE) -> 0 | I23: =VLOOKUP(G23,固定値!$BE$2:$BG$7,3,FALSE) -> 0 | J23: 280 | K23: =IF(G23=ラベル!$G$2,"",CHAR(10)&"【"&B23&"】"&REPT(" ",11-LEN(B23))&"● "&IF(I23>1,"●","○")&" "&IF(I23>2,"●","○")&" ／") ->  | L23: =IF(G23=ラベル!$G$2,"",CHAR(10)&"【"&B23&"】"&REPT(" ",8-LEN(B23))&G23&REPT(" ",22)&J23) ->  | M23: 280項
B24: 信仰心：至高神 | C24: 0 | D24: 0 | E24: 0 | F24: =VLOOKUP(C24,固定値!$AA$2:$AB$7,2,FALSE) -> －－－ | G24: =VLOOKUP(E24,固定値!$AA$2:$AB$7,2,FALSE) -> －－－ | H24: =VLOOKUP(G24,固定値!$AK$2:$AM$5,IF(F24=ラベル!$G$2,2,3),FALSE) -> 0 | I24: =VLOOKUP(G24,固定値!$BE$2:$BG$7,3,FALSE) -> 0 | J24: 290 | K24: =IF(G24=ラベル!$G$2,"",CHAR(10)&"【"&B24&"】"&REPT(" ",11-LEN(B24))&"● "&IF(I24>1,"●","○")&" "&IF(I24>2,"●","○")&" ／") ->  | L24: =IF(G24=ラベル!$G$2,"",CHAR(10)&"【"&B24&"】"&REPT(" ",8-LEN(B24))&G24&REPT(" ",22)&J24) ->  | M24: 290項
B25: 信仰心：地母神 | C25: 0 | D25: 0 | E25: 0 | F25: =VLOOKUP(C25,固定値!$AA$2:$AB$7,2,FALSE) -> －－－ | G25: =VLOOKUP(E25,固定値!$AA$2:$AB$7,2,FALSE) -> －－－ | H25: =VLOOKUP(G25,固定値!$AK$2:$AM$5,IF(F25=ラベル!$G$2,2,3),FALSE) -> 0 | I25: =VLOOKUP(G25,固定値!$BE$2:$BG$7,3,FALSE) -> 0 | J25: 290 | K25: =IF(G25=ラベル!$G$2,"",CHAR(10)&"【"&B25&"】"&REPT(" ",11-LEN(B25))&"● "&IF(I25>1,"●","○")&" "&IF(I25>2,"●","○")&" ／") ->  | L25: =IF(G25=ラベル!$G$2,"",CHAR(10)&"【"&B25&"】"&REPT(" ",8-LEN(B25))&G25&REPT(" ",22)&J25) ->  | M25: 290項
B26: 信仰心：交易神 | C26: 0 | D26: 0 | E26: 0 | F26: =VLOOKUP(C26,固定値!$AA$2:$AB$7,2,FALSE) -> －－－ | G26: =VLOOKUP(E26,固定値!$AA$2:$AB$7,2,FALSE) -> －－－ | H26: =VLOOKUP(G26,固定値!$AK$2:$AM$5,IF(F26=ラベル!$G$2,2,3),FALSE) -> 0 | I26: =VLOOKUP(G26,固定値!$BE$2:$BG$7,3,FALSE) -> 0 | J26: 290 | K26: =IF(G26=ラベル!$G$2,"",CHAR(10)&"【"&B26&"】"&REPT(" ",11-LEN(B26))&"● "&IF(I26>1,"●","○")&" "&IF(I26>2,"●","○")&" ／") ->  | L26: =IF(G26=ラベル!$G$2,"",CHAR(10)&"【"&B26&"】"&REPT(" ",8-LEN(B26))&G26&REPT(" ",22)&J26) ->  | M26: 290項
B27: 信仰心：知識神 | C27: 0 | D27: 0 | E27: 0 | F27: =VLOOKUP(C27,固定値!$AA$2:$AB$7,2,FALSE) -> －－－ | G27: =VLOOKUP(E27,固定値!$AA$2:$AB$7,2,FALSE) -> －－－ | H27: =VLOOKUP(G27,固定値!$AK$2:$AM$5,IF(F27=ラベル!$G$2,2,3),FALSE) -> 0 | I27: =VLOOKUP(G27,固定値!$BE$2:$BG$7,3,FALSE) -> 0 | J27: 290 | K27: =IF(G27=ラベル!$G$2,"",CHAR(10)&"【"&B27&"】"&REPT(" ",11-LEN(B27))&"● "&IF(I27>1,"●","○")&" "&IF(I27>2,"●","○")&" ／") ->  | L27: =IF(G27=ラベル!$G$2,"",CHAR(10)&"【"&B27&"】"&REPT(" ",8-LEN(B27))&G27&REPT(" ",22)&J27) ->  | M27: 290項
B28: 信仰心：戦女神 | C28: 0 | D28: 0 | E28: 0 | F28: =VLOOKUP(C28,固定値!$AA$2:$AB$7,2,FALSE) -> －－－ | G28: =VLOOKUP(E28,固定値!$AA$2:$AB$7,2,FALSE) -> －－－ | H28: =VLOOKUP(G28,固定値!$AK$2:$AM$5,IF(F28=ラベル!$G$2,2,3),FALSE) -> 0 | I28: =VLOOKUP(G28,固定値!$BE$2:$BG$7,3,FALSE) -> 0 | J28: 290 | K28: =IF(G28=ラベル!$G$2,"",CHAR(10)&"【"&B28&"】"&REPT(" ",11-LEN(B28))&"● "&IF(I28>1,"●","○")&" "&IF(I28>2,"●","○")&" ／") ->  | L28: =IF(G28=ラベル!$G$2,"",CHAR(10)&"【"&B28&"】"&REPT(" ",8-LEN(B28))&G28&REPT(" ",22)&J28) ->  | M28: 290項
B29: 信仰心：祖竜 | C29: 0 | D29: 0 | E29: 0 | F29: =VLOOKUP(C29,固定値!$AA$2:$AB$7,2,FALSE) -> －－－ | G29: =VLOOKUP(E29,固定値!$AA$2:$AB$7,2,FALSE) -> －－－ | H29: =VLOOKUP(G29,固定値!$AK$2:$AM$5,IF(F29=ラベル!$G$2,2,3),FALSE) -> 0 | I29: =VLOOKUP(G29,固定値!$BE$2:$BG$7,3,FALSE) -> 0 | J29: 290 | K29: =IF(G29=ラベル!$G$2,"",CHAR(10)&"【"&B29&"】"&REPT(" ",11-LEN(B29))&"● "&IF(I29>1,"●","○")&" "&IF(I29>2,"●","○")&" ／") ->  | L29: =IF(G29=ラベル!$G$2,"",CHAR(10)&"【"&B29&"】"&REPT(" ",8-LEN(B29))&G29&REPT(" ",22)&J29) ->  | M29: 290項
B30: 生産業：農業 | C30: 0 | D30: 0 | E30: 0 | F30: =VLOOKUP(C30,固定値!$AA$2:$AB$7,2,FALSE) -> －－－ | G30: =VLOOKUP(E30,固定値!$AA$2:$AB$7,2,FALSE) -> －－－ | H30: =VLOOKUP(G30,固定値!$AK$2:$AM$5,IF(F30=ラベル!$G$2,2,3),FALSE) -> 0 | I30: =VLOOKUP(G30,固定値!$BE$2:$BG$7,3,FALSE) -> 0 | J30: 285 | K30: =IF(G30=ラベル!$G$2,"",CHAR(10)&"【"&B30&"】"&REPT(" ",11-LEN(B30))&"● "&IF(I30>1,"●","○")&" "&IF(I30>2,"●","○")&" ／") ->  | L30: =IF(G30=ラベル!$G$2,"",CHAR(10)&"【"&B30&"】"&REPT(" ",8-LEN(B30))&G30&REPT(" ",22)&J30) ->  | M30: 285項
B31: 生産業：漁業 | C31: 0 | D31: 0 | E31: 0 | F31: =VLOOKUP(C31,固定値!$AA$2:$AB$7,2,FALSE) -> －－－ | G31: =VLOOKUP(E31,固定値!$AA$2:$AB$7,2,FALSE) -> －－－ | H31: =VLOOKUP(G31,固定値!$AK$2:$AM$5,IF(F31=ラベル!$G$2,2,3),FALSE) -> 0 | I31: =VLOOKUP(G31,固定値!$BE$2:$BG$7,3,FALSE) -> 0 | J31: 285 | K31: =IF(G31=ラベル!$G$2,"",CHAR(10)&"【"&B31&"】"&REPT(" ",11-LEN(B31))&"● "&IF(I31>1,"●","○")&" "&IF(I31>2,"●","○")&" ／") ->  | L31: =IF(G31=ラベル!$G$2,"",CHAR(10)&"【"&B31&"】"&REPT(" ",8-LEN(B31))&G31&REPT(" ",22)&J31) ->  | M31: 285項
B32: 生産業：林業 | C32: 0 | D32: 0 | E32: 0 | F32: =VLOOKUP(C32,固定値!$AA$2:$AB$7,2,FALSE) -> －－－ | G32: =VLOOKUP(E32,固定値!$AA$2:$AB$7,2,FALSE) -> －－－ | H32: =VLOOKUP(G32,固定値!$AK$2:$AM$5,IF(F32=ラベル!$G$2,2,3),FALSE) -> 0 | I32: =VLOOKUP(G32,固定値!$BE$2:$BG$7,3,FALSE) -> 0 | J32: 285 | K32: =IF(G32=ラベル!$G$2,"",CHAR(10)&"【"&B32&"】"&REPT(" ",11-LEN(B32))&"● "&IF(I32>1,"●","○")&" "&IF(I32>2,"●","○")&" ／") ->  | L32: =IF(G32=ラベル!$G$2,"",CHAR(10)&"【"&B32&"】"&REPT(" ",8-LEN(B32))&G32&REPT(" ",22)&J32) ->  | M32: 285項
B33: 生産業：採掘 | C33: 0 | D33: 0 | E33: 0 | F33: =VLOOKUP(C33,固定値!$AA$2:$AB$7,2,FALSE) -> －－－ | G33: =VLOOKUP(E33,固定値!$AA$2:$AB$7,2,FALSE) -> －－－ | H33: =VLOOKUP(G33,固定値!$AK$2:$AM$5,IF(F33=ラベル!$G$2,2,3),FALSE) -> 0 | I33: =VLOOKUP(G33,固定値!$BE$2:$BG$7,3,FALSE) -> 0 | J33: 285 | K33: =IF(G33=ラベル!$G$2,"",CHAR(10)&"【"&B33&"】"&REPT(" ",11-LEN(B33))&"● "&IF(I33>1,"●","○")&" "&IF(I33>2,"●","○")&" ／") ->  | L33: =IF(G33=ラベル!$G$2,"",CHAR(10)&"【"&B33&"】"&REPT(" ",8-LEN(B33))&G33&REPT(" ",22)&J33) ->  | M33: 285項
B34: 生存術 | C34: 0 | D34: 0 | E34: 0 | F34: =VLOOKUP(C34,固定値!$AA$2:$AB$7,2,FALSE) -> －－－ | G34: =VLOOKUP(E34,固定値!$AA$2:$AB$7,2,FALSE) -> －－－ | H34: =VLOOKUP(G34,固定値!$AK$2:$AM$5,IF(F34=ラベル!$G$2,2,3),FALSE) -> 0 | I34: =VLOOKUP(G34,固定値!$BE$2:$BG$7,3,FALSE) -> 0 | J34: 280 | K34: =IF(G34=ラベル!$G$2,"",CHAR(10)&"【"&B34&"】"&REPT(" ",11-LEN(B34))&"● "&IF(I34>1,"●","○")&" "&IF(I34>2,"●","○")&" ／") ->  | L34: =IF(G34=ラベル!$G$2,"",CHAR(10)&"【"&B34&"】"&REPT(" ",8-LEN(B34))&G34&REPT(" ",22)&J34) ->  | M34: 280項
B35: 精霊の愛し子 | C35: 0 | D35: 0 | E35: 0 | F35: =VLOOKUP(C35,固定値!$AA$2:$AB$7,2,FALSE) -> －－－ | G35: =VLOOKUP(E35,固定値!$AA$2:$AB$7,2,FALSE) -> －－－ | H35: =VLOOKUP(G35,固定値!$AK$2:$AM$5,IF(F35=ラベル!$G$2,2,3),FALSE) -> 0 | I35: =VLOOKUP(G35,固定値!$BE$2:$BG$7,3,FALSE) -> 0 | J35: 291 | K35: =IF(G35=ラベル!$G$2,"",CHAR(10)&"【"&B35&"】"&REPT(" ",11-LEN(B35))&"● "&IF(I35>1,"●","○")&" "&IF(I35>2,"●","○")&" ／") ->  | L35: =IF(G35=ラベル!$G$2,"",CHAR(10)&"【"&B35&"】"&REPT(" ",8-LEN(B35))&G35&REPT(" ",22)&J35) ->  | M35: 291項
B36: 先入観なし | C36: 0 | D36: 0 | E36: 0 | F36: =VLOOKUP(C36,固定値!$AA$2:$AB$7,2,FALSE) -> －－－ | G36: =VLOOKUP(E36,固定値!$AA$2:$AB$7,2,FALSE) -> －－－ | H36: =VLOOKUP(G36,固定値!$AK$2:$AM$5,IF(F36=ラベル!$G$2,2,3),FALSE) -> 0 | I36: =VLOOKUP(G36,固定値!$BE$2:$BG$7,3,FALSE) -> 0 | J36: 281 | K36: =IF(G36=ラベル!$G$2,"",CHAR(10)&"【"&B36&"】"&REPT(" ",11-LEN(B36))&"● "&IF(I36>1,"●","○")&" "&IF(I36>2,"●","○")&" ／") ->  | L36: =IF(G36=ラベル!$G$2,"",CHAR(10)&"【"&B36&"】"&REPT(" ",8-LEN(B36))&G36&REPT(" ",22)&J36) ->  | M36: 281項
B37: 長距離移動 | C37: 1 | D37: 0 | E37: 1 | F37: =VLOOKUP(C37,固定値!$AA$2:$AB$7,2,FALSE) -> 初歩 | G37: =VLOOKUP(E37,固定値!$AA$2:$AB$7,2,FALSE) -> 初歩 | H37: =VLOOKUP(G37,固定値!$AK$2:$AM$5,IF(F37=ラベル!$G$2,2,3),FALSE) -> 0 | I37: =VLOOKUP(G37,固定値!$BE$2:$BG$7,3,FALSE) -> 1 | J37: 289 | K37: =IF(G37=ラベル!$G$2,"",CHAR(10)&"【"&B37&"】"&REPT(" ",11-LEN(B37))&"● "&IF(I37>1,"●","○")&" "&IF(I37>2,"●","○")&" ／") -> 【長距離移動】 ● ○ ○ ／ | L37: =IF(G37=ラベル!$G$2,"",CHAR(10)&"【"&B37&"】"&REPT(" ",8-LEN(B37))&G37&REPT(" ",22)&J37) -> 【長距離移動】 初歩 289 | M37: 289項
B38: 調理 | C38: 0 | D38: 0 | E38: 0 | F38: =VLOOKUP(C38,固定値!$AA$2:$AB$7,2,FALSE) -> －－－ | G38: =VLOOKUP(E38,固定値!$AA$2:$AB$7,2,FALSE) -> －－－ | H38: =VLOOKUP(G38,固定値!$AK$2:$AM$5,IF(F38=ラベル!$G$2,2,3),FALSE) -> 0 | I38: =VLOOKUP(G38,固定値!$BE$2:$BG$7,3,FALSE) -> 0 | J38: 290 | K38: =IF(G38=ラベル!$G$2,"",CHAR(10)&"【"&B38&"】"&REPT(" ",11-LEN(B38))&"● "&IF(I38>1,"●","○")&" "&IF(I38>2,"●","○")&" ／") ->  | L38: =IF(G38=ラベル!$G$2,"",CHAR(10)&"【"&B38&"】"&REPT(" ",8-LEN(B38))&G38&REPT(" ",22)&J38) ->  | M38: 290項
B39: 沈着冷静 | C39: 0 | D39: 0 | E39: 0 | F39: =VLOOKUP(C39,固定値!$AA$2:$AB$7,2,FALSE) -> －－－ | G39: =VLOOKUP(E39,固定値!$AA$2:$AB$7,2,FALSE) -> －－－ | H39: =VLOOKUP(G39,固定値!$AK$2:$AM$5,IF(F39=ラベル!$G$2,2,3),FALSE) -> 0 | I39: =VLOOKUP(G39,固定値!$BE$2:$BG$7,3,FALSE) -> 0 | J39: 282 | K39: =IF(G39=ラベル!$G$2,"",CHAR(10)&"【"&B39&"】"&REPT(" ",11-LEN(B39))&"● "&IF(I39>1,"●","○")&" "&IF(I39>2,"●","○")&" ／") ->  | L39: =IF(G39=ラベル!$G$2,"",CHAR(10)&"【"&B39&"】"&REPT(" ",8-LEN(B39))&G39&REPT(" ",22)&J39) ->  | M39: 282項
B40: 統率 | C40: 0 | D40: 0 | E40: 0 | F40: =VLOOKUP(C40,固定値!$AA$2:$AB$7,2,FALSE) -> －－－ | G40: =VLOOKUP(E40,固定値!$AA$2:$AB$7,2,FALSE) -> －－－ | H40: =VLOOKUP(G40,固定値!$AK$2:$AM$5,IF(F40=ラベル!$G$2,2,3),FALSE) -> 0 | I40: =VLOOKUP(G40,固定値!$BE$2:$BG$7,3,FALSE) -> 0 | J40: 276 | K40: =IF(G40=ラベル!$G$2,"",CHAR(10)&"【"&B40&"】"&REPT(" ",11-LEN(B40))&"● "&IF(I40>1,"●","○")&" "&IF(I40>2,"●","○")&" ／") ->  | L40: =IF(G40=ラベル!$G$2,"",CHAR(10)&"【"&B40&"】"&REPT(" ",8-LEN(B40))&G40&REPT(" ",22)&J40) ->  | M40: 276項
B41: 博識 | C41: 0 | D41: 0 | E41: 0 | F41: =VLOOKUP(C41,固定値!$AA$2:$AB$7,2,FALSE) -> －－－ | G41: =VLOOKUP(E41,固定値!$AA$2:$AB$7,2,FALSE) -> －－－ | H41: =VLOOKUP(G41,固定値!$AK$2:$AM$5,IF(F41=ラベル!$G$2,2,3),FALSE) -> 0 | I41: =VLOOKUP(G41,固定値!$BE$2:$BG$7,3,FALSE) -> 0 | J41: 282 | K41: =IF(G41=ラベル!$G$2,"",CHAR(10)&"【"&B41&"】"&REPT(" ",11-LEN(B41))&"● "&IF(I41>1,"●","○")&" "&IF(I41>2,"●","○")&" ／") ->  | L41: =IF(G41=ラベル!$G$2,"",CHAR(10)&"【"&B41&"】"&REPT(" ",8-LEN(B41))&G41&REPT(" ",22)&J41) ->  | M41: 282項
B42: 犯罪知識 | C42: 0 | D42: 0 | E42: 0 | F42: =VLOOKUP(C42,固定値!$AA$2:$AB$7,2,FALSE) -> －－－ | G42: =VLOOKUP(E42,固定値!$AA$2:$AB$7,2,FALSE) -> －－－ | H42: =VLOOKUP(G42,固定値!$AK$2:$AM$5,IF(F42=ラベル!$G$2,2,3),FALSE) -> 0 | I42: =VLOOKUP(G42,固定値!$BE$2:$BG$7,3,FALSE) -> 0 | J42: 283 | K42: =IF(G42=ラベル!$G$2,"",CHAR(10)&"【"&B42&"】"&REPT(" ",11-LEN(B42))&"● "&IF(I42>1,"●","○")&" "&IF(I42>2,"●","○")&" ／") ->  | L42: =IF(G42=ラベル!$G$2,"",CHAR(10)&"【"&B42&"】"&REPT(" ",8-LEN(B42))&G42&REPT(" ",22)&J42) ->  | M42: 283項
B43: 文献調査 | C43: 0 | D43: 0 | E43: 0 | F43: =VLOOKUP(C43,固定値!$AA$2:$AB$7,2,FALSE) -> －－－ | G43: =VLOOKUP(E43,固定値!$AA$2:$AB$7,2,FALSE) -> －－－ | H43: =VLOOKUP(G43,固定値!$AK$2:$AM$5,IF(F43=ラベル!$G$2,2,3),FALSE) -> 0 | I43: =VLOOKUP(G43,固定値!$BE$2:$BG$7,3,FALSE) -> 0 | J43: 283 | K43: =IF(G43=ラベル!$G$2,"",CHAR(10)&"【"&B43&"】"&REPT(" ",11-LEN(B43))&"● "&IF(I43>1,"●","○")&" "&IF(I43>2,"●","○")&" ／") ->  | L43: =IF(G43=ラベル!$G$2,"",CHAR(10)&"【"&B43&"】"&REPT(" ",8-LEN(B43))&G43&REPT(" ",22)&J43) ->  | M43: 283項
B44: 瞑想 | C44: 0 | D44: 0 | E44: 0 | F44: =VLOOKUP(C44,固定値!$AA$2:$AB$7,2,FALSE) -> －－－ | G44: =VLOOKUP(E44,固定値!$AA$2:$AB$7,2,FALSE) -> －－－ | H44: =VLOOKUP(G44,固定値!$AK$2:$AM$5,IF(F44=ラベル!$G$2,2,3),FALSE) -> 0 | I44: =VLOOKUP(G44,固定値!$BE$2:$BG$7,3,FALSE) -> 0 | J44: 277 | K44: =IF(G44=ラベル!$G$2,"",CHAR(10)&"【"&B44&"】"&REPT(" ",11-LEN(B44))&"● "&IF(I44>1,"●","○")&" "&IF(I44>2,"●","○")&" ／") ->  | L44: =IF(G44=ラベル!$G$2,"",CHAR(10)&"【"&B44&"】"&REPT(" ",8-LEN(B44))&G44&REPT(" ",22)&J44) ->  | M44: 277項
B45: 竜の末裔 | C45: 0 | D45: 0 | E45: 0 | F45: =VLOOKUP(C45,固定値!$AA$2:$AB$7,2,FALSE) -> －－－ | G45: =VLOOKUP(E45,固定値!$AA$2:$AB$7,2,FALSE) -> －－－ | H45: =VLOOKUP(G45,固定値!$AK$2:$AM$5,IF(F45=ラベル!$G$2,2,3),FALSE) -> 0 | I45: =VLOOKUP(G45,固定値!$BE$2:$BH$7,4,FALSE) -> 0 | J45: 292 | K45: =IF(G45=ラベル!$G$2,"",CHAR(10)&"【"&B45&"】"&REPT(" ",11-LEN(B45))&"● "&IF(I45>1,"●","○")&" "&IF(I45>2,"●","○")&" ／") ->  | L45: =IF(G45=ラベル!$G$2,"",CHAR(10)&"【"&B45&"】"&REPT(" ",8-LEN(B45))&G45&REPT(" ",22)&J45) ->  | M45: 292項
B46: 礼儀作法 | C46: 0 | D46: 0 | E46: 0 | F46: =VLOOKUP(C46,固定値!$AA$2:$AB$7,2,FALSE) -> －－－ | G46: =VLOOKUP(E46,固定値!$AA$2:$AB$7,2,FALSE) -> －－－ | H46: =VLOOKUP(G46,固定値!$AK$2:$AM$5,IF(F46=ラベル!$G$2,2,3),FALSE) -> 0 | I46: =VLOOKUP(G46,固定値!$BE$2:$BG$7,3,FALSE) -> 0 | J46: 284 | K46: =IF(G46=ラベル!$G$2,"",CHAR(10)&"【"&B46&"】"&REPT(" ",11-LEN(B46))&"● "&IF(I46>1,"●","○")&" "&IF(I46>2,"●","○")&" ／") ->  | L46: =IF(G46=ラベル!$G$2,"",CHAR(10)&"【"&B46&"】"&REPT(" ",8-LEN(B46))&G46&REPT(" ",22)&J46) ->  | M46: 284項
B47: 労働 | C47: 0 | D47: 0 | E47: 0 | F47: =VLOOKUP(C47,固定値!$AA$2:$AB$7,2,FALSE) -> －－－ | G47: =VLOOKUP(E47,固定値!$AA$2:$AB$7,2,FALSE) -> －－－ | H47: =VLOOKUP(G47,固定値!$AK$2:$AM$5,IF(F47=ラベル!$G$2,2,3),FALSE) -> 0 | I47: =VLOOKUP(G47,固定値!$BE$2:$BG$7,3,FALSE) -> 0 | J47: 284 | K47: =IF(G47=ラベル!$G$2,"",CHAR(10)&"【"&B47&"】"&REPT(" ",11-LEN(B47))&"● "&IF(I47>1,"●","○")&" "&IF(I47>2,"●","○")&" ／") ->  | L47: =IF(G47=ラベル!$G$2,"",CHAR(10)&"【"&B47&"】"&REPT(" ",8-LEN(B47))&G47&REPT(" ",22)&J47) ->  | M47: 284項
B51: 生得技能(1) | F51: =VLOOKUP(プロフィール!C3,固定値!DC2:DF6,2,FALSE) -> 荷重行動：初歩 | G51: =IF(F51="なし","",IF(K51=1,FIND("：",F51),FIND("：",F51,FIND("：",F51)+1))) -> 5 | H51: =IF(G51="","",LEFT(F51,G51-1)) -> 荷重行動 | I51: =IF(H51="",0,RIGHT(F51,LEN(F51)-G51)) -> 初歩 | J51: =IF(H51="",0,VLOOKUP(I51,固定値!$AD$2:$AE$7,2,FALSE)) -> 1 | K51: =LEN(F51)-LEN(SUBSTITUTE(F51,"：","")) -> 1
B52: 生得技能(2) | F52: =VLOOKUP(プロフィール!C3,固定値!DC2:DF6,3,FALSE) -> 武器：投擲武器：初歩 | G52: 8 | H52: =IF(G52="","",LEFT(F52,G52-1)) -> 武器：投擲武器 | I52: =IF(H52="",0,RIGHT(F52,LEN(F52)-G52)) -> 初歩 | J52: =IF(H52="",0,VLOOKUP(I52,固定値!$AD$2:$AE$7,2,FALSE)) -> 1 | K52: 2
B53: 生得技能(3) | F53: =VLOOKUP(プロフィール!C3,固定値!DC2:DF6,4,FALSE) -> 長距離移動：初歩 | G53: 6 | H53: 長距離移動 | I53: 初歩 | J53: =IF(H53="",0,VLOOKUP(I53,固定値!$AD$2:$AE$7,2,FALSE)) -> 1 | K53: 1
B54: =作成シート!B35 -> 技能出自ボーナス(1) | F54: =作成シート!C35 -> なし | H54: =IF(G54="","",LEFT(F54,G54-1)) ->  | I54: =IF(H54="",0,RIGHT(F54,LEN(F54)-G54)) -> 0 | J54: =IF(H54="",0,VLOOKUP(I54,固定値!$AD$2:$AE$7,2,FALSE)) -> 0 | K54: 0
B55: =作成シート!B36 -> 技能出自ボーナス(2) | F55: =作成シート!C36 -> なし | I55: 0 | J55: =IF(H55="",0,VLOOKUP(I55,固定値!$AD$2:$AE$7,2,FALSE)) -> 0 | K55: 0
B56: =作成シート!B37 -> 技能来歴ボーナス | F56: =作成シート!C37 -> なし | I56: 0 | J56: =IF(H56="",0,VLOOKUP(I56,固定値!$AD$2:$AE$7,2,FALSE)) -> 0 | K56: 0
B59: =作成シート!B54 -> 習得技能(1) | F59: =作成シート!C54 -> なし | G59: =IF(F59="なし","",IF(K59=1,FIND("：",F59),FIND("：",F59,FIND("：",F59)+1))) ->  | H59: =IF(G59="","",LEFT(F59,G59-1)) ->  | I59: =IF(H59="",0,RIGHT(F59,LEN(F59)-G59)) -> 0 | J59: =IF(H59="",0,VLOOKUP(I59,固定値!$AD$2:$AE$7,2,FALSE)) -> 0 | K59: =LEN(F59)-LEN(SUBSTITUTE(F59,"：","")) -> 0
B60: =作成シート!B55 -> 習得技能(2) | F60: =作成シート!C55 -> なし | I60: 0 | J60: =IF(H60="",0,VLOOKUP(I60,固定値!$AD$2:$AE$7,2,FALSE)) -> 0 | K60: 0
B61: =作成シート!B56 -> 習得技能(3) | F61: =作成シート!C56 -> なし | I61: 0 | J61: =IF(H61="",0,VLOOKUP(I61,固定値!$AD$2:$AE$7,2,FALSE)) -> 0 | K61: 0
B62: =作成シート!B57 -> 習得技能(4) | F62: =作成シート!C57 -> なし | I62: 0 | J62: =IF(H62="",0,VLOOKUP(I62,固定値!$AD$2:$AE$7,2,FALSE)) -> 0 | K62: 0
B63: =作成シート!B58 -> 習得技能(5) | F63: =作成シート!C58 -> なし | I63: 0 | J63: =IF(H63="",0,VLOOKUP(I63,固定値!$AD$2:$AE$7,2,FALSE)) -> 0 | K63: 0
B64: =作成シート!B59 -> 習得技能(6) | F64: =作成シート!C59 -> なし | I64: 0 | J64: =IF(H64="",0,VLOOKUP(I64,固定値!$AD$2:$AE$7,2,FALSE)) -> 0 | K64: 0
B65: =作成シート!B60 -> 習得技能(7) | F65: =作成シート!C60 -> なし | I65: 0 | J65: =IF(H65="",0,VLOOKUP(I65,固定値!$AD$2:$AE$7,2,FALSE)) -> 0 | K65: 0
B66: =作成シート!B61 -> 習得技能(8) | F66: =作成シート!C61 -> なし | I66: 0 | J66: =IF(H66="",0,VLOOKUP(I66,固定値!$AD$2:$AE$7,2,FALSE)) -> 0 | K66: 0
B67: =作成シート!B62 -> 習得技能(9) | F67: =作成シート!C62 -> なし | I67: 0 | J67: =IF(H67="",0,VLOOKUP(I67,固定値!$AD$2:$AE$7,2,FALSE)) -> 0 | K67: 0
B68: =作成シート!B63 -> 習得技能(10) | F68: =作成シート!C63 -> なし | I68: 0 | J68: =IF(H68="",0,VLOOKUP(I68,固定値!$AD$2:$AE$7,2,FALSE)) -> 0 | K68: 0
B69: =作成シート!B64 -> 習得技能(11) | F69: =作成シート!C64 -> なし | I69: 0 | J69: =IF(H69="",0,VLOOKUP(I69,固定値!$AD$2:$AE$7,2,FALSE)) -> 0 | K69: 0
B70: =作成シート!B65 -> 習得技能(12) | F70: =作成シート!C65 -> なし | I70: 0 | J70: =IF(H70="",0,VLOOKUP(I70,固定値!$AD$2:$AE$7,2,FALSE)) -> 0 | K70: 0
B71: =作成シート!B66 -> 習得技能(13) | F71: =作成シート!C66 -> なし | I71: 0 | J71: =IF(H71="",0,VLOOKUP(I71,固定値!$AD$2:$AE$7,2,FALSE)) -> 0 | K71: 0
B72: =作成シート!B67 -> 習得技能(14) | F72: =作成シート!C67 -> なし | I72: 0 | J72: =IF(H72="",0,VLOOKUP(I72,固定値!$AD$2:$AE$7,2,FALSE)) -> 0 | K72: 0
B73: =作成シート!B68 -> 習得技能(15) | F73: =作成シート!C68 -> なし | I73: 0 | J73: =IF(H73="",0,VLOOKUP(I73,固定値!$AD$2:$AE$7,2,FALSE)) -> 0 | K73: 0
B74: =作成シート!B69 -> 習得技能(16) | F74: =作成シート!C69 -> なし | I74: 0 | J74: =IF(H74="",0,VLOOKUP(I74,固定値!$AD$2:$AE$7,2,FALSE)) -> 0 | K74: 0
B75: =作成シート!B70 -> 習得技能(17) | F75: =作成シート!C70 -> なし | I75: 0 | J75: =IF(H75="",0,VLOOKUP(I75,固定値!$AD$2:$AE$7,2,FALSE)) -> 0 | K75: 0
B76: =作成シート!B71 -> 習得技能(18) | F76: =作成シート!C71 -> なし | I76: 0 | J76: =IF(H76="",0,VLOOKUP(I76,固定値!$AD$2:$AE$7,2,FALSE)) -> 0 | K76: 0
B77: =作成シート!B72 -> 習得技能(19) | F77: =作成シート!C72 -> なし | I77: 0 | J77: =IF(H77="",0,VLOOKUP(I77,固定値!$AD$2:$AE$7,2,FALSE)) -> 0 | K77: 0
B78: =作成シート!B73 -> 習得技能(20) | F78: =作成シート!C73 -> なし | I78: 0 | J78: =IF(H78="",0,VLOOKUP(I78,固定値!$AD$2:$AE$7,2,FALSE)) -> 0 | K78: 0
B79: =作成シート!B74 -> 習得技能(21) | F79: =作成シート!C74 -> なし | I79: 0 | J79: =IF(H79="",0,VLOOKUP(I79,固定値!$AD$2:$AE$7,2,FALSE)) -> 0 | K79: 0
B80: =作成シート!B75 -> 習得技能(22) | F80: =作成シート!C75 -> なし | I80: 0 | J80: =IF(H80="",0,VLOOKUP(I80,固定値!$AD$2:$AE$7,2,FALSE)) -> 0 | K80: 0
B81: =作成シート!B76 -> 習得技能(23) | F81: =作成シート!C76 -> なし | I81: 0 | J81: =IF(H81="",0,VLOOKUP(I81,固定値!$AD$2:$AE$7,2,FALSE)) -> 0 | K81: 0
B82: =作成シート!B77 -> 習得技能(24) | F82: =作成シート!C77 -> なし | I82: 0 | J82: =IF(H82="",0,VLOOKUP(I82,固定値!$AD$2:$AE$7,2,FALSE)) -> 0 | K82: 0

Sheet 追加成長点
B2: 追加成長点 | C2: 消費経験値
B3: =作成シート!C43 -> 0 | C3: =B3*500 -> 0

Sheet エラー
C1: 基準値 | D1: =D2&D3&D4&D5&D6&D7&D8&D9&D10&D11&D12&D13&D14&D15&D16&D17&D18&D19&D20&D21&D22&D23&D24&D25&D26&D27&D28&D29&D30&D31&D32&D33&D34&D35&D36&D37&D38&D39&D40&D41&D42&D43&D44&D45&D46&D47&D48&D49&D50&D51&D52&D53&D54&D55&D56&D57&D58&D59&D60&D61&D62&D63&D64&D65&D66&D67&D68&D69&D70&D71&D72&D73&D74&D75&D76&D77&D78&D79&D80&D81&D82&D83&D84&D85&D86&D87&D88&D89&D90&D91&D92&D93&D94&D95&D96&D97&D98&D99&D100&D101&D102&D103&D104&D105&D106&D107&D108&D109&D110&D111&D112&D113&D114&D115&D116&D117&D118&D119&D120&D121&D122&D123&D124&D125&D126&D127&D128&D129&D130&D131 -> 
B2: 真言呪文が少なすぎます | C2: =冒険者職業レベル!E27+冒険者職業レベル!F27-冒険者職業レベル!G27 -> 0 | D2: =IF(C2>0,CHAR(10)&B2,"") -> 
B3: 真言呪文が多すぎます | C3: =冒険者職業レベル!E27+冒険者職業レベル!F27-冒険者職業レベル!G27 -> 0 | D3: =IF(C3<0,CHAR(10)&B3,"") -> 
B4: 奇跡が少なすぎます | C4: =冒険者職業レベル!E28+冒険者職業レベル!F28-冒険者職業レベル!G28 -> 0 | D4: =IF(C4>0,CHAR(10)&B4,"") -> 
B5: 奇跡が多すぎます | C5: =冒険者職業レベル!E28+冒険者職業レベル!F28-冒険者職業レベル!G28 -> 0 | D5: =IF(C5<0,CHAR(10)&B5,"") -> 
B6: 祖竜術が少なすぎます | C6: =冒険者職業レベル!E29+冒険者職業レベル!F29-冒険者職業レベル!G29 -> 0 | D6: =IF(C6>0,CHAR(10)&B6,"") -> 
B7: 祖竜術が多すぎます | C7: =冒険者職業レベル!E29+冒険者職業レベル!F29-冒険者職業レベル!G29 -> 0 | D7: =IF(C7<0,CHAR(10)&B7,"") -> 
B8: 精霊術が少なすぎます | C8: =冒険者職業レベル!E30+冒険者職業レベル!F30-冒険者職業レベル!G30 -> 0 | D8: =IF(C8>0,CHAR(10)&B8,"") -> 
B9: 精霊術が多すぎます | C9: =冒険者職業レベル!E30+冒険者職業レベル!F30-冒険者職業レベル!G30 -> 0 | D9: =IF(C9<0,CHAR(10)&B9,"") -> 
B10: =F10&G10&E10 -> 戦士のレベルが出自・来歴ボーナスがあるのに、現在値に反映されていません | C10: =冒険者職業レベル!D3-冒険者職業レベル!E3 -> 0 | D10: =IF(C10>0,CHAR(10)&B10,"") ->  | E10: が出自・来歴ボーナスがあるのに、現在値に反映されていません | F10: 戦士 | G10: のレベル
B11: =F11&G11&E11 -> 武道家のレベルが出自・来歴ボーナスがあるのに、現在値に反映されていません | C11: =冒険者職業レベル!D4-冒険者職業レベル!E4 -> 0 | D11: =IF(C11>0,CHAR(10)&B11,"") ->  | E11: が出自・来歴ボーナスがあるのに、現在値に反映されていません | F11: 武道家 | G11: のレベル
B12: 野伏のレベルが出自・来歴ボーナスがあるのに、現在値に反映されていません | C12: =冒険者職業レベル!D5-冒険者職業レベル!E5 -> 0 | E12: が出自・来歴ボーナスがあるのに、現在値に反映されていません | F12: 野伏 | G12: のレベル
B13: 斥候のレベルが出自・来歴ボーナスがあるのに、現在値に反映されていません | C13: =冒険者職業レベル!D6-冒険者職業レベル!E6 -> 0 | E13: が出自・来歴ボーナスがあるのに、現在値に反映されていません | F13: 斥候 | G13: のレベル
B14: 魔術師のレベルが出自・来歴ボーナスがあるのに、現在値に反映されていません | C14: =冒険者職業レベル!D7-冒険者職業レベル!E7 -> 0 | E14: が出自・来歴ボーナスがあるのに、現在値に反映されていません | F14: 魔術師 | G14: のレベル
B15: 神官のレベルが出自・来歴ボーナスがあるのに、現在値に反映されていません | C15: =冒険者職業レベル!D8-冒険者職業レベル!E8 -> 0 | E15: が出自・来歴ボーナスがあるのに、現在値に反映されていません | F15: 神官 | G15: のレベル
B16: 竜司祭のレベルが出自・来歴ボーナスがあるのに、現在値に反映されていません | C16: =冒険者職業レベル!D9-冒険者職業レベル!E9 -> 0 | E16: が出自・来歴ボーナスがあるのに、現在値に反映されていません | F16: 竜司祭 | G16: のレベル
B17: 精霊使いのレベルが出自・来歴ボーナスがあるのに、現在値に反映されていません | C17: =冒険者職業レベル!D10-冒険者職業レベル!E10 -> 0 | D17: =IF(C17>0,CHAR(10)&B17,"") ->  | E17: が出自・来歴ボーナスがあるのに、現在値に反映されていません | F17: 精霊使い | G17: のレベル
B18: 能力値ボーナスが設定されていません | C18: =SUM(能力値!F4:F7) -> 1 | D18: =IF(C18=0,CHAR(10)&B18,"") -> 
B19: 受身の習熟段階が出自・来歴ボーナスがあるのに、現在値に反映されていません | D19: =IF(冒険者技能!H3=ラベル!$G$3,IF(冒険者技能!I3=ラベル!$G$2,CHAR(10)&B19,""),"") ->  | E19: が出自・来歴ボーナスがあるのに、現在値に反映されていません | F19: 受身 | G19: の習熟段階
B20: 応急手当の習熟段階が出自・来歴ボーナスがあるのに、現在値に反映されていません | D20: =IF(冒険者技能!H4=ラベル!$G$3,IF(冒険者技能!I4=ラベル!$G$2,CHAR(10)&B20,""),"") ->  | E20: が出自・来歴ボーナスがあるのに、現在値に反映されていません | F20: 応急手当 | G20: の習熟段階
B21: 隠密の習熟段階が出自・来歴ボーナスがあるのに、現在値に反映されていません | D21: =IF(冒険者技能!H5=ラベル!$G$3,IF(冒険者技能!I5=ラベル!$G$2,CHAR(10)&B21,""),"") ->  | E21: が出自・来歴ボーナスがあるのに、現在値に反映されていません | F21: 隠密 | G21: の習熟段階
B22: 頑健の習熟段階が出自・来歴ボーナスがあるのに、現在値に反映されていません | D22: =IF(冒険者技能!H6=ラベル!$G$3,IF(冒険者技能!I6=ラベル!$G$2,CHAR(10)&B22,""),"") ->  | E22: が出自・来歴ボーナスがあるのに、現在値に反映されていません | F22: 頑健 | G22: の習熟段階
B23: 観察の習熟段階が出自・来歴ボーナスがあるのに、現在値に反映されていません | D23: =IF(冒険者技能!H7=ラベル!$G$3,IF(冒険者技能!I7=ラベル!$G$2,CHAR(10)&B23,""),"") ->  | E23: が出自・来歴ボーナスがあるのに、現在値に反映されていません | F23: 観察 | G23: の習熟段階
B24: 機先の習熟段階が出自・来歴ボーナスがあるのに、現在値に反映されていません | D24: =IF(冒険者技能!H8=ラベル!$G$3,IF(冒険者技能!I8=ラベル!$G$2,CHAR(10)&B24,""),"") ->  | E24: が出自・来歴ボーナスがあるのに、現在値に反映されていません | F24: 機先 | G24: の習熟段階
B25: 幸運の習熟段階が出自・来歴ボーナスがあるのに、現在値に反映されていません | D25: =IF(冒険者技能!H9=ラベル!$G$3,IF(冒険者技能!I9=ラベル!$G$2,CHAR(10)&B25,""),"") ->  | E25: が出自・来歴ボーナスがあるのに、現在値に反映されていません | F25: 幸運 | G25: の習熟段階
B26: 呪文抵抗の習熟段階が出自・来歴ボーナスがあるのに、現在値に反映されていません | D26: =IF(冒険者技能!H10=ラベル!$G$3,IF(冒険者技能!I10=ラベル!$G$2,CHAR(10)&B26,""),"") ->  | E26: が出自・来歴ボーナスがあるのに、現在値に反映されていません | F26: 呪文抵抗 | G26: の習熟段階
B27: 戦術移動の習熟段階が出自・来歴ボーナスがあるのに、現在値に反映されていません | D27: =IF(冒険者技能!H11=ラベル!$G$3,IF(冒険者技能!I11=ラベル!$G$2,CHAR(10)&B27,""),"") ->  | E27: が出自・来歴ボーナスがあるのに、現在値に反映されていません | F27: 戦術移動 | G27: の習熟段階
B28: 第六感の習熟段階が出自・来歴ボーナスがあるのに、現在値に反映されていません | D28: =IF(冒険者技能!H12=ラベル!$G$3,IF(冒険者技能!I12=ラベル!$G$2,CHAR(10)&B28,""),"") ->  | E28: が出自・来歴ボーナスがあるのに、現在値に反映されていません | F28: 第六感 | G28: の習熟段階
B29: 治癒適正の習熟段階が出自・来歴ボーナスがあるのに、現在値に反映されていません | D29: =IF(冒険者技能!H13=ラベル!$G$3,IF(冒険者技能!I13=ラベル!$G$2,CHAR(10)&B29,""),"") ->  | E29: が出自・来歴ボーナスがあるのに、現在値に反映されていません | F29: 治癒適正 | G29: の習熟段階
B30: 手仕事の習熟段階が出自・来歴ボーナスがあるのに、現在値に反映されていません | D30: =IF(冒険者技能!H14=ラベル!$G$3,IF(冒険者技能!I14=ラベル!$G$2,CHAR(10)&B30,""),"") ->  | E30: が出自・来歴ボーナスがあるのに、現在値に反映されていません | F30: 手仕事 | G30: の習熟段階
B31: 忍耐の習熟段階が出自・来歴ボーナスがあるのに、現在値に反映されていません | D31: =IF(冒険者技能!H15=ラベル!$G$3,IF(冒険者技能!I15=ラベル!$G$2,CHAR(10)&B31,""),"") ->  | E31: が出自・来歴ボーナスがあるのに、現在値に反映されていません | F31: 忍耐 | G31: の習熟段階
B32: 免疫強化の習熟段階が出自・来歴ボーナスがあるのに、現在値に反映されていません | D32: =IF(冒険者技能!H16=ラベル!$G$3,IF(冒険者技能!I16=ラベル!$G$2,CHAR(10)&B32,""),"") ->  | E32: が出自・来歴ボーナスがあるのに、現在値に反映されていません | F32: 免疫強化 | G32: の習熟段階
B33: 受け流しの習熟段階が出自・来歴ボーナスがあるのに、現在値に反映されていません | D33: =IF(冒険者技能!H17=ラベル!$G$3,IF(冒険者技能!I17=ラベル!$G$2,CHAR(10)&B33,""),"") ->  | E33: が出自・来歴ボーナスがあるのに、現在値に反映されていません | F33: 受け流し | G33: の習熟段階
B34: 荷重行動の習熟段階が出自・来歴ボーナスがあるのに、現在値に反映されていません | D34: =IF(冒険者技能!H18=ラベル!$G$3,IF(冒険者技能!I18=ラベル!$G$2,CHAR(10)&B34,""),"") ->  | E34: が出自・来歴ボーナスがあるのに、現在値に反映されていません | F34: 荷重行動 | G34: の習熟段階
B35: 強打攻撃・斬の習熟段階が出自・来歴ボーナスがあるのに、現在値に反映されていません | D35: =IF(冒険者技能!H19=ラベル!$G$3,IF(冒険者技能!I19=ラベル!$G$2,CHAR(10)&B35,""),"") ->  | E35: が出自・来歴ボーナスがあるのに、現在値に反映されていません | F35: 強打攻撃・斬 | G35: の習熟段階
B36: 強打攻撃・殴の習熟段階が出自・来歴ボーナスがあるのに、現在値に反映されていません | D36: =IF(冒険者技能!H20=ラベル!$G$3,IF(冒険者技能!I20=ラベル!$G$2,CHAR(10)&B36,""),"") ->  | E36: が出自・来歴ボーナスがあるのに、現在値に反映されていません | F36: 強打攻撃・殴 | G36: の習熟段階
B37: 曲射の習熟段階が出自・来歴ボーナスがあるのに、現在値に反映されていません | D37: =IF(冒険者技能!H21=ラベル!$G$3,IF(冒険者技能!I21=ラベル!$G$2,CHAR(10)&B37,""),"") ->  | E37: が出自・来歴ボーナスがあるのに、現在値に反映されていません | F37: 曲射 | G37: の習熟段階
B38: 斬落攻撃の習熟段階が出自・来歴ボーナスがあるのに、現在値に反映されていません | D38: =IF(冒険者技能!H22=ラベル!$G$3,IF(冒険者技能!I22=ラベル!$G$2,CHAR(10)&B38,""),"") ->  | E38: が出自・来歴ボーナスがあるのに、現在値に反映されていません | F38: 斬落攻撃 | G38: の習熟段階
B39: 拘束攻撃の習熟段階が出自・来歴ボーナスがあるのに、現在値に反映されていません | D39: =IF(冒険者技能!H23=ラベル!$G$3,IF(冒険者技能!I23=ラベル!$G$2,CHAR(10)&B39,""),"") ->  | E39: が出自・来歴ボーナスがあるのに、現在値に反映されていません | F39: 拘束攻撃 | G39: の習熟段階
B40: 護衛の習熟段階が出自・来歴ボーナスがあるのに、現在値に反映されていません | D40: =IF(冒険者技能!H24=ラベル!$G$3,IF(冒険者技能!I24=ラベル!$G$2,CHAR(10)&B40,""),"") ->  | E40: が出自・来歴ボーナスがあるのに、現在値に反映されていません | F40: 護衛 | G40: の習熟段階
B41: 死角移動の習熟段階が出自・来歴ボーナスがあるのに、現在値に反映されていません | D41: =IF(冒険者技能!H25=ラベル!$G$3,IF(冒険者技能!I25=ラベル!$G$2,CHAR(10)&B41,""),"") ->  | E41: が出自・来歴ボーナスがあるのに、現在値に反映されていません | F41: 死角移動 | G41: の習熟段階
B42: 刺突攻撃の習熟段階が出自・来歴ボーナスがあるのに、現在値に反映されていません | D42: =IF(冒険者技能!H26=ラベル!$G$3,IF(冒険者技能!I26=ラベル!$G$2,CHAR(10)&B42,""),"") ->  | E42: が出自・来歴ボーナスがあるのに、現在値に反映されていません | F42: 刺突攻撃 | G42: の習熟段階
B43: 狙撃の習熟段階が出自・来歴ボーナスがあるのに、現在値に反映されていません | D43: =IF(冒険者技能!H27=ラベル!$G$3,IF(冒険者技能!I27=ラベル!$G$2,CHAR(10)&B43,""),"") ->  | E43: が出自・来歴ボーナスがあるのに、現在値に反映されていません | F43: 狙撃 | G43: の習熟段階
B44: 速射の習熟段階が出自・来歴ボーナスがあるのに、現在値に反映されていません | D44: =IF(冒険者技能!H28=ラベル!$G$3,IF(冒険者技能!I28=ラベル!$G$2,CHAR(10)&B44,""),"") ->  | E44: が出自・来歴ボーナスがあるのに、現在値に反映されていません | F44: 速射 | G44: の習熟段階
B45: 体術の習熟段階が出自・来歴ボーナスがあるのに、現在値に反映されていません | D45: =IF(冒険者技能!H29=ラベル!$G$3,IF(冒険者技能!I29=ラベル!$G$2,CHAR(10)&B45,""),"") ->  | E45: が出自・来歴ボーナスがあるのに、現在値に反映されていません | F45: 体術 | G45: の習熟段階
B46: 盾の習熟段階が出自・来歴ボーナスがあるのに、現在値に反映されていません | D46: =IF(冒険者技能!H30=ラベル!$G$3,IF(冒険者技能!I30=ラベル!$G$2,CHAR(10)&B46,""),"") ->  | E46: が出自・来歴ボーナスがあるのに、現在値に反映されていません | F46: 盾 | G46: の習熟段階
B47: 挑発の習熟段階が出自・来歴ボーナスがあるのに、現在値に反映されていません | D47: =IF(冒険者技能!H31=ラベル!$G$3,IF(冒険者技能!I31=ラベル!$G$2,CHAR(10)&B47,""),"") ->  | E47: が出自・来歴ボーナスがあるのに、現在値に反映されていません | F47: 挑発 | G47: の習熟段階
B48: 鉄の拳の習熟段階が出自・来歴ボーナスがあるのに、現在値に反映されていません | D48: =IF(冒険者技能!H32=ラベル!$G$3,IF(冒険者技能!I32=ラベル!$G$2,CHAR(10)&B48,""),"") ->  | E48: が出自・来歴ボーナスがあるのに、現在値に反映されていません | F48: 鉄の拳 | G48: の習熟段階
B49: 鉄壁の習熟段階が出自・来歴ボーナスがあるのに、現在値に反映されていません | D49: =IF(冒険者技能!H33=ラベル!$G$3,IF(冒険者技能!I33=ラベル!$G$2,CHAR(10)&B49,""),"") ->  | E49: が出自・来歴ボーナスがあるのに、現在値に反映されていません | F49: 鉄壁 | G49: の習熟段階
B50: 薙ぎ払いの習熟段階が出自・来歴ボーナスがあるのに、現在値に反映されていません | D50: =IF(冒険者技能!H34=ラベル!$G$3,IF(冒険者技能!I34=ラベル!$G$2,CHAR(10)&B50,""),"") ->  | E50: が出自・来歴ボーナスがあるのに、現在値に反映されていません | F50: 薙ぎ払い | G50: の習熟段階
B51: 二刀流の習熟段階が出自・来歴ボーナスがあるのに、現在値に反映されていません | D51: =IF(冒険者技能!H35=ラベル!$G$3,IF(冒険者技能!I35=ラベル!$G$2,CHAR(10)&B51,""),"") ->  | E51: が出自・来歴ボーナスがあるのに、現在値に反映されていません | F51: 二刀流 | G51: の習熟段階
B52: 発勁の習熟段階が出自・来歴ボーナスがあるのに、現在値に反映されていません | D52: =IF(冒険者技能!H36=ラベル!$G$3,IF(冒険者技能!I36=ラベル!$G$2,CHAR(10)&B52,""),"") ->  | E52: が出自・来歴ボーナスがあるのに、現在値に反映されていません | F52: 発勁 | G52: の習熟段階
B53: 武器：片手剣の習熟段階が出自・来歴ボーナスがあるのに、現在値に反映されていません | D53: =IF(冒険者技能!H37=ラベル!$G$3,IF(冒険者技能!I37=ラベル!$G$2,CHAR(10)&B53,""),"") ->  | E53: が出自・来歴ボーナスがあるのに、現在値に反映されていません | F53: 武器：片手剣 | G53: の習熟段階
B54: 武器：両手剣の習熟段階が出自・来歴ボーナスがあるのに、現在値に反映されていません | D54: =IF(冒険者技能!H38=ラベル!$G$3,IF(冒険者技能!I38=ラベル!$G$2,CHAR(10)&B54,""),"") ->  | E54: が出自・来歴ボーナスがあるのに、現在値に反映されていません | F54: 武器：両手剣 | G54: の習熟段階
B55: 武器：斧の習熟段階が出自・来歴ボーナスがあるのに、現在値に反映されていません | D55: =IF(冒険者技能!H39=ラベル!$G$3,IF(冒険者技能!I39=ラベル!$G$2,CHAR(10)&B55,""),"") ->  | E55: が出自・来歴ボーナスがあるのに、現在値に反映されていません | F55: 武器：斧 | G55: の習熟段階
B56: 武器：槍の習熟段階が出自・来歴ボーナスがあるのに、現在値に反映されていません | D56: =IF(冒険者技能!H40=ラベル!$G$3,IF(冒険者技能!I40=ラベル!$G$2,CHAR(10)&B56,""),"") ->  | E56: が出自・来歴ボーナスがあるのに、現在値に反映されていません | F56: 武器：槍 | G56: の習熟段階
B57: 武器：戦槌の習熟段階が出自・来歴ボーナスがあるのに、現在値に反映されていません | D57: =IF(冒険者技能!H41=ラベル!$G$3,IF(冒険者技能!I41=ラベル!$G$2,CHAR(10)&B57,""),"") ->  | E57: が出自・来歴ボーナスがあるのに、現在値に反映されていません | F57: 武器：戦槌 | G57: の習熟段階
B58: 武器：棍杖の習熟段階が出自・来歴ボーナスがあるのに、現在値に反映されていません | D58: =IF(冒険者技能!H42=ラベル!$G$3,IF(冒険者技能!I42=ラベル!$G$2,CHAR(10)&B58,""),"") ->  | E58: が出自・来歴ボーナスがあるのに、現在値に反映されていません | F58: 武器：棍杖 | G58: の習熟段階
B59: 武器：格闘武器の習熟段階が出自・来歴ボーナスがあるのに、現在値に反映されていません | D59: =IF(冒険者技能!H43=ラベル!$G$3,IF(冒険者技能!I43=ラベル!$G$2,CHAR(10)&B59,""),"") ->  | E59: が出自・来歴ボーナスがあるのに、現在値に反映されていません | F59: 武器：格闘武器 | G59: の習熟段階
B60: 武器：投擲武器の習熟段階が出自・来歴ボーナスがあるのに、現在値に反映されていません | D60: =IF(冒険者技能!H44=ラベル!$G$3,IF(冒険者技能!I44=ラベル!$G$2,CHAR(10)&B60,""),"") ->  | E60: が出自・来歴ボーナスがあるのに、現在値に反映されていません | F60: 武器：投擲武器 | G60: の習熟段階
B61: 武器：弩弓の習熟段階が出自・来歴ボーナスがあるのに、現在値に反映されていません | D61: =IF(冒険者技能!H45=ラベル!$G$3,IF(冒険者技能!I45=ラベル!$G$2,CHAR(10)&B61,""),"") ->  | E61: が出自・来歴ボーナスがあるのに、現在値に反映されていません | F61: 武器：弩弓 | G61: の習熟段階
B62: 見切りの習熟段階が出自・来歴ボーナスがあるのに、現在値に反映されていません | D62: =IF(冒険者技能!H46=ラベル!$G$3,IF(冒険者技能!I46=ラベル!$G$2,CHAR(10)&B62,""),"") ->  | E62: が出自・来歴ボーナスがあるのに、現在値に反映されていません | F62: 見切り | G62: の習熟段階
B63: 鎧：衣鎧の習熟段階が出自・来歴ボーナスがあるのに、現在値に反映されていません | D63: =IF(冒険者技能!H47=ラベル!$G$3,IF(冒険者技能!I47=ラベル!$G$2,CHAR(10)&B63,""),"") ->  | E63: が出自・来歴ボーナスがあるのに、現在値に反映されていません | F63: 鎧：衣鎧 | G63: の習熟段階
B64: 鎧：軽鎧の習熟段階が出自・来歴ボーナスがあるのに、現在値に反映されていません | D64: =IF(冒険者技能!H48=ラベル!$G$3,IF(冒険者技能!I48=ラベル!$G$2,CHAR(10)&B64,""),"") ->  | E64: が出自・来歴ボーナスがあるのに、現在値に反映されていません | F64: 鎧：軽鎧 | G64: の習熟段階
B65: 鎧：重鎧の習熟段階が出自・来歴ボーナスがあるのに、現在値に反映されていません | D65: =IF(冒険者技能!H49=ラベル!$G$3,IF(冒険者技能!I49=ラベル!$G$2,CHAR(10)&B65,""),"") ->  | E65: が出自・来歴ボーナスがあるのに、現在値に反映されていません | F65: 鎧：重鎧 | G65: の習熟段階
B66: 火の遣い手の習熟段階が出自・来歴ボーナスがあるのに、現在値に反映されていません | D66: =IF(冒険者技能!H50=ラベル!$G$3,IF(冒険者技能!I50=ラベル!$G$2,CHAR(10)&B66,""),"") ->  | E66: が出自・来歴ボーナスがあるのに、現在値に反映されていません | F66: 火の遣い手 | G66: の習熟段階
B67: 水の遣い手の習熟段階が出自・来歴ボーナスがあるのに、現在値に反映されていません | D67: =IF(冒険者技能!H51=ラベル!$G$3,IF(冒険者技能!I51=ラベル!$G$2,CHAR(10)&B67,""),"") ->  | E67: が出自・来歴ボーナスがあるのに、現在値に反映されていません | F67: 水の遣い手 | G67: の習熟段階
B68: 風の遣い手の習熟段階が出自・来歴ボーナスがあるのに、現在値に反映されていません | D68: =IF(冒険者技能!H52=ラベル!$G$3,IF(冒険者技能!I52=ラベル!$G$2,CHAR(10)&B68,""),"") ->  | E68: が出自・来歴ボーナスがあるのに、現在値に反映されていません | F68: 風の遣い手 | G68: の習熟段階
B69: 土の遣い手の習熟段階が出自・来歴ボーナスがあるのに、現在値に反映されていません | D69: =IF(冒険者技能!H53=ラベル!$G$3,IF(冒険者技能!I53=ラベル!$G$2,CHAR(10)&B69,""),"") ->  | E69: が出自・来歴ボーナスがあるのに、現在値に反映されていません | F69: 土の遣い手 | G69: の習熟段階
B70: 生命の遣い手の習熟段階が出自・来歴ボーナスがあるのに、現在値に反映されていません | D70: =IF(冒険者技能!H54=ラベル!$G$3,IF(冒険者技能!I54=ラベル!$G$2,CHAR(10)&B70,""),"") ->  | E70: が出自・来歴ボーナスがあるのに、現在値に反映されていません | F70: 生命の遣い手 | G70: の習熟段階
B71: 怪物知識の習熟段階が出自・来歴ボーナスがあるのに、現在値に反映されていません | D71: =IF(冒険者技能!H55=ラベル!$G$3,IF(冒険者技能!I55=ラベル!$G$2,CHAR(10)&B71,""),"") ->  | E71: が出自・来歴ボーナスがあるのに、現在値に反映されていません | F71: 怪物知識 | G71: の習熟段階
B72: 呪文熟達：攻撃呪文の習熟段階が出自・来歴ボーナスがあるのに、現在値に反映されていません | D72: =IF(冒険者技能!H56=ラベル!$G$3,IF(冒険者技能!I56=ラベル!$G$2,CHAR(10)&B72,""),"") ->  | E72: が出自・来歴ボーナスがあるのに、現在値に反映されていません | F72: 呪文熟達：攻撃呪文 | G72: の習熟段階
B73: 呪文熟達：付与呪文の習熟段階が出自・来歴ボーナスがあるのに、現在値に反映されていません | D73: =IF(冒険者技能!H57=ラベル!$G$3,IF(冒険者技能!I57=ラベル!$G$2,CHAR(10)&B73,""),"") ->  | E73: が出自・来歴ボーナスがあるのに、現在値に反映されていません | F73: 呪文熟達：付与呪文 | G73: の習熟段階
B74: 呪文熟達：創造呪文の習熟段階が出自・来歴ボーナスがあるのに、現在値に反映されていません | D74: =IF(冒険者技能!H58=ラベル!$G$3,IF(冒険者技能!I58=ラベル!$G$2,CHAR(10)&B74,""),"") ->  | E74: が出自・来歴ボーナスがあるのに、現在値に反映されていません | F74: 呪文熟達：創造呪文 | G74: の習熟段階
B75: =F75&G75&E75 -> 呪文熟達：支配呪文の習熟段階が出自・来歴ボーナスがあるのに、現在値に反映されていません | D75: =IF(冒険者技能!H59=ラベル!$G$3,IF(冒険者技能!I59=ラベル!$G$2,CHAR(10)&B75,""),"") ->  | E75: が出自・来歴ボーナスがあるのに、現在値に反映されていません | F75: 呪文熟達：支配呪文 | G75: の習熟段階
B76: 呪文熟達：治癒呪文の習熟段階が出自・来歴ボーナスがあるのに、現在値に反映されていません | D76: =IF(冒険者技能!H60=ラベル!$G$3,IF(冒険者技能!I60=ラベル!$G$2,CHAR(10)&B76,""),"") ->  | E76: が出自・来歴ボーナスがあるのに、現在値に反映されていません | F76: 呪文熟達：治癒呪文 | G76: の習熟段階
B77: 呪文熟達：汎用呪文の習熟段階が出自・来歴ボーナスがあるのに、現在値に反映されていません | D77: =IF(冒険者技能!H61=ラベル!$G$3,IF(冒険者技能!I61=ラベル!$G$2,CHAR(10)&B77,""),"") ->  | E77: が出自・来歴ボーナスがあるのに、現在値に反映されていません | F77: 呪文熟達：汎用呪文 | G77: の習熟段階
B78: 呪文増強：威力の習熟段階が出自・来歴ボーナスがあるのに、現在値に反映されていません | D78: =IF(冒険者技能!H62=ラベル!$G$3,IF(冒険者技能!I62=ラベル!$G$2,CHAR(10)&B78,""),"") ->  | E78: が出自・来歴ボーナスがあるのに、現在値に反映されていません | F78: 呪文増強：威力 | G78: の習熟段階
B79: 呪文追加：真言呪文の習熟段階が出自・来歴ボーナスがあるのに、現在値に反映されていません | D79: =IF(冒険者技能!H63=ラベル!$G$3,IF(冒険者技能!I63=ラベル!$G$2,CHAR(10)&B79,""),"") ->  | E79: が出自・来歴ボーナスがあるのに、現在値に反映されていません | F79: 呪文追加：真言呪文 | G79: の習熟段階
B80: 呪文追加：奇跡の習熟段階が出自・来歴ボーナスがあるのに、現在値に反映されていません | D80: =IF(冒険者技能!H64=ラベル!$G$3,IF(冒険者技能!I64=ラベル!$G$2,CHAR(10)&B80,""),"") ->  | E80: が出自・来歴ボーナスがあるのに、現在値に反映されていません | F80: 呪文追加：奇跡 | G80: の習熟段階
B81: 呪文追加：祖竜術の習熟段階が出自・来歴ボーナスがあるのに、現在値に反映されていません | D81: =IF(冒険者技能!H65=ラベル!$G$3,IF(冒険者技能!I65=ラベル!$G$2,CHAR(10)&B81,""),"") ->  | E81: が出自・来歴ボーナスがあるのに、現在値に反映されていません | F81: 呪文追加：祖竜術 | G81: の習熟段階
B82: 呪文追加：精霊術の習熟段階が出自・来歴ボーナスがあるのに、現在値に反映されていません | D82: =IF(冒険者技能!H66=ラベル!$G$3,IF(冒険者技能!I66=ラベル!$G$2,CHAR(10)&B82,""),"") ->  | E82: が出自・来歴ボーナスがあるのに、現在値に反映されていません | F82: 呪文追加：精霊術 | G82: の習熟段階
B83: 魔法の才の習熟段階が出自・来歴ボーナスがあるのに、現在値に反映されていません | D83: =IF(冒険者技能!H67=ラベル!$G$3,IF(冒険者技能!I67=ラベル!$G$2,CHAR(10)&B83,""),"") ->  | E83: が出自・来歴ボーナスがあるのに、現在値に反映されていません | F83: 魔法の才 | G83: の習熟段階
B84: 暗視の習熟段階が出自・来歴ボーナスがあるのに、現在値に反映されていません | D84: =IF(冒険者技能!H68=ラベル!$G$3,IF(冒険者技能!I68=ラベル!$G$2,CHAR(10)&B84,""),"") ->  | E84: が出自・来歴ボーナスがあるのに、現在値に反映されていません | F84: 暗視 | G84: の習熟段階
B85: 鑑定の習熟段階が出自・来歴ボーナスがあるのに、現在値に反映されていません | D85: =IF(冒険者技能!H69=ラベル!$G$3,IF(冒険者技能!I69=ラベル!$G$2,CHAR(10)&B85,""),"") ->  | E85: が出自・来歴ボーナスがあるのに、現在値に反映されていません | F85: 鑑定 | G85: の習熟段階
B86: 騎乗の習熟段階が出自・来歴ボーナスがあるのに、現在値に反映されていません | D86: =IF(冒険者技能!H70=ラベル!$G$3,IF(冒険者技能!I70=ラベル!$G$2,CHAR(10)&B86,""),"") ->  | E86: が出自・来歴ボーナスがあるのに、現在値に反映されていません | F86: 騎乗 | G86: の習熟段階
B87: 祈祷の習熟段階が出自・来歴ボーナスがあるのに、現在値に反映されていません | D87: =IF(冒険者技能!H71=ラベル!$G$3,IF(冒険者技能!I71=ラベル!$G$2,CHAR(10)&B87,""),"") ->  | E87: が出自・来歴ボーナスがあるのに、現在値に反映されていません | F87: 祈祷 | G87: の習熟段階
B88: 芸能：歌唱の習熟段階が出自・来歴ボーナスがあるのに、現在値に反映されていません | D88: =IF(冒険者技能!H72=ラベル!$G$3,IF(冒険者技能!I72=ラベル!$G$2,CHAR(10)&B88,""),"") ->  | E88: が出自・来歴ボーナスがあるのに、現在値に反映されていません | F88: 芸能：歌唱 | G88: の習熟段階
B89: 芸能：演奏の習熟段階が出自・来歴ボーナスがあるのに、現在値に反映されていません | D89: =IF(冒険者技能!H73=ラベル!$G$3,IF(冒険者技能!I73=ラベル!$G$2,CHAR(10)&B89,""),"") ->  | E89: が出自・来歴ボーナスがあるのに、現在値に反映されていません | F89: 芸能：演奏 | G89: の習熟段階
B90: 芸能：舞踊の習熟段階が出自・来歴ボーナスがあるのに、現在値に反映されていません | D90: =IF(冒険者技能!H74=ラベル!$G$3,IF(冒険者技能!I74=ラベル!$G$2,CHAR(10)&B90,""),"") ->  | E90: が出自・来歴ボーナスがあるのに、現在値に反映されていません | F90: 芸能：舞踊 | G90: の習熟段階
B91: 芸能：大道芸の習熟段階が出自・来歴ボーナスがあるのに、現在値に反映されていません | D91: =IF(冒険者技能!H75=ラベル!$G$3,IF(冒険者技能!I75=ラベル!$G$2,CHAR(10)&B91,""),"") ->  | E91: が出自・来歴ボーナスがあるのに、現在値に反映されていません | F91: 芸能：大道芸 | G91: の習熟段階
B92: 芸能：演劇の習熟段階が出自・来歴ボーナスがあるのに、現在値に反映されていません | D92: =IF(冒険者技能!H76=ラベル!$G$3,IF(冒険者技能!I76=ラベル!$G$2,CHAR(10)&B92,""),"") ->  | E92: が出自・来歴ボーナスがあるのに、現在値に反映されていません | F92: 芸能：演劇 | G92: の習熟段階
B93: 工作の習熟段階が出自・来歴ボーナスがあるのに、現在値に反映されていません | D93: =IF(冒険者技能!H77=ラベル!$G$3,IF(冒険者技能!I77=ラベル!$G$2,CHAR(10)&B93,""),"") ->  | E93: が出自・来歴ボーナスがあるのに、現在値に反映されていません | F93: 工作 | G93: の習熟段階
B94: 交渉：説得の習熟段階が出自・来歴ボーナスがあるのに、現在値に反映されていません | D94: =IF(冒険者技能!H78=ラベル!$G$3,IF(冒険者技能!I78=ラベル!$G$2,CHAR(10)&B94,""),"") ->  | E94: が出自・来歴ボーナスがあるのに、現在値に反映されていません | F94: 交渉：説得 | G94: の習熟段階
B95: 交渉：誘惑の習熟段階が出自・来歴ボーナスがあるのに、現在値に反映されていません | D95: =IF(冒険者技能!H79=ラベル!$G$3,IF(冒険者技能!I79=ラベル!$G$2,CHAR(10)&B95,""),"") ->  | E95: が出自・来歴ボーナスがあるのに、現在値に反映されていません | F95: 交渉：誘惑 | G95: の習熟段階
B96: 交渉：脅迫の習熟段階が出自・来歴ボーナスがあるのに、現在値に反映されていません | D96: =IF(冒険者技能!H80=ラベル!$G$3,IF(冒険者技能!I80=ラベル!$G$2,CHAR(10)&B96,""),"") ->  | E96: が出自・来歴ボーナスがあるのに、現在値に反映されていません | F96: 交渉：脅迫 | G96: の習熟段階
B97: 交渉：言いくるめの習熟段階が出自・来歴ボーナスがあるのに、現在値に反映されていません | D97: =IF(冒険者技能!H81=ラベル!$G$3,IF(冒険者技能!I81=ラベル!$G$2,CHAR(10)&B97,""),"") ->  | E97: が出自・来歴ボーナスがあるのに、現在値に反映されていません | F97: 交渉：言いくるめ | G97: の習熟段階
B98: 職人：火事の習熟段階が出自・来歴ボーナスがあるのに、現在値に反映されていません | D98: =IF(冒険者技能!H82=ラベル!$G$3,IF(冒険者技能!I82=ラベル!$G$2,CHAR(10)&B98,""),"") ->  | E98: が出自・来歴ボーナスがあるのに、現在値に反映されていません | F98: 職人：火事 | G98: の習熟段階
B99: 職人：裁縫の習熟段階が出自・来歴ボーナスがあるのに、現在値に反映されていません | D99: =IF(冒険者技能!H83=ラベル!$G$3,IF(冒険者技能!I83=ラベル!$G$2,CHAR(10)&B99,""),"") ->  | E99: が出自・来歴ボーナスがあるのに、現在値に反映されていません | F99: 職人：裁縫 | G99: の習熟段階
B100: 職人：木工の習熟段階が出自・来歴ボーナスがあるのに、現在値に反映されていません | D100: =IF(冒険者技能!H84=ラベル!$G$3,IF(冒険者技能!I84=ラベル!$G$2,CHAR(10)&B100,""),"") ->  | E100: が出自・来歴ボーナスがあるのに、現在値に反映されていません | F100: 職人：木工 | G100: の習熟段階
B101: 職人：革細工の習熟段階が出自・来歴ボーナスがあるのに、現在値に反映されていません | D101: =IF(冒険者技能!H85=ラベル!$G$3,IF(冒険者技能!I85=ラベル!$G$2,CHAR(10)&B101,""),"") ->  | E101: が出自・来歴ボーナスがあるのに、現在値に反映されていません | F101: 職人：革細工 | G101: の習熟段階
B102: 職人：彫金の習熟段階が出自・来歴ボーナスがあるのに、現在値に反映されていません | D102: =IF(冒険者技能!H86=ラベル!$G$3,IF(冒険者技能!I86=ラベル!$G$2,CHAR(10)&B102,""),"") ->  | E102: が出自・来歴ボーナスがあるのに、現在値に反映されていません | F102: 職人：彫金 | G102: の習熟段階
B103: 神学の習熟段階が出自・来歴ボーナスがあるのに、現在値に反映されていません | D103: =IF(冒険者技能!H87=ラベル!$G$3,IF(冒険者技能!I87=ラベル!$G$2,CHAR(10)&B103,""),"") ->  | E103: が出自・来歴ボーナスがあるのに、現在値に反映されていません | F103: 神学 | G103: の習熟段階
B104: 信仰心：至高神の習熟段階が出自・来歴ボーナスがあるのに、現在値に反映されていません | D104: =IF(冒険者技能!H88=ラベル!$G$3,IF(冒険者技能!I88=ラベル!$G$2,CHAR(10)&B104,""),"") ->  | E104: が出自・来歴ボーナスがあるのに、現在値に反映されていません | F104: 信仰心：至高神 | G104: の習熟段階
B105: 信仰心：地母神の習熟段階が出自・来歴ボーナスがあるのに、現在値に反映されていません | D105: =IF(冒険者技能!H89=ラベル!$G$3,IF(冒険者技能!I89=ラベル!$G$2,CHAR(10)&B105,""),"") ->  | E105: が出自・来歴ボーナスがあるのに、現在値に反映されていません | F105: 信仰心：地母神 | G105: の習熟段階
B106: 信仰心：交易神の習熟段階が出自・来歴ボーナスがあるのに、現在値に反映されていません | D106: =IF(冒険者技能!H90=ラベル!$G$3,IF(冒険者技能!I90=ラベル!$G$2,CHAR(10)&B106,""),"") ->  | E106: が出自・来歴ボーナスがあるのに、現在値に反映されていません | F106: 信仰心：交易神 | G106: の習熟段階
B107: 信仰心：知識神の習熟段階が出自・来歴ボーナスがあるのに、現在値に反映されていません | D107: =IF(冒険者技能!H91=ラベル!$G$3,IF(冒険者技能!I91=ラベル!$G$2,CHAR(10)&B107,""),"") ->  | E107: が出自・来歴ボーナスがあるのに、現在値に反映されていません | F107: 信仰心：知識神 | G107: の習熟段階
B108: 信仰心：戦女神の習熟段階が出自・来歴ボーナスがあるのに、現在値に反映されていません | D108: =IF(冒険者技能!H92=ラベル!$G$3,IF(冒険者技能!I92=ラベル!$G$2,CHAR(10)&B108,""),"") ->  | E108: が出自・来歴ボーナスがあるのに、現在値に反映されていません | F108: 信仰心：戦女神 | G108: の習熟段階
B109: 信仰心：祖竜の習熟段階が出自・来歴ボーナスがあるのに、現在値に反映されていません | D109: =IF(冒険者技能!H93=ラベル!$G$3,IF(冒険者技能!I93=ラベル!$G$2,CHAR(10)&B109,""),"") ->  | E109: が出自・来歴ボーナスがあるのに、現在値に反映されていません | F109: 信仰心：祖竜 | G109: の習熟段階
B110: 生産業：農業の習熟段階が出自・来歴ボーナスがあるのに、現在値に反映されていません | D110: =IF(冒険者技能!H94=ラベル!$G$3,IF(冒険者技能!I94=ラベル!$G$2,CHAR(10)&B110,""),"") ->  | E110: が出自・来歴ボーナスがあるのに、現在値に反映されていません | F110: 生産業：農業 | G110: の習熟段階
B111: 生産業：漁業の習熟段階が出自・来歴ボーナスがあるのに、現在値に反映されていません | D111: =IF(冒険者技能!H95=ラベル!$G$3,IF(冒険者技能!I95=ラベル!$G$2,CHAR(10)&B111,""),"") ->  | E111: が出自・来歴ボーナスがあるのに、現在値に反映されていません | F111: 生産業：漁業 | G111: の習熟段階
B112: 生産業：林業の習熟段階が出自・来歴ボーナスがあるのに、現在値に反映されていません | D112: =IF(冒険者技能!H96=ラベル!$G$3,IF(冒険者技能!I96=ラベル!$G$2,CHAR(10)&B112,""),"") ->  | E112: が出自・来歴ボーナスがあるのに、現在値に反映されていません | F112: 生産業：林業 | G112: の習熟段階
B113: 生産業：採掘の習熟段階が出自・来歴ボーナスがあるのに、現在値に反映されていません | D113: =IF(冒険者技能!H97=ラベル!$G$3,IF(冒険者技能!I97=ラベル!$G$2,CHAR(10)&B113,""),"") ->  | E113: が出自・来歴ボーナスがあるのに、現在値に反映されていません | F113: 生産業：採掘 | G113: の習熟段階
B114: 生存術の習熟段階が出自・来歴ボーナスがあるのに、現在値に反映されていません | D114: =IF(冒険者技能!H98=ラベル!$G$3,IF(冒険者技能!I98=ラベル!$G$2,CHAR(10)&B114,""),"") ->  | E114: が出自・来歴ボーナスがあるのに、現在値に反映されていません | F114: 生存術 | G114: の習熟段階
B115: 精霊の愛し子の習熟段階が出自・来歴ボーナスがあるのに、現在値に反映されていません | D115: =IF(冒険者技能!H99=ラベル!$G$3,IF(冒険者技能!I99=ラベル!$G$2,CHAR(10)&B115,""),"") ->  | E115: が出自・来歴ボーナスがあるのに、現在値に反映されていません | F115: 精霊の愛し子 | G115: の習熟段階
B116: 先入観なしの習熟段階が出自・来歴ボーナスがあるのに、現在値に反映されていません | D116: =IF(冒険者技能!H100=ラベル!$G$3,IF(冒険者技能!I100=ラベル!$G$2,CHAR(10)&B116,""),"") ->  | E116: が出自・来歴ボーナスがあるのに、現在値に反映されていません | F116: 先入観なし | G116: の習熟段階
B117: 長距離移動の習熟段階が出自・来歴ボーナスがあるのに、現在値に反映されていません | D117: =IF(冒険者技能!H101=ラベル!$G$3,IF(冒険者技能!I101=ラベル!$G$2,CHAR(10)&B117,""),"") ->  | E117: が出自・来歴ボーナスがあるのに、現在値に反映されていません | F117: 長距離移動 | G117: の習熟段階
B118: 調理の習熟段階が出自・来歴ボーナスがあるのに、現在値に反映されていません | D118: =IF(冒険者技能!H102=ラベル!$G$3,IF(冒険者技能!I102=ラベル!$G$2,CHAR(10)&B118,""),"") ->  | E118: が出自・来歴ボーナスがあるのに、現在値に反映されていません | F118: 調理 | G118: の習熟段階
B119: 冷静沈着の習熟段階が出自・来歴ボーナスがあるのに、現在値に反映されていません | D119: =IF(冒険者技能!H103=ラベル!$G$3,IF(冒険者技能!I103=ラベル!$G$2,CHAR(10)&B119,""),"") ->  | E119: が出自・来歴ボーナスがあるのに、現在値に反映されていません | F119: 冷静沈着 | G119: の習熟段階
B120: 統率の習熟段階が出自・来歴ボーナスがあるのに、現在値に反映されていません | D120: =IF(冒険者技能!H104=ラベル!$G$3,IF(冒険者技能!I104=ラベル!$G$2,CHAR(10)&B120,""),"") ->  | E120: が出自・来歴ボーナスがあるのに、現在値に反映されていません | F120: 統率 | G120: の習熟段階
B121: 博識の習熟段階が出自・来歴ボーナスがあるのに、現在値に反映されていません | D121: =IF(冒険者技能!H105=ラベル!$G$3,IF(冒険者技能!I105=ラベル!$G$2,CHAR(10)&B121,""),"") ->  | E121: が出自・来歴ボーナスがあるのに、現在値に反映されていません | F121: 博識 | G121: の習熟段階
B122: 犯罪知識の習熟段階が出自・来歴ボーナスがあるのに、現在値に反映されていません | D122: =IF(冒険者技能!H106=ラベル!$G$3,IF(冒険者技能!I106=ラベル!$G$2,CHAR(10)&B122,""),"") ->  | E122: が出自・来歴ボーナスがあるのに、現在値に反映されていません | F122: 犯罪知識 | G122: の習熟段階
B123: 文献調査の習熟段階が出自・来歴ボーナスがあるのに、現在値に反映されていません | D123: =IF(冒険者技能!H107=ラベル!$G$3,IF(冒険者技能!I107=ラベル!$G$2,CHAR(10)&B123,""),"") ->  | E123: が出自・来歴ボーナスがあるのに、現在値に反映されていません | F123: 文献調査 | G123: の習熟段階
B124: 瞑想の習熟段階が出自・来歴ボーナスがあるのに、現在値に反映されていません | D124: =IF(冒険者技能!H108=ラベル!$G$3,IF(冒険者技能!I108=ラベル!$G$2,CHAR(10)&B124,""),"") ->  | E124: が出自・来歴ボーナスがあるのに、現在値に反映されていません | F124: 瞑想 | G124: の習熟段階
B125: 竜の末裔の習熟段階が出自・来歴ボーナスがあるのに、現在値に反映されていません | D125: =IF(冒険者技能!H109=ラベル!$G$3,IF(冒険者技能!I109=ラベル!$G$2,CHAR(10)&B125,""),"") ->  | E125: が出自・来歴ボーナスがあるのに、現在値に反映されていません | F125: 竜の末裔 | G125: の習熟段階
B126: 礼儀作法の習熟段階が出自・来歴ボーナスがあるのに、現在値に反映されていません | D126: =IF(冒険者技能!H110=ラベル!$G$3,IF(冒険者技能!I110=ラベル!$G$2,CHAR(10)&B126,""),"") ->  | E126: が出自・来歴ボーナスがあるのに、現在値に反映されていません | F126: 礼儀作法 | G126: の習熟段階
B127: 労働の習熟段階が出自・来歴ボーナスがあるのに、現在値に反映されていません | D127: =IF(冒険者技能!H111=ラベル!$G$3,IF(冒険者技能!I111=ラベル!$G$2,CHAR(10)&B127,""),"") ->  | E127: が出自・来歴ボーナスがあるのに、現在値に反映されていません | F127: 労働 | G127: の習熟段階
B128: 習得可能最大習熟段階を超過しています | C128: =冒険者職業レベル!E20-冒険者職業レベル!E21 -> 0 | D128: =IF(C128<0,CHAR(10)&B128,"") -> 
B129: 冒険者等級の条件を満たしていません | C129: =MIN(冒険者職業レベル!D19-冒険者職業レベル!E19,冒険者職業レベル!D31-冒険者職業レベル!E31) -> 0 | D129: =IF(C129<0,CHAR(10)&B129,"") -> 
B130: 成長点が足りません | C130: =冒険者職業レベル!D18 -> 10 | D130: =IF(C130<0,CHAR(10)&B130,"") -> 
B131: 経験値が足りません | C131: =冒険者職業レベル!D15 -> 3000 | D131: =IF(C131<0,CHAR(10)&B131,"") -> 

Sheet ラベル
A1: 能力値タイプ | B1: 状態タイプ | C1: 種族 | D1: 冒険者等級 | E1: 状態タイプ選択 | F1: 初期習熟段階 | G1: 冒険者技能習熟段階 | H1: 一般技能習熟段階 | I1: 出自ボーナス | J1: 冒険者職業レベル | K1: 真言呪文 | L1: 奇跡 | M1: 祖竜術 | N1: 精霊術 | O1: 冒険アイテム | P1: 冒険結果 | Q1: 数値 | R1: 近接職 | S1: 盾受け職 | T1: 回避職 | U1: 出目 | V1: 年齢 | W1: 性別 | X1: ボーナス | Y1: 出目 | Z1: 出目 | AA1: 出目 | AB1: 能力値ボーナス | AC1: 冒険者職業レベル出自ボーナス | AD1: 冒険者職業レベル | AE1: 技能一覧 | AF1: 技能一覧：初歩 | AG1: 消耗品一覧 | AH1: 呪文種別 | AI1: 種別絞り込みなし | AJ1: 技能絞り込み | AK1: 技能絞り込みなし | AL1: 冒険者技能：職業共通 | AM1: 冒険者技能：戦士系職業向け | AN1: 冒険者技能：戦士系職業向け：攻撃 | AO1: 冒険者技能：戦士系職業向け：武器 | AP1: 冒険者技能：戦士系職業向け：鎧 | AQ1: 冒険者技能：呪文遣い職業向け | AR1: 冒険者技能：呪文遣い職業向け：遣い手 | AS1: 冒険者技能：呪文遣い職業向け：呪文熟達 | AT1: 冒険者技能：呪文遣い職業向け：呪文増強 | AU1: 冒険者技能：呪文遣い職業向け：呪文追加 | AV1: 一般技能 | AW1: 一般技能：芸能 | AX1: 一般技能：交渉 | AY1: 一般技能：職人 | AZ1: 一般技能：信仰心 | BA1: 一般技能：生産業 | BB1: 武器種別 | BC1: 武器種別絞り込みなし | BD1: 武器_片手剣 | BE1: 武器_両手剣 | BF1: 武器_戦槌 | BG1: 武器_弩弓 | BH1: 武器_投擲武器 | BI1: 武器_斧 | BJ1: 武器_槍 | BK1: 武器_棍杖 | BL1: 武器_格闘武器 | BM1: 鎧種別 | BN1: 鎧種別絞り込みなし | BO1: 鎧_衣鎧 | BP1: 鎧_軽鎧 | BQ1: 鎧_重鎧 | BR1: 盾種別 | BS1: 盾種別絞り込みなし | BT1: 小型盾 | BU1: 大型盾 | BV1: 信仰 | BW1: 入手手段
A2: 固定値 | B2: 固定値 | C2: 只人 | D2: 白磁等級 | E2: 状態／2D6(1回目) | F2: －－－ | G2: －－－ | H2: －－－ | I2: 0 | J2: 0 | K2: なし | L2: なし | M2: なし | N2: なし | O2: なし | Q2: 0 | R2: 戦士 | S2: 戦士 | T2: 戦士 | U2: 2 | V2: 不明 | W2: 男性 | X2: 0 | Y2: 1 | Z2: 1,2 | AA2: 1 | AB2: 体力点 | AC2: なし | AD2: なし | AE2: なし | AF2: なし | AH2: 種別絞り込みなし | AI2: なし | AJ2: 技能絞り込みなし | AK2: なし | AL2: なし | AM2: なし | AN2: なし | AO2: なし | AP2: なし | AQ2: なし | AR2: なし | AS2: なし | AT2: なし | AU2: なし | AV2: なし | AW2: なし | AX2: なし | AY2: なし | AZ2: なし | BA2: なし | BB2: 武器種別絞り込みなし | BC2: なし | BD2: なし | BE2: なし | BF2: なし | BG2: なし | BH2: なし | BI2: なし | BJ2: なし | BK2: なし | BL2: なし | BM2: 鎧種別絞り込みなし | BN2: なし | BO2: なし | BP2: なし | BQ2: なし | BR2: 盾種別絞り込みなし | BS2: なし | BT2: なし | BU2: なし | BV2: なし | BW2: 購入
A3: ランダム | B3: ランダム | C3: 鉱人 | D3: 黒曜等級 | E3: 状態／2D6(2回目) | F3: 初歩 | G3: 初歩 | H3: 初歩 | I3: 1 | J3: 1 | K3: 分身 | L3: 解毒 | M3: 擬態 | N3: 命水 | O3: 冒険者ツール(鈎縄10m、楔10個、小槌、火口箱、背負い袋、携帯用食器、水袋、白墨、小刀、松明(6本)) | P3: 達成 | Q3: 1 | R3: 武道家 | S3: 斥候 | T3: 武道家 | U3: 3 | V3: 不詳 | W3: 女性 | X3: 1 | Y3: 2 | Z3: 3,4 | AA3: 2 | AB3: 魂魄点 | AC3: 戦士(出自ボーナス) | AD3: 戦士：1 | AE3: 受身：初歩 | AF3: 受身：初歩 | AG3: 携帯食 | AH3: 真言呪文 | AI3: 分身 | AJ3: 冒険者技能_職業共通 | AK3: 受身：初歩 | AL3: 受身：初歩 | AM3: 受け流し：初歩 | AN3: 強打攻撃・斬：初歩 | AO3: 武器：片手剣：初歩 | AP3: 鎧：衣鎧：初歩 | AQ3: 火の遣い手：初歩 | AR3: 火の遣い手：初歩 | AS3: 呪文熟達：攻撃呪文：初歩 | AT3: 呪文増強：威力：初歩 | AU3: 呪文追加：真言呪文：初歩 | AV3: 暗視：初歩 | AW3: 芸能：歌唱：初歩 | AX3: 交渉：説得：初歩 | AY3: 職人：鍛冶：初歩 | AZ3: 信仰心：至高神：初歩 | BA3: 生産業：農業：初歩 | BB3: 武器_片手剣 | BC3: 粗悪な剣 | BD3: 粗悪な剣 | BE3: 鮫刃の剣 | BF3: 袋棍 | BG3: 短弓 | BH3: 投石 | BI3: 粗悪な斧 | BJ3: 粗悪な槍 | BK3: 投石杖（棍杖） | BL3: 素手攻撃（片手） | BM3: 鎧_衣鎧 | BN3: 外套 | BO3: 外套 | BP3: 野伏の外套 | BQ3: 鎖帷子 | BR3: 小型盾 | BS3: 大篭手 | BT3: 大篭手 | BU3: 尖盾 | BV3: 地母神 | BW3: 拾得
C4: 森人 | D4: 鋼鉄等級 | E4: 状態／2D6(3回目) | G4: 習熟 | H4: 習熟 | J4: 2 | K4: 解錠 | L4: 沈黙 | M4: 念話 | N4: 燐光 | O4: 携帯食 | P4: 未達成 | Q4: 2 | R4: 野伏 | S4: なし | T4: 斥候 | U4: 4 | V4: 14歳以下 | W4: その他 | Y4: 3 | Z4: 5,6 | AA4: 3 | AB4: 技量点 | AC4: 武道家(出自ボーナス) | AD4: 戦士：2 | AE4: 受身：習熟 | AF4: 応急手当：初歩 | AG4: 水袋 | AH4: 奇跡 | AI4: 解錠 | AJ4: 冒険者技能_戦士系職業向け | AK4: 受身：習熟 | AL4: 受身：習熟 | AM4: 受け流し：習熟 | AN4: 強打攻撃・斬：習熟 | AO4: 武器：片手剣：習熟 | AP4: 鎧：衣鎧：習熟 | AQ4: 火の遣い手：習熟 | AR4: 火の遣い手：習熟 | AS4: 呪文熟達：攻撃呪文：習熟 | AT4: 呪文増強：威力：習熟 | AU4: 呪文追加：真言呪文：習熟 | AV4: 暗視：習熟 | AW4: 芸能：歌唱：習熟 | AX4: 交渉：説得：習熟 | AY4: 職人：鍛冶：習熟 | AZ4: 信仰心：至高神：習熟 | BA4: 生産業：農業：習熟 | BB4: 武器_両手剣 | BC4: 短剣 | BD4: 短剣 | BE4: 湾刀 | BF4: 棍棒 | BG4: 投矢銃 | BH4: 投矢 | BI4: 鉈 | BJ4: 投槍 | BK4: 紅玉の杖 | BL4: 素手攻撃（両手） | BM4: 鎧_軽鎧 | BN4: 布鎧 | BO4: 布鎧 | BP4: 狩人の外套 | BQ4: 鱗状鎧 | BR4: 大型盾 | BS4: 小盾 | BT4: 小盾 | BU4: 馬上盾 | BV4: 至高神
C5: 蜥蜴人 | D5: 青玉等級 | G5: 熟練 | H5: 熟練 | J5: 3 | K5: 贋金 | L5: 聖域 | M5: 竜牙刀／竜爪 | N5: 隠蔽 | O5: 携帯食：3 | Q5: 3 | R5: 斥候 | T5: なし | U5: 5 | V5: 自称15 | W5: 不詳 | AA5: 4 | AB5: 知力点 | AC5: 野伏(出自ボーナス) | AD5: 戦士：3 | AE5: 受身：熟練 | AF5: 隠密：初歩 | AG5: 松明 | AH5: 祖竜術 | AI5: 贋金 | AJ5: 冒険者技能_戦士系職業向け_強打攻撃 | AK5: 受身：熟練 | AL5: 受身：熟練 | AM5: 受け流し：熟練 | AN5: 強打攻撃・斬：熟練 | AO5: 武器：片手剣：熟練 | AP5: 鎧：衣鎧：熟練 | AQ5: 火の遣い手：熟練 | AR5: 火の遣い手：熟練 | AS5: 呪文熟達：攻撃呪文：熟練 | AT5: 呪文増強：威力：熟練 | AU5: 呪文追加：真言呪文：熟練 | AV5: 暗視：熟練 | AW5: 芸能：歌唱：熟練 | AX5: 交渉：説得：熟練 | AY5: 職人：鍛冶：熟練 | AZ5: 信仰心：至高神：熟練 | BA5: 生産業：農業：熟練 | BB5: 武器_戦槌 | BC5: 拳剣 | BD5: 拳剣 | BE5: 片手半剣（片手） | BF5: 戦棍 | BG5: 弩 | BH5: 投分銅 | BI5: 手斧 | BJ5: 短槍 | BK5: 錫杖 | BL5: 拳帯（片手） | BM5: 鎧_重鎧 | BN5: 旅人の外套 | BO5: 旅人の外套 | BP5: 革鎧 | BQ5: 板状鎧 | BS5: 円盾 | BT5: 円盾 | BU5: 騎士盾 | BV5: 知識神
C6: 圃人 | D6: 翠玉等級 | G6: 達人 | J6: 4 | K6: 通訳 | L6: 敵意 | M6: 敵意（祖霊術） | N6: 風化 | O6: 携帯食：21 | Q6: 4 | R6: なし | U6: 6 | V6: 15 | W6: 不明 | AA6: 5 | AC6: 斥候(出自ボーナス) | AD6: 戦士：4 | AE6: 受身：達人 | AF6: 頑健：初歩 | AG6: 油 | AH6: 精霊術 | AI6: 通訳 | AJ6: 冒険者技能_戦士系職業向け_武器 | AK6: 受身：達人 | AL6: 受身：達人 | AM6: 受け流し：達人 | AN6: 強打攻撃・斬：達人 | AO6: 武器：片手剣：達人 | AP6: 鎧：衣鎧：達人 | AQ6: 火の遣い手：達人 | AR6: 火の遣い手：達人 | AS6: 呪文熟達：攻撃呪文：達人 | AT6: 呪文増強：威力：達人 | AU6: 呪文追加：真言呪文：達人 | AV6: 鑑定：初歩 | AW6: 芸能：即興詩：初歩 | AX6: 交渉：誘惑：初歩 | AY6: 職人：裁縫：初歩 | AZ6: 信仰心：地母神：初歩 | BA6: 生産業：漁業：初歩 | BB6: 武器_弩弓 | BC6: 黒曜の剣 | BD6: 黒曜の剣 | BE6: 片手半剣（両手） | BF6: 片鶴嘴 | BG6: 長弓 | BH6: 飛棍 | BI6: 投斧 | BJ6: 小槍（片手） | BK6: 司教杖 | BL6: 拳帯（両手） | BN6: 綿鎧 | BO6: 綿鎧 | BP6: 硬い革鎧 | BQ6: 小札鎧 | BS6: 吊盾 | BT6: 吊盾 | BU6: 大盾 | BV6: 交易神
D7: 紅玉等級 | G7: 伝説 | J7: 5 | K7: 天候 | L7: 看破 | M7: 突撃 | N7: 水歩 | O7: 衣類 | Q7: 5 | U7: 7 | V7: 16 | W7: 中性 | AA7: 6 | AC7: 魔術師(出自ボーナス) | AD7: 戦士：5 | AE7: 受身：伝説 | AF7: 観察：初歩 | AG7: 石弾 | AI7: 天候 | AJ7: 冒険者技能_戦士系職業向け_鎧 | AK7: 受身：伝説 | AL7: 受身：伝説 | AM7: 受け流し：伝説 | AN7: 強打攻撃・斬：伝説 | AO7: 武器：片手剣：伝説 | AP7: 鎧：衣鎧：伝説 | AQ7: 火の遣い手：伝説 | AR7: 火の遣い手：伝説 | AS7: 呪文熟達：攻撃呪文：伝説 | AT7: 呪文増強：威力：伝説 | AU7: 呪文追加：真言呪文：伝説 | AV7: 鑑定：習熟 | AW7: 芸能：即興詩：習熟 | AX7: 交渉：誘惑：習熟 | AY7: 職人：裁縫：習熟 | AZ7: 信仰心：地母神：習熟 | BA7: 生産業：漁業：習熟 | BB7: 武器_投擲武器 | BC7: 舶刀 | BD7: 舶刀 | BE7: 鎧通し | BF7: 槌鉾 | BG7: 大弓 | BH7: 投石紐 | BI7: 戦斧（片手） | BJ7: 小槍（両手） | BK7: 六尺棒 | BL7: 打布槍 | BN7: 神官服 | BO7: 神官服 | BP7: 胸甲 | BQ7: 胴鎧 | BS7: 投火盾 | BT7: 投火盾 | BV7: 戦女神
D8: 銅等級 | G8: なし | J8: 6 | K8: 脱出 | L8: 解呪 | M8: 狩場 | N8: 猫目 | O8: 鍵開け道具 | Q8: 6 | U8: 8 | V8: 17 | W8: 両性具有 | AC8: 神官(出自ボーナス) | AD8: 戦士：6 | AE8: 応急手当：初歩 | AF8: 機先：初歩 | AG8: 矢 | AI8: 脱出 | AJ8: 冒険者技能_呪文遣い職業向け | AK8: 応急手当：初歩 | AL8: 応急手当：初歩 | AM8: 荷重行動：初歩 | AN8: 強打攻撃・殴：初歩 | AO8: 武器：両手剣：初歩 | AP8: 鎧：軽鎧：初歩 | AQ8: 水の遣い手：初歩 | AR8: 水の遣い手：初歩 | AS8: 呪文熟達：付与呪文：初歩 | AU8: 呪文追加：奇跡：初歩 | AV8: 鑑定：熟練 | AW8: 芸能：即興詩：熟練 | AX8: 交渉：誘惑：熟練 | AY8: 職人：裁縫：熟練 | AZ8: 信仰心：地母神：熟練 | BA8: 生産業：漁業：熟練 | BB8: 武器_斧 | BC8: 小剣 | BD8: 小剣 | BE8: 炎紋剣 | BF8: 刺鉄球 | BG8: 弩砲 | BH8: 飛刀 | BI8: 戦斧（両手） | BJ8: 鉄小槍（片手） | BK8: 双節棍 | BL8: 旋棍 | BN8: 司教服 | BO8: 司教服 | BP8: 下着鎧 | BQ8: 板金鎧 | BS8: 尖盾 | BT8: 魔法の小盾（＋１） | BV8: 上位神
D9: 銀等級 | J9: 7 | K9: 力与 | L9: 鎮静 | M9: 竜眼 | N9: 雨乞 | O9: 化粧道具 | Q9: 7 | U9: 9 | V9: 18 | AC9: 竜司祭(出自ボーナス) | AD9: 戦士：7 | AE9: 応急手当：習熟 | AF9: 幸運：初歩 | AG9: 太矢 | AI9: 力与 | AJ9: 冒険者技能_呪文遣い職業向け_遣い手 | AK9: 応急手当：習熟 | AL9: 応急手当：習熟 | AM9: 荷重行動：習熟 | AN9: 強打攻撃・殴：習熟 | AO9: 武器：両手剣：習熟 | AP9: 鎧：軽鎧：習熟 | AQ9: 水の遣い手：習熟 | AR9: 水の遣い手：習熟 | AS9: 呪文熟達：付与呪文：習熟 | AU9: 呪文追加：奇跡：習熟 | AV9: 騎乗：初歩 | AW9: 芸能：演奏：初歩 | AX9: 交渉：脅迫：初歩 | AY9: 職人：木工：初歩 | AZ9: 信仰心：交易神：初歩 | BA9: 生産業：林業：初歩 | BB9: 武器_槍 | BC9: 偃月刀 | BD9: 偃月刀 | BE9: 大剣 | BF9: 戦嘴 | BG9: 抱大筒 | BH9: 戦輪 | BI9: 大斧 | BJ9: 鉄小槍（両手） | BK9: 打狗棒 | BL9: 虎爪（片手） | BN9: 野伏の外套 | BP9: 鋲付きの革鎧 | BQ9: 当世具足 | BS9: 馬上盾 | BT9: 竜鱗の吊盾 | BV9: 邪神
D10: 金等級 | J10: 8 | K10: 火与 | L10: 賦活 | M10: 竜鱗 | N10: 使役 | O10: 調理道具 | Q10: 8 | U10: 10 | V10: 19 | AC10: 精霊使い(出自ボーナス) | AD10: 戦士：8 | AE10: 応急手当：熟練 | AF10: 呪文抵抗：初歩 | AG10: 投矢 | AI10: 火与 | AJ10: 冒険者技能_呪文遣い職業向け_呪文熟達 | AK10: 応急手当：熟練 | AL10: 応急手当：熟練 | AM10: 荷重行動：熟練 | AN10: 強打攻撃・殴：熟練 | AO10: 武器：両手剣：熟練 | AP10: 鎧：軽鎧：熟練 | AQ10: 水の遣い手：熟練 | AR10: 水の遣い手：熟練 | AS10: 呪文熟達：付与呪文：熟練 | AU10: 呪文追加：奇跡：熟練 | AV10: 騎乗：習熟 | AW10: 芸能：演奏：習熟 | AX10: 交渉：脅迫：習熟 | AY10: 職人：木工：習熟 | AZ10: 信仰心：交易神：習熟 | BA10: 生産業：林業：習熟 | BB10: 武器_棍杖 | BC10: 突剣 | BD10: 突剣 | BF10: 大戦槌 | BG10: 竜髭の短弓 | BH10: 南洋式投げナイフ | BI10: 斧槍 | BJ10: 農叉 | BK10: 連節棍 | BL10: 虎爪（両手） | BN10: 狩人の外套 | BP10: 魔法の鋲付きの革鎧（＋１） | BS10: 騎士盾 | BV10: 覚知神
J11: 9 | K11: 抗魔 | L11: 小癒 | M11: 竜牙兵 | N11: 雷矢 | O11: 手当道具 | Q11: 9 | U11: 11 | V11: 20 | AD11: 戦士：9 | AE11: 応急手当：達人 | AF11: 戦術移動：初歩 | AG11: 弾丸 | AI11: 抗魔 | AJ11: 冒険者技能_呪文遣い職業向け_呪文増強 | AK11: 応急手当：達人 | AL11: 応急手当：達人 | AM11: 荷重行動：達人 | AN11: 強打攻撃・殴：達人 | AO11: 武器：両手剣：達人 | AP11: 鎧：軽鎧：達人 | AQ11: 水の遣い手：達人 | AR11: 水の遣い手：達人 | AS11: 呪文熟達：付与呪文：達人 | AU11: 呪文追加：奇跡：達人 | AV11: 騎乗：熟練 | AW11: 芸能：演奏：熟練 | AX11: 交渉：脅迫：熟練 | AY11: 職人：木工：熟練 | AZ11: 信仰心：交易神：熟練 | BA11: 生産業：林業：熟練 | BB11: 武器_格闘武器 | BC11: 広刃の剣 | BD11: 広刃の剣 | BF11: 大金棒 | BH11: 投石杖 | BJ11: 三叉槍 | BK11: 金砕棒 | BL11: 長傘 | BN11: 革鎧 | BP11: 魔法の鋲付きの革鎧（＋２） | BS11: 大盾 | BV11: 自然
J12: 10 | K12: 魅了 | L12: 聖歌 | M12: 竜血 | N12: 石弾 | O12: 手当道具：5 | Q12: 10 | U12: 12 | V12: 21 | AD12: 戦士：10 | AE12: 応急手当：伝説 | AF12: 第六感：初歩 | AG12: 火の秘薬 | AI12: 魅了 | AJ12: 冒険者技能_呪文遣い職業向け_呪文追加 | AK12: 応急手当：伝説 | AL12: 応急手当：伝説 | AM12: 荷重行動：伝説 | AN12: 強打攻撃・殴：伝説 | AO12: 武器：両手剣：伝説 | AP12: 鎧：軽鎧：伝説 | AQ12: 水の遣い手：伝説 | AR12: 水の遣い手：伝説 | AS12: 呪文熟達：付与呪文：伝説 | AU12: 呪文追加：奇跡：伝説 | AV12: 祈祷：初歩 | AW12: 芸能：舞踊：初歩 | AY12: 職人：革細工：初歩 | AZ12: 信仰心：知識神：初歩 | BA12: 生産業：採掘：初歩 | BC12: 曲刀 | BD12: 曲刀 | BF12: 松明 | BH12: 血滴子 | BJ12: 長槍 | BK12: 鞭 | BL12: 鉄靴 | BN12: 硬い革鎧 | BS12: 魔法の小盾（＋１） | BV12: 恐るべき竜
K13: 破裂 | L13: 浄化 | M13: 竜命 | N13: 泥罠 | O13: 罠師道具 | Q13: 11 | V13: 22 | AD13: 武道家：1 | AE13: 隠密：初歩 | AF13: 治癒適正：初歩 | AG13: 手当道具 | AI13: 破裂 | AJ13: 一般技能 | AK13: 隠密：初歩 | AL13: 隠密：初歩 | AM13: 強打攻撃・斬：初歩 | AN13: 斬落攻撃：初歩 | AO13: 武器：斧：初歩 | AP13: 鎧：重鎧：初歩 | AQ13: 風の遣い手：初歩 | AR13: 風の遣い手：初歩 | AS13: 呪文熟達：創造呪文：初歩 | AU13: 呪文追加：祖竜術：初歩 | AV13: 祈祷：習熟 | AW13: 芸能：舞踊：習熟 | AY13: 職人：革細工：習熟 | AZ13: 信仰心：知識神：習熟 | BA13: 生産業：採掘：習熟 | BC13: 長剣（片手） | BD13: 長剣（片手） | BF13: 円匙 | BH13: 投石紐（店石） | BJ13: 薙刀 | BK13: 聖鞭 | BL13: 拳鍔（片手） | BN13: 胸甲 | BS13: 竜鱗の吊盾 | BV13: その他
K14: 流砂 | L14: 祝福 | M14: 竜息（火） | N14: 霊壁 | O14: 罠師道具：5 | Q14: 12 | V14: 23 | AD14: 武道家：2 | AE14: 隠密：習熟 | AF14: 手仕事：初歩 | AI14: 流砂 | AJ14: 一般技能_芸能 | AK14: 隠密：習熟 | AL14: 隠密：習熟 | AM14: 強打攻撃・斬：習熟 | AN14: 斬落攻撃：習熟 | AO14: 武器：斧：習熟 | AP14: 鎧：重鎧：習熟 | AQ14: 風の遣い手：習熟 | AR14: 風の遣い手：習熟 | AS14: 呪文熟達：創造呪文：習熟 | AU14: 呪文追加：祖竜術：習熟 | AV14: 祈祷：熟練 | AW14: 芸能：舞踊：熟練 | AY14: 職人：革細工：熟練 | AZ14: 信仰心：知識神：熟練 | BA14: 生産業：採掘：熟練 | BC14: 長剣（両手） | BD14: 長剣（両手） | BH14: 投石杖（店石） | BJ14: 戦槍 | BL14: 拳鍔（両手） | BN14: 下着鎧
K15: 無手 | L15: 聖壁 | M15: 竜息（稲妻） | N15: 暗黒 | O15: 職人道具：鍛冶 | Q15: 13 | V15: 24 | AD15: 武道家：3 | AE15: 隠密：熟練 | AF15: 忍耐：初歩 | AI15: 無手 | AJ15: 一般技能_交渉 | AK15: 隠密：熟練 | AL15: 隠密：熟練 | AM15: 強打攻撃・斬：熟練 | AN15: 斬落攻撃：熟練 | AO15: 武器：斧：熟練 | AP15: 鎧：重鎧：熟練 | AQ15: 風の遣い手：熟練 | AR15: 風の遣い手：熟練 | AS15: 呪文熟達：創造呪文：熟練 | AU15: 呪文追加：祖竜術：熟練 | AV15: 芸能：歌唱：初歩 | AW15: 芸能：大道芸：初歩 | AY15: 職人：彫金：初歩 | AZ15: 信仰心：戦女神：初歩 | BC15: 鮫刃の剣 | BD15: 朝露の短剣 | BL15: 鉄拳 | BN15: 鋲付きの革鎧
K16: 小鬼 | L16: 聖撃 | M16: 竜息（氷） | N16: 追風 | O16: 職人道具：裁縫 | Q16: 14 | V16: 25 | AD16: 武道家：4 | AE16: 隠密：達人 | AF16: 免疫強化：初歩 | AI16: 小鬼 | AJ16: 一般技能_職人 | AK16: 隠密：達人 | AL16: 隠密：達人 | AM16: 強打攻撃・斬：達人 | AN16: 斬落攻撃：達人 | AO16: 武器：斧：達人 | AP16: 鎧：重鎧：達人 | AQ16: 風の遣い手：達人 | AR16: 風の遣い手：達人 | AS16: 呪文熟達：創造呪文：達人 | AU16: 呪文追加：祖竜術：達人 | AV16: 芸能：歌唱：習熟 | AW16: 芸能：大道芸：習熟 | AY16: 職人：彫金：習熟 | AZ16: 信仰心：戦女神：習熟 | BC16: 湾刀 | BD16: 魔法の短剣（＋１） | BL16: 竜の末裔初歩素手攻撃（片手） | BN16: 鎖帷子
K17: 巨人 | L17: 聖光 | M17: 竜息（毒） | N17: 着火 | O17: 職人道具：木工 | Q17: 15 | V17: 26 | AD17: 武道家：5 | AE17: 隠密：伝説 | AF17: 受け流し：初歩 | AI17: 巨人 | AJ17: 一般技能_信仰心 | AK17: 隠密：伝説 | AL17: 隠密：伝説 | AM17: 強打攻撃・斬：伝説 | AN17: 斬落攻撃：伝説 | AO17: 武器：斧：伝説 | AP17: 鎧：重鎧：伝説 | AQ17: 風の遣い手：伝説 | AR17: 風の遣い手：伝説 | AS17: 呪文熟達：創造呪文：伝説 | AU17: 呪文追加：祖竜術：伝説 | AV17: 芸能：歌唱：熟練 | AW17: 芸能：大道芸：熟練 | AY17: 職人：彫金：熟練 | AZ17: 信仰心：戦女神：熟練 | BC17: 片手半剣（片手） | BD17: 銀の短剣 | BL17: 竜の末裔初歩素手攻撃（両手） | BN17: 鱗状鎧
K18: 水薬 | L18: 戦槍 | M18: 竜吠 | N18: 酩酊 | O18: 職人道具：革細工 | Q18: 16 | V18: 27 | AD18: 武道家：6 | AE18: 頑健：初歩 | AF18: 荷重行動：初歩 | AI18: 水薬 | AJ18: 一般技能_生産業 | AK18: 頑健：初歩 | AL18: 頑健：初歩 | AM18: 強打攻撃・殴：初歩 | AN18: 拘束攻撃：初歩 | AO18: 武器：槍：初歩 | AQ18: 土の遣い手：初歩 | AR18: 土の遣い手：初歩 | AS18: 呪文熟達：支配呪文：初歩 | AU18: 呪文追加：精霊術：初歩 | AV18: 芸能：即興詩：初歩 | AW18: 芸能：演劇：初歩 | AZ18: 信仰心：祖竜：初歩 | BC18: 片手半剣（両手） | BD18: 魔法の短剣（＋２） | BL18: 竜の末裔習熟素手攻撃（片手） | BN18: 板状鎧
K19: 支配 | L19: 鼓舞 | M19: 対決 | N19: 隧道 | O19: 職人道具：彫金 | Q19: 17 | V19: 28 | AD19: 武道家：7 | AE19: 頑健：習熟 | AF19: 強打攻撃・斬：初歩 | AI19: 支配 | AK19: 頑健：習熟 | AL19: 頑健：習熟 | AM19: 強打攻撃・殴：習熟 | AN19: 拘束攻撃：習熟 | AO19: 武器：槍：習熟 | AQ19: 土の遣い手：習熟 | AR19: 土の遣い手：習熟 | AS19: 呪文熟達：支配呪文：習熟 | AU19: 呪文追加：精霊術：習熟 | AV19: 芸能：即興詩：習熟 | AW19: 芸能：演劇：習熟 | AZ19: 信仰心：祖竜：習熟 | BC19: 鎧通し | BD19: 邪紋の短剣 | BL19: 竜の末裔習熟素手攻撃（両手） | BN19: 小札鎧
K20: 混乱 | L20: 聖鎧 | M20: 擬竜 | N20: 放逐 | O20: 真言呪文の発動体（＋１） | Q20: 18 | V20: 29 | AD20: 武道家：8 | AE20: 頑健：熟練 | AF20: 強打攻撃・殴：初歩 | AI20: 混乱 | AK20: 頑健：熟練 | AL20: 頑健：熟練 | AM20: 強打攻撃・殴：熟練 | AN20: 拘束攻撃：熟練 | AO20: 武器：槍：熟練 | AQ20: 土の遣い手：熟練 | AR20: 土の遣い手：熟練 | AS20: 呪文熟達：支配呪文：熟練 | AU20: 呪文追加：精霊術：熟練 | AV20: 芸能：即興詩：熟練 | AW20: 芸能：演劇：熟練 | AZ20: 信仰心：祖竜：熟練 | BC20: 炎紋剣 | BD20: 邪紋の短剣（＋２） | BL20: 竜の末裔熟練素手攻撃（片手） | BN20: 胴鎧
K21: 石壁 | L21: 契約 | M21: 賦活（祖霊術） | N21: 力球 | O21: 真言呪文の発動体（＋２） | Q21: 19 | V21: 30 | AD21: 武道家：9 | AE21: 頑健：達人 | AF21: 曲射：初歩 | AI21: 石壁 | AK21: 頑健：達人 | AL21: 頑健：達人 | AM21: 強打攻撃・殴：達人 | AN21: 拘束攻撃：達人 | AO21: 武器：槍：達人 | AQ21: 土の遣い手：達人 | AR21: 土の遣い手：達人 | AS21: 呪文熟達：支配呪文：達人 | AU21: 呪文追加：精霊術：達人 | AV21: 芸能：演奏：初歩 | BC21: 大剣 | BL21: 竜の末裔熟練素手攻撃（両手） | BN21: 板金鎧
K22: 剛力 | L22: 旅人 | M22: 小癒（祖霊術） | N22: 熱波 | O22: 真言呪文の発動体（＋３） | Q22: 20 | V22: 31 | AD22: 武道家：10 | AE22: 頑健：伝説 | AF22: 斬落攻撃：初歩 | AI22: 剛力 | AK22: 頑健：伝説 | AL22: 頑健：伝説 | AM22: 強打攻撃・殴：伝説 | AN22: 拘束攻撃：伝説 | AO22: 武器：槍：伝説 | AQ22: 土の遣い手：伝説 | AR22: 土の遣い手：伝説 | AS22: 呪文熟達：支配呪文：伝説 | AU22: 呪文追加：精霊術：伝説 | AV22: 芸能：演奏：習熟 | BC22: 袋棍 | BN22: 当世具足
K23: 粘糸 | L23: 逆転 | M23: 胃石 | N23: 火矢（精霊術） | O23: 竜骨の御守（＋１） | Q23: 21 | V23: 32 | AD23: 野伏：1 | AE23: 観察：初歩 | AF23: 拘束攻撃：初歩 | AI23: 粘糸 | AK23: 観察：初歩 | AL23: 観察：初歩 | AM23: 曲射：初歩 | AN23: 刺突攻撃：初歩 | AO23: 武器：戦槌：初歩 | AQ23: 生命の遣い手：初歩 | AR23: 生命の遣い手：初歩 | AS23: 呪文熟達：治癒呪文：初歩 | AV23: 芸能：演奏：熟練 | BC23: 棍棒 | BN23: 魔法の鋲付きの革鎧（＋１）
K24: 惰眠 | L24: 審問 | M24: 腐食 | N24: 恐怖 | O24: 竜骨の御守（＋２） | Q24: 22 | V24: 33 | AD24: 野伏：2 | AE24: 観察：習熟 | AF24: 護衛：初歩 | AI24: 惰眠 | AK24: 観察：習熟 | AL24: 観察：習熟 | AM24: 曲射：習熟 | AN24: 刺突攻撃：習熟 | AO24: 武器：戦槌：習熟 | AQ24: 生命の遣い手：習熟 | AR24: 生命の遣い手：習熟 | AS24: 呪文熟達：治癒呪文：習熟 | AV24: 芸能：舞踊：初歩 | BC24: 戦棍 | BN24: 魔法の鋲付きの革鎧（＋２）
K25: 停滞 | L25: 鑑定 | M25: 竜翼 | N25: 降下 | O25: 聖印 | Q25: 23 | V25: 34 | AD25: 野伏：3 | AE25: 観察：熟練 | AF25: 死角移動：初歩 | AI25: 停滞 | AK25: 観察：熟練 | AL25: 観察：熟練 | AM25: 曲射：熟練 | AN25: 刺突攻撃：熟練 | AO25: 武器：戦槌：熟練 | AQ25: 生命の遣い手：熟練 | AR25: 生命の遣い手：熟練 | AS25: 呪文熟達：治癒呪文：熟練 | AV25: 芸能：舞踊：習熟 | BC25: 片鶴嘴
K26: 落下 | L26: 聖断 | N26: 吹雪 | O26: 精霊石 | Q26: 24 | V26: 35 | AD26: 野伏：4 | AE26: 観察：達人 | AF26: 刺突攻撃：初歩 | AI26: 落下 | AK26: 観察：達人 | AL26: 観察：達人 | AM26: 曲射：達人 | AN26: 刺突攻撃：達人 | AO26: 武器：戦槌：達人 | AQ26: 生命の遣い手：達人 | AR26: 生命の遣い手：達人 | AS26: 呪文熟達：治癒呪文：達人 | AV26: 芸能：舞踊：熟練 | BC26: 槌鉾
K27: 分影 | L27: 天啓 | N27: 呼気 | O27: 竜司祭の触媒入れ | Q27: 25 | V27: 36 | AD27: 野伏：5 | AE27: 観察：伝説 | AF27: 狙撃：初歩 | AI27: 分影 | AK27: 観察：伝説 | AL27: 観察：伝説 | AM27: 曲射：伝説 | AN27: 刺突攻撃：伝説 | AO27: 武器：戦槌：伝説 | AQ27: 生命の遣い手：伝説 | AR27: 生命の遣い手：伝説 | AS27: 呪文熟達：治癒呪文：伝説 | AV27: 芸能：大道芸：初歩 | BC27: 刺鉄球
K28: 察知 | L28: 真灯 | N28: 捕縛 | O28: 精霊使いの鞄 | Q28: 26 | V28: 37 | AD28: 野伏：6 | AE28: 機先：初歩 | AF28: 速射：初歩 | AI28: 察知 | AK28: 機先：初歩 | AL28: 機先：初歩 | AM28: 斬落攻撃：初歩 | AN28: 狙撃：初歩 | AO28: 武器：棍杖：初歩 | AQ28: 怪物知識：初歩 | AS28: 呪文熟達：汎用呪文：初歩 | AV28: 芸能：大道芸：習熟 | BC28: 戦嘴
K29: 舞踏 | L29: 読解 | O29: 上質な触媒 | Q29: 27 | V29: 38 | AD29: 野伏：7 | AE29: 機先：習熟 | AF29: 体術：初歩 | AI29: 舞踏 | AK29: 機先：習熟 | AL29: 機先：習熟 | AM29: 斬落攻撃：習熟 | AN29: 狙撃：習熟 | AO29: 武器：棍杖：習熟 | AQ29: 怪物知識：習熟 | AS29: 呪文熟達：汎用呪文：習熟 | AV29: 芸能：大道芸：熟練 | BC29: 大戦槌
K30: 嫌気 | L30: 聖餐 | O30: 石弾 | Q30: 28 | V30: 39 | AD30: 野伏：8 | AE30: 機先：熟練 | AF30: 盾：初歩 | AI30: 嫌気 | AK30: 機先：熟練 | AL30: 機先：熟練 | AM30: 斬落攻撃：熟練 | AN30: 狙撃：熟練 | AO30: 武器：棍杖：熟練 | AQ30: 怪物知識：熟練 | AS30: 呪文熟達：汎用呪文：熟練 | AV30: 芸能：演劇：初歩 | BC30: 大金棒
K31: 矢避 | L31: 不動 | O31: 石弾：10 | Q31: 29 | V31: 40歳以上 | AD31: 野伏：9 | AE31: 機先：達人 | AF31: 挑発：初歩 | AI31: 矢避 | AK31: 機先：達人 | AL31: 機先：達人 | AM31: 斬落攻撃：達人 | AN31: 狙撃：達人 | AO31: 武器：棍杖：達人 | AQ31: 怪物知識：達人 | AS31: 呪文熟達：汎用呪文：達人 | AV31: 芸能：演劇：習熟 | BC31: 短弓
K32: 透過 | L32: 和睦 | O32: 石弾（店石） | Q32: 30 | V32: 50歳以上 | AD32: 野伏：10 | AE32: 機先：伝説 | AF32: 鉄の拳：初歩 | AI32: 透過 | AK32: 機先：伝説 | AL32: 機先：伝説 | AM32: 斬落攻撃：伝説 | AN32: 狙撃：伝説 | AO32: 武器：棍杖：伝説 | AQ32: 怪物知識：伝説 | AS32: 呪文熟達：汎用呪文：伝説 | AV32: 芸能：演劇：熟練 | BC32: 投矢銃
K33: 恐慌 | O33: 石弾（店石）：10 | Q33: 31 | V33: 60歳以上 | AD33: 斥候：1 | AE33: 幸運：初歩 | AF33: 鉄壁：初歩 | AI33: 恐慌 | AK33: 幸運：初歩 | AL33: 幸運：初歩 | AM33: 拘束攻撃：初歩 | AN33: 速射：初歩 | AO33: 武器：格闘武器：初歩 | AQ33: 呪文熟達：攻撃呪文：初歩 | AV33: 工作：初歩 | BC33: 弩
K34: 獣心 | O34: 石弾袋 | Q34: 32 | V34: 70歳以上 | AD34: 斥候：2 | AE34: 幸運：習熟 | AF34: 薙ぎ払い：初歩 | AI34: 獣心 | AK34: 幸運：習熟 | AL34: 幸運：習熟 | AM34: 拘束攻撃：習熟 | AN34: 速射：習熟 | AO34: 武器：格闘武器：習熟 | AQ34: 呪文熟達：攻撃呪文：習熟 | AV34: 工作：習熟 | BC34: 長弓
K35: 幻影 | O35: 矢 | Q35: 33 | V35: 80歳以上 | AD35: 斥候：3 | AE35: 幸運：熟練 | AF35: 二刀流：初歩 | AI35: 幻影 | AK35: 幸運：熟練 | AL35: 幸運：熟練 | AM35: 拘束攻撃：熟練 | AN35: 速射：熟練 | AO35: 武器：格闘武器：熟練 | AQ35: 呪文熟達：攻撃呪文：熟練 | AV35: 工作：熟練 | BC35: 大弓
K36: 巨大 | O36: 矢：10 | Q36: 34 | V36: 90歳以上 | AD36: 斥候：4 | AE36: 幸運：達人 | AF36: 発勁：初歩 | AI36: 巨大 | AK36: 幸運：達人 | AL36: 幸運：達人 | AM36: 拘束攻撃：達人 | AN36: 速射：達人 | AO36: 武器：格闘武器：達人 | AQ36: 呪文熟達：攻撃呪文：達人 | AV36: 交渉：説得：初歩 | BC36: 弩砲
K37: 火球 | O37: 太矢 | Q37: 35 | V37: 100歳以上 | AD37: 斥候：5 | AE37: 幸運：伝説 | AF37: 武器：片手剣：初歩 | AI37: 火球 | AK37: 幸運：伝説 | AL37: 幸運：伝説 | AM37: 拘束攻撃：伝説 | AN37: 速射：伝説 | AO37: 武器：格闘武器：伝説 | AQ37: 呪文熟達：攻撃呪文：伝説 | AV37: 交渉：説得：習熟 | BC37: 抱大筒
K38: 火矢 | O38: 太矢：10 | Q38: 36 | V38: 200歳以上 | AD38: 斥候：6 | AE38: 呪文抵抗：初歩 | AF38: 武器：両手剣：初歩 | AI38: 火矢 | AK38: 呪文抵抗：初歩 | AL38: 呪文抵抗：初歩 | AM38: 護衛：初歩 | AO38: 武器：投擲武器：初歩 | AQ38: 呪文熟達：付与呪文：初歩 | AV38: 交渉：説得：熟練 | BC38: 投石
K39: 遠見 | O39: 矢筒 | Q39: 37 | V39: 300歳以上 | AD39: 斥候：7 | AE39: 呪文抵抗：習熟 | AF39: 武器：斧：初歩 | AI39: 遠見 | AK39: 呪文抵抗：習熟 | AL39: 呪文抵抗：習熟 | AM39: 護衛：習熟 | AO39: 武器：投擲武器：習熟 | AQ39: 呪文熟達：付与呪文：習熟 | AV39: 交渉：誘惑：初歩 | BC39: 投矢
K40: 力場 | O40: 弾丸 | Q40: 38 | V40: 400歳以上 | AD40: 斥候：8 | AE40: 呪文抵抗：熟練 | AF40: 武器：槍：初歩 | AI40: 力場 | AK40: 呪文抵抗：熟練 | AL40: 呪文抵抗：熟練 | AM40: 護衛：熟練 | AO40: 武器：投擲武器：熟練 | AQ40: 呪文熟達：付与呪文：熟練 | AV40: 交渉：誘惑：習熟 | BC40: 投分銅
K41: 突風 | O41: 弾丸：10 | Q41: 39 | V41: 500歳以上 | AD41: 斥候：9 | AE41: 呪文抵抗：達人 | AF41: 武器：戦槌：初歩 | AI41: 突風 | AK41: 呪文抵抗：達人 | AL41: 呪文抵抗：達人 | AM41: 護衛：達人 | AO41: 武器：投擲武器：達人 | AQ41: 呪文熟達：付与呪文：達人 | AV41: 交渉：誘惑：熟練 | BC41: 飛棍
K42: 呼気 | O42: 火の秘薬 | Q42: 40 | V42: 600歳以上 | AD42: 斥候：10 | AE42: 呪文抵抗：伝説 | AF42: 武器：棍杖：初歩 | AI42: 呼気 | AK42: 呪文抵抗：伝説 | AL42: 呪文抵抗：伝説 | AM42: 護衛：伝説 | AO42: 武器：投擲武器：伝説 | AQ42: 呪文熟達：付与呪文：伝説 | AV42: 交渉：脅迫：初歩 | BC42: 投石紐
K43: 吹雪 | O43: 火の秘薬：10 | Q43: 41 | V43: 700歳以上 | AD43: 魔術師：1 | AE43: 戦術移動：初歩 | AF43: 武器：格闘武器：初歩 | AI43: 吹雪 | AK43: 戦術移動：初歩 | AL43: 戦術移動：初歩 | AM43: 死角移動：初歩 | AO43: 武器：弩弓：初歩 | AQ43: 呪文熟達：創造呪文：初歩 | AV43: 交渉：脅迫：習熟 | BC43: 飛刀
K44: 浮遊 | O44: 弾薬鞄 | Q44: 42 | V44: 800歳以上 | AD44: 魔術師：2 | AE44: 戦術移動：習熟 | AF44: 武器：投擲武器：初歩 | AI44: 浮遊 | AK44: 戦術移動：習熟 | AL44: 戦術移動：習熟 | AM44: 死角移動：習熟 | AO44: 武器：弩弓：習熟 | AQ44: 呪文熟達：創造呪文：習熟 | AV44: 交渉：脅迫：熟練 | BC44: 戦輪
K45: 加速 | O45: 投矢 | Q45: 43 | V45: 900歳以上 | AD45: 魔術師：3 | AE45: 戦術移動：熟練 | AF45: 武器：弩弓：初歩 | AI45: 加速 | AK45: 戦術移動：熟練 | AL45: 戦術移動：熟練 | AM45: 死角移動：熟練 | AO45: 武器：弩弓：熟練 | AQ45: 呪文熟達：創造呪文：熟練 | AV45: 交渉：言いくるめ：初歩 | BC45: 南洋式投げナイフ
K46: 読心 | O46: 投矢：5 | Q46: 44 | V46: 1000歳以上 | AD46: 魔術師：4 | AE46: 戦術移動：達人 | AF46: 見切り：初歩 | AI46: 読心 | AK46: 戦術移動：達人 | AL46: 戦術移動：達人 | AM46: 死角移動：達人 | AO46: 武器：弩弓：達人 | AQ46: 呪文熟達：創造呪文：達人 | AV46: 交渉：言いくるめ：習熟 | BC46: 投石杖
K47: 力矢 | O47: 投矢革帯 | Q47: 45 | V47: 2000歳以上 | AD47: 魔術師：5 | AE47: 戦術移動：伝説 | AF47: 鎧：衣鎧：初歩 | AI47: 力矢 | AK47: 戦術移動：伝説 | AL47: 戦術移動：伝説 | AM47: 死角移動：伝説 | AO47: 武器：弩弓：伝説 | AQ47: 呪文熟達：創造呪文：伝説 | AV47: 交渉：言いくるめ：熟練 | BC47: 血滴子
K48: 魔霧 | O48: 松明 | Q48: 46 | V48: 3000歳以上 | AD48: 魔術師：6 | AE48: 第六感：初歩 | AF48: 鎧：軽鎧：初歩 | AI48: 魔霧 | AK48: 第六感：初歩 | AL48: 第六感：初歩 | AM48: 刺突攻撃：初歩 | AQ48: 呪文熟達：支配呪文：初歩 | AV48: 職人：鍛冶：初歩 | BC48: 粗悪な斧
K49: 円盾 | O49: 松明：6 | Q49: 47 | V49: 4000歳以上 | AD49: 魔術師：7 | AE49: 第六感：習熟 | AF49: 鎧：重鎧：初歩 | AI49: 円盾 | AK49: 第六感：習熟 | AL49: 第六感：習熟 | AM49: 刺突攻撃：習熟 | AQ49: 呪文熟達：支配呪文：習熟 | AV49: 職人：鍛冶：習熟 | BC49: 鉈
K50: 光明 | O50: 蝋燭 | Q50: 48 | AD50: 魔術師：8 | AE50: 第六感：熟練 | AF50: 火の遣い手：初歩 | AI50: 光明 | AK50: 第六感：熟練 | AL50: 第六感：熟練 | AM50: 刺突攻撃：熟練 | AQ50: 呪文熟達：支配呪文：熟練 | AV50: 職人：鍛冶：熟練 | BC50: 手斧
K51: 稲妻 | O51: 蝋燭：12 | Q51: 49 | AD51: 魔術師：9 | AE51: 第六感：達人 | AF51: 水の遣い手：初歩 | AI51: 稲妻 | AK51: 第六感：達人 | AL51: 第六感：達人 | AM51: 刺突攻撃：達人 | AQ51: 呪文熟達：支配呪文：達人 | AV51: 職人：裁縫：初歩 | BC51: 投斧
K52: 施錠 | O52: 角灯 | Q52: 50 | AD52: 魔術師：10 | AE52: 第六感：伝説 | AF52: 風の遣い手：初歩 | AI52: 施錠 | AK52: 第六感：伝説 | AL52: 第六感：伝説 | AM52: 刺突攻撃：伝説 | AQ52: 呪文熟達：支配呪文：伝説 | AV52: 職人：裁縫：習熟 | BC52: 戦斧（片手）
O53: ガラス付き角灯 | Q53: 51 | AD53: 神官：1 | AE53: 治癒適正：初歩 | AF53: 土の遣い手：初歩 | AI53: 解毒 | AK53: 治癒適正：初歩 | AL53: 治癒適正：初歩 | AM53: 狙撃：初歩 | AQ53: 呪文熟達：治癒呪文：初歩 | AV53: 職人：裁縫：熟練 | BC53: 戦斧（両手）
O54: ランプ | Q54: 52 | AD54: 神官：2 | AE54: 治癒適正：習熟 | AF54: 生命の遣い手：初歩 | AI54: 沈黙 | AK54: 治癒適正：習熟 | AL54: 治癒適正：習熟 | AM54: 狙撃：習熟 | AQ54: 呪文熟達：治癒呪文：習熟 | AV54: 職人：木工：初歩 | BC54: 大斧
O55: 油 | Q55: 53 | AD55: 神官：3 | AE55: 治癒適正：熟練 | AF55: 怪物知識：初歩 | AI55: 聖域 | AK55: 治癒適正：熟練 | AL55: 治癒適正：熟練 | AM55: 狙撃：熟練 | AQ55: 呪文熟達：治癒呪文：熟練 | AV55: 職人：木工：習熟 | BC55: 斧槍
O56: 火口箱 | Q56: 54 | AD56: 神官：4 | AE56: 治癒適正：達人 | AF56: 呪文熟達：攻撃呪文：初歩 | AI56: 敵意 | AK56: 治癒適正：達人 | AL56: 治癒適正：達人 | AM56: 狙撃：達人 | AQ56: 呪文熟達：治癒呪文：達人 | AV56: 職人：木工：熟練 | BC56: 粗悪な槍
O57: 小袋セット | Q57: 55 | AD57: 神官：5 | AE57: 治癒適正：伝説 | AF57: 呪文熟達：付与呪文：初歩 | AI57: 看破 | AK57: 治癒適正：伝説 | AL57: 治癒適正：伝説 | AM57: 狙撃：伝説 | AQ57: 呪文熟達：治癒呪文：伝説 | AV57: 職人：革細工：初歩 | BC57: 投槍
O58: ずた袋 | Q58: 56 | AD58: 神官：6 | AE58: 手仕事：初歩 | AF58: 呪文熟達：創造呪文：初歩 | AI58: 解呪 | AK58: 手仕事：初歩 | AL58: 手仕事：初歩 | AM58: 速射：初歩 | AQ58: 呪文熟達：汎用呪文：初歩 | AV58: 職人：革細工：習熟 | BC58: 短槍
O59: ベルトポーチ | Q59: 57 | AD59: 神官：7 | AE59: 手仕事：習熟 | AF59: 呪文熟達：支配呪文：初歩 | AI59: 鎮静 | AK59: 手仕事：習熟 | AL59: 手仕事：習熟 | AM59: 速射：習熟 | AQ59: 呪文熟達：汎用呪文：習熟 | AV59: 職人：革細工：熟練 | BC59: 小槍（片手）
O60: 水袋 | Q60: 58 | AD60: 神官：8 | AE60: 手仕事：熟練 | AF60: 呪文熟達：治癒呪文：初歩 | AI60: 賦活 | AK60: 手仕事：熟練 | AL60: 手仕事：熟練 | AM60: 速射：熟練 | AQ60: 呪文熟達：汎用呪文：熟練 | AV60: 職人：彫金：初歩 | BC60: 小槍（両手）
O61: 背負い袋 | Q61: 59 | AD61: 神官：9 | AE61: 手仕事：達人 | AF61: 呪文熟達：汎用呪文：初歩 | AI61: 小癒 | AK61: 手仕事：達人 | AL61: 手仕事：達人 | AM61: 速射：達人 | AQ61: 呪文熟達：汎用呪文：達人 | AV61: 職人：彫金：習熟 | BC61: 鉄小槍（片手）
O62: 毛布 | Q62: 60 | AD62: 神官：10 | AE62: 手仕事：伝説 | AF62: 呪文増強：威力：初歩 | AI62: 聖歌 | AK62: 手仕事：伝説 | AL62: 手仕事：伝説 | AM62: 速射：伝説 | AQ62: 呪文熟達：汎用呪文：伝説 | AV62: 職人：彫金：熟練 | BC62: 鉄小槍（両手）
O63: テント | Q63: 61 | AD63: 竜司祭：1 | AE63: 忍耐：初歩 | AF63: 呪文追加：真言呪文：初歩 | AI63: 浄化 | AK63: 忍耐：初歩 | AL63: 忍耐：初歩 | AM63: 体術：初歩 | AQ63: 呪文増強：威力：初歩 | AV63: 神学：初歩 | BC63: 農叉
O64: 寝袋 | Q64: 62 | AD64: 竜司祭：2 | AE64: 忍耐：習熟 | AF64: 呪文追加：奇跡：初歩 | AI64: 祝福 | AK64: 忍耐：習熟 | AL64: 忍耐：習熟 | AM64: 体術：習熟 | AQ64: 呪文増強：威力：習熟 | AV64: 神学：習熟 | BC64: 三叉槍
O65: 冬季用寝袋 | Q65: 63 | AD65: 竜司祭：3 | AE65: 忍耐：熟練 | AF65: 呪文追加：祖竜術：初歩 | AI65: 聖壁 | AK65: 忍耐：熟練 | AL65: 忍耐：熟練 | AM65: 体術：熟練 | AQ65: 呪文増強：威力：熟練 | AV65: 神学：熟練 | BC65: 長槍
O66: 円匙 | Q66: 64 | AD66: 竜司祭：4 | AE66: 忍耐：達人 | AF66: 呪文追加：精霊術：初歩 | AI66: 聖撃 | AK66: 忍耐：達人 | AL66: 忍耐：達人 | AM66: 体術：達人 | AQ66: 呪文増強：威力：達人 | AV66: 信仰心：至高神：初歩 | BC66: 薙刀
O67: ロープ：10 | Q67: 65 | AD67: 竜司祭：5 | AE67: 忍耐：伝説 | AF67: 魔法の才：初歩 | AI67: 聖光 | AK67: 忍耐：伝説 | AL67: 忍耐：伝説 | AM67: 体術：伝説 | AQ67: 呪文増強：威力：伝説 | AV67: 信仰心：至高神：習熟 | BC67: 戦槍
O68: 小槌 | Q68: 66 | AD68: 竜司祭：6 | AE68: 免疫強化：初歩 | AF68: 暗視：初歩 | AI68: 戦槍 | AK68: 免疫強化：初歩 | AL68: 免疫強化：初歩 | AM68: 盾：初歩 | AQ68: 呪文追加：真言呪文：初歩 | AV68: 信仰心：至高神：熟練 | BC68: 投石杖（棍杖）
O69: 楔：10 | Q69: 67 | AD69: 竜司祭：7 | AE69: 免疫強化：習熟 | AF69: 鑑定：初歩 | AI69: 鼓舞 | AK69: 免疫強化：習熟 | AL69: 免疫強化：習熟 | AM69: 盾：習熟 | AQ69: 呪文追加：真言呪文：習熟 | AV69: 信仰心：地母神：初歩 | BC69: 紅玉の杖
O70: 手鏡 | Q70: 68 | AD70: 竜司祭：8 | AE70: 免疫強化：熟練 | AF70: 騎乗：初歩 | AI70: 聖鎧 | AK70: 免疫強化：熟練 | AL70: 免疫強化：熟練 | AM70: 盾：熟練 | AQ70: 呪文追加：真言呪文：熟練 | AV70: 信仰心：地母神：習熟 | BC70: 錫杖
O71: 筆記道具 | Q71: 69 | AD71: 竜司祭：9 | AE71: 免疫強化：達人 | AF71: 祈祷：初歩 | AI71: 契約 | AK71: 免疫強化：達人 | AL71: 免疫強化：達人 | AM71: 盾：達人 | AQ71: 呪文追加：真言呪文：達人 | AV71: 信仰心：地母神：熟練 | BC71: 司教杖
O72: 羊皮紙 | Q72: 70 | AD72: 竜司祭：10 | AE72: 免疫強化：伝説 | AF72: 芸能：歌唱：初歩 | AI72: 旅人 | AK72: 免疫強化：伝説 | AL72: 免疫強化：伝説 | AM72: 盾：伝説 | AQ72: 呪文追加：真言呪文：伝説 | AV72: 信仰心：交易神：初歩 | BC72: 六尺棒
O73: パピルス紙：10 | Q73: 71 | AD73: 精霊使い：1 | AE73: 受け流し：初歩 | AF73: 芸能：即興詩：初歩 | AI73: 逆転 | AK73: 受け流し：初歩 | AM73: 挑発：初歩 | AQ73: 呪文追加：奇跡：初歩 | AV73: 信仰心：交易神：習熟 | BC73: 双節棍
O74: 防毒面(達成値19以下の毒物を無効化) | Q74: 72 | AD74: 精霊使い：2 | AE74: 受け流し：習熟 | AF74: 芸能：演奏：初歩 | AI74: 審問 | AK74: 受け流し：習熟 | AM74: 挑発：習熟 | AQ74: 呪文追加：奇跡：習熟 | AV74: 信仰心：交易神：熟練 | BC74: 打狗棒
O75: 楽器：ヴァイオリン | Q75: 73 | AD75: 精霊使い：3 | AE75: 受け流し：熟練 | AF75: 芸能：舞踊：初歩 | AI75: 鑑定 | AK75: 受け流し：熟練 | AM75: 挑発：熟練 | AQ75: 呪文追加：奇跡：熟練 | AV75: 信仰心：知識神：初歩 | BC75: 連節棍
O76: 楽器：ドラム | Q76: 74 | AD76: 精霊使い：4 | AE76: 受け流し：達人 | AF76: 芸能：大道芸：初歩 | AI76: 聖断 | AK76: 受け流し：達人 | AM76: 挑発：達人 | AQ76: 呪文追加：奇跡：達人 | AV76: 信仰心：知識神：習熟 | BC76: 金砕棒
O77: 楽器：フルート | Q77: 75 | AD77: 精霊使い：5 | AE77: 受け流し：伝説 | AF77: 芸能：演劇：初歩 | AI77: 天啓 | AK77: 受け流し：伝説 | AM77: 挑発：伝説 | AQ77: 呪文追加：奇跡：伝説 | AV77: 信仰心：知識神：熟練 | BC77: 鞭
O78: 楽器：ホルン | Q78: 76 | AD78: 精霊使い：6 | AE78: 荷重行動：初歩 | AF78: 工作：初歩 | AI78: 真灯 | AK78: 荷重行動：初歩 | AM78: 鉄の拳：初歩 | AQ78: 呪文追加：祖竜術：初歩 | AV78: 信仰心：戦女神：初歩 | BC78: 聖鞭
O79: 楽器：リュート | Q79: 77 | AD79: 精霊使い：7 | AE79: 荷重行動：習熟 | AF79: 交渉：説得：初歩 | AI79: 読解 | AK79: 荷重行動：習熟 | AM79: 鉄の拳：習熟 | AQ79: 呪文追加：祖竜術：習熟 | AV79: 信仰心：戦女神：習熟 | BC79: 素手攻撃（片手）
O80: 楽器：草笛 | Q80: 78 | AD80: 精霊使い：8 | AE80: 荷重行動：熟練 | AF80: 交渉：誘惑：初歩 | AI80: 聖餐 | AK80: 荷重行動：熟練 | AM80: 鉄の拳：熟練 | AQ80: 呪文追加：祖竜術：熟練 | AV80: 信仰心：戦女神：熟練 | BC80: 素手攻撃（両手）
O81: 催涙弾 | Q81: 79 | AD81: 精霊使い：9 | AE81: 荷重行動：達人 | AF81: 交渉：脅迫：初歩 | AI81: 不動 | AK81: 荷重行動：達人 | AM81: 鉄の拳：達人 | AQ81: 呪文追加：祖竜術：達人 | AV81: 信仰心：祖竜：初歩 | BC81: 拳帯（片手）
O82: 煙玉 | Q82: 80 | AD82: 精霊使い：10 | AE82: 荷重行動：伝説 | AF82: 交渉：言いくるめ：初歩 | AI82: 和睦 | AK82: 荷重行動：伝説 | AM82: 鉄の拳：伝説 | AQ82: 呪文追加：祖竜術：伝説 | AV82: 信仰心：祖竜：習熟 | BC82: 拳帯（両手）
O83: 鈎縄：10 | Q83: 81 | AE83: 強打攻撃・斬：初歩 | AF83: 職人：鍛冶：初歩 | AI83: 擬態 | AK83: 強打攻撃・斬：初歩 | AM83: 鉄壁：初歩 | AQ83: 呪文追加：精霊術：初歩 | AV83: 信仰心：祖竜：熟練 | BC83: 打布槍
O84: 臭い消し | Q84: 82 | AE84: 強打攻撃・斬：習熟 | AF84: 職人：裁縫：初歩 | AI84: 念話 | AK84: 強打攻撃・斬：習熟 | AM84: 鉄壁：習熟 | AQ84: 呪文追加：精霊術：習熟 | AV84: 生産業：農業：初歩 | BC84: 旋棍
O85: 普通の衣類 | Q85: 83 | AE85: 強打攻撃・斬：熟練 | AF85: 職人：木工：初歩 | AI85: 竜牙刀／竜爪 | AK85: 強打攻撃・斬：熟練 | AM85: 鉄壁：熟練 | AQ85: 呪文追加：精霊術：熟練 | AV85: 生産業：農業：習熟 | BC85: 虎爪（片手）
O86: 鎧下 | Q86: 84 | AE86: 強打攻撃・斬：達人 | AF86: 職人：革細工：初歩 | AI86: 敵意（祖霊術） | AK86: 強打攻撃・斬：達人 | AM86: 鉄壁：達人 | AQ86: 呪文追加：精霊術：達人 | AV86: 生産業：農業：熟練 | BC86: 虎爪（両手）
O87: 鋲付きの鎧下 | Q87: 85 | AE87: 強打攻撃・斬：伝説 | AF87: 職人：彫金：初歩 | AI87: 突撃 | AK87: 強打攻撃・斬：伝説 | AM87: 鉄壁：伝説 | AQ87: 呪文追加：精霊術：伝説 | AV87: 生産業：漁業：初歩 | BC87: 長傘
O88: 防寒具 | Q88: 86 | AE88: 強打攻撃・殴：初歩 | AF88: 神学：初歩 | AI88: 狩場 | AK88: 強打攻撃・殴：初歩 | AM88: 薙ぎ払い：初歩 | AQ88: 魔法の才：初歩 | AV88: 生産業：漁業：習熟 | BC88: 鉄靴
O89: 礼服／ドレス | Q89: 87 | AE89: 強打攻撃・殴：習熟 | AF89: 信仰心：至高神：初歩 | AI89: 竜眼 | AK89: 強打攻撃・殴：習熟 | AM89: 薙ぎ払い：習熟 | AQ89: 魔法の才：習熟 | AV89: 生産業：漁業：熟練 | BC89: 拳鍔（片手）
O90: マント | Q90: 88 | AE90: 強打攻撃・殴：熟練 | AF90: 信仰心：地母神：初歩 | AI90: 竜鱗 | AK90: 強打攻撃・殴：熟練 | AM90: 薙ぎ払い：熟練 | AQ90: 魔法の才：熟練 | AV90: 生産業：林業：初歩 | BC90: 拳鍔（両手）
O91: 10フィートの棒 | Q91: 89 | AE91: 強打攻撃・殴：達人 | AF91: 信仰心：交易神：初歩 | AI91: 竜牙兵 | AK91: 強打攻撃・殴：達人 | AM91: 薙ぎ払い：達人 | AQ91: 魔法の才：達人 | AV91: 生産業：林業：習熟 | BC91: 鉄拳
O92: 軍馬 | Q92: 90 | AE92: 強打攻撃・殴：伝説 | AF92: 信仰心：知識神：初歩 | AI92: 竜血 | AK92: 強打攻撃・殴：伝説 | AM92: 薙ぎ払い：伝説 | AQ92: 魔法の才：伝説 | AV92: 生産業：林業：熟練 | BC92: 朝露の短剣
O93: 乗用馬 | Q93: 91 | AE93: 曲射：初歩 | AF93: 信仰心：戦女神：初歩 | AI93: 竜命 | AK93: 曲射：初歩 | AM93: 二刀流：初歩 | AV93: 生産業：採掘：初歩 | BC93: 魔法の短剣（＋１）
O94: ロバ | Q94: 92 | AE94: 曲射：習熟 | AF94: 信仰心：祖竜：初歩 | AI94: 竜息（火） | AK94: 曲射：習熟 | AM94: 二刀流：習熟 | AV94: 生産業：採掘：習熟 | BC94: 銀の短剣
O95: 馬車 | Q95: 93 | AE95: 曲射：熟練 | AF95: 生産業：農業：初歩 | AI95: 竜息（稲妻） | AK95: 曲射：熟練 | AM95: 二刀流：熟練 | AV95: 生産業：採掘：熟練 | BC95: 魔法の短剣（＋２）
O96: 携帯食 | Q96: 94 | AE96: 曲射：達人 | AF96: 生産業：漁業：初歩 | AI96: 竜息（氷） | AK96: 曲射：達人 | AM96: 二刀流：達人 | AV96: 生存術：初歩 | BC96: 邪紋の短剣
O97: 酒類：火酒 | Q97: 95 | AE97: 曲射：伝説 | AF97: 生産業：林業：初歩 | AI97: 竜息（毒） | AK97: 曲射：伝説 | AM97: 二刀流：伝説 | AV97: 生存術：習熟 | BC97: 竜髭の短弓
O98: 酒類：麦酒 | Q98: 96 | AE98: 斬落攻撃：初歩 | AF98: 生産業：採掘：初歩 | AI98: 竜吠 | AK98: 斬落攻撃：初歩 | AM98: 発勁：初歩 | AV98: 生存術：熟練 | BC98: 竜の末裔初歩素手攻撃（片手）
O99: 酒類：葡萄酒 | Q99: 97 | AE99: 斬落攻撃：習熟 | AF99: 生存術：初歩 | AI99: 対決 | AK99: 斬落攻撃：習熟 | AM99: 発勁：習熟 | AV99: 精霊の愛し子：初歩 | BC99: 竜の末裔初歩素手攻撃（両手）
O100: 酒類：蒸留酒 | Q100: 98 | AE100: 斬落攻撃：熟練 | AF100: 精霊の愛し子：初歩 | AI100: 擬竜 | AK100: 斬落攻撃：熟練 | AM100: 発勁：熟練 | AV100: 精霊の愛し子：習熟 | BC100: 竜の末裔習熟素手攻撃（片手）
O101: 調味料セット | Q101: 99 | AE101: 斬落攻撃：達人 | AF101: 先入観なし：初歩 | AI101: 賦活（祖霊術） | AK101: 斬落攻撃：達人 | AM101: 発勁：達人 | AV101: 精霊の愛し子：熟練 | BC101: 竜の末裔習熟素手攻撃（両手）
O102: 香辛料 | AE102: 斬落攻撃：伝説 | AF102: 長距離移動：初歩 | AI102: 小癒（祖霊術） | AK102: 斬落攻撃：伝説 | AM102: 発勁：伝説 | AV102: 先入観なし：初歩 | BC102: 竜の末裔熟練素手攻撃（片手）
O103: チーズ | AE103: 拘束攻撃：初歩 | AF103: 調理：初歩 | AI103: 胃石 | AK103: 拘束攻撃：初歩 | AM103: 武器：片手剣：初歩 | AV103: 先入観なし：習熟 | BC103: 竜の末裔熟練素手攻撃（両手）
O104: 干した果物 | AE104: 拘束攻撃：習熟 | AF104: 沈着冷静：初歩 | AI104: 腐食 | AK104: 拘束攻撃：習熟 | AM104: 武器：片手剣：習熟 | AV104: 先入観なし：熟練 | BC104: 邪紋の短剣（＋２）
O105: 塩漬け肉 | AE105: 拘束攻撃：熟練 | AF105: 統率：初歩 | AI105: 竜翼 | AK105: 拘束攻撃：熟練 | AM105: 武器：片手剣：熟練 | AV105: 長距離移動：初歩 | BC105: 投石紐（店石）
O106: 化膿止めの軟膏：5 | AE106: 拘束攻撃：達人 | AF106: 博識：初歩 | AI106: 命水 | AK106: 拘束攻撃：達人 | AM106: 武器：片手剣：達人 | AV106: 長距離移動：習熟 | BC106: 投石杖（店石）
O107: 治癒の水薬 | AE107: 拘束攻撃：伝説 | AF107: 犯罪知識：初歩 | AI107: 燐光 | AK107: 拘束攻撃：伝説 | AM107: 武器：片手剣：伝説 | AV107: 長距離移動：熟練 | BC107: 松明
O108: 強壮の水薬 | AE108: 護衛：初歩 | AF108: 文献調査：初歩 | AI108: 隠蔽 | AK108: 護衛：初歩 | AM108: 武器：両手剣：初歩 | AV108: 調理：初歩 | BC108: 円匙
O109: 解毒薬 | AE109: 護衛：習熟 | AF109: 瞑想：初歩 | AI109: 風化 | AK109: 護衛：習熟 | AM109: 武器：両手剣：習熟 | AV109: 調理：習熟
O110: 能力上昇の秘薬(器用) | AE110: 護衛：熟練 | AF110: 竜の末裔：初歩 | AI110: 水歩 | AK110: 護衛：熟練 | AM110: 武器：両手剣：熟練 | AV110: 調理：熟練
O111: 能力上昇の秘薬(筋力) | AE111: 護衛：達人 | AF111: 礼儀作法：初歩 | AI111: 猫目 | AK111: 護衛：達人 | AM111: 武器：両手剣：達人 | AV111: 沈着冷静：初歩
O112: 能力上昇の秘薬(精神) | AE112: 護衛：伝説 | AF112: 労働：初歩 | AI112: 雨乞 | AK112: 護衛：伝説 | AM112: 武器：両手剣：伝説 | AV112: 沈着冷静：習熟
O113: 能力上昇の秘薬(走力) | AE113: 死角移動：初歩 | AI113: 使役 | AK113: 死角移動：初歩 | AM113: 武器：斧：初歩 | AV113: 沈着冷静：熟練
O114: 能力上昇の秘薬(体力) | AE114: 死角移動：習熟 | AI114: 雷矢 | AK114: 死角移動：習熟 | AM114: 武器：斧：習熟 | AV114: 統率：初歩
O115: 能力上昇の秘薬(知覚) | AE115: 死角移動：熟練 | AI115: 石弾 | AK115: 死角移動：熟練 | AM115: 武器：斧：熟練 | AV115: 統率：習熟
O116: 能力上昇の秘薬(敏捷) | AE116: 死角移動：達人 | AI116: 泥罠 | AK116: 死角移動：達人 | AM116: 武器：斧：達人 | AV116: 統率：熟練
O117: 鎮痛剤 | AE117: 死角移動：伝説 | AI117: 霊壁 | AK117: 死角移動：伝説 | AM117: 武器：斧：伝説 | AV117: 博識：初歩
O118: 気付け薬 | AE118: 刺突攻撃：初歩 | AI118: 暗黒 | AK118: 刺突攻撃：初歩 | AM118: 武器：槍：初歩 | AV118: 博識：習熟
O119: トリカブトの毒 | AE119: 刺突攻撃：習熟 | AI119: 追風 | AK119: 刺突攻撃：習熟 | AM119: 武器：槍：習熟 | AV119: 博識：熟練
O120: 燃える水 | AE120: 刺突攻撃：熟練 | AI120: 着火 | AK120: 刺突攻撃：熟練 | AM120: 武器：槍：熟練 | AV120: 犯罪知識：初歩
O121: 物探しの蝋燭 | AE121: 刺突攻撃：達人 | AI121: 酩酊 | AK121: 刺突攻撃：達人 | AM121: 武器：槍：達人 | AV121: 犯罪知識：習熟
O122: 魔法の巻物 | AE122: 刺突攻撃：伝説 | AI122: 隧道 | AK122: 刺突攻撃：伝説 | AM122: 武器：槍：伝説 | AV122: 犯罪知識：熟練
O123: 精霊の手紙 | AE123: 狙撃：初歩 | AI123: 放逐 | AK123: 狙撃：初歩 | AM123: 武器：戦槌：初歩 | AV123: 文献調査：初歩
O124: 手紙 | AE124: 狙撃：習熟 | AI124: 力球 | AK124: 狙撃：習熟 | AM124: 武器：戦槌：習熟 | AV124: 文献調査：習熟
O125: 髪飾り | AE125: 狙撃：熟練 | AI125: 熱波 | AK125: 狙撃：熟練 | AM125: 武器：戦槌：熟練 | AV125: 文献調査：熟練
O126: 魔法の手鏡 | AE126: 狙撃：達人 | AI126: 火矢（精霊術） | AK126: 狙撃：達人 | AM126: 武器：戦槌：達人 | AV126: 瞑想：初歩
O127: 竜息の松明 | AE127: 狙撃：伝説 | AI127: 恐怖 | AK127: 狙撃：伝説 | AM127: 武器：戦槌：伝説 | AV127: 瞑想：習熟
O128: 竜吠の銀鈴 | AE128: 速射：初歩 | AI128: 降下 | AK128: 速射：初歩 | AM128: 武器：棍杖：初歩 | AV128: 瞑想：熟練
O129: 龍涎の御香 | AE129: 速射：習熟 | AI129: 吹雪（精霊術） | AK129: 速射：習熟 | AM129: 武器：棍杖：習熟 | AV129: 竜の末裔：初歩
O130: 竜命の丸薬 | AE130: 速射：熟練 | AI130: 呼気 | AK130: 速射：熟練 | AM130: 武器：棍杖：熟練 | AV130: 竜の末裔：習熟
O131: 竜血の塗り薬 | AE131: 速射：達人 | AI131: 捕縛 | AK131: 速射：達人 | AM131: 武器：棍杖：達人 | AV131: 竜の末裔：熟練
O132: 竜眼の触媒 | AE132: 速射：伝説 | AK132: 速射：伝説 | AM132: 武器：棍杖：伝説 | AV132: 礼儀作法：初歩
O133: 竜の鱗 | AE133: 体術：初歩 | AK133: 体術：初歩 | AM133: 武器：格闘武器：初歩 | AV133: 礼儀作法：習熟
O134: 粗悪な剣 | AE134: 体術：習熟 | AK134: 体術：習熟 | AM134: 武器：格闘武器：習熟 | AV134: 礼儀作法：熟練
O135: 短剣 | AE135: 体術：熟練 | AK135: 体術：熟練 | AM135: 武器：格闘武器：熟練 | AV135: 労働：初歩
O136: 拳剣 | AE136: 体術：達人 | AK136: 体術：達人 | AM136: 武器：格闘武器：達人 | AV136: 労働：習熟
O137: 黒曜の剣 | AE137: 体術：伝説 | AK137: 体術：伝説 | AM137: 武器：格闘武器：伝説 | AV137: 労働：熟練
O138: 舶刀 | AE138: 盾：初歩 | AK138: 盾：初歩 | AM138: 武器：投擲武器：初歩
O139: 小剣 | AE139: 盾：習熟 | AK139: 盾：習熟 | AM139: 武器：投擲武器：習熟
O140: 偃月刀 | AE140: 盾：熟練 | AK140: 盾：熟練 | AM140: 武器：投擲武器：熟練
O141: 突剣 | AE141: 盾：達人 | AK141: 盾：達人 | AM141: 武器：投擲武器：達人
O142: 広刃の剣 | AE142: 盾：伝説 | AK142: 盾：伝説 | AM142: 武器：投擲武器：伝説
O143: 曲刀 | AE143: 挑発：初歩 | AK143: 挑発：初歩 | AM143: 武器：弩弓：初歩
O144: 長剣 | AE144: 挑発：習熟 | AK144: 挑発：習熟 | AM144: 武器：弩弓：習熟
O145: 鮫刃の剣 | AE145: 挑発：熟練 | AK145: 挑発：熟練 | AM145: 武器：弩弓：熟練
O146: 湾刀 | AE146: 挑発：達人 | AK146: 挑発：達人 | AM146: 武器：弩弓：達人
O147: 片手半剣 | AE147: 挑発：伝説 | AK147: 挑発：伝説 | AM147: 武器：弩弓：伝説
O148: 鎧通し | AE148: 鉄の拳：初歩 | AK148: 鉄の拳：初歩 | AM148: 見切り：初歩
O149: 炎紋剣 | AE149: 鉄の拳：習熟 | AK149: 鉄の拳：習熟 | AM149: 見切り：習熟
O150: 大剣 | AE150: 鉄の拳：熟練 | AK150: 鉄の拳：熟練 | AM150: 見切り：熟練
O151: 袋棍 | AE151: 鉄の拳：達人 | AK151: 鉄の拳：達人 | AM151: 見切り：達人
O152: 棍棒 | AE152: 鉄の拳：伝説 | AK152: 鉄の拳：伝説 | AM152: 見切り：伝説
O153: 戦棍 | AE153: 鉄壁：初歩 | AK153: 鉄壁：初歩 | AM153: 鎧：衣鎧：初歩
O154: 片鶴嘴 | AE154: 鉄壁：習熟 | AK154: 鉄壁：習熟 | AM154: 鎧：衣鎧：習熟
O155: 槌鉾 | AE155: 鉄壁：熟練 | AK155: 鉄壁：熟練 | AM155: 鎧：衣鎧：熟練
O156: 刺鉄球 | AE156: 鉄壁：達人 | AK156: 鉄壁：達人 | AM156: 鎧：衣鎧：達人
O157: 戦嘴 | AE157: 鉄壁：伝説 | AK157: 鉄壁：伝説 | AM157: 鎧：衣鎧：伝説
O158: 大戦槌 | AE158: 薙ぎ払い：初歩 | AK158: 薙ぎ払い：初歩 | AM158: 鎧：軽鎧：初歩
O159: 大金棒 | AE159: 薙ぎ払い：習熟 | AK159: 薙ぎ払い：習熟 | AM159: 鎧：軽鎧：習熟
O160: 短弓 | AE160: 薙ぎ払い：熟練 | AK160: 薙ぎ払い：熟練 | AM160: 鎧：軽鎧：熟練
O161: 投矢銃 | AE161: 薙ぎ払い：達人 | AK161: 薙ぎ払い：達人 | AM161: 鎧：軽鎧：達人
O162: 弩 | AE162: 薙ぎ払い：伝説 | AK162: 薙ぎ払い：伝説 | AM162: 鎧：軽鎧：伝説
O163: 長弓 | AE163: 二刀流：初歩 | AK163: 二刀流：初歩 | AM163: 鎧：重鎧：初歩
O164: 大弓 | AE164: 二刀流：習熟 | AK164: 二刀流：習熟 | AM164: 鎧：重鎧：習熟
O165: 弩砲 | AE165: 二刀流：熟練 | AK165: 二刀流：熟練 | AM165: 鎧：重鎧：熟練
O166: 抱大筒 | AE166: 二刀流：達人 | AK166: 二刀流：達人 | AM166: 鎧：重鎧：達人
O167: 投石 | AE167: 二刀流：伝説 | AK167: 二刀流：伝説 | AM167: 鎧：重鎧：伝説
O168: 投矢 | AE168: 発勁：初歩 | AK168: 発勁：初歩
O169: 投分銅 | AE169: 発勁：習熟 | AK169: 発勁：習熟
O170: 飛棍 | AE170: 発勁：熟練 | AK170: 発勁：熟練
O171: 投石紐 | AE171: 発勁：達人 | AK171: 発勁：達人
O172: 飛刀 | AE172: 発勁：伝説 | AK172: 発勁：伝説
O173: 戦輪 | AE173: 武器：片手剣：初歩 | AK173: 武器：片手剣：初歩
O174: 南洋式投げナイフ | AE174: 武器：片手剣：習熟 | AK174: 武器：片手剣：習熟
O175: 投石杖 | AE175: 武器：片手剣：熟練 | AK175: 武器：片手剣：熟練
O176: 血滴子 | AE176: 武器：片手剣：達人 | AK176: 武器：片手剣：達人
O177: 粗悪な斧 | AE177: 武器：片手剣：伝説 | AK177: 武器：片手剣：伝説
O178: 鉈 | AE178: 武器：両手剣：初歩 | AK178: 武器：両手剣：初歩
O179: 手斧 | AE179: 武器：両手剣：習熟 | AK179: 武器：両手剣：習熟
O180: 投斧 | AE180: 武器：両手剣：熟練 | AK180: 武器：両手剣：熟練
O181: 戦斧 | AE181: 武器：両手剣：達人 | AK181: 武器：両手剣：達人
O182: 大斧 | AE182: 武器：両手剣：伝説 | AK182: 武器：両手剣：伝説
O183: 斧槍 | AE183: 武器：斧：初歩 | AK183: 武器：斧：初歩
O184: 粗悪な槍 | AE184: 武器：斧：習熟 | AK184: 武器：斧：習熟
O185: 投槍 | AE185: 武器：斧：熟練 | AK185: 武器：斧：熟練
O186: 短槍 | AE186: 武器：斧：達人 | AK186: 武器：斧：達人
O187: 小槍 | AE187: 武器：斧：伝説 | AK187: 武器：斧：伝説
O188: 鉄小槍 | AE188: 武器：槍：初歩 | AK188: 武器：槍：初歩
O189: 農叉 | AE189: 武器：槍：習熟 | AK189: 武器：槍：習熟
O190: 三叉槍 | AE190: 武器：槍：熟練 | AK190: 武器：槍：熟練
O191: 長槍 | AE191: 武器：槍：達人 | AK191: 武器：槍：達人
O192: 薙刀 | AE192: 武器：槍：伝説 | AK192: 武器：槍：伝説
O193: 戦槍 | AE193: 武器：戦槌：初歩 | AK193: 武器：戦槌：初歩
O194: 紅玉の杖 | AE194: 武器：戦槌：習熟 | AK194: 武器：戦槌：習熟
O195: 錫杖 | AE195: 武器：戦槌：熟練 | AK195: 武器：戦槌：熟練
O196: 司教杖 | AE196: 武器：戦槌：達人 | AK196: 武器：戦槌：達人
O197: 六尺棒 | AE197: 武器：戦槌：伝説 | AK197: 武器：戦槌：伝説
O198: 双節棍 | AE198: 武器：棍杖：初歩 | AK198: 武器：棍杖：初歩
O199: 打狗棒 | AE199: 武器：棍杖：習熟 | AK199: 武器：棍杖：習熟
O200: 連節棍 | AE200: 武器：棍杖：熟練 | AK200: 武器：棍杖：熟練
... 262 more rows

Sheet 固定値
A1: 状態タイプ | B1: 固定値 | D1: 能力値タイプ | E1: 只人 | F1: 鉱人 | G1: 森人 | H1: 蜥蜴人 | I1: 圃人 | K1: 種族 | L1: 引数 | N1: 状態タイプ | O1: 引数 | Q1: 呪文使用回数基本値 | R1: 呪文使用回数 | T1: 冒険者等級 | U1: 冒険者レベル | V1: 達成数 | X1: 冒険者レベル | Y1: 習熟段階引数 | AA1: 習熟段階引数 | AB1: 習熟段階 | AD1: 習熟段階 | AE1: 習熟段階引数 | AG1: 冒険者技能習得段階 | AH1: 累積成長点 | AI1: ボーナスあり累積成長点 | AK1: 一般技能習得段階 | AL1: 累積成長点 | AM1: ボーナスあり累積成長点 | AP1: 累積経験点 | AQ1: 冒険者レベル | AR1: 累積獲得成長点 | AT1: 初期冒険者レベル | AU1: 初期経験点 | AV1: 初期成長点 | AW1: 初期所持金 | AX1: 初期冒険回数 | AY1: 初期達成回数 | BA1: 頑健 | BB1: 生命力ボーナス | BC1: 説明 | BE1: 魔法の才 | BF1: 呪文使用回数 | BG1: 修正 | BH1: 修正2 | BI1: 職業レベル | BJ1: 累積経験値 | BK1: ボーナスあり累積成長点 | BM1: 呪文 | BN1: 種別 | BO1: 属性 | BP1: 副属性 | BQ1: 難易度 | BR1: 参照項 | BT1: 冒険アイテム | BU1: 移動修正 | BV1: 追加装甲 | BW1: 体力抵抗判定 | BX1: 真言呪文行使判定修正 | BY1: 奇跡行使判定修正 | BZ1: 祖竜術行使判定修正 | CA1: 精霊術行使判定修正 | CB1: 値段 | CE1: 冒険者になった動機表 | CI1: 識別子 | CJ1: 出自表示 | CK1: 種族 | CL1: 出目 | CM1: 出自 | CN1: 職業 | CO1: 冒険者技能 | CP1: 一般技能 | CR1: 来歴表示 | CS1: 出目 | CT1: 来歴 | CU1: 技能など | CW1: 邂逅表示 | CX1: 出目 | CY1: 邂逅 | CZ1: 継戦カウンタ | DA1: 継戦カウンターによる消耗 | DD1: 生得技能(1) | DE1: 生得技能(2) | DF1: 生得技能(3) | DH1: 戦闘消耗品 | DI1: スタック数 | DK1: 冒険者職業絞り込みなし | DL1: 冒険者職業絞り込みなし | DM1: 戦士 | DN1: 武道家 | DO1: 野伏 | DP1: 斥候 | DQ1: 魔術師 | DR1: 神官 | DS1: 竜司祭 | DT1: 精霊使い | DV1: 隠密性 | DW1: 隠密修正 | DX1: 重量 | DY1: 水泳修正 | DZ1: 登攀修正 | EA1: 跳躍修正 | EB1: 遣い手 | EC1: 大成功 | ED1: 効果 | EE1: 長距離移動 | EF1: 移動力ボーナス | EG1: 騎乗 | EH1: 移動力 | EI1: 見切り | EJ1: 大成功 | EK1: 大失敗 | EL1: 魔法レベル | EM1: 修正値 | EN1: 価格倍率 | EO1: 価格加算値
A2: 状態／2D6(1回目) | B2: 5 | D2: 体力点 | E2: 3 | F2: 4 | G2: 1 | H2: 4 | I2: 1 | K2: 只人 | L2: 2 | N2: 固定値 | O2: 4 | Q2: 2 | R2: 0 | T2: 白磁等級 | U2: 1 | V2: 0 | X2: 1 | Y2: 1 | AA2: 0 | AB2: －－－ | AD2: －－－ | AE2: 0 | AG2: －－－ | AH2: 0 | AI2: 0 | AK2: －－－ | AL2: 0 | AM2: 0 | AP2: 0 | AQ2: 1 | AR2: 10 | AT2: 1 | AU2: 3000 | AV2: 0 | AW2: 100 | AX2: 0 | AY2: 0 | BA2: －－－ | BB2: 0 | BC2: ="生命力に+"&BB2&"のボーナスを得ます" -> 生命力に+0のボーナスを得ます | BE2: －－－ | BF2: 0 | BG2: 0 | BH2: 0 | BI2: 0 | BJ2: 0 | BK2: 0 | BM2: 分身 | BN2: 真言呪文 | BO2: 創造呪文 | BP2: 生命 | BQ2: 20 | BR2: 297 | BT2: なし | BU2: 0 | BV2: 0 | BW2: 0 | BX2: 0 | BY2: 0 | BZ2: 0 | CA2: 0 | CB2: 0 | CD2: =CF2&"-"&CG2 -> 1,2-1 | CE2: 仇敵に復讐するため | CF2: 1,2 | CG2: 1 | CI2: =CK2&"-"&CL2 -> 只人-2 | CJ2: =CK2&"-"&CL2&"："&CM2 -> 只人-2：冒険者 | CK2: 只人 | CL2: 2 | CM2: 冒険者 | CR2: =CS2&"："&CT2 -> 2：奴隷 | CS2: 2 | CT2: 奴隷 | CW2: =CX2&"："&CY2 -> 2：宿敵 | CX2: 2 | CY2: 宿敵 | CZ2: 0 | DA2: 0 | DC2: 只人 | DD2: 荷重行動：初歩 | DE2: 武器：投擲武器：初歩 | DF2: 長距離移動：初歩 | DH2: 石弾 | DI2: 10 | DK2: 戦士 | DL2: なし | DM2: なし | DN2: なし | DO2: なし | DP2: なし | DQ2: なし | DR2: なし | DS2: なし | DT2: なし | DU2: 1 | DV2: 良い | DW2: 0 | DX2: ="-" -> - | DY2: 0 | DZ2: 0 | EA2: 0 | EB2: －－－ | EC2: 12 | ED2: 0 | EE2: －－－ | EF2: 0 | EG2: なし | EH2: 0 | EI2: －－－ | EJ2: 12 | EK2: 2 | EL2: なし | EM2: 0 | EN2: 1 | EO2: 0
A3: 状態／2D6(2回目) | B3: 7 | D3: 魂魄点 | E3: 2 | F3: 2 | G3: 3 | H3: 3 | I3: 4 | K3: 鉱人 | L3: 3 | N3: ランダム | O3: 2 | Q3: 3 | R3: 0 | T3: 黒曜等級 | U3: 2 | V3: 2 | X3: 2 | Y3: 2 | AA3: 1 | AB3: 初歩 | AD3: 初歩 | AE3: 1 | AG3: 初歩 | AH3: 5 | AI3: 0 | AK3: 初歩 | AL3: 1 | AM3: 0 | AP3: 4000 | AQ3: 2 | AR3: 25 | AT3: 3 | AU3: 8000 | AV3: 12 | AW3: 200 | AX3: 4 | AY3: 4 | BA3: 初歩 | BB3: 5 | BC3: 生命力に+5のボーナスを得ます | BE3: 初歩 | BF3: 1 | BG3: 1 | BH3: 1 | BI3: 1 | BJ3: 1000 | BK3: 0 | BM3: 解錠 | BN3: 真言呪文 | BO3: 汎用呪文 | BP3: 物質 | BQ3: 10 | BR3: 297 | BT3: 冒険者ツール(鈎縄10m、楔10個、小槌、火口箱、背負い袋、携帯用食器、水袋、白墨、小刀、松明(6本)) | BU3: 0 | BV3: 0 | BW3: 0 | BX3: 0 | BY3: 0 | BZ3: 0 | CA3: 0 | CB3: 30 | CD3: =CF3&"-"&CG3 -> 1,2-2 | CE3: 借金を返済するため | CF3: 1,2 | CG3: 2 | CI3: =CK3&"-"&CL3 -> 只人-3 | CJ3: =CK3&"-"&CL3&"："&CM3 -> 只人-3：無頼 | CK3: 只人 | CL3: 3 | CM3: 無頼 | CR3: =CS3&"："&CT3 -> 3：牢獄 | CS3: 3 | CT3: 牢獄 | CW3: =CX3&"："&CY3 -> 3：上司 | CX3: 3 | CY3: 上司 | CZ3: 1 | DA3: 0 | DC3: 鉱人 | DD3: 治癒適正：初歩 | DE3: 暗視：初歩 | DF3: 工作：初歩 | DH3: 矢 | DI3: 10 | DK3: 武道家 | DL3: 戦士：1 | DM3: =DM$1&"："&$DU3 -> 戦士：1 | DN3: =DN$1&"："&$DU3 -> 武道家：1 | DO3: 野伏：1 | DP3: 斥候：1 | DQ3: 魔術師：1 | DR3: 神官：1 | DS3: 竜司祭：1 | DT3: 精霊使い：1 | DU3: 1 | DV3: 普通(-4) | DW3: -4 | DX3: 軽 | DY3: -4 | DZ3: 0 | EA3: 0 | EB3: 初歩 | EC3: 11 | ED3: 0 | EE3: 初歩 | EF3: 0 | EG3: 軍馬 | EH3: 45 | EI3: 初歩 | EJ3: 11 | EK3: 5 | EL3: ＋１ | EM3: 1 | EN3: 5 | EO3: 100
A4: 状態／2D6(3回目) | B4: 9 | D4: 技量点 | E4: 2 | F4: 4 | G4: 3 | H4: 2 | I4: 3 | K4: 森人 | L4: 4 | Q4: 4 | R4: 0 | T4: 鋼鉄等級 | U4: 3 | V4: 3 | X4: 3 | Y4: 2 | AA4: 2 | AB4: 習熟 | AD4: 習熟 | AE4: 2 | AG4: 習熟 | AH4: 15 | AI4: 10 | AK4: 習熟 | AL4: 6 | AM4: 5 | AP4: 7000 | AQ4: 3 | AR4: 40 | AT4: 4 | AU4: 11000 | AV4: 21 | AW4: 300 | AX4: 7 | AY4: 6 | BA4: 習熟 | BB4: 10 | BC4: 生命力に+10のボーナスを得ます | BE4: 習熟 | BF4: 2 | BG4: 2 | BH4: 2 | BI4: 2 | BJ4: 2000 | BK4: 1000 | BM4: 贋金 | BN4: 真言呪文 | BO4: 創造呪文 | BP4: 精神 | BQ4: 15 | BR4: 298 | BT4: 携帯食 | BU4: 0 | BV4: 0 | BW4: 0 | BX4: 0 | BY4: 0 | BZ4: 0 | CA4: 0 | CB4: 2 | CD4: 1,2-3 | CE4: 身近な人を追って | CF4: 1,2 | CG4: 3 | CI4: 只人-4 | CJ4: 只人-4：猟師 | CK4: 只人 | CL4: 4 | CM4: 猟師 | CR4: 4：戦場 | CS4: 4 | CT4: 戦場 | CW4: 4：後輩 | CX4: 4 | CY4: 後輩 | CZ4: 2 | DA4: 0 | DC4: 森人 | DD4: 武器：弩弓：初歩 | DE4: 暗視：初歩 | DF4: 精霊の愛し子：初歩 | DH4: 太矢 | DI4: 10 | DK4: 野伏 | DL4: 戦士：2 | DM4: =DM$1&"："&$DU4 -> 戦士：2 | DN4: 武道家：2 | DO4: 野伏：2 | DP4: 斥候：2 | DQ4: 魔術師：2 | DR4: 神官：2 | DS4: 竜司祭：2 | DT4: 精霊使い：2 | DU4: =DU3+1 -> 2 | DV4: 悪い(-8) | DW4: -8 | DX4: 重 | DY4: -12 | DZ4: -4 | EA4: -4 | EB4: 習熟 | EC4: 11 | ED4: 1 | EE4: 習熟 | EF4: 2 | EG4: 乗用馬 | EH4: 30 | EI4: 習熟 | EJ4: 11 | EK4: 4 | EL4: ＋２ | EM4: 2 | EN4: 10 | EO4: 1000
D5: 知力点 | E5: 3 | F5: 1 | G5: 3 | H5: 2 | I5: 2 | K5: 蜥蜴人 | L5: 5 | Q5: 5 | R5: 0 | T5: 青玉等級 | U5: 4 | V5: 4 | X5: 4 | Y5: 3 | AA5: 3 | AB5: 熟練 | AD5: 熟練 | AE5: 3 | AG5: 熟練 | AH5: 30 | AI5: 25 | AK5: 熟練 | AL5: 21 | AM5: 20 | AP5: 11000 | AQ5: 4 | AR5: 60 | AT5: 5 | AU5: 16500 | AV5: 36 | AW5: 600 | AX5: 12 | AY5: 10 | BA5: 熟練 | BB5: 15 | BC5: 生命力に+15のボーナスを得ます | BE5: 熟練 | BF5: 3 | BG5: 4 | BH5: 3 | BI5: 3 | BJ5: 3500 | BK5: 2500 | BM5: 通訳 | BN5: 真言呪文 | BO5: 汎用呪文 | BP5: 精神 | BQ5: 10 | BR5: 298 | BT5: 携帯食：3 | BU5: 0 | BV5: 0 | BW5: 0 | BX5: 0 | BY5: 0 | BZ5: 0 | CA5: 0 | CB5: 5 | CD5: 1,2-4 | CE5: 啓示を受けて | CF5: 1,2 | CG5: 4 | CI5: 只人-5 | CJ5: 只人-5：学者 | CK5: 只人 | CL5: 5 | CM5: 学者 | CR5: 5：神殿 | CS5: 5 | CT5: 神殿 | CW5: 5：取引相手 | CX5: 5 | CY5: 取引相手 | CZ5: 3 | DA5: 0 | DC5: 蜥蜴人 | DD5: 免疫強化：初歩 | DE5: 暗視：初歩 | DF5: 竜の末裔：初歩 | DH5: 投矢 | DI5: 5 | DK5: 斥候 | DL5: 戦士：3 | DM5: 戦士：3 | DN5: 武道家：3 | DO5: 野伏：3 | DP5: 斥候：3 | DQ5: 魔術師：3 | DR5: 神官：3 | DS5: 竜司祭：3 | DT5: 精霊使い：3 | DU5: =DU4+1 -> 3 | EB5: 熟練 | EC5: 10 | ED5: 2 | EE5: 熟練 | EF5: 4 | EG5: ロバ | EH5: 15 | EI5: 熟練 | EJ5: 10 | EK5: 4 | EL5: ＋３ | EM5: 3 | EN5: 30 | EO5: 10000
D6: 集中度 | E6: 2 | F6: 3 | G6: 2 | H6: 3 | I6: 1 | K6: 圃人 | L6: 6 | Q6: 6 | R6: 0 | T6: 翠玉等級 | U6: 5 | V6: 11 | X6: 5 | Y6: 3 | AA6: 4 | AB6: 達人 | AD6: 達人 | AE6: 4 | AG6: 達人 | AH6: 55 | AI6: 50 | AP6: 16000 | AQ6: 5 | AR6: 80 | AT6: 6 | AU6: 23500 | AV6: 54 | AW6: 1500 | AX6: 18 | AY6: 15 | BA6: 達人 | BB6: 20 | BC6: 生命力に+20のボーナスを得ます | BE6: 達人 | BF6: 4 | BI6: 4 | BJ6: 5500 | BK6: 4500 | BM6: 天候 | BN6: 真言呪文 | BO6: 支配呪文 | BP6: 水、風 | BQ6: 15 | BR6: 299 | BT6: 携帯食：21 | BU6: 0 | BV6: 0 | BW6: 0 | BX6: 0 | BY6: 0 | BZ6: 0 | CA6: 0 | CB6: 35 | CD6: 1,2-5 | CE6: 人を探して | CF6: 1,2 | CG6: 5 | CI6: 只人-6 | CJ6: 只人-6：職人 | CK6: 只人 | CL6: 6 | CM6: 職人 | CR6: 6：孤児 | CS6: 6 | CT6: 孤児 | CW6: 6：部下 | CX6: 6 | CY6: 部下 | CZ6: 4 | DA6: 0 | DC6: 圃人 | DD6: 隠密：初歩 | DE6: 機先：初歩 | DF6: 調理：初歩 | DH6: 弾丸 | DI6: 10 | DK6: 魔術師 | DL6: 戦士：4 | DM6: 戦士：4 | DN6: 武道家：4 | DO6: 野伏：4 | DP6: 斥候：4 | DQ6: 魔術師：4 | DR6: 神官：4 | DS6: 竜司祭：4 | DT6: 精霊使い：4 | DU6: =DU5+1 -> 4 | EB6: 達人 | EC6: 10 | ED6: 3 | EG6: 馬車 | EH6: 15 | EI6: 達人 | EJ6: 10 | EK6: 3 | EL6: ＋４ | EM6: 4 | EN6: 100 | EO6: 100000
D7: 持久度 | E7: 4 | F7: 3 | G7: 1 | H7: 2 | I7: 2 | Q7: 7 | R7: 1 | T7: 紅玉等級 | U7: 5 | V7: 16 | X7: 6 | Y7: 4 | AA7: 5 | AB7: 伝説 | AD7: 伝説 | AE7: 5 | AG7: 伝説 | AH7: 95 | AI7: 90 | AP7: 23000 | AQ7: 6 | AR7: 105 | AT7: 7 | AU7: 33000 | AV7: 81 | AW7: 3900 | AX7: 27 | AY7: 22 | BA7: 伝説 | BB7: 30 | BC7: 生命力に+30のボーナスを得ます | BE7: 伝説 | BF7: 5 | BI7: 5 | BJ7: 8000 | BK7: 7000 | BM7: 脱出 | BN7: 真言呪文 | BO7: 汎用呪文 | BP7: 時間 | BQ7: -- | BR7: 299 | BT7: 衣類 | BU7: 0 | BV7: 0 | BW7: 0 | BX7: 0 | BY7: 0 | BZ7: 0 | CA7: 0 | CB7: 15 | CD7: 1,2-6 | CE7: 使命を果たすため | CF7: 1,2 | CG7: 6 | CI7: 只人-7 | CJ7: 只人-7：農民 | CK7: 只人 | CL7: 7 | CM7: 農民 | CR7: 7：平穏 | CS7: 7 | CT7: 平穏 | CW7: 7：家族 | CX7: 7 | CY7: 家族 | CZ7: 5 | DA7: 1 | DH7: 火の秘薬 | DI7: 10 | DK7: 神官 | DL7: 戦士：5 | DM7: 戦士：5 | DN7: 武道家：5 | DO7: 野伏：5 | DP7: 斥候：5 | DQ7: 魔術師：5 | DR7: 神官：5 | DS7: 竜司祭：5 | DT7: 精霊使い：5 | DU7: =DU6+1 -> 5 | EB7: 伝説 | EC7: 9 | ED7: 4 | EI7: 伝説 | EJ7: 9 | EK7: 3
D8: 反射度 | E8: 2 | F8: 1 | G8: 3 | H8: 2 | I8: 4 | Q8: 8 | R8: 1 | T8: 銅等級 | U8: 6 | V8: 22 | X8: 7 | Y8: 4 | AP8: 33000 | AQ8: 7 | AR8: 130 | AT8: 8 | AU8: 47000 | AV8: 120 | AW8: 7800 | AX8: 40 | AY8: 32 | BI8: 6 | BJ8: 11500 | BK8: 10500 | BM8: 力与 | BN8: 真言呪文 | BO8: 付与呪文 | BP8: なし | BQ8: 10 | BR8: 300 | BT8: 鍵開け道具 | BU8: 0 | BV8: 0 | BW8: 0 | BX8: 0 | BY8: 0 | BZ8: 0 | CA8: 0 | CB8: 25 | CD8: 3,4-1 | CE8: 身の潔白を証明するため | CF8: 3,4 | CG8: 1 | CI8: 只人-8 | CJ8: 只人-8：商人 | CK8: 只人 | CL8: 8 | CM8: 商人 | CR8: 8：貧困 | CS8: 8 | CT8: 貧困 | CW8: 8：親友 | CX8: 8 | CY8: 親友 | CZ8: 6 | DA8: 1 | DH8: 石弾（店石） | DI8: 10 | DK8: 竜司祭 | DL8: 戦士：6 | DM8: 戦士：6 | DN8: 武道家：6 | DO8: 野伏：6 | DP8: 斥候：6 | DQ8: 魔術師：6 | DR8: 神官：6 | DS8: 竜司祭：6 | DT8: 精霊使い：6 | DU8: 6
D9: 移動力種族倍率 | E9: 3 | F9: 2 | G9: 4 | H9: 2 | I9: 3 | Q9: 9 | R9: 1 | T9: 銀等級 | U9: 6 | V9: 29 | X9: 8 | Y9: 4 | AP9: 47000 | AQ9: 8 | AR9: 160 | AT9: 9 | AU9: 66000 | AV9: 171 | AW9: 15250 | AX9: 57 | AY9: 46 | BI9: 7 | BJ9: 16500 | BK9: 15500 | BM9: 火与 | BN9: 真言呪文 | BO9: 付与呪文 | BP9: 火 | BQ9: 10 | BR9: 300 | BT9: 化粧道具 | BU9: 0 | BV9: 0 | BW9: 0 | BX9: 0 | BY9: 0 | BZ9: 0 | CA9: 0 | CB9: 25 | CD9: 3,4-2 | CE9: 故郷を失ったため | CF9: 3,4 | CG9: 2 | CI9: 只人-9 | CJ9: 只人-9：兵士 | CK9: 只人 | CL9: 9 | CM9: 兵士 | CR9: 9：学校 | CS9: 9 | CT9: 学校 | CW9: 9：先輩 | CX9: 9 | CY9: 先輩 | CZ9: 7 | DA9: 1 | DK9: 精霊使い | DL9: 戦士：7 | DM9: 戦士：7 | DN9: 武道家：7 | DO9: 野伏：7 | DP9: 斥候：7 | DQ9: 魔術師：7 | DR9: 神官：7 | DS9: 竜司祭：7 | DT9: 精霊使い：7 | DU9: 7
Q10: 10 | R10: 2 | T10: 金等級 | U10: 7 | V10: 37 | X10: 9 | Y10: 5 | AP10: 66000 | AQ10: 9 | AR10: 190 | AT10: 10 | AU10: 91000 | AV10: 250 | AW10: 30000 | AX10: 80 | AY10: 64 | BI10: 8 | BJ10: 23500 | BK10: 22500 | BM10: 抗魔 | BN10: 真言呪文 | BO10: 付与呪文 | BP10: なし | BQ10: 10 | BR10: 301 | BT10: 調理道具 | BU10: 0 | BV10: 0 | BW10: 0 | BX10: 0 | BY10: 0 | BZ10: 0 | CA10: 0 | CB10: 5 | CD10: 3,4-3 | CE10: 未知なるものを求めて | CF10: 3,4 | CG10: 3 | CI10: 只人-10 | CJ10: 只人-10：騎士 | CK10: 只人 | CL10: 10 | CM10: 騎士 | CR10: 10：箱入り | CS10: 10 | CT10: 箱入り | CW10: 10：婚約者 | CX10: 10 | CY10: 婚約者 | CZ10: 8 | DA10: 2 | DL10: 戦士：8 | DM10: 戦士：8 | DN10: 武道家：8 | DO10: 野伏：8 | DP10: 斥候：8 | DQ10: 魔術師：8 | DR10: 神官：8 | DS10: 竜司祭：8 | DT10: 精霊使い：8 | DU10: 8
Q11: 11 | R11: 2 | X11: 10 | Y11: 5 | AP11: 91000 | AQ11: 10 | AR11: 225 | BI11: 9 | BJ11: 33000 | BK11: 32000 | BM11: 魅了 | BN11: 真言呪文 | BO11: 支配呪文 | BP11: 精神 | BQ11: 10 | BR11: 301 | BT11: 手当道具 | BU11: 0 | BV11: 0 | BW11: 0 | BX11: 0 | BY11: 0 | BZ11: 0 | CA11: 0 | CB11: 2 | CD11: 3,4-4 | CE11: 腕試しのため | CF11: 3,4 | CG11: 4 | CI11: 只人-11 | CJ11: 只人-11：神官 | CK11: 只人 | CL11: 11 | CM11: 神官 | CR11: 11：贅沢 | CS11: 11 | CT11: 贅沢 | CW11: 11：好敵手 | CX11: 11 | CY11: 好敵手 | CZ11: 9 | DA11: 2 | DL11: 戦士：9 | DM11: 戦士：9 | DN11: 武道家：9 | DO11: 野伏：9 | DP11: 斥候：9 | DQ11: 魔術師：9 | DR11: 神官：9 | DS11: 竜司祭：9 | DT11: 精霊使い：9 | DU11: 9
Q12: 12 | R12: 3 | BI12: 10 | BJ12: 45500 | BK12: 44500 | BM12: 破裂 | BN12: 真言呪文 | BO12: 付与呪文 | BP12: なし | BQ12: 5 | BR12: 302 | BT12: 手当道具：5 | BU12: 0 | BV12: 0 | BW12: 0 | BX12: 0 | BY12: 0 | BZ12: 0 | CA12: 0 | CB12: 10 | CD12: 3,4-5 | CE12: 実力を証明するため | CF12: 3,4 | CG12: 5 | CI12: 只人-12 | CJ12: 只人-12：貴族 | CK12: 只人 | CL12: 12 | CM12: 貴族 | CR12: 12：宮廷 | CS12: 12 | CT12: 宮廷 | CW12: 12：師匠 | CX12: 12 | CY12: 師匠 | CZ12: 10 | DA12: 2 | DL12: 戦士：10 | DM12: 戦士：10 | DN12: 武道家：10 | DO12: 野伏：10 | DP12: 斥候：10 | DQ12: 魔術師：10 | DR12: 神官：10 | DS12: 竜司祭：10 | DT12: 精霊使い：10 | DU12: 10
BM13: 流砂 | BN13: 真言呪文 | BO13: 支配呪文 | BP13: 土 | BQ13: 10 | BR13: 303 | BT13: 罠師道具 | BU13: 0 | BV13: 0 | BW13: 0 | BX13: 0 | BY13: 0 | BZ13: 0 | CA13: 0 | CB13: 4 | CD13: 3,4-6 | CE13: 家門を再興するため | CF13: 3,4 | CG13: 6 | CI13: 鉱人-2 | CJ13: 鉱人-2：冒険者 | CK13: 鉱人 | CL13: 2 | CM13: 冒険者 | CZ13: 11 | DA13: 3 | DL13: 武道家：1
BM14: 無手 | BN14: 真言呪文 | BO14: 支配呪文 | BP14: 生命 | BQ14: 10 | BR14: 303 | BT14: 罠師道具：5 | BU14: 0 | BV14: 0 | BW14: 0 | BX14: 0 | BY14: 0 | BZ14: 0 | CA14: 0 | CB14: 20 | CD14: 5,6-1 | CE14: 英雄に憧れて | CF14: 5,6 | CG14: 1 | CI14: 鉱人-3 | CJ14: 鉱人-3：無頼 | CK14: 鉱人 | CL14: 3 | CM14: 無頼 | CZ14: 12 | DA14: 3 | DL14: 武道家：2
BM15: 小鬼 | BN15: 真言呪文 | BO15: 創造呪文 | BP15: 生命 | BQ15: 10 | BR15: 304 | BT15: 職人道具：鍛冶 | BU15: 0 | BV15: 0 | BW15: 0 | BX15: 0 | BY15: 0 | BZ15: 0 | CA15: 0 | CB15: 20 | CD15: 5,6-2 | CE15: 昔からの憧れで | CF15: 5,6 | CG15: 2 | CI15: 鉱人-4 | CJ15: 鉱人-4：猟師 | CK15: 鉱人 | CL15: 4 | CM15: 猟師 | CZ15: 13 | DA15: 4 | DL15: 武道家：3
BM16: 巨人 | BN16: 真言呪文 | BO16: 創造呪文 | BP16: 生命 | BQ16: 20 | BR16: 305 | BT16: 職人道具：裁縫 | BU16: 0 | BV16: 0 | BW16: 0 | BX16: 0 | BY16: 0 | BZ16: 0 | CA16: 0 | CB16: 20 | CD16: 5,6-3 | CE16: 運命の恋人に出会うため | CF16: 5,6 | CG16: 3 | CI16: 鉱人-5 | CJ16: 鉱人-5：商人 | CK16: 鉱人 | CL16: 5 | CM16: 商人 | CZ16: 14 | DA16: 4 | DL16: 武道家：4
BM17: 水薬 | BN17: 真言呪文 | BO17: 創造呪文 | BP17: 生命 | BQ17: 10 | BR17: 306 | BT17: 職人道具：木工 | BU17: 0 | BV17: 0 | BW17: 0 | BX17: 0 | BY17: 0 | BZ17: 0 | CA17: 0 | CB17: 20 | CD17: 5,6-4 | CE17: 放浪癖があったので | CF17: 5,6 | CG17: 4 | CI17: 鉱人-6 | CJ17: 鉱人-6：亭主 | CK17: 鉱人 | CL17: 6 | CM17: 亭主 | CZ17: 15 | DA17: 5 | DL17: 武道家：5
BM18: 支配 | BN18: 真言呪文 | BO18: 支配呪文 | BP18: 精神 | BQ18: 10 | BR18: 306 | BT18: 職人道具：革細工 | BU18: 0 | BV18: 0 | BW18: 0 | BX18: 0 | BY18: 0 | BZ18: 0 | CA18: 0 | CB18: 20 | CD18: 5,6-5 | CE18: 一攫千金を求めて | CF18: 5,6 | CG18: 5 | CI18: 鉱人-7 | CJ18: 鉱人-7：鍛冶師 | CK18: 鉱人 | CL18: 7 | CM18: 鍛冶師 | CZ18: 16 | DA18: 6 | DL18: 武道家：6
BM19: 混乱 | BN19: 真言呪文 | BO19: 支配呪文 | BP19: 精神 | BQ19: 10 | BR19: 307 | BT19: 職人道具：彫金 | BU19: 0 | BV19: 0 | BW19: 0 | BX19: 0 | BY19: 0 | BZ19: 0 | CA19: 0 | CB19: 20 | CD19: 5,6-6 | CE19: 新たな道として | CF19: 5,6 | CG19: 6 | CI19: 鉱人-8 | CJ19: 鉱人-8：職人 | CK19: 鉱人 | CL19: 8 | CM19: 職人 | CZ19: 17 | DA19: 7 | DL19: 武道家：7
BM20: 石壁 | BN20: 真言呪文 | BO20: 創造呪文 | BP20: 土 | BQ20: 15 | BR20: 307 | BT20: 真言呪文の発動体（＋１） | BU20: 0 | BV20: 0 | BW20: 0 | BX20: 1 | BY20: 0 | BZ20: 0 | CA20: 0 | CB20: 50 | CI20: 鉱人-9 | CJ20: 鉱人-9：兵士 | CK20: 鉱人 | CL20: 9 | CM20: 兵士 | CZ20: 18 | DA20: 8 | DL20: 武道家：8
BM21: 剛力 | BN21: 真言呪文 | BO21: 付与呪文 | BP21: 生命 | BQ21: 10 | BR21: 308 | BT21: 真言呪文の発動体（＋２） | BU21: 0 | BV21: 0 | BW21: 0 | BX21: 2 | BY21: 0 | BZ21: 0 | CA21: 0 | CB21: 500 | CI21: 鉱人-10 | CJ21: 鉱人-10：盾砕き | CK21: 鉱人 | CL21: 10 | CM21: 盾砕き | CZ21: 19 | DA21: 9 | DL21: 武道家：9
BM22: 粘糸 | BN22: 真言呪文 | BO22: 創造呪文 | BP22: 物質 | BQ22: 10 | BR22: 308 | BT22: 真言呪文の発動体（＋３） | BU22: 0 | BV22: 0 | BW22: 0 | BX22: 3 | BY22: 0 | BZ22: 0 | CA22: 0 | CB22: 5000 | CI22: 鉱人-11 | CJ22: 鉱人-11：神官 | CK22: 鉱人 | CL22: 11 | CM22: 神官 | CZ22: 20 | DA22: 10 | DL22: 武道家：10
BM23: 惰眠 | BN23: 真言呪文 | BO23: 支配呪文 | BP23: 精神 | BQ23: 10 | BR23: 309 | BT23: 竜骨の御守（＋１） | BU23: 0 | BV23: 0 | BW23: 0 | BX23: 0 | BY23: 0 | BZ23: 1 | CA23: 0 | CB23: 50 | CI23: 鉱人-12 | CJ23: 鉱人-12：貴族 | CK23: 鉱人 | CL23: 12 | CM23: 貴族 | CZ23: 21 | DA23: 11 | DL23: 野伏：1
BM24: 停滞 | BN24: 真言呪文 | BO24: 支配呪文 | BP24: 生命 | BQ24: 15 | BR24: 309 | BT24: 竜骨の御守（＋２） | BU24: 0 | BV24: 0 | BW24: 0 | BX24: 0 | BY24: 0 | BZ24: 2 | CA24: 0 | CB24: 500 | CI24: 森人-2 | CJ24: 森人-2：冒険者 | CK24: 森人 | CL24: 2 | CM24: 冒険者 | CZ24: 22 | DA24: 12 | DL24: 野伏：2
BM25: 落下 | BN25: 真言呪文 | BO25: 汎用呪文 | BP25: 空間 | BQ25: 10 | BR25: 310 | BT25: 聖印 | BU25: 0 | BV25: 0 | BW25: 0 | BX25: 0 | BY25: 1 | BZ25: 0 | CA25: 0 | CB25: 50 | CI25: 森人-3 | CJ25: 森人-3：無頼 | CK25: 森人 | CL25: 3 | CM25: 無頼 | CZ25: 23 | DA25: 13 | DL25: 野伏：3
BM26: 分影 | BN26: 真言呪文 | BO26: 創造呪文 | BP26: 光 | BQ26: 15 | BR26: 310 | BT26: 精霊石 | BU26: 0 | BV26: 0 | BW26: 0 | BX26: 0 | BY26: 0 | BZ26: 0 | CA26: 1 | CB26: 50 | CI26: 森人-4 | CJ26: 森人-4：半森人 | CK26: 森人 | CL26: 4 | CM26: 半森人 | CZ26: 24 | DA26: 14 | DL26: 野伏：4
BM27: 察知 | BN27: 真言呪文 | BO27: 汎用呪文 | BP27: 精神 | BQ27: 5 | BR27: 310 | BT27: 竜司祭の触媒入れ | BU27: -2 | BV27: 0 | BW27: 0 | BX27: 0 | BY27: 0 | BZ27: 0 | CA27: 0 | CB27: 30 | CI27: 森人-5 | CJ27: 森人-5：細工師 | CK27: 森人 | CL27: 5 | CM27: 細工師 | CZ27: 25 | DA27: 15 | DL27: 野伏：5
BM28: 舞踏 | BN28: 真言呪文 | BO28: 支配呪文 | BP28: 精神 | BQ28: 5 | BR28: 311 | BT28: 精霊使いの鞄 | BU28: -2 | BV28: 0 | BW28: 0 | BX28: 0 | BY28: 0 | BZ28: 0 | CA28: 0 | CB28: 30 | CI28: 森人-6 | CJ28: 森人-6：兵士 | CK28: 森人 | CL28: 6 | CM28: 兵士 | CZ28: 26 | DA28: 16 | DL28: 野伏：6
BM29: 嫌気 | BN29: 真言呪文 | BO29: 支配呪文 | BP29: 精神 | BQ29: 10 | BR29: 311 | BT29: 上質な触媒 | BU29: 0 | BV29: 0 | BW29: 0 | BX29: 0 | BY29: 0 | BZ29: 0 | CA29: 0 | CB29: 10 | CI29: 森人-7 | CJ29: 森人-7：猟師 | CK29: 森人 | CL29: 7 | CM29: 猟師 | CZ29: 27 | DA29: 17 | DL29: 野伏：7
BM30: 矢避 | BN30: 真言呪文 | BO30: 付与呪文 | BP30: 風 | BQ30: 10 | BR30: 312 | BT30: 石弾 | BU30: 0 | BV30: 0 | BW30: 0 | BX30: 0 | BY30: 0 | BZ30: 0 | CA30: 0 | CB30: 1 | CI30: 森人-8 | CJ30: 森人-8：詩人 | CK30: 森人 | CL30: 8 | CM30: 詩人 | CZ30: 28 | DA30: 18 | DL30: 野伏：8
BM31: 透過 | BN31: 真言呪文 | BO31: 付与呪文 | BP31: 光 | BQ31: 10 | BR31: 312 | BT31: 石弾：10 | BU31: 0 | BV31: 0 | BW31: 0 | BX31: 0 | BY31: 0 | BZ31: 0 | CA31: 0 | CB31: 1 | CI31: 森人-9 | CJ31: 森人-9：楽士 | CK31: 森人 | CL31: 9 | CM31: 楽士 | CZ31: 29 | DA31: 19 | DL31: 野伏：9
BM32: 恐慌 | BN32: 真言呪文 | BO32: 支配呪文 | BP32: 精神 | BQ32: 10 | BR32: 313 | BT32: 石弾（店石） | BU32: 0 | BV32: 0 | BW32: 0 | BX32: 0 | BY32: 0 | BZ32: 0 | CA32: 0 | CB32: 1 | CI32: 森人-10 | CJ32: 森人-10：語り部 | CK32: 森人 | CL32: 10 | CM32: 語り部 | CZ32: 30 | DA32: 20 | DL32: 野伏：10
BM33: 獣心 | BN33: 真言呪文 | BO33: 汎用呪文 | BP33: 精神 | BQ33: 10 | BR33: 313 | BT33: 石弾（店石）：10 | BU33: 0 | BV33: 0 | BW33: 0 | BX33: 0 | BY33: 0 | BZ33: 0 | CA33: 0 | CB33: 2 | CI33: 森人-11 | CJ33: 森人-11：祈祷師 | CK33: 森人 | CL33: 11 | CM33: 祈祷師 | CZ33: 31 | DA33: 21 | DL33: 斥候：1
BM34: 幻影 | BN34: 真言呪文 | BO34: 創造呪文 | BP34: 光 | BQ34: 5 | BR34: 314 | BT34: 石弾袋 | BU34: -2 | BV34: 0 | BW34: 0 | BX34: 0 | BY34: 0 | BZ34: 0 | CA34: 0 | CB34: 3 | CI34: 森人-12 | CJ34: 森人-12：族長 | CK34: 森人 | CL34: 12 | CM34: 族長 | CZ34: 32 | DA34: 22 | DL34: 斥候：2
BM35: 巨大 | BN35: 真言呪文 | BO35: 付与呪文 | BP35: 生命 | BQ35: 10 | BR35: 315 | BT35: 矢 | BU35: 0 | BV35: 0 | BW35: 0 | BX35: 0 | BY35: 0 | BZ35: 0 | CA35: 0 | CB35: 1 | CI35: 蜥蜴人-2 | CJ35: 蜥蜴人-2：冒険者 | CK35: 蜥蜴人 | CL35: 2 | CM35: 冒険者 | CZ35: 33 | DA35: 23 | DL35: 斥候：3
BM36: 火球 | BN36: 真言呪文 | BO36: 攻撃呪文 | BP36: 火 | BQ36: 10 | BR36: 316 | BT36: 矢：10 | BU36: 0 | BV36: 0 | BW36: 0 | BX36: 0 | BY36: 0 | BZ36: 0 | CA36: 0 | CB36: 5 | CI36: 蜥蜴人-3 | CJ36: 蜥蜴人-3：無頼 | CK36: 蜥蜴人 | CL36: 3 | CM36: 無頼 | CZ36: 34 | DA36: 24 | DL36: 斥候：4
BM37: 火矢 | BN37: 真言呪文 | BO37: 攻撃呪文 | BP37: 火 | BQ37: 5 | BR37: 316 | BT37: 太矢 | BU37: 0 | BV37: 0 | BW37: 0 | BX37: 0 | BY37: 0 | BZ37: 0 | CA37: 0 | CB37: 1 | CI37: 蜥蜴人-4 | CJ37: 蜥蜴人-4：奴隷 | CK37: 蜥蜴人 | CL37: 4 | CM37: 奴隷 | CZ37: 35 | DA37: 25 | DL37: 斥候：5
BM38: 遠見 | BN38: 真言呪文 | BO38: 汎用呪文 | BP38: 時間 | BQ38: 20 | BR38: 317 | BT38: 太矢：10 | BU38: 0 | BV38: 0 | BW38: 0 | BX38: 0 | BY38: 0 | BZ38: 0 | CA38: 0 | CB38: 10 | CI38: 蜥蜴人-5 | CJ38: 蜥蜴人-5：騎兵 | CK38: 蜥蜴人 | CL38: 5 | CM38: 騎兵 | CZ38: 36 | DA38: 26 | DL38: 斥候：6
BM39: 力場 | BN39: 真言呪文 | BO39: 創造呪文 | BP39: 空間 | BQ39: 15 | BR39: 317 | BT39: 矢筒 | BU39: -2 | BV39: 0 | BW39: 0 | BX39: 0 | BY39: 0 | BZ39: 0 | CA39: 0 | CB39: 3 | CI39: 蜥蜴人-6 | CJ39: 蜥蜴人-6：工兵 | CK39: 蜥蜴人 | CL39: 6 | CM39: 工兵 | CZ39: 37 | DA39: 27 | DL39: 斥候：7
BM40: 突風 | BN40: 真言呪文 | BO40: 攻撃呪文 | BP40: 風 | BQ40: 5 | BR40: 318 | BT40: 弾丸 | BU40: 0 | BV40: 0 | BW40: 0 | BX40: 0 | BY40: 0 | BZ40: 0 | CA40: 0 | CB40: 2 | CI40: 蜥蜴人-7 | CJ40: 蜥蜴人-7：弓兵 | CK40: 蜥蜴人 | CL40: 7 | CM40: 弓兵 | CZ40: 38 | DA40: 28 | DL40: 斥候：8
BM41: 呼気 | BN41: 真言呪文 | BO41: 付与呪文 | BP41: 水、風 | BQ41: 10 | BR41: 318 | BT41: 弾丸：10 | BU41: 0 | BV41: 0 | BW41: 0 | BX41: 0 | BY41: 0 | BZ41: 0 | CA41: 0 | CB41: 20 | CI41: 蜥蜴人-8 | CJ41: 蜥蜴人-8：槍兵 | CK41: 蜥蜴人 | CL41: 8 | CM41: 槍兵 | CZ41: 39 | DA41: 29 | DL41: 斥候：9
BM42: 吹雪 | BN42: 真言呪文 | BO42: 攻撃呪文 | BP42: 水、風 | BQ42: 20 | BR42: 319 | BT42: 火の秘薬 | BU42: 0 | BV42: 0 | BW42: 0 | BX42: 0 | BY42: 0 | BZ42: 0 | CA42: 0 | CB42: 20 | CI42: 蜥蜴人-9 | CJ42: 蜥蜴人-9：歩兵 | CK42: 蜥蜴人 | CL42: 9 | CM42: 歩兵 | CZ42: 40 | DA42: 30 | DL42: 斥候：10
BM43: 浮遊 | BN43: 真言呪文 | BO43: 汎用呪文 | BP43: 風 | BQ43: 10 | BR43: 319 | BT43: 火の秘薬：10 | BU43: 0 | BV43: 0 | BW43: 0 | BX43: 0 | BY43: 0 | BZ43: 0 | CA43: 0 | CB43: 200 | CI43: 蜥蜴人-10 | CJ43: 蜥蜴人-10：軍師 | CK43: 蜥蜴人 | CL43: 10 | CM43: 軍師 | DL43: 魔術師：1
BM44: 加速 | BN44: 真言呪文 | BO44: 付与呪文 | BP44: 生命、精神 | BQ44: 15 | BR44: 230 | BT44: 弾薬鞄 | BU44: -4 | BV44: 0 | BW44: 0 | BX44: 0 | BY44: 0 | BZ44: 0 | CA44: 0 | CB44: 12 | CI44: 蜥蜴人-11 | CJ44: 蜥蜴人-11：司祭 | CK44: 蜥蜴人 | CL44: 11 | CM44: 司祭 | DL44: 魔術師：2
BM45: 読心 | BN45: 真言呪文 | BO45: 汎用呪文 | BP45: 精神 | BQ45: 10 | BR45: 320 | BT45: 投矢 | BU45: 0 | BV45: 0 | BW45: 0 | BX45: 0 | BY45: 0 | BZ45: 0 | CA45: 0 | CB45: 3 | CI45: 蜥蜴人-12 | CJ45: 蜥蜴人-12：王卵 | CK45: 蜥蜴人 | CL45: 12 | CM45: 王卵 | DL45: 魔術師：3
BM46: 力矢 | BN46: 真言呪文 | BO46: 攻撃呪文 | BP46: 空間 | BQ46: 10 | BR46: 321 | BT46: 投矢：5 | BU46: 0 | BV46: 0 | BW46: 0 | BX46: 0 | BY46: 0 | BZ46: 0 | CA46: 0 | CB46: 15 | CI46: 圃人-2 | CJ46: 圃人-2：冒険者 | CK46: 圃人 | CL46: 2 | CM46: 冒険者 | DL46: 魔術師：4
BM47: 魔霧 | BN47: 真言呪文 | BO47: 創造呪文 | BP47: 水 | BQ47: 10 | BR47: 321 | BT47: 投矢革帯 | BU47: -2 | BV47: 0 | BW47: 0 | BX47: 0 | BY47: 0 | BZ47: 0 | CA47: 0 | CB47: 6 | CI47: 圃人-3 | CJ47: 圃人-3：無頼 | CK47: 圃人 | CL47: 3 | CM47: 無頼 | DL47: 魔術師：5
BM48: 円盾 | BN48: 真言呪文 | BO48: 付与呪文 | BP48: なし | BQ48: 10 | BR48: 322 | BT48: 松明 | BU48: 0 | BV48: 0 | BW48: 0 | BX48: 0 | BY48: 0 | BZ48: 0 | CA48: 0 | CB48: 1 | CI48: 圃人-4 | CJ48: 圃人-4：詩人 | CK48: 圃人 | CL48: 4 | CM48: 詩人 | DL48: 魔術師：6
BM49: 光明 | BN49: 真言呪文 | BO49: 汎用呪文 | BP49: 光 | BQ49: 5 | BR49: 322 | BT49: 松明：6 | BU49: 0 | BV49: 0 | BW49: 0 | BX49: 0 | BY49: 0 | BZ49: 0 | CA49: 0 | CB49: 1 | CI49: 圃人-5 | CJ49: 圃人-5：学者 | CK49: 圃人 | CL49: 5 | CM49: 学者 | DL49: 魔術師：7
BM50: 稲妻 | BN50: 真言呪文 | BO50: 攻撃呪文 | BP50: 風 | BQ50: 15 | BR50: 323 | BT50: 蝋燭 | BU50: 0 | BV50: 0 | BW50: 0 | BX50: 0 | BY50: 0 | BZ50: 0 | CA50: 0 | CB50: 1 | CI50: 圃人-6 | CJ50: 圃人-6：職人 | CK50: 圃人 | CL50: 6 | CM50: 職人 | DL50: 魔術師：8
BM51: 施錠 | BN51: 真言呪文 | BO51: 汎用呪文 | BP51: 物質 | BQ51: 5 | BR51: 323 | BT51: 蝋燭：12 | BU51: 0 | BV51: 0 | BW51: 0 | BX51: 0 | BY51: 0 | BZ51: 0 | CA51: 0 | CB51: 1 | CI51: 圃人-7 | CJ51: 圃人-7：農民 | CK51: 圃人 | CL51: 7 | CM51: 農民 | DL51: 魔術師：9
BM52: 解毒 | BN52: 奇跡 | BO52: 治癒呪文 | BP52: 生命 | BQ52: 10 | BR52: 324 | BT52: 角灯 | BU52: 0 | BV52: 0 | BW52: 0 | BX52: 0 | BY52: 0 | BZ52: 0 | CA52: 0 | CB52: 30 | CI52: 圃人-8 | CJ52: 圃人-8：商人 | CK52: 圃人 | CL52: 8 | CM52: 商人 | DL52: 魔術師：10
BM53: 沈黙 | BN53: 奇跡 | BO53: 支配呪文 | BP53: 風 | BQ53: 10 | BR53: 324 | BT53: ガラス付き角灯 | BU53: 0 | BV53: 0 | BW53: 0 | BX53: 0 | BY53: 0 | BZ53: 0 | CA53: 0 | CB53: 60 | CI53: 圃人-9 | CJ53: 圃人-9：亭主 | CK53: 圃人 | CL53: 9 | CM53: 亭主 | DL53: 神官：1
BM54: 聖域 | BN54: 奇跡 | BO54: 付与呪文 | BP54: 空間 | BQ54: 15 | BR54: 325 | BT54: ランプ | BU54: 0 | BV54: 0 | BW54: 0 | BX54: 0 | BY54: 0 | BZ54: 0 | CA54: 0 | CB54: 50 | CI54: 圃人-10 | CJ54: 圃人-10：庭師 | CK54: 圃人 | CL54: 10 | CM54: 庭師 | DL54: 神官：2
BM55: 敵意 | BN55: 奇跡 | BO55: 付与呪文 | BP55: 精神 | BQ55: 10 | BR55: 325 | BT55: 油 | BU55: 0 | BV55: 0 | BW55: 0 | BX55: 0 | BY55: 0 | BZ55: 0 | CA55: 0 | CB55: 1 | CI55: 圃人-11 | CJ55: 圃人-11：騎士 | CK55: 圃人 | CL55: 11 | CM55: 騎士 | DL55: 神官：3
BM56: 看破 | BN56: 奇跡 | BO56: 付与呪文 | BP56: 精神 | BQ56: 10 | BR56: 326 | BT56: 火口箱 | BU56: 0 | BV56: 0 | BW56: 0 | BX56: 0 | BY56: 0 | BZ56: 0 | CA56: 0 | CB56: 5 | CI56: 圃人-12 | CJ56: 圃人-12：地主 | CK56: 圃人 | CL56: 12 | CM56: 地主 | DL56: 神官：4
BM57: 解呪 | BN57: 奇跡 | BO57: 治癒呪文 | BP57: 生命、精神、物質、空間 | BQ57: 10 | BR57: 326 | BT57: 小袋セット | BU57: 0 | BV57: 0 | BW57: 0 | BX57: 0 | BY57: 0 | BZ57: 0 | CA57: 0 | CB57: 1 | DL57: 神官：5
BM58: 鎮静 | BN58: 奇跡 | BO58: 治癒呪文 | BP58: 精神 | BQ58: 10 | BR58: 327 | BT58: ずた袋 | BU58: 0 | BV58: 0 | BW58: 0 | BX58: 0 | BY58: 0 | BZ58: 0 | CA58: 0 | CB58: 1 | DL58: 神官：6
BM59: 賦活 | BN59: 奇跡 | BO59: 治癒呪文 | BP59: 生命 | BQ59: 10 | BR59: 327 | BT59: ベルトポーチ | BU59: 0 | BV59: 0 | BW59: 0 | BX59: 0 | BY59: 0 | BZ59: 0 | CA59: 0 | CB59: 5 | DL59: 神官：7
BM60: 小癒 | BN60: 奇跡 | BO60: 治癒呪文 | BP60: 生命 | BQ60: 5 | BR60: 328 | BT60: 水袋 | BU60: 0 | BV60: 0 | BW60: 0 | BX60: 0 | BY60: 0 | BZ60: 0 | CA60: 0 | CB60: 2 | DL60: 神官：8
BM61: 聖歌 | BN61: 奇跡 | BO61: 汎用呪文 | BP61: なし | BQ61: 5 | BR61: 328 | BT61: 背負い袋 | BU61: 0 | BV61: 0 | BW61: 0 | BX61: 0 | BY61: 0 | BZ61: 0 | CA61: 0 | CB61: 10 | DL61: 神官：9
BM62: 浄化 | BN62: 奇跡 | BO62: 治癒呪文 | BP62: 水 | BQ62: 5 | BR62: 329 | BT62: 毛布 | BU62: -2 | BV62: 0 | BW62: 0 | BX62: 0 | BY62: 0 | BZ62: 0 | CA62: 0 | CB62: 5 | DL62: 神官：10
BM63: 祝福 | BN63: 奇跡 | BO63: 付与呪文 | BP63: なし | BQ63: 10 | BR63: 329 | BT63: テント | BU63: -4 | BV63: 0 | BW63: 0 | BX63: 0 | BY63: 0 | BZ63: 0 | CA63: 0 | CB63: 25 | DL63: 竜司祭：1
BM64: 聖壁 | BN64: 奇跡 | BO64: 創造呪文 | BP64: 空間 | BQ64: 15 | BR64: 330 | BT64: 寝袋 | BU64: -2 | BV64: 0 | BW64: 0 | BX64: 0 | BY64: 0 | BZ64: 0 | CA64: 0 | CB64: 1 | DL64: 竜司祭：2
BM65: 聖撃 | BN65: 奇跡 | BO65: 攻撃呪文 | BP65: なし | BQ65: 5 | BR65: 331 | BT65: 冬季用寝袋 | BU65: -2 | BV65: 0 | BW65: 0 | BX65: 0 | BY65: 0 | BZ65: 0 | CA65: 0 | CB65: 10 | DL65: 竜司祭：3
BM66: 聖光 | BN66: 奇跡 | BO66: 治癒呪文 | BP66: 光 | BQ66: 10 | BR66: 331 | BT66: 円匙 | BU66: 0 | BV66: 0 | BW66: 0 | BX66: 0 | BY66: 0 | BZ66: 0 | CA66: 0 | CB66: 18 | DL66: 竜司祭：4
BM67: 戦槍 | BN67: 奇跡 | BO67: 攻撃呪文 | BP67: なし | BQ67: 15 | BR67: 332 | BT67: ロープ：10 | BU67: 0 | BV67: 0 | BW67: 0 | BX67: 0 | BY67: 0 | BZ67: 0 | CA67: 0 | CB67: 5 | DL67: 竜司祭：5
BM68: 鼓舞 | BN68: 奇跡 | BO68: 付与呪文 | BP68: 精神 | BQ68: 10 | BR68: 332 | BT68: 小槌 | BU68: 0 | BV68: 0 | BW68: 0 | BX68: 0 | BY68: 0 | BZ68: 0 | CA68: 0 | CB68: 5 | DL68: 竜司祭：6
BM69: 聖鎧 | BN69: 奇跡 | BO69: 創造呪文 | BP69: 物質、生命 | BQ69: 15 | BR69: 333 | BT69: 楔：10 | BU69: 0 | BV69: 0 | BW69: 0 | BX69: 0 | BY69: 0 | BZ69: 0 | CA69: 0 | CB69: 2 | DL69: 竜司祭：7
BM70: 契約 | BN70: 奇跡 | BO70: 付与呪文 | BP70: なし | BQ70: 20 | BR70: 333 | BT70: 手鏡 | BU70: 0 | BV70: 0 | BW70: 0 | BX70: 0 | BY70: 0 | BZ70: 0 | CA70: 0 | CB70: 30 | DL70: 竜司祭：8
BM71: 旅人 | BN71: 奇跡 | BO71: 付与呪文 | BP71: 生命 | BQ71: 15 | BR71: 334 | BT71: 筆記道具 | BU71: 0 | BV71: 0 | BW71: 0 | BX71: 0 | BY71: 0 | BZ71: 0 | CA71: 0 | CB71: 10 | DL71: 竜司祭：9
BM72: 逆転 | BN72: 奇跡 | BO72: 付与呪文 | BP72: なし | BQ72: 10 | BR72: 334 | BT72: 羊皮紙 | BU72: 0 | BV72: 0 | BW72: 0 | BX72: 0 | BY72: 0 | BZ72: 0 | CA72: 0 | CB72: 1 | DL72: 竜司祭：10
BM73: 審問 | BN73: 奇跡 | BO73: 支配呪文 | BP73: なし | BQ73: 10 | BR73: 335 | BT73: パピルス紙：10 | BU73: 0 | BV73: 0 | BW73: 0 | BX73: 0 | BY73: 0 | BZ73: 0 | CA73: 0 | CB73: 2 | DL73: 精霊使い：1
BM74: 鑑定 | BN74: 奇跡 | BO74: 付与呪文 | BP74: なし | BQ74: 15 | BR74: 335 | BT74: 防毒面(達成値19以下の毒物を無効化) | BU74: -2 | BV74: 0 | BW74: 0 | BX74: 0 | BY74: 0 | BZ74: 0 | CA74: 0 | CB74: 100 | DL74: 精霊使い：2
BM75: 聖断 | BN75: 奇跡 | BO75: 攻撃呪文 | BP75: 光 | BQ75: 20 | BR75: 335 | BT75: 楽器：ヴァイオリン | BU75: -2 | BV75: 0 | BW75: 0 | BX75: 0 | BY75: 0 | BZ75: 0 | CA75: 0 | CB75: 300 | DL75: 精霊使い：3
BM76: 天啓 | BN76: 奇跡 | BO76: 付与呪文 | BP76: なし | BQ76: 10 | BR76: 336 | BT76: 楽器：ドラム | BU76: -2 | BV76: 0 | BW76: 0 | BX76: 0 | BY76: 0 | BZ76: 0 | CA76: 0 | CB76: 60 | DL76: 精霊使い：4
BM77: 真灯 | BN77: 奇跡 | BO77: 汎用呪文 | BP77: 時間 | BQ77: 10 | BR77: 336 | BT77: 楽器：フルート | BU77: -2 | BV77: 0 | BW77: 0 | BX77: 0 | BY77: 0 | BZ77: 0 | CA77: 0 | CB77: 30 | DL77: 精霊使い：5
BM78: 読解 | BN78: 奇跡 | BO78: 付与呪文 | BP78: 精神 | BQ78: 10 | BR78: 337 | BT78: 楽器：ホルン | BU78: -2 | BV78: 0 | BW78: 0 | BX78: 0 | BY78: 0 | BZ78: 0 | CA78: 0 | CB78: 50 | DL78: 精霊使い：6
BM79: 聖餐 | BN79: 奇跡 | BO79: 創造呪文 | BP79: なし | BQ79: 15 | BR79: 337 | BT79: 楽器：リュート | BU79: -2 | BV79: 0 | BW79: 0 | BX79: 0 | BY79: 0 | BZ79: 0 | CA79: 0 | CB79: 350 | DL79: 精霊使い：7
BM80: 不動 | BN80: 奇跡 | BO80: 付与呪文 | BP80: 土、生命 | BQ80: 10 | BR80: 338 | BT80: 楽器：草笛 | BU80: -2 | BV80: 0 | BW80: 0 | BX80: 0 | BY80: 0 | BZ80: 0 | CA80: 0 | CB80: 0 | DL80: 精霊使い：8
BM81: 和睦 | BN81: 奇跡 | BO81: 支配呪文 | BP81: 精神 | BQ81: 15 | BR81: 338 | BT81: 催涙弾 | BU81: 0 | BV81: 0 | BW81: 0 | BX81: 0 | BY81: 0 | BZ81: 0 | CA81: 0 | CB81: 10 | DL81: 精霊使い：9
BM82: 擬態 | BN82: 祖竜術 | BO82: 付与呪文 | BP82: 光 | BQ82: 10 | BR82: 339 | BT82: 煙玉 | BU82: 0 | BV82: 0 | BW82: 0 | BX82: 0 | BY82: 0 | BZ82: 0 | CA82: 0 | CB82: 10 | DL82: 精霊使い：10
BM83: 念話 | BN83: 祖竜術 | BO83: 付与呪文 | BP83: 精神 | BQ83: 10 | BR83: 339 | BT83: 鈎縄：10 | BU83: 0 | BV83: 0 | BW83: 0 | BX83: 0 | BY83: 0 | BZ83: 0 | CA83: 0 | CB83: 7
BM84: 竜牙刀／竜爪 | BN84: 祖竜術 | BO84: 創造呪文 | BP84: 物質 | BQ84: 10 | BR84: 340 | BT84: 臭い消し | BU84: 0 | BV84: 0 | BW84: 0 | BX84: 0 | BY84: 0 | BZ84: 0 | CA84: 0 | CB84: 15
BM85: 敵意（祖霊術） | BN85: 祖竜術 | BO85: 付与呪文 | BP85: 精神 | BQ85: 10 | BR85: 340 | BT85: 普通の衣類 | BU85: 0 | BV85: 0 | BW85: 0 | BX85: 0 | BY85: 0 | BZ85: 0 | CA85: 0 | CB85: 15
BM86: 突撃 | BN86: 祖竜術 | BO86: 攻撃呪文 | BP86: なし | BQ86: 10 | BR86: 341 | BT86: 鎧下 | BU86: -2 | BV86: 1 | BW86: 0 | BX86: 0 | BY86: 0 | BZ86: 0 | CA86: 0 | CB86: 30
BM87: 狩場 | BN87: 祖竜術 | BO87: 付与呪文 | BP87: 空間 | BQ87: 15 | BR87: 341 | BT87: 鋲付きの鎧下 | BU87: -4 | BV87: 2 | BW87: 0 | BX87: 0 | BY87: 0 | BZ87: 0 | CA87: 0 | CB87: 120
BM88: 竜眼 | BN88: 祖竜術 | BO88: 付与呪文 | BP88: 生命 | BQ88: 10 | BR88: 342 | BT88: 防寒具 | BU88: -2 | BV88: 0 | BW88: 2 | BX88: 0 | BY88: 0 | BZ88: 0 | CA88: 0 | CB88: 10
BM89: 竜鱗 | BN89: 祖竜術 | BO89: 付与呪文 | BP89: 生命 | BQ89: 10 | BR89: 342 | BT89: 礼服／ドレス | BU89: 0 | BV89: 0 | BW89: 0 | BX89: 0 | BY89: 0 | BZ89: 0 | CA89: 0 | CB89: 100
BM90: 竜牙兵 | BN90: 祖竜術 | BO90: 創造呪文 | BP90: 生命 | BQ90: 15 | BR90: 343 | BT90: マント | BU90: -2 | BV90: 0 | BW90: 1 | BX90: 0 | BY90: 0 | BZ90: 0 | CA90: 0 | CB90: 10
BM91: 竜血 | BN91: 祖竜術 | BO91: 付与呪文 | BP91: 生命 | BQ91: -- | BR91: 343 | BT91: 10フィートの棒 | BU91: 0 | BV91: 0 | BW91: 0 | BX91: 0 | BY91: 0 | BZ91: 0 | CA91: 0 | CB91: 1
BM92: 竜命 | BN92: 祖竜術 | BO92: 付与呪文 | BP92: 火、闇、生命 | BQ92: 10 | BR92: 344 | BT92: 軍馬 | BU92: 0 | BV92: 0 | BW92: 0 | BX92: 0 | BY92: 0 | BZ92: 0 | CA92: 0 | CB92: 400
BM93: 竜息（火） | BN93: 祖竜術 | BO93: 攻撃呪文 | BP93: 火 | BQ93: 10 | BR93: 345 | BT93: 乗用馬 | BU93: 0 | BV93: 0 | BW93: 0 | BX93: 0 | BY93: 0 | BZ93: 0 | CA93: 0 | CB93: 80
BM94: 竜息（稲妻） | BN94: 祖竜術 | BO94: 攻撃呪文 | BP94: 風 | BQ94: 10 | BR94: 345 | BT94: ロバ | BU94: 0 | BV94: 0 | BW94: 0 | BX94: 0 | BY94: 0 | BZ94: 0 | CA94: 0 | CB94: 10
BM95: 竜息（氷） | BN95: 祖竜術 | BO95: 攻撃呪文 | BP95: 水 | BQ95: 10 | BR95: 345 | BT95: 馬車 | BU95: 0 | BV95: 0 | BW95: 0 | BX95: 0 | BY95: 0 | BZ95: 0 | CA95: 0 | CB95: 100
BM96: 竜息（毒） | BN96: 祖竜術 | BO96: 攻撃呪文 | BP96: 闇 | BQ96: 10 | BR96: 345 | BT96: 携帯食 | BU96: 0 | BV96: 0 | BW96: 0 | BX96: 0 | BY96: 0 | BZ96: 0 | CA96: 0 | CB96: 2
BM97: 竜吠 | BN97: 祖竜術 | BO97: 支配呪文 | BP97: 精神 | BQ97: 15 | BR97: 346 | BT97: 酒類：火酒 | BU97: 0 | BV97: 0 | BW97: 0 | BX97: 0 | BY97: 0 | BZ97: 0 | CA97: 0 | CB97: 1
BM98: 対決 | BN98: 祖竜術 | BO98: 支配呪文 | BP98: 精神 | BQ98: 10 | BR98: 346 | BT98: 酒類：麦酒 | BU98: 0 | BV98: 0 | BW98: 0 | BX98: 0 | BY98: 0 | BZ98: 0 | CA98: 0 | CB98: 2
BM99: 擬竜 | BN99: 祖竜術 | BO99: 付与呪文 | BP99: 生命 | BQ99: 10 | BR99: 347 | BT99: 酒類：葡萄酒 | BU99: 0 | BV99: 0 | BW99: 0 | BX99: 0 | BY99: 0 | BZ99: 0 | CA99: 0 | CB99: 2
BM100: 賦活（祖霊術） | BN100: 祖竜術 | BO100: 治癒呪文 | BP100: 生命 | BQ100: 10 | BR100: 347 | BT100: 酒類：蒸留酒 | BU100: 0 | BV100: 0 | BW100: 0 | BX100: 0 | BY100: 0 | BZ100: 0 | CA100: 0 | CB100: 3
BM101: 小癒（祖霊術） | BN101: 祖竜術 | BO101: 治癒呪文 | BP101: 生命 | BQ101: 5 | BR101: 347 | BT101: 調味料セット | BU101: 0 | BV101: 0 | BW101: 0 | BX101: 0 | BY101: 0 | BZ101: 0 | CA101: 0 | CB101: 5
BM102: 胃石 | BN102: 祖竜術 | BO102: 付与呪文 | BP102: 生命 | BQ102: 10 | BR102: 348 | BT102: 香辛料 | BU102: 0 | BV102: 0 | BW102: 0 | BX102: 0 | BY102: 0 | BZ102: 0 | CA102: 0 | CB102: 3
BM103: 腐食 | BN103: 祖竜術 | BO103: 汎用呪文 | BP103: 風、時間 | BQ103: 5 | BR103: 348 | BT103: チーズ | BU103: 0 | BV103: 0 | BW103: 0 | BX103: 0 | BY103: 0 | BZ103: 0 | CA103: 0 | CB103: 10
BM104: 竜翼 | BN104: 祖竜術 | BO104: 付与呪文 | BP104: 生命 | BQ104: 20 | BR104: 348 | BT104: 干した果物 | BU104: 0 | BV104: 0 | BW104: 0 | BX104: 0 | BY104: 0 | BZ104: 0 | CA104: 0 | CB104: 5
BM105: 命水 | BN105: 精霊術 | BO105: 治癒呪文 | BP105: 水、生命 | BQ105: 10 | BR105: 349 | BT105: 塩漬け肉 | BU105: 0 | BV105: 0 | BW105: 0 | BX105: 0 | BY105: 0 | BZ105: 0 | CA105: 0 | CB105: 3
BM106: 燐光 | BN106: 精霊術 | BO106: 付与呪文 | BP106: 光 | BQ106: 5 | BR106: 350 | BT106: 化膿止めの軟膏：5 | BU106: 0 | BV106: 0 | BW106: 0 | BX106: 0 | BY106: 0 | BZ106: 0 | CA106: 0 | CB106: 10
BM107: 隠蔽 | BN107: 精霊術 | BO107: 付与呪文 | BP107: 水 | BQ107: 15 | BR107: 350 | BT107: 治癒の水薬 | BU107: 0 | BV107: 0 | BW107: 0 | BX107: 0 | BY107: 0 | BZ107: 0 | CA107: 0 | CB107: 10
BM108: 風化 | BN108: 精霊術 | BO108: 支配呪文 | BP108: 風、時間 | BQ108: 5 | BR108: 351 | BT108: 強壮の水薬 | BU108: 0 | BV108: 0 | BW108: 0 | BX108: 0 | BY108: 0 | BZ108: 0 | CA108: 0 | CB108: 10
BM109: 水歩 | BN109: 精霊術 | BO109: 付与呪文 | BP109: 水、風 | BQ109: 10 | BR109: 351 | BT109: 解毒薬 | BU109: 0 | BV109: 0 | BW109: 0 | BX109: 0 | BY109: 0 | BZ109: 0 | CA109: 0 | CB109: 10
BM110: 猫目 | BN110: 精霊術 | BO110: 付与呪文 | BP110: 闇 | BQ110: 10 | BR110: 352 | BT110: 能力上昇の秘薬(器用) | BU110: 0 | BV110: 0 | BW110: 0 | BX110: 0 | BY110: 0 | BZ110: 0 | CA110: 0 | CB110: 50
BM111: 雨乞 | BN111: 精霊術 | BO111: 支配呪文 | BP111: 水、風 | BQ111: 10 | BR111: 353 | BT111: 能力上昇の秘薬(筋力) | BU111: 0 | BV111: 0 | BW111: 0 | BX111: 0 | BY111: 0 | BZ111: 0 | CA111: 0 | CB111: 50
BM112: 使役 | BN112: 精霊術 | BO112: 支配呪文 | BP112: 火、水、土、風 | BQ112: 10 | BR112: 354 | BT112: 能力上昇の秘薬(精神) | BU112: 0 | BV112: 0 | BW112: 0 | BX112: 0 | BY112: 0 | BZ112: 0 | CA112: 0 | CB112: 50
BM113: 雷矢 | BN113: 精霊術 | BO113: 攻撃呪文 | BP113: 風 | BQ113: 10 | BR113: 354 | BT113: 能力上昇の秘薬(走力) | BU113: 0 | BV113: 0 | BW113: 0 | BX113: 0 | BY113: 0 | BZ113: 0 | CA113: 0 | CB113: 50
BM114: 石弾 | BN114: 精霊術 | BO114: 攻撃呪文 | BP114: 土 | BQ114: 10 | BR114: 355 | BT114: 能力上昇の秘薬(体力) | BU114: 0 | BV114: 0 | BW114: 0 | BX114: 0 | BY114: 0 | BZ114: 0 | CA114: 0 | CB114: 50
BM115: 泥罠 | BN115: 精霊術 | BO115: 創造呪文 | BP115: 水、土 | BQ115: 10 | BR115: 355 | BT115: 能力上昇の秘薬(知覚) | BU115: 0 | BV115: 0 | BW115: 0 | BX115: 0 | BY115: 0 | BZ115: 0 | CA115: 0 | CB115: 50
BM116: 霊壁 | BN116: 精霊術 | BO116: 創造呪文 | BP116: 火、水、土、風、物質 | BQ116: 15 | BR116: 356 | BT116: 能力上昇の秘薬(敏捷) | BU116: 0 | BV116: 0 | BW116: 0 | BX116: 0 | BY116: 0 | BZ116: 0 | CA116: 0 | CB116: 50
BM117: 暗黒 | BN117: 精霊術 | BO117: 支配呪文 | BP117: 闇 | BQ117: 10 | BR117: 357 | BT117: 鎮痛剤 | BU117: 0 | BV117: 0 | BW117: 0 | BX117: 0 | BY117: 0 | BZ117: 0 | CA117: 0 | CB117: 25
BM118: 追風 | BN118: 精霊術 | BO118: 支配呪文 | BP118: 風 | BQ118: 5 | BR118: 357 | BT118: 気付け薬 | BU118: 0 | BV118: 0 | BW118: 0 | BX118: 0 | BY118: 0 | BZ118: 0 | CA118: 0 | CB118: 20
BM119: 着火 | BN119: 精霊術 | BO119: 創造呪文 | BP119: 火 | BQ119: 5 | BR119: 358 | BT119: トリカブトの毒 | BU119: 0 | BV119: 0 | BW119: 0 | BX119: 0 | BY119: 0 | BZ119: 0 | CA119: 0 | CB119: 50
BM120: 酩酊 | BN120: 精霊術 | BO120: 支配呪文 | BP120: 水、精神 | BQ120: 10 | BR120: 358 | BT120: 燃える水 | BU120: 0 | BV120: 0 | BW120: 0 | BX120: 0 | BY120: 0 | BZ120: 0 | CA120: 0 | CB120: 50
BM121: 隧道 | BN121: 精霊術 | BO121: 支配呪文 | BP121: 水、精神 | BQ121: 15 | BR121: 359 | BT121: 物探しの蝋燭 | BU121: 0 | BV121: 0 | BW121: 0 | BX121: 0 | BY121: 0 | BZ121: 0 | CA121: 0 | CB121: 250
BM122: 放逐 | BN122: 精霊術 | BO122: 支配呪文 | BP122: 火、水、土、風、光、闇 | BQ122: 10 | BR122: 359 | BT122: 魔法の巻物 | BU122: 0 | BV122: 0 | BW122: 0 | BX122: 0 | BY122: 0 | BZ122: 0 | CA122: 0 | CB122: 1500
BM123: 力球 | BN123: 精霊術 | BO123: 攻撃呪文 | BP123: 火、風、空間 | BQ123: 20 | BR123: 359 | BT123: 精霊の手紙 | BU123: 0 | BV123: 0 | BW123: 0 | BX123: 0 | BY123: 0 | BZ123: 0 | CA123: 0 | CB123: 0
BM124: 熱波 | BN124: 精霊術 | BO124: 付与呪文 | BP124: 火 | BQ124: 10 | BR124: 360 | BT124: 手紙 | BU124: 0 | BV124: 0 | BW124: 0 | BX124: 0 | BY124: 0 | BZ124: 0 | CA124: 0 | CB124: 0
BM125: 火矢（精霊術） | BN125: 精霊術 | BO125: 攻撃呪文 | BP125: 火 | BQ125: 5 | BR125: 360 | BT125: 髪飾り | BU125: 0 | BV125: 0 | BW125: 0 | BX125: 0 | BY125: 0 | BZ125: 0 | CA125: 0 | CB125: 3
BM126: 恐怖 | BN126: 精霊術 | BO126: 支配呪文 | BP126: 風、精神 | BQ126: 10 | BR126: 361 | BT126: 魔法の手鏡 | BU126: 0 | BV126: 0 | BW126: 0 | BX126: 0 | BY126: 0 | BZ126: 0 | CA126: 0 | CB126: 400
BM127: 降下 | BN127: 精霊術 | BO127: 付与呪文 | BP127: 土、空間 | BQ127: 10 | BR127: 362 | BT127: 竜息の松明 | BU127: 0 | BV127: 0 | BW127: 0 | BX127: 0 | BY127: 0 | BZ127: 0 | CA127: 0 | CB127: 120
BM128: 吹雪（精霊術） | BN128: 精霊術 | BO128: 攻撃呪文 | BP128: 水、風 | BQ128: 20 | BR128: 362 | BT128: 竜吠の銀鈴 | BU128: 0 | BV128: 0 | BW128: 0 | BX128: 0 | BY128: 0 | BZ128: 0 | CA128: 0 | CB128: 120
BM129: 呼気 | BN129: 精霊術 | BO129: 付与呪文 | BP129: 水、風 | BQ129: 10 | BR129: 363 | BT129: 龍涎の御香 | BU129: 0 | BV129: 0 | BW129: 0 | BX129: 0 | BY129: 0 | BZ129: 0 | CA129: 0 | CB129: 120
BM130: 捕縛 | BN130: 精霊術 | BO130: 支配呪文 | BP130: 風 | BQ130: 10 | BR130: 363 | BT130: 竜命の丸薬 | BU130: 0 | BV130: 0 | BW130: 0 | BX130: 0 | BY130: 0 | BZ130: 0 | CA130: 0 | CB130: 120
BM131: なし | BN131: - | BO131: - | BP131: - | BQ131: - | BR131: - | BT131: 竜血の塗り薬 | BU131: 0 | BV131: 0 | BW131: 0 | BX131: 0 | BY131: 0 | BZ131: 0 | CA131: 0 | CB131: 120
BT132: 竜眼の触媒 | BU132: 0 | BV132: 0 | BW132: 0 | BX132: 0 | BY132: 0 | BZ132: 0 | CA132: 0 | CB132: 120
BT133: 竜の鱗 | BU133: 0 | BV133: 0 | BW133: 0 | BX133: 0 | BY133: 0 | BZ133: 0 | CA133: 0 | CB133: 120
BT134: 粗悪な剣 | BU134: 0 | BV134: 0 | BW134: 0 | BX134: 0 | BY134: 0 | BZ134: 0 | CA134: 0 | CB134: 5
BT135: 短剣 | BU135: 0 | BV135: 0 | BW135: 0 | BX135: 0 | BY135: 0 | BZ135: 0 | CA135: 0 | CB135: 10
BT136: 拳剣 | BU136: 0 | BV136: 0 | BW136: 0 | BX136: 0 | BY136: 0 | BZ136: 0 | CA136: 0 | CB136: 12
BT137: 黒曜の剣 | BU137: 0 | BV137: 0 | BW137: 0 | BX137: 0 | BY137: 0 | BZ137: 0 | CA137: 0 | CB137: 10
BT138: 舶刀 | BU138: 0 | BV138: 0 | BW138: 0 | BX138: 0 | BY138: 0 | BZ138: 0 | CA138: 0 | CB138: 15
BT139: 小剣 | BU139: 0 | BV139: 0 | BW139: 0 | BX139: 0 | BY139: 0 | BZ139: 0 | CA139: 0 | CB139: 20
BT140: 偃月刀 | BU140: 0 | BV140: 0 | BW140: 0 | BX140: 0 | BY140: 0 | BZ140: 0 | CA140: 0 | CB140: 20
BT141: 突剣 | BU141: 0 | BV141: 0 | BW141: 0 | BX141: 0 | BY141: 0 | BZ141: 0 | CA141: 0 | CB141: 20
BT142: 広刃の剣 | BU142: 0 | BV142: 0 | BW142: 0 | BX142: 0 | BY142: 0 | BZ142: 0 | CA142: 0 | CB142: 30
BT143: 曲刀 | BU143: 0 | BV143: 0 | BW143: 0 | BX143: 0 | BY143: 0 | BZ143: 0 | CA143: 0 | CB143: 25
BT144: 長剣 | BU144: 0 | BV144: 0 | BW144: 0 | BX144: 0 | BY144: 0 | BZ144: 0 | CA144: 0 | CB144: 50
BT145: 鮫刃の剣 | BU145: 0 | BV145: 0 | BW145: 0 | BX145: 0 | BY145: 0 | BZ145: 0 | CA145: 0 | CB145: 30
BT146: 湾刀 | BU146: 0 | BV146: 0 | BW146: 0 | BX146: 0 | BY146: 0 | BZ146: 0 | CA146: 0 | CB146: 45
BT147: 片手半剣 | BU147: 0 | BV147: 0 | BW147: 0 | BX147: 0 | BY147: 0 | BZ147: 0 | CA147: 0 | CB147: 65
BT148: 鎧通し | BU148: 0 | BV148: 0 | BW148: 0 | BX148: 0 | BY148: 0 | BZ148: 0 | CA148: 0 | CB148: 45
BT149: 炎紋剣 | BU149: 0 | BV149: 0 | BW149: 0 | BX149: 0 | BY149: 0 | BZ149: 0 | CA149: 0 | CB149: 100
BT150: 大剣 | BU150: 0 | BV150: 0 | BW150: 0 | BX150: 0 | BY150: 0 | BZ150: 0 | CA150: 0 | CB150: 85
BT151: 袋棍 | BU151: 0 | BV151: 0 | BW151: 0 | BX151: 0 | BY151: 0 | BZ151: 0 | CA151: 0 | CB151: 5
BT152: 棍棒 | BU152: 0 | BV152: 0 | BW152: 0 | BX152: 0 | BY152: 0 | BZ152: 0 | CA152: 0 | CB152: 6
BT153: 戦棍 | BU153: 0 | BV153: 0 | BW153: 0 | BX153: 0 | BY153: 0 | BZ153: 0 | CA153: 0 | CB153: 20
BT154: 片鶴嘴 | BU154: 0 | BV154: 0 | BW154: 0 | BX154: 0 | BY154: 0 | BZ154: 0 | CA154: 0 | CB154: 20
BT155: 槌鉾 | BU155: 0 | BV155: 0 | BW155: 0 | BX155: 0 | BY155: 0 | BZ155: 0 | CA155: 0 | CB155: 30
BT156: 刺鉄球 | BU156: 0 | BV156: 0 | BW156: 0 | BX156: 0 | BY156: 0 | BZ156: 0 | CA156: 0 | CB156: 25
BT157: 戦嘴 | BU157: 0 | BV157: 0 | BW157: 0 | BX157: 0 | BY157: 0 | BZ157: 0 | CA157: 0 | CB157: 20
BT158: 大戦槌 | BU158: 0 | BV158: 0 | BW158: 0 | BX158: 0 | BY158: 0 | BZ158: 0 | CA158: 0 | CB158: 40
BT159: 大金棒 | BU159: 0 | BV159: 0 | BW159: 0 | BX159: 0 | BY159: 0 | BZ159: 0 | CA159: 0 | CB159: 90
BT160: 短弓 | BU160: 0 | BV160: 0 | BW160: 0 | BX160: 0 | BY160: 0 | BZ160: 0 | CA160: 0 | CB160: 40
BT161: 投矢銃 | BU161: 0 | BV161: 0 | BW161: 0 | BX161: 0 | BY161: 0 | BZ161: 0 | CA161: 0 | CB161: 50
BT162: 弩 | BU162: 0 | BV162: 0 | BW162: 0 | BX162: 0 | BY162: 0 | BZ162: 0 | CA162: 0 | CB162: 40
BT163: 長弓 | BU163: 0 | BV163: 0 | BW163: 0 | BX163: 0 | BY163: 0 | BZ163: 0 | CA163: 0 | CB163: 115
BT164: 大弓 | BU164: 0 | BV164: 0 | BW164: 0 | BX164: 0 | BY164: 0 | BZ164: 0 | CA164: 0 | CB164: 125
BT165: 弩砲 | BU165: 0 | BV165: 0 | BW165: 0 | BX165: 0 | BY165: 0 | BZ165: 0 | CA165: 0 | CB165: 110
BT166: 抱大筒 | BU166: 0 | BV166: 0 | BW166: 0 | BX166: 0 | BY166: 0 | BZ166: 0 | CA166: 0 | CB166: 630
BT167: 投石 | BU167: 0 | BV167: 0 | BW167: 0 | BX167: 0 | BY167: 0 | BZ167: 0 | CA167: 0 | CB167: 0
BT168: 投矢 | BU168: 0 | BV168: 0 | BW168: 0 | BX168: 0 | BY168: 0 | BZ168: 0 | CA168: 0 | CB168: 3
BT169: 投分銅 | BU169: 0 | BV169: 0 | BW169: 0 | BX169: 0 | BY169: 0 | BZ169: 0 | CA169: 0 | CB169: 15
BT170: 飛棍 | BU170: 0 | BV170: 0 | BW170: 0 | BX170: 0 | BY170: 0 | BZ170: 0 | CA170: 0 | CB170: 15
BT171: 投石紐 | BU171: 0 | BV171: 0 | BW171: 0 | BX171: 0 | BY171: 0 | BZ171: 0 | CA171: 0 | CB171: 1
BT172: 飛刀 | BU172: 0 | BV172: 0 | BW172: 0 | BX172: 0 | BY172: 0 | BZ172: 0 | CA172: 0 | CB172: 20
BT173: 戦輪 | BU173: 0 | BV173: 0 | BW173: 0 | BX173: 0 | BY173: 0 | BZ173: 0 | CA173: 0 | CB173: 25
BT174: 南洋式投げナイフ | BU174: 0 | BV174: 0 | BW174: 0 | BX174: 0 | BY174: 0 | BZ174: 0 | CA174: 0 | CB174: 40
BT175: 投石杖 | BU175: 0 | BV175: 0 | BW175: 0 | BX175: 0 | BY175: 0 | BZ175: 0 | CA175: 0 | CB175: 30
BT176: 血滴子 | BU176: 0 | BV176: 0 | BW176: 0 | BX176: 0 | BY176: 0 | BZ176: 0 | CA176: 0 | CB176: 70
BT177: 粗悪な斧 | BU177: 0 | BV177: 0 | BW177: 0 | BX177: 0 | BY177: 0 | BZ177: 0 | CA177: 0 | CB177: 5
BT178: 鉈 | BU178: 0 | BV178: 0 | BW178: 0 | BX178: 0 | BY178: 0 | BZ178: 0 | CA178: 0 | CB178: 15
BT179: 手斧 | BU179: 0 | BV179: 0 | BW179: 0 | BX179: 0 | BY179: 0 | BZ179: 0 | CA179: 0 | CB179: 15
BT180: 投斧 | BU180: 0 | BV180: 0 | BW180: 0 | BX180: 0 | BY180: 0 | BZ180: 0 | CA180: 0 | CB180: 30
BT181: 戦斧 | BU181: 0 | BV181: 0 | BW181: 0 | BX181: 0 | BY181: 0 | BZ181: 0 | CA181: 0 | CB181: 35
BT182: 大斧 | BU182: 0 | BV182: 0 | BW182: 0 | BX182: 0 | BY182: 0 | BZ182: 0 | CA182: 0 | CB182: 40
BT183: 斧槍 | BU183: 0 | BV183: 0 | BW183: 0 | BX183: 0 | BY183: 0 | BZ183: 0 | CA183: 0 | CB183: 40
BT184: 粗悪な槍 | BU184: 0 | BV184: 0 | BW184: 0 | BX184: 0 | BY184: 0 | BZ184: 0 | CA184: 0 | CB184: 5
BT185: 投槍 | BU185: 0 | BV185: 0 | BW185: 0 | BX185: 0 | BY185: 0 | BZ185: 0 | CA185: 0 | CB185: 20
BT186: 短槍 | BU186: 0 | BV186: 0 | BW186: 0 | BX186: 0 | BY186: 0 | BZ186: 0 | CA186: 0 | CB186: 15
BT187: 小槍 | BU187: 0 | BV187: 0 | BW187: 0 | BX187: 0 | BY187: 0 | BZ187: 0 | CA187: 0 | CB187: 30
BT188: 鉄小槍 | BU188: 0 | BV188: 0 | BW188: 0 | BX188: 0 | BY188: 0 | BZ188: 0 | CA188: 0 | CB188: 55
BT189: 農叉 | BU189: 0 | BV189: 0 | BW189: 0 | BX189: 0 | BY189: 0 | BZ189: 0 | CA189: 0 | CB189: 15
BT190: 三叉槍 | BU190: 0 | BV190: 0 | BW190: 0 | BX190: 0 | BY190: 0 | BZ190: 0 | CA190: 0 | CB190: 35
BT191: 長槍 | BU191: 0 | BV191: 0 | BW191: 0 | BX191: 0 | BY191: 0 | BZ191: 0 | CA191: 0 | CB191: 55
BT192: 薙刀 | BU192: 0 | BV192: 0 | BW192: 0 | BX192: 0 | BY192: 0 | BZ192: 0 | CA192: 0 | CB192: 70
BT193: 戦槍 | BU193: 0 | BV193: 0 | BW193: 0 | BX193: 0 | BY193: 0 | BZ193: 0 | CA193: 0 | CB193: 40
BT194: 紅玉の杖 | BU194: 0 | BV194: 0 | BW194: 0 | BX194: 0 | BY194: 0 | BZ194: 0 | CA194: 0 | CB194: 50
BT195: 錫杖 | BU195: 0 | BV195: 0 | BW195: 0 | BX195: 0 | BY195: 0 | BZ195: 0 | CA195: 0 | CB195: 50
BT196: 司教杖 | BU196: 0 | BV196: 0 | BW196: 0 | BX196: 0 | BY196: 0 | BZ196: 0 | CA196: 0 | CB196: 180
BT197: 六尺棒 | BU197: 0 | BV197: 0 | BW197: 0 | BX197: 0 | BY197: 0 | BZ197: 0 | CA197: 0 | CB197: 18
BT198: 双節棍 | BU198: 0 | BV198: 0 | BW198: 0 | BX198: 0 | BY198: 0 | BZ198: 0 | CA198: 0 | CB198: 20
BT199: 打狗棒 | BU199: 0 | BV199: 0 | BW199: 0 | BX199: 0 | BY199: 0 | BZ199: 0 | CA199: 0 | CB199: 60
BT200: 連節棍 | BU200: 0 | BV200: 0 | BW200: 0 | BX200: 0 | BY200: 0 | BZ200: 0 | CA200: 0 | CB200: 20
... 104 more rows

Sheet 武器表
B1: 名前 | C1: 用途 | D1: 重量 | E1: 持手 | F1: 属性 | G1: 威力 | H1: 命中修正 | I1: 射程 | J1: 効果 | K1: 価格 | L1: 受け流し | M1: 強打・斬 | N1: 強打・殴 | O1: 刺突 | P1: 威力ダイス | Q1: 威力修正 | R1: 真言呪文行使判定修正 | S1: 奇跡行使判定修正 | T1: 回避修正 | U1: 移動修正 | V1: 第六感判定 | W1: 体術判定 | X1: 祖霊術行使判定修正 | Y1: 精霊術行使判定修正
B2: なし | C2: ="-" -> - | D2: - | E2: - | F2: - | G2: - | H2: 0 | I2: - | J2: - | K2: 0 | L2: -1 | M2: -1 | N2: -1 | O2: -1 | P2: =LEFT(G2,3) -> - | Q2: =IF(P2=G2,0,VALUE( SUBSTITUTE(G2,P2,"") )) -> 0 | R2: -1 | S2: -1 | T2: 0 | U2: 0 | V2: 0 | W2: 0 | X2: -1 | Y2: -1
B3: 粗悪な剣 | C3: 武器：片手剣 | D3: 軽 | E3: 片手 | F3: 刺 | G3: 1d3+1 | H3: -2 | I3: 近接 | J3: 投擲適用 | K3: 5 | L3: -1 | M3: -1 | N3: -1 | O3: -1 | P3: =LEFT(G3,3) -> 1d3 | Q3: =IF(P3=G3,0,VALUE( SUBSTITUTE(G3,P3,"") )) -> 1 | R3: -1 | S3: -1 | T3: 0 | U3: 0 | V3: 0 | W3: 0 | X3: -1 | Y3: -1
B4: 短剣 | C4: 武器：片手剣 | D4: 軽 | E4: 片手 | F4: 斬刺 | G4: 1d3+1 | H4: 0 | I4: 近接 | J4: 投擲適用 | K4: 10 | L4: -1 | M4: -1 | N4: -1 | O4: -1 | P4: =LEFT(G4,3) -> 1d3 | Q4: =IF(P4=G4,0,VALUE( SUBSTITUTE(G4,P4,"") )) -> 1 | R4: -1 | S4: -1 | T4: 0 | U4: 0 | V4: 0 | W4: 0 | X4: -1 | Y4: -1
B5: 拳剣 | C5: 武器：片手剣 | D5: 軽 | E5: 片手 | F5: 斬 | G5: 1d3+2 | H5: -2 | I5: 近接 | J5: 投擲不可 | K5: 12 | L5: -1 | M5: -1 | N5: -1 | O5: -1 | P5: 1d3 | Q5: 2 | R5: -1 | S5: -1 | T5: 0 | U5: 0 | V5: 0 | W5: 0 | X5: -1 | Y5: -1
B6: 黒曜の剣 | C6: 武器：片手剣 | D6: 軽 | E6: 片手 | F6: 斬殴 | G6: 1d6 | H6: -2 | I6: 近接 | J6: 投擲適用、強打・斬(+0)、強打・殴(+0) | K6: 10 | L6: -1 | M6: 0 | N6: 0 | O6: -1 | P6: 1d6 | Q6: 0 | R6: -1 | S6: -1 | T6: 0 | U6: 0 | V6: 0 | W6: 0 | X6: -1 | Y6: -1
B7: 舶刀 | C7: 武器：片手剣 | D7: 軽 | E7: 片手 | F7: 斬刺 | G7: 1d6 | H7: -2 | I7: 近接 | J7: 投擲適用、受け流し(+0)、強打・斬(+1) | K7: 15 | L7: 0 | M7: 1 | N7: -1 | O7: -1 | P7: 1d6 | Q7: 0 | R7: -1 | S7: -1 | T7: 0 | U7: 0 | V7: 0 | W7: 0 | X7: -1 | Y7: -1
B8: 小剣 | C8: 武器：片手剣 | D8: 軽 | E8: 片手 | F8: 斬刺殴 | G8: 1d6 | H8: -2 | I8: 近接 | J8: 投擲適用、受け流し(+0)、強打・斬(+0)、刺突(+1) | K8: 20 | L8: 0 | M8: 0 | N8: -1 | O8: 1 | P8: 1d6 | Q8: 0 | R8: -1 | S8: -1 | T8: 0 | U8: 0 | V8: 0 | W8: 0 | X8: -1 | Y8: -1
B9: 偃月刀 | C9: 武器：片手剣 | D9: 軽 | E9: 片手 | F9: 斬 | G9: 1d6+1 | H9: -2 | I9: 近接 | J9: 投擲適用、受け流し(+1)、斬落 | K9: 20 | L9: 1 | M9: -1 | N9: -1 | O9: -1 | P9: 1d6 | Q9: 1 | R9: -1 | S9: -1 | T9: 0 | U9: 0 | V9: 0 | W9: 0 | X9: -1 | Y9: -1
B10: 突剣 | C10: 武器：片手剣 | D10: 軽 | E10: 片手 | F10: 刺 | G10: 1d6+1 | H10: -2 | I10: 近接 | J10: 刺突(+2) | K10: 20 | L10: -1 | M10: -1 | N10: -1 | O10: 2 | P10: 1d6 | Q10: 1 | R10: -1 | S10: -1 | T10: 0 | U10: 0 | V10: 0 | W10: 0 | X10: -1 | Y10: -1
B11: 広刃の剣 | C11: 武器：片手剣 | D11: 軽 | E11: 片手 | F11: 斬殴 | G11: 1d6+3 | H11: -2 | I11: 近接 | J11: 投擲適用、受け流し(+0)、強打・斬(+1)、強打・殴(+0) | K11: 30 | L11: 0 | M11: 1 | N11: 0 | O11: -1 | P11: 1d6 | Q11: 3 | R11: -1 | S11: -1 | T11: 0 | U11: 0 | V11: 0 | W11: 0 | X11: -1 | Y11: -1
B12: 曲刀 | C12: 武器：片手剣 | D12: 軽 | E12: 片手 | F12: 斬 | G12: 1d6+3 | H12: -2 | I12: 近接 | J12: 投擲適用、受け流し(+1)、斬落 | K12: 25 | L12: 1 | M12: -1 | N12: -1 | O12: -1 | P12: 1d6 | Q12: 3 | R12: -1 | S12: -1 | T12: 0 | U12: 0 | V12: 0 | W12: 0 | X12: -1 | Y12: -1
B13: 長剣（片手） | C13: 武器：片手剣 | D13: 軽 | E13: 片手 | F13: 斬刺殴 | G13: 1d6+2 | H13: -4 | I13: 近接 | J13: 投擲適用、受け流し(+0)、強打・斬(+1) | K13: 50 | L13: 0 | M13: 1 | N13: -1 | O13: -1 | P13: 1d6 | Q13: 2 | R13: -1 | S13: -1 | T13: 0 | U13: 0 | V13: 0 | W13: 0 | X13: -1 | Y13: -1
B14: 長剣（両手） | C14: 武器：片手剣 | D14: 重 | E14: 両手 | F14: 斬刺殴 | G14: 2d6+2 | H14: -2 | I14: 近接 | J14: 投擲適用、受け流し(+1)、強打・斬(+2)、強打・殴(+0)、刺突(+1) | K14: 0 | L14: 1 | M14: 2 | N14: 0 | O14: 1 | P14: 2d6 | Q14: 2 | R14: -1 | S14: -1 | T14: 0 | U14: 0 | V14: 0 | W14: 0 | X14: -1 | Y14: -1
B15: 鮫刃の剣 | C15: 武器：両手剣 | D15: 重 | E15: 両手 | F15: 斬 | G15: 1d6+2 | H15: 0 | I15: 近接 | J15: 強打・斬(+1) | K15: 30 | L15: -1 | M15: 1 | N15: -1 | O15: -1 | P15: 1d6 | Q15: 2 | R15: -1 | S15: -1 | T15: 0 | U15: 0 | V15: 0 | W15: 0 | X15: -1 | Y15: -1
B16: 湾刀 | C16: 武器：両手剣 | D16: 重 | E16: 両手 | F16: 斬 | G16: 2d6 | H16: 0 | I16: 近接 | J16: 受け流し(+1)、斬落 | K16: 45 | L16: 1 | M16: -1 | N16: -1 | O16: -1 | P16: =LEFT(G16,3) -> 2d6 | Q16: =IF(P16=G16,0,VALUE( SUBSTITUTE(G16,P16,"") )) -> 0 | R16: -1 | S16: -1 | T16: 0 | U16: 0 | V16: 0 | W16: 0 | X16: -1 | Y16: -1
B17: 片手半剣（片手） | C17: 武器：両手剣 | D17: 重 | E17: 両手 | F17: 斬刺殴 | G17: 1d6+4 | H17: -6 | I17: 近接 | J17: 強打・斬(+0) | K17: 65 | L17: -1 | M17: 0 | N17: -1 | O17: -1 | P17: 1d6 | Q17: 4 | R17: -1 | S17: -1 | T17: 0 | U17: 0 | V17: 0 | W17: 0 | X17: -1 | Y17: -1
B18: 片手半剣（両手） | C18: 武器：両手剣 | D18: 重 | E18: 両手 | F18: 斬刺殴 | G18: 2d6+3 | H18: -2 | I18: 近接 | J18: 受け流し(+0)、強打・斬(+1)、強打・殴(0)、刺突(+1) | K18: 0 | L18: 0 | M18: 1 | N18: 0 | O18: 1 | P18: =LEFT(G18,3) -> 2d6 | Q18: =IF(P18=G18,0,VALUE( SUBSTITUTE(G18,P18,"") )) -> 3 | R18: -1 | S18: -1 | T18: 0 | U18: 0 | V18: 0 | W18: 0 | X18: -1 | Y18: -1
B19: 鎧通し | C19: 武器：両手剣 | D19: 重 | E19: 両手 | F19: 刺 | G19: 2d6+2 | H19: -2 | I19: 近接 | J19: 長大、刺突(+2) | K19: 45 | L19: -1 | M19: -1 | N19: -1 | O19: 2 | P19: =LEFT(G19,3) -> 2d6 | Q19: =IF(P19=G19,0,VALUE( SUBSTITUTE(G19,P19,"") )) -> 2 | R19: -1 | S19: -1 | T19: 0 | U19: 0 | V19: 0 | W19: 0 | X19: -1 | Y19: -1
B20: 炎紋剣 | C20: 武器：両手剣 | D20: 重 | E20: 両手 | F20: 斬刺 | G20: 2d6+4 | H20: -2 | I20: 近接 | J20: 長大、受け流し(+1)、強打・斬(+2)、刺突(+1)、斬落 | K20: 100 | L20: 1 | M20: 2 | N20: -1 | O20: 1 | P20: 2d6 | Q20: 4 | R20: -1 | S20: -1 | T20: 0 | U20: 0 | V20: 0 | W20: 0 | X20: -1 | Y20: -1
B21: 大剣 | C21: 武器：両手剣 | D21: 重 | E21: 両手 | F21: 斬刺殴 | G21: 2d6+4 | H21: -2 | I21: 近接 | J21: 長大、受け流し(+0)、強打・斬(+3)、強打・殴(+1)、刺突(+1) | K21: 85 | L21: 1 | M21: 3 | N21: 1 | O21: 1 | P21: 2d6 | Q21: 4 | R21: -1 | S21: -1 | T21: 0 | U21: 0 | V21: 0 | W21: 0 | X21: -1 | Y21: -1
B22: 袋棍 | C22: 武器：戦槌 | D22: 軽 | E22: 片手 | F22: 殴 | G22: 1d3 | H22: 0 | I22: 近接 | J22: 投擲不可、受け流し不可、強打・殴(+0) | K22: 5 | L22: -1 | M22: -1 | N22: 0 | O22: -1 | P22: 1d3 | Q22: 0 | R22: -1 | S22: -1 | T22: 0 | U22: 0 | V22: 0 | W22: 0 | X22: -1 | Y22: -1
B23: 棍棒 | C23: 武器：戦槌 | D23: 軽 | E23: 片手 | F23: 殴 | G23: 1d3+1 | H23: -2 | I23: 近接 | J23: 強打(+0) | K23: 6 | L23: -1 | M23: -1 | N23: 0 | O23: -1 | P23: 1d3 | Q23: 1 | R23: -1 | S23: -1 | T23: 0 | U23: 0 | V23: 0 | W23: 0 | X23: -1 | Y23: -1
B24: 戦棍 | C24: 武器：戦槌 | D24: 軽 | E24: 片手 | F24: 殴 | G24: 1d6 | H24: 1 | I24: 近接 | J24: 投擲適用、強打(+0) | K24: 20 | L24: -1 | M24: -1 | N24: 0 | O24: -1 | P24: 1d6 | Q24: 0 | R24: -1 | S24: -1 | T24: 0 | U24: 0 | V24: 0 | W24: 0 | X24: -1 | Y24: -1
B25: 片鶴嘴 | C25: 武器：戦槌 | D25: 軽 | E25: 片手 | F25: 刺 | G25: 1d6 | H25: 1 | I25: 近接 | J25: 投擲適用、刺突(+1) | K25: 20 | L25: -1 | M25: -1 | N25: -1 | O25: 1 | P25: 1d6 | Q25: 0 | R25: -1 | S25: -1 | T25: 0 | U25: 0 | V25: 0 | W25: 0 | X25: -1 | Y25: -1
B26: 槌鉾 | C26: 武器：戦槌 | D26: 重 | E26: 片手 | F26: 殴 | G26: 1d6+2 | H26: 1 | I26: 近接 | J26: 投擲適用、強打(+1) | K26: 30 | L26: -1 | M26: -1 | N26: 1 | O26: -1 | P26: 1d6 | Q26: 2 | R26: -1 | S26: -1 | T26: 0 | U26: 0 | V26: 0 | W26: 0 | X26: -1 | Y26: -1
B27: 刺鉄球 | C27: 武器：戦槌 | D27: 重 | E27: 片手 | F27: 殴 | G27: 2d6-1 | H27: -4 | I27: 近接 | J27: 受け流し不可、強打・殴(+1) | K27: 25 | L27: -1 | M27: -1 | N27: 1 | O27: -1 | P27: 2d6 | Q27: =IF(P27=G27,0,VALUE( SUBSTITUTE(G27,P27,"") )) -> -1 | R27: -1 | S27: -1 | T27: 0 | U27: 0 | V27: 0 | W27: 0 | X27: -1 | Y27: -1
B28: 戦嘴 | C28: 武器：戦槌 | D28: 重 | E28: 両手 | F28: 刺 | G28: 1d6+4 | H28: 1 | I28: 近接 | J28: 刺突(+2) | K28: 20 | L28: -1 | M28: -1 | N28: -1 | O28: 2 | P28: 1d6 | Q28: 4 | R28: -1 | S28: -1 | T28: 0 | U28: 0 | V28: 0 | W28: 0 | X28: -1 | Y28: -1
B29: 大戦槌 | C29: 武器：戦槌 | D29: 重 | E29: 両手 | F29: 殴 | G29: 2d6 | H29: 1 | I29: 近接 | J29: 長大、強打・殴(+2) | K29: 40 | L29: -1 | M29: -1 | N29: 2 | O29: -1 | P29: 2d6 | Q29: 0 | R29: -1 | S29: -1 | T29: 0 | U29: 0 | V29: 0 | W29: 0 | X29: -1 | Y29: -1
B30: 大金棒 | C30: 武器：戦槌 | D30: 重 | E30: 両手 | F30: 殴 | G30: 3d6 | H30: 1 | I30: 近接 | J30: 長大、投擲不可、強打・殴(+4) | K30: 90 | L30: -1 | M30: -1 | N30: 4 | O30: -1 | P30: 3d6 | Q30: 0 | R30: -1 | S30: -1 | T30: 0 | U30: 0 | V30: 0 | W30: 0 | X30: -1 | Y30: -1
B31: 短弓 | C31: 武器：弩弓 | D31: 軽 | E31: 両手 | F31: 刺 | G31: 1d6 | H31: 0 | I31: 60m | J31: 刺突(+1)、速射(-4) | K31: 40 | L31: -1 | M31: -1 | N31: -1 | O31: 1 | P31: 1d6 | Q31: 0 | R31: -1 | S31: -1 | T31: 0 | U31: 0 | V31: 0 | W31: 0 | X31: -1 | Y31: -1
B32: 投矢銃 | C32: 武器：弩弓 | D32: 軽 | E32: 片手 | F32: 刺 | G32: 1d6 | H32: 4 | I32: 60m | J32: 刺突(+1) | K32: 50 | L32: -1 | M32: -1 | N32: -1 | O32: 1 | P32: 1d6 | Q32: 0 | R32: -1 | S32: -1 | T32: 0 | U32: 0 | V32: 0 | W32: 0 | X32: -1 | Y32: -1
B33: 弩 | C33: 武器：弩弓 | D33: 重 | E33: 両手 | F33: 刺 | G33: 1d6+3 | H33: 2 | I33: 60m | J33: 刺突(+1) | K33: 40 | L33: -1 | M33: -1 | N33: -1 | O33: 1 | P33: 1d6 | Q33: 3 | R33: -1 | S33: -1 | T33: 0 | U33: 0 | V33: 0 | W33: 0 | X33: -1 | Y33: -1
B34: 長弓 | C34: 武器：弩弓 | D34: 重 | E34: 両手 | F34: 刺 | G34: 2d6 | H34: 0 | I34: 120m | J34: 長大、刺突(+1)、速射(-4) | K34: 115 | L34: -1 | M34: -1 | N34: -1 | O34: 1 | P34: 2d6 | Q34: 0 | R34: -1 | S34: -1 | T34: 0 | U34: 0 | V34: 0 | W34: 0 | X34: -1 | Y34: -1
B35: 大弓 | C35: 武器：弩弓 | D35: 重 | E35: 両手 | F35: 刺 | G35: 2d6+2 | H35: -2 | I35: 120m | J35: 長大、刺突(+2)、速射(-8) | K35: 125 | L35: -1 | M35: -1 | N35: -1 | O35: 2 | P35: 2d6 | Q35: 2 | R35: -1 | S35: -1 | T35: 0 | U35: 0 | V35: 0 | W35: 0 | X35: -1 | Y35: -1
B36: 弩砲 | C36: 武器：弩弓 | D36: 重 | E36: 両手 | F36: 刺 | G36: 2d6+4 | H36: 2 | I36: 120m | J36: 投擲不可、刺突(+2) | K36: 110 | L36: -1 | M36: -1 | N36: -1 | O36: 2 | P36: 2d6 | Q36: 4 | R36: -1 | S36: -1 | T36: 0 | U36: 0 | V36: 0 | W36: 0 | X36: -1 | Y36: -1
B37: 抱大筒 | C37: 武器：弩弓 | D37: 重 | E37: 両手 | F37: 殴 | G37: 3d6 | H37: 4 | I37: 60m | J37: 長大、投擲不可 | K37: 630 | L37: -1 | M37: -1 | N37: -1 | O37: -1 | P37: 3d6 | Q37: 0 | R37: -1 | S37: -1 | T37: 0 | U37: 0 | V37: 0 | W37: 0 | X37: -1 | Y37: -1
B38: 投石 | C38: 武器：投擲武器 | D38: 軽 | E38: 片手 | F38: 殴 | G38: 1d3 | H38: 0 | I38: 10m | J38: 投擲専用 | K38: 0 | L38: -1 | M38: -1 | N38: -1 | O38: -1 | P38: 1d3 | Q38: 0 | R38: -1 | S38: -1 | T38: 0 | U38: 0 | V38: 0 | W38: 0 | X38: -1 | Y38: -1
B39: 投矢 | C39: 武器：投擲武器 | D39: 軽 | E39: 片手 | F39: 刺 | G39: 1d3 | H39: 0 | I39: 10m | J39: 投擲専用 | K39: 3 | L39: -1 | M39: -1 | N39: -1 | O39: -1 | P39: 1d3 | Q39: 0 | R39: -1 | S39: -1 | T39: 0 | U39: 0 | V39: 0 | W39: 0 | X39: -1 | Y39: -1
B40: 投分銅 | C40: 武器：投擲武器 | D40: 軽 | E40: 片手 | F40: 殴 | G40: 1d3+1 | H40: 0 | I40: 20m | J40: 投擲専用、拘束 | K40: 15 | L40: -1 | M40: -1 | N40: -1 | O40: -1 | P40: 1d3 | Q40: 1 | R40: -1 | S40: -1 | T40: 0 | U40: 0 | V40: 0 | W40: 0 | X40: -1 | Y40: -1
B41: 飛棍 | C41: 武器：投擲武器 | D41: 軽 | E41: 片手 | F41: 殴 | G41: 1d3+1 | H41: 0 | I41: 30m | J41: 投擲専用、強打・殴(+0) | K41: 15 | L41: -1 | M41: -1 | N41: 0 | O41: -1 | P41: 1d3 | Q41: 1 | R41: -1 | S41: -1 | T41: 0 | U41: 0 | V41: 0 | W41: 0 | X41: -1 | Y41: -1
B42: 投石紐 | C42: 武器：投擲武器 | D42: 軽 | E42: 片手 | F42: 殴 | G42: 1d3+1 | H42: 2 | I42: 30m | J42: 投擲専用、速射(-4) | K42: 1 | L42: -1 | M42: -1 | N42: -1 | O42: -1 | P42: 1d3 | Q42: 1 | R42: -1 | S42: -1 | T42: 0 | U42: 0 | V42: 0 | W42: 0 | X42: -1 | Y42: -1
B43: 飛刀 | C43: 武器：投擲武器 | D43: 軽 | E43: 片手 | F43: 斬刺 | G43: 1d3+2 | H43: 0 | I43: 20m | J43: 投擲専用、刺突(+1) | K43: 20 | L43: -1 | M43: -1 | N43: -1 | O43: 1 | P43: 1d3 | Q43: 2 | R43: -1 | S43: -1 | T43: 0 | U43: 0 | V43: 0 | W43: 0 | X43: -1 | Y43: -1
B44: 戦輪 | C44: 武器：投擲武器 | D44: 軽 | E44: 片手 | F44: 斬 | G44: 1d3+2 | H44: 2 | I44: 20m | J44: 投擲専用、斬落 | K44: 25 | L44: -1 | M44: -1 | N44: -1 | O44: -1 | P44: 1d3 | Q44: 2 | R44: -1 | S44: -1 | T44: 0 | U44: 0 | V44: 0 | W44: 0 | X44: -1 | Y44: -1
B45: 南洋式投げナイフ | C45: 武器：投擲武器 | D45: 軽 | E45: 片手 | F45: 斬刺 | G45: 1d6 | H45: 4 | I45: 20m | J45: 投擲専用、強打・斬(+1)、刺突(+1)、斬落 | K45: 40 | L45: -1 | M45: 1 | N45: -1 | O45: 1 | P45: 1d6 | Q45: 0 | R45: -1 | S45: -1 | T45: 0 | U45: 0 | V45: 0 | W45: 0 | X45: -1 | Y45: -1
B46: 投石杖 | C46: 武器：投擲武器 | D46: 軽 | E46: 片手 | F46: 殴 | G46: 1d6+1 | H46: 2 | I46: 60m | J46: 投擲専用、強打・殴(+2)、速射(-4) | K46: 30 | L46: -1 | M46: -1 | N46: 2 | O46: -1 | P46: 1d6 | Q46: 1 | R46: -1 | S46: -1 | T46: 0 | U46: 0 | V46: 0 | W46: 0 | X46: -1 | Y46: -1
B47: 血滴子 | C47: 武器：投擲武器 | D47: 重 | E47: 両手 | F47: 斬 | G47: 1d6+4 | H47: -2 | I47: 20m | J47: 投擲専用、受け流し不可、強打・斬(+2)、斬落、拘束 | K47: 70 | L47: -1 | M47: 2 | N47: -1 | O47: -1 | P47: 1d6 | Q47: 4 | R47: -1 | S47: -1 | T47: 0 | U47: 0 | V47: 0 | W47: 0 | X47: -1 | Y47: -1
B48: 粗悪な斧 | C48: 武器：斧 | D48: 軽 | E48: 片手 | F48: 斬 | G48: 1d3+1 | H48: -2 | I48: 近接 | J48: 投擲適用 | K48: 5 | L48: -1 | M48: -1 | N48: -1 | O48: -1 | P48: 1d3 | Q48: 1 | R48: -1 | S48: -1 | T48: 0 | U48: 0 | V48: 0 | W48: 0 | X48: -1 | Y48: -1
B49: 鉈 | C49: 武器：斧 | D49: 軽 | E49: 片手 | F49: 斬 | G49: 1d3 | H49: 0 | I49: 近接 | J49: 投擲特化(威力：1d6+2、命中修正：+2、射程：20m) | K49: 15 | L49: -1 | M49: -1 | N49: -1 | O49: -1 | P49: =LEFT(G49,3) -> 1d3 | Q49: =IF(P49=G49,0,VALUE( SUBSTITUTE(G49,P49,"") )) -> 0 | R49: -1 | S49: -1 | T49: 0 | U49: 0 | V49: 0 | W49: 0 | X49: -1 | Y49: -1
B50: 手斧 | C50: 武器：斧 | D50: 軽 | E50: 片手 | F50: 斬 | G50: 1d3+2 | H50: 0 | I50: 近接 | J50: 投擲適用 | K50: 15 | L50: -1 | M50: -1 | N50: -1 | O50: -1 | P50: =LEFT(G50,3) -> 1d3 | Q50: =IF(P50=G50,0,VALUE( SUBSTITUTE(G50,P50,"") )) -> 2 | R50: -1 | S50: -1 | T50: 0 | U50: 0 | V50: 0 | W50: 0 | X50: -1 | Y50: -1
B51: 投斧 | C51: 武器：斧 | D51: 軽 | E51: 片手 | F51: 斬 | G51: 1d3+2 | H51: 0 | I51: 近接 | J51: 投擲特化(威力：1d6+2、命中修正：+2、射程：20m)、強打・斬(+0) | K51: 30 | L51: -1 | M51: 0 | N51: -1 | O51: -1 | P51: =LEFT(G51,3) -> 1d3 | Q51: =IF(P51=G51,0,VALUE( SUBSTITUTE(G51,P51,"") )) -> 2 | R51: -1 | S51: -1 | T51: 0 | U51: 0 | V51: 0 | W51: 0 | X51: -1 | Y51: -1
B52: 戦斧（片手） | C52: 武器：斧 | D52: 重 | E52: 片手 | F52: 斬殴 | G52: 1d6+1 | H52: -4 | I52: 近接 | J52: 投擲適用、強打・斬(+1)、強打・殴(0) | K52: 35 | L52: -1 | M52: 1 | N52: 0 | O52: -1 | P52: =LEFT(G52,3) -> 1d6 | Q52: =IF(P52=G52,0,VALUE( SUBSTITUTE(G52,P52,"") )) -> 1 | R52: -1 | S52: -1 | T52: 0 | U52: 0 | V52: 0 | W52: 0 | X52: -1 | Y52: -1
B53: 戦斧（両手） | C53: 武器：斧 | D53: 重 | E53: 両手 | F53: 斬殴 | G53: 1d6+4 | H53: 0 | I53: 近接 | J53: 投擲適用、強打・斬(+2)、強打・殴(+1) | K53: 0 | L53: -1 | M53: 2 | N53: 1 | O53: -1 | P53: =LEFT(G53,3) -> 1d6 | Q53: =IF(P53=G53,0,VALUE( SUBSTITUTE(G53,P53,"") )) -> 4 | R53: -1 | S53: -1 | T53: 0 | U53: 0 | V53: 0 | W53: 0 | X53: -1 | Y53: -1
B54: 大斧 | C54: 武器：斧 | D54: 重 | E54: 両手 | F54: 斬殴 | G54: 1d6+6 | H54: -2 | I54: 近接 | J54: 長大、強打・斬(+2)、強打・殴(+2) | K54: 40 | L54: -1 | M54: 2 | N54: 2 | O54: -1 | P54: =LEFT(G54,3) -> 1d6 | Q54: =IF(P54=G54,0,VALUE( SUBSTITUTE(G54,P54,"") )) -> 6 | R54: -1 | S54: -1 | T54: 0 | U54: 0 | V54: 0 | W54: 0 | X54: -1 | Y54: -1
B55: 斧槍 | C55: 武器：斧 | D55: 重 | E55: 両手 | F55: 斬刺 | G55: 3d6 | H55: -4 | I55: 近接 | J55: 長大、投擲不可、受け流し(+1)、強打・斬(+2)、刺突(+1) | K55: 40 | L55: 1 | M55: 2 | N55: -1 | O55: 1 | P55: =LEFT(G55,3) -> 3d6 | Q55: =IF(P55=G55,0,VALUE( SUBSTITUTE(G55,P55,"") )) -> 0 | R55: -1 | S55: -1 | T55: 0 | U55: 0 | V55: 0 | W55: 0 | X55: -1 | Y55: -1
B56: 粗悪な槍 | C56: 武器：槍 | D56: 軽 | E56: 片手 | F56: 刺 | G56: 1d3+1 | H56: -2 | I56: 近接 | J56: 投擲適用 | K56: 5 | L56: -1 | M56: -1 | N56: -1 | O56: -1 | P56: 1d3 | Q56: 1 | R56: -1 | S56: -1 | T56: 0 | U56: 0 | V56: 0 | W56: 0 | X56: -1 | Y56: -1
B57: 投槍 | C57: 武器：槍 | D57: 軽 | E57: 片手 | F57: 刺 | G57: 1d3+1 | H57: -2 | I57: 近接 | J57: 投擲特化(威力：1d3+3、命中修正：なし、射程：20m) | K57: 20 | L57: -1 | M57: -1 | N57: -1 | O57: -1 | P57: =LEFT(G57,3) -> 1d3 | Q57: =IF(P57=G57,0,VALUE( SUBSTITUTE(G57,P57,"") )) -> 1 | R57: -1 | S57: -1 | T57: 0 | U57: 0 | V57: 0 | W57: 0 | X57: -1 | Y57: -1
B58: 短槍 | C58: 武器：槍 | D58: 軽 | E58: 片手 | F58: 刺 | G58: 1d6 | H58: 0 | I58: 近接 | J58: 投擲適用、刺突(+1) | K58: 15 | L58: -1 | M58: -1 | N58: -1 | O58: 1 | P58: 1d6 | Q58: 0 | R58: -1 | S58: -1 | T58: 0 | U58: 0 | V58: 0 | W58: 0 | X58: -1 | Y58: -1
B59: 小槍（片手） | C59: 武器：槍 | D59: 軽 | E59: 片手 | F59: 刺 | G59: 1d6 | H59: -4 | I59: 近接 | J59: 投擲適用、刺突(+1) | K59: 30 | L59: -1 | M59: -1 | N59: -1 | O59: 1 | P59: =LEFT(G59,3) -> 1d6 | Q59: =IF(P59=G59,0,VALUE( SUBSTITUTE(G59,P59,"") )) -> 0 | R59: -1 | S59: -1 | T59: 0 | U59: 0 | V59: 0 | W59: 0 | X59: -1 | Y59: -1
B60: 小槍（両手） | C60: 武器：槍 | D60: 軽 | E60: 両手 | F60: 刺 | G60: 1d6+3 | H60: 0 | I60: 近接 | J60: 投擲適用、受け流し(+0)、刺突(+1) | K60: 0 | L60: 0 | M60: -1 | N60: -1 | O60: 1 | P60: =LEFT(G60,3) -> 1d6 | Q60: =IF(P60=G60,0,VALUE( SUBSTITUTE(G60,P60,"") )) -> 3 | R60: -1 | S60: -1 | T60: 0 | U60: 0 | V60: 0 | W60: 0 | X60: -1 | Y60: -1
B61: 鉄小槍（片手） | C61: 武器：槍 | D61: 重 | E61: 片手 | F61: 刺殴 | G61: 1d6+1 | H61: -4 | I61: 近接 | J61: 投擲適用、刺突(+1)、強打・殴(+0) | K61: 55 | L61: -1 | M61: -1 | N61: 0 | O61: 1 | P61: 1d6 | Q61: 1 | R61: -1 | S61: -1 | T61: 0 | U61: 0 | V61: 0 | W61: 0 | X61: -1 | Y61: -1
B62: 鉄小槍（両手） | C62: 武器：槍 | D62: 重 | E62: 両手 | F62: 刺殴 | G62: 1d6+4 | H62: 0 | I62: 近接 | J62: 投擲適用、受け流し(+1)、刺突(+1)、強打・殴(+1) | K62: 0 | L62: 1 | M62: -1 | N62: 1 | O62: 1 | P62: =LEFT(G62,3) -> 1d6 | Q62: =IF(P62=G62,0,VALUE( SUBSTITUTE(G62,P62,"") )) -> 4 | R62: -1 | S62: -1 | T62: 0 | U62: 0 | V62: 0 | W62: 0 | X62: -1 | Y62: -1
B63: 農叉 | C63: 武器：槍 | D63: 重 | E63: 両手 | F63: 刺殴 | G63: 2d6-1 | H63: -2 | I63: 近接 | J63: 長大、刺突(+1) | K63: 15 | L63: -1 | M63: -1 | N63: -1 | O63: 1 | P63: =LEFT(G63,3) -> 2d6 | Q63: =IF(P63=G63,0,VALUE( SUBSTITUTE(G63,P63,"") )) -> -1 | R63: -1 | S63: -1 | T63: 0 | U63: 0 | V63: 0 | W63: 0 | X63: -1 | Y63: -1
B64: 三叉槍 | C64: 武器：槍 | D64: 重 | E64: 両手 | F64: 刺殴 | G64: 3d6-2 | H64: -2 | I64: 近接 | J64: 長大、刺突(+1) | K64: 35 | L64: -1 | M64: -1 | N64: -1 | O64: 1 | P64: =LEFT(G64,3) -> 3d6 | Q64: =IF(P64=G64,0,VALUE( SUBSTITUTE(G64,P64,"") )) -> -2 | R64: -1 | S64: -1 | T64: 0 | U64: 0 | V64: 0 | W64: 0 | X64: -1 | Y64: -1
B65: 長槍 | C65: 武器：槍 | D65: 重 | E65: 両手 | F65: 刺殴 | G65: 3d6 | H65: -4 | I65: 近接 | J65: 長大、投擲不可、刺突(+2) | K65: 55 | L65: -1 | M65: -1 | N65: -1 | O65: 2 | P65: =LEFT(G65,3) -> 3d6 | Q65: =IF(P65=G65,0,VALUE( SUBSTITUTE(G65,P65,"") )) -> 0 | R65: -1 | S65: -1 | T65: 0 | U65: 0 | V65: 0 | W65: 0 | X65: -1 | Y65: -1
B66: 薙刀 | C66: 武器：槍 | D66: 重 | E66: 両手 | F66: 斬刺殴 | G66: 2d6+4 | H66: -4 | I66: 近接 | J66: 長大、投擲不可、受け流し(+1)、強打・斬(+3)、斬落 | K66: 70 | L66: 1 | M66: 3 | N66: -1 | O66: -1 | P66: =LEFT(G66,3) -> 2d6 | Q66: =IF(P66=G66,0,VALUE( SUBSTITUTE(G66,P66,"") )) -> 4 | R66: -1 | S66: -1 | T66: 0 | U66: 0 | V66: 0 | W66: 0 | X66: -1 | Y66: -1
B67: 戦槍 | C67: 武器：槍 | D67: 重 | E67: 両手 | F67: 刺殴 | G67: 3d6+2 | H67: -6 | I67: 近接 | J67: 長大、投擲不可、強打・殴(+0)、刺突(+2) | K67: 40 | L67: -1 | M67: -1 | N67: 0 | O67: 2 | P67: 3d6 | Q67: 2 | R67: -1 | S67: -1 | T67: 0 | U67: 0 | V67: 0 | W67: 0 | X67: -1 | Y67: -1
B68: 投石杖（棍杖） | C68: 武器：棍杖 | D68: 軽 | E68: 両手 | F68: 殴 | G68: 1d3+1 | H68: 1 | I68: 近接 | J68: なし | K68: 0 | L68: -1 | M68: -1 | N68: -1 | O68: -1 | P68: 1d3 | Q68: 1 | R68: -1 | S68: -1 | T68: 0 | U68: 0 | V68: 0 | W68: 0 | X68: -1 | Y68: -1
B69: 紅玉の杖 | C69: 武器：棍杖 | D69: 軽 | E69: 両手 | F69: 殴 | G69: 1d3+1 | H69: 1 | I69: 近接 | J69: 受け流し(+1)、真言呪文の呪文行使判定に+1ボーナス | K69: 50 | L69: 1 | M69: -1 | N69: -1 | O69: -1 | P69: =LEFT(G69,3) -> 1d3 | Q69: =IF(P69=G69,0,VALUE( SUBSTITUTE(G69,P69,"") )) -> 1 | R69: 1 | S69: -1 | T69: 0 | U69: 0 | V69: 0 | W69: 0 | X69: -1 | Y69: -1
B70: 錫杖 | C70: 武器：棍杖 | D70: 軽 | E70: 両手 | F70: 殴 | G70: 1d3+1 | H70: 1 | I70: 近接 | J70: 受け流し(+1)、奇跡の呪文行使判定に+1ボーナス | K70: 50 | L70: 1 | M70: -1 | N70: -1 | O70: -1 | P70: =LEFT(G70,3) -> 1d3 | Q70: =IF(P70=G70,0,VALUE( SUBSTITUTE(G70,P70,"") )) -> 1 | R70: -1 | S70: 1 | T70: 0 | U70: 0 | V70: 0 | W70: 0 | X70: -1 | Y70: -1
B71: 司教杖 | C71: 武器：棍杖 | D71: 軽 | E71: 両手 | F71: 殴 | G71: 1d3+1 | H71: 1 | I71: 近接 | J71: 受け流し(+1)、奇跡の呪文行使判定に+2ボーナス | K71: 180 | L71: 1 | M71: -1 | N71: -1 | O71: -1 | P71: =LEFT(G71,3) -> 1d3 | Q71: =IF(P71=G71,0,VALUE( SUBSTITUTE(G71,P71,"") )) -> 1 | R71: -1 | S71: 2 | T71: 0 | U71: 0 | V71: 0 | W71: 0 | X71: -1 | Y71: -1
B72: 六尺棒 | C72: 武器：棍杖 | D72: 軽 | E72: 両手 | F72: 殴 | G72: 1d3+2 | H72: 1 | I72: 近接 | J72: 受け流し(+1) | K72: 18 | L72: 1 | M72: -1 | N72: -1 | O72: -1 | P72: 1d3 | Q72: 2 | R72: -1 | S72: -1 | T72: 0 | U72: 0 | V72: 0 | W72: 0 | X72: -1 | Y72: -1
B73: 双節棍 | C73: 武器：棍杖 | D73: 軽 | E73: 両手 | F73: 殴 | G73: 1d6+1 | H73: -2 | I73: 近接 | J73: 投擲不可、受け流し不可、強打・殴(+0) | K73: 20 | L73: -1 | M73: -1 | N73: 0 | O73: -1 | P73: =LEFT(G73,3) -> 1d6 | Q73: =IF(P73=G73,0,VALUE( SUBSTITUTE(G73,P73,"") )) -> 1 | R73: -1 | S73: -1 | T73: 0 | U73: 0 | V73: 0 | W73: 0 | X73: -1 | Y73: -1
B74: 打狗棒 | C74: 武器：棍杖 | D74: 軽 | E74: 両手 | F74: 殴 | G74: 1d6+4 | H74: 2 | I74: 近接 | J74: 受け流し(+1)、強打・殴(+2) | K74: 60 | L74: 1 | M74: -1 | N74: 2 | O74: -1 | P74: =LEFT(G74,3) -> 1d6 | Q74: =IF(P74=G74,0,VALUE( SUBSTITUTE(G74,P74,"") )) -> 4 | R74: -1 | S74: -1 | T74: 0 | U74: 0 | V74: 0 | W74: 0 | X74: -1 | Y74: -1
B75: 連節棍 | C75: 武器：棍杖 | D75: 重 | E75: 両手 | F75: 殴 | G75: 1d6+2 | H75: -2 | I75: 近接 | J75: 投擲不可、受け流し不可、強打・殴(+1) | K75: 20 | L75: -1 | M75: -1 | N75: 1 | O75: -1 | P75: 1d6 | Q75: 2 | R75: -1 | S75: -1 | T75: 0 | U75: 0 | V75: 0 | W75: 0 | X75: -1 | Y75: -1
B76: 金砕棒 | C76: 武器：棍杖 | D76: 重 | E76: 両手 | F76: 殴 | G76: 2d6+2 | H76: 2 | I76: 近接 | J76: 長大、受け流し(+1)、強打・殴(+3) | K76: 80 | L76: 1 | M76: -1 | N76: 3 | O76: -1 | P76: 2d6 | Q76: 2 | R76: -1 | S76: -1 | T76: 0 | U76: 0 | V76: 0 | W76: 0 | X76: -1 | Y76: -1
B77: 鞭 | C77: 武器：棍杖 | D77: 軽 | E77: 両手 | F77: 殴 | G77: 1d6-1 | H77: -4 | I77: 近接 | J77: 投擲不可、受け流し不可、強打・殴(+0)、拘束 | K77: 10 | L77: -1 | M77: -1 | N77: 0 | O77: -1 | P77: =LEFT(G77,3) -> 1d6 | Q77: =IF(P77=G77,0,VALUE( SUBSTITUTE(G77,P77,"") )) -> -1 | R77: -1 | S77: -1 | T77: 0 | U77: 0 | V77: 0 | W77: 0 | X77: -1 | Y77: -1
B78: 聖鞭 | C78: 武器：棍杖 | D78: 軽 | E78: 両手 | F78: 殴 | G78: 2d6 | H78: -4 | I78: 近接 | J78: 投擲不可、受け流し不可、強打・殴(+1)、拘束、アンデッドに対しては威力が4d6になる | K78: 145 | L78: -1 | M78: -1 | N78: 1 | O78: -1 | P78: =LEFT(G78,3) -> 2d6 | Q78: =IF(P78=G78,0,VALUE( SUBSTITUTE(G78,P78,"") )) -> 0 | R78: -1 | S78: -1 | T78: 0 | U78: 0 | V78: 0 | W78: 0 | X78: -1 | Y78: -1
B79: 素手攻撃（片手） | C79: 武器：格闘武器 | D79: 軽 | E79: 片手 | F79: 殴 | G79: 1d3 | H79: 0 | I79: 近接 | J79: 投擲不可 | K79: 0 | L79: -1 | M79: -1 | N79: -1 | O79: -1 | P79: 1d3 | Q79: 0 | R79: -1 | S79: -1 | T79: 0 | U79: 0 | V79: 0 | W79: 0 | X79: -1 | Y79: -1
B80: 素手攻撃（両手） | C80: 武器：格闘武器 | D80: 軽 | E80: 両手 | F80: 殴 | G80: 1d3+2 | H80: 0 | I80: 近接 | J80: 投擲不可 | K80: 0 | L80: -1 | M80: -1 | N80: -1 | O80: -1 | P80: =LEFT(G80,3) -> 1d3 | Q80: =IF(P80=G80,0,VALUE( SUBSTITUTE(G80,P80,"") )) -> 2 | R80: -1 | S80: -1 | T80: 0 | U80: 0 | V80: 0 | W80: 0 | X80: -1 | Y80: -1
B81: 拳帯（片手） | C81: 武器：格闘武器 | D81: 軽 | E81: 片手 | F81: 殴 | G81: 1d3 | H81: 2 | I81: 近接 | J81: 投擲不可 | K81: 18 | L81: -1 | M81: -1 | N81: -1 | O81: -1 | P81: 1d3 | Q81: 0 | R81: -1 | S81: -1 | T81: 0 | U81: 0 | V81: 0 | W81: 0 | X81: -1 | Y81: -1
B82: 拳帯（両手） | C82: 武器：格闘武器 | D82: 軽 | E82: 両手 | F82: 殴 | G82: 1d3+3 | H82: 2 | I82: 近接 | J82: 投擲不可、強打・殴(+0) | K82: 0 | L82: -1 | M82: -1 | N82: -1 | O82: -1 | P82: =LEFT(G82,3) -> 1d3 | Q82: =IF(P82=G82,0,VALUE( SUBSTITUTE(G82,P82,"") )) -> 3 | R82: -1 | S82: -1 | T82: 0 | U82: 0 | V82: 0 | W82: 0 | X82: -1 | Y82: -1
B83: 打布槍 | C83: 武器：格闘武器 | D83: 軽 | E83: 片手 | F83: 殴 | G83: 1d3+1 | H83: 0 | I83: 近接 | J83: 投擲不可 | K83: 10 | L83: -1 | M83: -1 | N83: -1 | O83: -1 | P83: 1d3 | Q83: 1 | R83: -1 | S83: -1 | T83: 0 | U83: 0 | V83: 0 | W83: 0 | X83: -1 | Y83: -1
B84: 旋棍 | C84: 武器：格闘武器 | D84: 軽 | E84: 片手 | F84: 殴 | G84: 1d3+2 | H84: 2 | I84: 近接 | J84: 受け流し(+0)、強打・殴(+0) | K84: 25 | L84: 0 | M84: -1 | N84: 0 | O84: -1 | P84: =LEFT(G84,3) -> 1d3 | Q84: =IF(P84=G84,0,VALUE( SUBSTITUTE(G84,P84,"") )) -> 2 | R84: -1 | S84: -1 | T84: 0 | U84: 0 | V84: 0 | W84: 0 | X84: -1 | Y84: -1
B85: 虎爪（片手） | C85: 武器：格闘武器 | D85: 軽 | E85: 片手 | F85: 斬刺 | G85: 1d3+2 | H85: 2 | I85: 近接 | J85: 投擲不可、受け流し(+0)、強打・斬(+0) | K85: 30 | L85: 0 | M85: 0 | N85: -1 | O85: -1 | P85: =LEFT(G85,3) -> 1d3 | Q85: =IF(P85=G85,0,VALUE( SUBSTITUTE(G85,P85,"") )) -> 2 | R85: -1 | S85: -1 | T85: 0 | U85: 0 | V85: 0 | W85: 0 | X85: -1 | Y85: -1
B86: 虎爪（両手） | C86: 武器：格闘武器 | D86: 軽 | E86: 両手 | F86: 斬刺 | G86: 1d6+1 | H86: 0 | I86: 近接 | J86: 投擲不可、受け流し(+1)、強打・斬(+1)、刺突(+1) | K86: 0 | L86: 1 | M86: 1 | N86: -1 | O86: 1 | P86: =LEFT(G86,3) -> 1d6 | Q86: =IF(P86=G86,0,VALUE( SUBSTITUTE(G86,P86,"") )) -> 1 | R86: -1 | S86: -1 | T86: 0 | U86: 0 | V86: 0 | W86: 0 | X86: -1 | Y86: -1
B87: 長傘 | C87: 武器：格闘武器 | D87: 軽 | E87: 片手 | F87: 刺殴 | G87: 1d6 | H87: 0 | I87: 近接 | J87: 受け流し(+2)、強打・殴(+0)、刺突(+1) | K87: 20 | L87: 2 | M87: -1 | N87: 0 | O87: 1 | P87: 1d6 | Q87: 0 | R87: -1 | S87: -1 | T87: 0 | U87: 0 | V87: 0 | W87: 0 | X87: -1 | Y87: -1
B88: 鉄靴 | C88: 武器：格闘武器 | D88: 軽 | E88: 特殊 | F88: 殴 | G88: 1d6 | H88: -2 | I88: 近接 | J88: 投擲不可、強打・殴(+1)、回避修正-1、移動修正-4、両足に装備するため、両手には別の装備を装備可能 | K88: 25 | L88: 2 | M88: -1 | N88: 0 | O88: 1 | P88: =LEFT(G88,3) -> 1d6 | Q88: =IF(P88=G88,0,VALUE( SUBSTITUTE(G88,P88,"") )) -> 0 | R88: -1 | S88: -1 | T88: -1 | U88: -4 | V88: 0 | W88: 0 | X88: -1 | Y88: -1
B89: 拳鍔（片手） | C89: 武器：格闘武器 | D89: 軽 | E89: 片手 | F89: 斬刺 | G89: 1d6 | H89: 2 | I89: 近接 | J89: 投擲不可、受け流し(+0)、強打・斬(+1) | K89: 55 | L89: 0 | M89: 1 | N89: -1 | O89: -1 | P89: 1d6 | Q89: 0 | R89: -1 | S89: -1 | T89: 0 | U89: 0 | V89: 0 | W89: 0 | X89: -1 | Y89: -1
